Workbook

Sheet 2021 Legal Max
B1: Comment | F1: Col 1 | I1: Col 2 | L1: Col 3 | P1: Col 4 | Q1: Col 5 | R1: Col 6 | S1: Col 7 | T1: Col 8 | Y1: Col 9 | Z1: Col 10 | AA1: Col 11 | AD1: Col 13 | AE1: Col 14 | AF1: Col 15 | AG1: Col 16 | AH1: Col 17 | AI1: Col 18 | AJ1: Col 19 | AK1: Col 20 | AM1: Col 21 | AN1: Col 22 | AO1: Col 23 | AP1: Col 24 | AR1: Col 26 | AS1: Col 27 | AT1: Col 28 | AU1: Col 29 | AW1: Col 30 | AX1: Col 31 | AY1: Col 32 | AZ1: Col 33 | BA1: Col 34 | BG1: Col 36 | BH1: Col 37 | BI1: Col 38 | BM1: Col 39 | BN1: Col 40 | BO1: Col 41 | BP1: Col 42 | BQ1: Col 43 | BR1: Col 44 | BS1: Col 45
B2: 2021-07-22 | M2: (Info Only) | N2: (Info Only) | O2: (Info Only) | AC2: N/A | AQ2: N/A | AV2: (Info Only) | AW2: (Info Only) | BB2: N/A | BU2: Table I - Low & High Enrollment | CE2: Table II - Transportation | CN2: Table III - Tax Appeal Amounts | CT2: Table IV High Density At Risk | CX2: LOB Transfers
A3: USD # | B3: County | C3: District Name | D3: FTE Enroll (excl 4yr old at-risk & virtual) 9/20/2017 | E3: FTE Enroll (excl 4yr old at-risk & virtual) 2/20/2018 | F3: FTE Enroll (excl 4yr old at-risk & virtual) 9/20/2017 2/20/2018 | G3: FTE Enroll (exc 4yr old at-risk & virtual) 9/20/2018 | H3: FTE Enroll (excl 4yr old at-risk & virtual) 2/20/2019 | I3: FTE Enroll (exc. 4yr old at-risk & virtual ) 9/20/2018 2/20/2019 | J3: FTE Enroll (exc 4yr old at-risk & virtual) 9/20/2019 | K3: FTE Enroll (excl 4yr old at-risk & virtual) 2/20/2020 | L3: FTE Enroll (excl 4yr old at-risk & virtual) 9/20/2019 2/20/2020 | M3: FTE Enroll (excl 4yr old at-risk & virtual) 9/20/2020 | N3: FTE Enroll (excl 4yr old at-risk & virtual) 2/20/2021 | O3: FTE Enroll (excl 4yr old at-risk & virtual) 9/20/2020 2/20/2021 | P3: Adjusted Enrollment | Q3: 4yr Old At Risk (9/20 + 2/20) | R3: 2018-19 Kindergarten (9/20 + 2/20) | S3: Total Adjusted Enrollment (incl 4yr AR) | T3: Low and High Enrollment WTD FTE | U3: 2020-21 Bilingual Contact Hours (9/20 + 2/20) | V3: Bilingual Contact Hours WTD FTE | W3: 2020-21 Bilingual Headcount (9/20 + 2/20) | X3: Bilingual Headcount WTD FTE | Y3: Bilingual (max Hrs or Hdct) WTD FTE | Z3: 2020-21 Career /Tech Ed Contact Hours (9/20 + 2/20) | AA3: Career /Tech Ed WTD FTE | AB3: Funded Headcount (excl virtual, KAMS, JDC) (9/20 + 2/20) | AC3: Free Lunch 10% (Guaranteed) | AD3: Free Lunch (9/20 + 2/20) | AE3: At-Risk (Free Lunch) WTD FTE | AF3: High Density At-Risk (USD) | AG3: High Density At-Risk (School) | AH3: High Density At-Risk WTD FTE | AI3: School Facilities FTE (9/20 + 2/20) | AJ3: School Facilities WTD FTE | AK3: Transportation FTE > = 2.5 Miles (9/20 + 2/20) | AM3: 2020-21 Transportation Aid | AN3: 2016-17 Transportation Aid | AO3: Transportation WTD FTE | AP3: Ancillary WTD FTE | AQ3: Declining Enrollment WTD FTE | AR3: Cost of Living WTD FTE | AS3: Special Education State Aid | AT3: Special Education WTD FTE | AU3: KAMS FTE | AV3: WTD FTE (excl COLA; incl SPED) | AW3: WTD FTE (excl SPED) | AX3: Virtual Full-Time FTE | AY3: Virtual Part-Time FTE | AZ3: Virtual Credits (20yrs & Older) | BA3: Virtual State Aid | BB3: Extraordinary Need Aid | BC3: Sequence Number | BD3: Audit | BE3: Republished | BF3: Info Only General Fund (excl SPED) | BG3: Computed General Fund | BH3: Adopted General Fund | BI3: Legal Max General Fund (before reductions) | BJ3: Prior Year Budget Law Violation | BK3: Trans Audit Adjust | BL3: Prior Year Virtual Credits Audit Adj | BM3: Prior Year Total Reductions | BN3: 2020-21 Adjusted Legal General Fund Budget | BO3: 2020-21 LOB Base General Fund | BP3: 2020-21 LOB Authorized Percent | BQ3: Computed Local Option Budget | BR3: Adopted Local Option Budget | BS3: Legal Max Local Option Budget | BT3: LOB Percent Used | BU3: 0-99.9 | BY3: 100-299.9 | CC3: 300-1621.9 | CD3: 1622 and higher | CE3: Area in Square Miles | CF3: Density Figure Range | CG3: Order ID | CH3: Per Capita | CI3: Base Change (Factor A) | CJ3: Factor Per Capita Allowance (Factor B) | CK3: Factor per Capita times Constant (Factor C) | CL3: Factor per Capita Allowance times the Variable (Factor D) | CM3: Trans Weighted FTE | CN3: Board of Tax Appeals (Ancillary) | CO3: Board of Tax Appeals (Declining Enrollment) | CP3: Form 150-Board of Tax Appeals (Cost of Living) | CQ3: Cost of Living Authorized Percent | CR3: Max Computed Cost of Living | CS3: Cost of Living Authority | CT3: 2019-20 Percent of Free Lunch (Current Year) | CU3: Free Lunch >=50% | CV3: Free Lunch >=35% <50% | CW3: Total WTD FTE (inc. SPED) | CX3: At-Risk LOB Transfer | CY3: Bilingual LOB Transfer
A4: Total | C4: STATE TOTALS | D4: =SUM(D5:D290) -> 465661.5 | E4: 566.5 | F4: 466228 | G4: 464895.7 | H4: 464.8 | I4: 465360.5 | J4: 464596.4 | K4: 562.4 | L4: 465158.8 | M4: 446279.5 | N4: 580.4 | O4: 446859.9 | P4: 469068 | Q4: 3459 | R4: 0 | S4: 472527 | T4: 54601.7 | U4: 118812 | V4: 7821.4 | W4: 44371 | X4: 8208.9 | Y4: 9117.9 | Z4: 109570.7 | AA4: 9132 | AB4: 459823 | AC4: 0 | AD4: 168263 | AE4: 81439.7 | AF4: 10255.1 | AG4: 10692 | AH4: 11170.5 | AI4: 850.3 | AJ4: 212.7 | AK4: 122520.5 | AM4: =SUM(AM5:AM290) -> 96150466 | AN4: 101223247 | AO4: 23177.8 | AP4: 6023.6 | AQ4: 0 | AR4: 6758.5 | AS4: 493638250 | AT4: 108041.3 | AU4: 40 | AV4: 775484.2 | AW4: 674201.4 | AX4: 9932 | AY4: 1389.3 | AZ4: 5413 | BA4: 55859638 | BB4: 0 | BF4: =SUM(BF5:BF290) -> 3136285844 | BG4: 3629926551 | BH4: 3744208005 | BI4: 3629920695 | BJ4: 0 | BK4: -4077427 | BL4: -171409 | BM4: -4248836 | BN4: 3625671859 | BO4: 3614366842 | BP4: 89.21 | BQ4: 1152020967 | BR4: 1178575207 | BS4: 1149760698 | BT4: =SUM(BT5:BT290)/286 -> 0.3103 | BU4: =SUM(BU5:BU290) -> 351.9 | BY4: =SUM(BY5:BY290) -> 9342.1 | CC4: =SUM(CC5:CC290) -> 32457.9 | CD4: 12449.8 | CE4: 82019.7 | CF4: 1246.53 | CG4: 7568 | CH4: =SUM(CH5:CH290) -> 303260 | CI4: =SUM(CI5:CI290) -> 313.742 | CJ4: =SUM(CJ5:CJ290) -> 87648545 | CK4: =SUM(CK5:CK290) -> 87648545 | CL4: =SUM(CL5:CL290) -> 96150466 | CM4: 21044.4 | CN4: 27522068 | CO4: 0 | CP4: 31400549 | CQ4: 0.4976 | CR4: =SUM(CR5:CR290) -> 37498466 | CS4: =SUM(CS5:CS290) -> 30879692 | CT4: =AD4/AB4 -> 0.3659 | CU4: =SUM(CU5:CU290) -> 8624.5 | CV4: =SUM(CV5:CV290) -> 1630.6 | CW4: =SUM(CW5:CW290) -> 782242.7 | CX4: =SUM(CX5:CX290) -> 119746650 | CY4: 13365272
A5: 101 | B5: Neosho | C5: Erie-Galesburg | D5: 514.5 | E5: 0 | F5: =SUM(D5:E5) -> 514.5 | G5: 491.5 | H5: 0 | I5: =SUM(G5:H5) -> 491.5 | J5: 467 | K5: 0 | L5: =SUM(J5+K5) -> 467 | M5: =IF(ISNA(VLOOKUP($CZ5,'Audit Values'!$A:$BW,2,FALSE)),'Preliminary SO66'!C4,VLOOKUP($CZ5,'Audit Values'!$A:$BW,73,FALSE)) -> 422.5 | N5: =IF(ISNA(VLOOKUP($CZ5,'Audit Values'!$A:$BW,2,FALSE)),'Preliminary SO66'!F4,VLOOKUP($CZ5,'Audit Values'!$A$2:$BW$381,4,FALSE)) -> 0 | O5: =M5+N5 -> 422.5 | P5: =IF('Military Provision'!J6="YES", MAX('2021 Legal Max'!L5,'2021 Legal Max'!I5,AVERAGE('2021 Legal Max'!F5,'2021 Legal Max'!I5,'2021 Legal Max'!L5)), MAX(L5, I5)) -> 491.5 | Q5: =IF(ISNA(VLOOKUP($CZ5,'Audit Values'!$A:BU,2,FALSE)),'Preliminary SO66'!AL4,VLOOKUP($CZ5,'Audit Values'!$A$2:$BU278,58,FALSE)) -> 2 | R5: 0 | S5: =P5+Q5+R5 -> 493.5 | T5: =MAX(BU5, BY5, CC5, CD5) -> 206.5 | U5: =IF(ISNA(VLOOKUP($CZ5,'Audit Values'!$A:$BW,2,FALSE)),'Preliminary SO66'!AM4,VLOOKUP($CZ5,'Audit Values'!$A:$BW,62,FALSE)) -> 3.2 | V5: =(U5/6)*'Weighting Factors'!$Q$7 -> 0.2 | W5: =IF(ISNA(VLOOKUP($CZ5,'Audit Values'!$A:$BW,2,FALSE)),'Preliminary SO66'!AN4,VLOOKUP($CZ5,'Audit Values'!$A:$BW,61,FALSE)) -> 8 | X5: =W5*'Weighting Factors'!$Q$8 -> 1.5 | Y5: =MAX(V5,X5) -> 1.5 | Z5: =IF(ISNA(VLOOKUP($CZ5,'Audit Values'!$A:$BW,2,FALSE)),'Preliminary SO66'!AO4,VLOOKUP($CZ5,'Audit Values'!$A:$BW,60,FALSE)) -> 103.1 | AA5: =Z5/6*'Weighting Factors'!$Q$6 -> 8.6 | AB5: =IF(ISNA(VLOOKUP($CZ5,'Audit Values'!$A:$BU,2,FALSE)),'Preliminary SO66'!AS4,VLOOKUP($CZ5,'Audit Values'!$A:$BU,63,FALSE)) -> 430 | AC5: =IF(ISNA(VLOOKUP($CZ5,'Audit Values'!$A$2:$BU$29,2,FALSE)),'Preliminary SO66'!AT4,VLOOKUP($CZ5,'Audit Values'!$A$2:$BU$29,63,FALSE)) -> 0 | AD5: =IF(ISNA(VLOOKUP($CZ5,'Audit Values'!$A:$BU,2,FALSE)),'Preliminary SO66'!AP4,VLOOKUP($CZ5,'Audit Values'!$A:$BU,64,FALSE)) -> 176 | AE5: =IF(A5=207, AD5,MAX(AC5,AD5))*'Weighting Factors'!$Q$9 -> 85.2 | AF5: =MAX(CU5,CV5) -> 7.3 | AG5: =IF(ISNA(VLOOKUP($CZ5,'Audit Values'!$A:$BW,2,FALSE)),'Preliminary SO66'!AG4,VLOOKUP($CZ5,'Audit Values'!$A$2:$BW$385,70,FALSE)) -> 9 | AH5: =MAX(AF5, AG5) -> 9 | AI5: =IF(ISNA(VLOOKUP($CZ5,'Audit Values'!$A:$BU,2,FALSE)),'Preliminary SO66'!AQ4,VLOOKUP($CZ5,'Audit Values'!$A:$BU,65,FALSE)) -> 0 | AJ5: =AI5*'Weighting Factors'!$Q$10 -> 0 | AK5: =IF(ISNA(VLOOKUP($CZ5,'Audit Values'!$A:$BU,2,FALSE)),'Preliminary SO66'!AR4,VLOOKUP($CZ5,'Audit Values'!$A:$BU,66,FALSE)) -> 203 | AM5: =CL5 -> 233826 | AN5: 303923 | AO5: =MAX(AN5, AM5)/'Weighting Factors'!$Q$5 -> 66.5 | AP5: =CN5/'Weighting Factors'!$Q$5 -> 0 | AQ5: 0 | AR5: =CS5/'Weighting Factors'!$Q$5 -> 0 | AS5: 663384 | AT5: =AS5/'Weighting Factors'!$Q$5 -> 145.2 | AU5: =IF(ISNA(VLOOKUP($CZ5,'Audit Values'!$A:$BU,2,FALSE)),'Preliminary SO66'!X4,VLOOKUP($CZ5,'Audit Values'!$A$2:$BU$385,47,FALSE)) -> 0 | AV5: =SUM(S5+T5+Y5+AA5+AE5+AH5+AJ5++AO5+AP5+AQ5+AT5+AU5) -> 1016 | AW5: =SUM(S5+T5+Y5+AA5+AE5+AH5+AJ5++AO5+AP5+AQ5+AR5+AU5) -> 870.8 | AX5: =IF(ISNA(VLOOKUP($CZ5,'Audit Values'!$A$2:$BU$385,2,FALSE)),'Preliminary SO66'!AA4,VLOOKUP($CZ5,'Audit Values'!$A$2:$BU$385,41,FALSE)) -> 0 | AY5: =IF(ISNA(VLOOKUP($CZ5,'Audit Values'!$A$2:$BU$385,2,FALSE)),'Preliminary SO66'!AB4,VLOOKUP($CZ5,'Audit Values'!$A$2:$BU$385,42,FALSE)) -> 0 | AZ5: 0 | BA5: =SUM(AX5*'Weighting Factors'!$T$10)+('2021 Legal Max'!AY5*'Weighting Factors'!$T$11)+('2021 Legal Max'!AZ5*'Weighting Factors'!$T$12) -> 0 | BB5: 0 | BC5: =IF(ISNA(VLOOKUP($CZ5,'Audit Values'!$A$2:$BU$385,2,FALSE)),"",IF(AND('Weighting Factors'!H5>0,VLOOKUP($CZ5,'Audit Values'!$A$2:$BU$385,51,FALSE)<'Weighting Factors'!H5),'Weighting Factors'!H5,VLOOKUP($CZ5,'Audit Values'!$A$2:$BU$385,50,FALSE))) -> 19 | BD5: =IF(ISNA(VLOOKUP($CZ5,'Audit Values'!$A$2:$BV$385,2,FALSE)),"",VLOOKUP($CZ5,'Audit Values'!$A$2:$BV$385,51,FALSE)) -> A | BE5: =IF('Weighting Factors'!H5="","",IF('Weighting Factors'!J5="Pending","PX","R")) ->  | BF5: =SUM((S5+T5+Y5+AA5+AE5+AH5+AJ5++AO5+AP5+AQ5+AU5+AR5)*'Weighting Factors'!$Q$5)+'2021 Legal Max'!BA5+'2021 Legal Max'!BB5 -> 3978685 | BG5: =SUM((AV5+AR5)*'Weighting Factors'!$Q$5)+BA5+'2021 Legal Max'!BB5 -> 4642104 | BH5: =IF('Weighting Factors'!H5>0,'Weighting Factors'!H5,'Preliminary SO66'!AV4) -> 4946856 | BI5: =MIN(BG5,BH5) -> 4642104 | BJ5: ='Weighting Factors'!G5 -> 0 | BK5: ='Weighting Factors'!F5 -> -92173 | BL5: ='Weighting Factors'!E5 -> 0 | BM5: =SUM(BJ5:BL5) -> -92173 | BN5: =BI5+BM5 -> 4549931 | BO5: =SUM((S5+T5+Y5+AA5+AE5+AH5+AJ5+AO5+AP5+AQ5+AR5)*'Weighting Factors'!Q$12)+(MAX(AS5,'Weighting Factors'!B5)) -> 4743813 | BP5: 0.3 | BQ5: =BO5*BP5 -> 1423144 | BR5: 1494742 | BS5: =MIN(BQ5,BR5) -> 1423144 | BT5: =BS5/BO5 -> 0.3 | BU5: =ROUND(IF(S5<=99.9,(S5*1.014331),0),1) -> 0 | BV5: =AND(S5>99.9,S5<=299.9) -> FALSE | BW5: =IF(BV5=TRUE,ROUND((S5-100)*9.655,3),0) -> 0 | BX5: =IF(BV5=TRUE,ROUND(((7337-BW5)/3642.4)-1,6),0) -> 0 | BY5: =ROUND(BX5*S5,1) -> 0 | BZ5: =AND(S5>299.9,S5<=1621.9) -> TRUE | CA5: =IF(BZ5=TRUE,ROUND((S5-300)*1.2375,4),0) -> 239.4563 | CB5: =IF(BZ5=TRUE,ROUND(((5406-CA5)/3642.4)-1,6),0) -> 0.418445 | CC5: =ROUND(CB5*S5,1) -> 206.5 | CD5: =ROUND(IF(S5>=1622,(S5*0.03504),0),1) -> 0 | CE5: 325 | CF5: =AK5/CE5 -> 0.625 | CG5: =IF(CF5<0.06,1,IF(CF5>=18.29,52,MATCH(CF5-0.001,'Weighting Factors'!$Y$5:$Y$156)+1)) -> 27 | CH5: =VLOOKUP(CG5, 'Weighting Factors'!$W$5:$Z$56,4) -> 1050 | CI5: =('Weighting Factors'!$Q$5/'Weighting Factors'!$Q$14) -> 1.097 | CJ5: =AK5*CH5 -> 213150 | CK5: =CJ5*'Weighting Factors'!$S$7 -> 213150 | CL5: =CK5*CI5 -> 233826 | CM5: =AM5/'Weighting Factors'!$Q$5 -> 51.2 | CN5: 0 | CO5: 0 | CP5: 0 | CQ5: 0 | CR5: =SUM((AV5*'Weighting Factors'!$Q$5)+'2021 Legal Max'!BA5)*CQ5 -> 0 | CS5: =IF(CP5>CR5,CR5,CP5) -> 0 | CT5: =AD5/AB5 -> 0.4093 | CU5: =IF(CT5>=50%,AD5*10.5%,0) -> 0 | CV5: =IF(AND(CT5>35%,CT5<50%),AD5*(CT5-35%)*0.7,0) -> 7.3 | CW5: =AW5+AT5 -> 1016 | CX5: ='LOB Transfers'!G4 -> 119544 | CY5: ='LOB Transfers'!J4 -> 2135 | CZ5: D0101
A6: 102 | B6: Gray | C6: Cimmaron-Ensign | D6: 638.2 | E6: 0 | F6: =SUM(D6:E6) -> 638.2 | G6: 659.1 | H6: 0 | I6: =SUM(G6:H6) -> 659.1 | J6: 654.4 | K6: 0 | L6: =SUM(J6+K6) -> 654.4 | M6: =IF(ISNA(VLOOKUP($CZ6,'Audit Values'!$A:$BW,2,FALSE)),'Preliminary SO66'!C5,VLOOKUP($CZ6,'Audit Values'!$A:$BW,73,FALSE)) -> 633 | N6: =IF(ISNA(VLOOKUP($CZ6,'Audit Values'!$A:$BW,2,FALSE)),'Preliminary SO66'!F5,VLOOKUP($CZ6,'Audit Values'!$A$2:$BW$381,4,FALSE)) -> 0 | O6: 633 | P6: =IF('Military Provision'!J7="YES", MAX('2021 Legal Max'!L6,'2021 Legal Max'!I6,AVERAGE('2021 Legal Max'!F6,'2021 Legal Max'!I6,'2021 Legal Max'!L6)), MAX(L6, I6)) -> 659.1 | Q6: =IF(ISNA(VLOOKUP($CZ6,'Audit Values'!$A:BU,2,FALSE)),'Preliminary SO66'!AL5,VLOOKUP($CZ6,'Audit Values'!$A$2:$BU279,58,FALSE)) -> 4.5 | R6: 0 | S6: =P6+Q6+R6 -> 663.6 | T6: 239.3 | U6: =IF(ISNA(VLOOKUP($CZ6,'Audit Values'!$A:$BW,2,FALSE)),'Preliminary SO66'!AM5,VLOOKUP($CZ6,'Audit Values'!$A:$BW,62,FALSE)) -> 588.8 | V6: =(U6/6)*'Weighting Factors'!$Q$7 -> 38.8 | W6: =IF(ISNA(VLOOKUP($CZ6,'Audit Values'!$A:$BW,2,FALSE)),'Preliminary SO66'!AN5,VLOOKUP($CZ6,'Audit Values'!$A:$BW,61,FALSE)) -> 119 | X6: =W6*'Weighting Factors'!$Q$8 -> 22 | Y6: 38.8 | Z6: =IF(ISNA(VLOOKUP($CZ6,'Audit Values'!$A:$BW,2,FALSE)),'Preliminary SO66'!AO5,VLOOKUP($CZ6,'Audit Values'!$A:$BW,60,FALSE)) -> 163.3 | AA6: =Z6/6*'Weighting Factors'!$Q$6 -> 13.6 | AB6: =IF(ISNA(VLOOKUP($CZ6,'Audit Values'!$A:$BU,2,FALSE)),'Preliminary SO66'!AS5,VLOOKUP($CZ6,'Audit Values'!$A:$BU,63,FALSE)) -> 644 | AC6: 0 | AD6: =IF(ISNA(VLOOKUP($CZ6,'Audit Values'!$A:$BU,2,FALSE)),'Preliminary SO66'!AP5,VLOOKUP($CZ6,'Audit Values'!$A:$BU,64,FALSE)) -> 190 | AE6: =IF(A6=207, AD6,MAX(AC6,AD6))*'Weighting Factors'!$Q$9 -> 92 | AF6: 0 | AG6: =IF(ISNA(VLOOKUP($CZ6,'Audit Values'!$A:$BW,2,FALSE)),'Preliminary SO66'!AG5,VLOOKUP($CZ6,'Audit Values'!$A$2:$BW$385,70,FALSE)) -> 0 | AH6: 0 | AI6: =IF(ISNA(VLOOKUP($CZ6,'Audit Values'!$A:$BU,2,FALSE)),'Preliminary SO66'!AQ5,VLOOKUP($CZ6,'Audit Values'!$A:$BU,65,FALSE)) -> 0 | AJ6: =AI6*'Weighting Factors'!$Q$10 -> 0 | AK6: =IF(ISNA(VLOOKUP($CZ6,'Audit Values'!$A:$BU,2,FALSE)),'Preliminary SO66'!AR5,VLOOKUP($CZ6,'Audit Values'!$A:$BU,66,FALSE)) -> 96 | AM6: 139012 | AN6: 154850 | AO6: =MAX(AN6, AM6)/'Weighting Factors'!$Q$5 -> 33.9 | AP6: =CN6/'Weighting Factors'!$Q$5 -> 0 | AQ6: 0 | AR6: =CS6/'Weighting Factors'!$Q$5 -> 0 | AS6: 543290 | AT6: =AS6/'Weighting Factors'!$Q$5 -> 118.9 | AU6: =IF(ISNA(VLOOKUP($CZ6,'Audit Values'!$A:$BU,2,FALSE)),'Preliminary SO66'!X5,VLOOKUP($CZ6,'Audit Values'!$A$2:$BU$385,47,FALSE)) -> 0 | AV6: =SUM(S6+T6+Y6+AA6+AE6+AH6+AJ6++AO6+AP6+AQ6+AT6+AU6) -> 1200.1 | AW6: =SUM(S6+T6+Y6+AA6+AE6+AH6+AJ6++AO6+AP6+AQ6+AR6+AU6) -> 1081.2 | AX6: =IF(ISNA(VLOOKUP($CZ6,'Audit Values'!$A$2:$BU$385,2,FALSE)),'Preliminary SO66'!AA5,VLOOKUP($CZ6,'Audit Values'!$A$2:$BU$385,41,FALSE)) -> 0 | AY6: =IF(ISNA(VLOOKUP($CZ6,'Audit Values'!$A$2:$BU$385,2,FALSE)),'Preliminary SO66'!AB5,VLOOKUP($CZ6,'Audit Values'!$A$2:$BU$385,42,FALSE)) -> 0 | AZ6: 0 | BA6: =SUM(AX6*'Weighting Factors'!$T$10)+('2021 Legal Max'!AY6*'Weighting Factors'!$T$11)+('2021 Legal Max'!AZ6*'Weighting Factors'!$T$12) -> 0 | BB6: 0 | BC6: =IF(ISNA(VLOOKUP($CZ6,'Audit Values'!$A$2:$BU$385,2,FALSE)),"",IF(AND('Weighting Factors'!H6>0,VLOOKUP($CZ6,'Audit Values'!$A$2:$BU$385,51,FALSE)<'Weighting Factors'!H6),'Weighting Factors'!H6,VLOOKUP($CZ6,'Audit Values'!$A$2:$BU$385,50,FALSE))) -> 13 | BD6: =IF(ISNA(VLOOKUP($CZ6,'Audit Values'!$A$2:$BV$385,2,FALSE)),"",VLOOKUP($CZ6,'Audit Values'!$A$2:$BV$385,51,FALSE)) -> A | BE6: =IF('Weighting Factors'!H6="","",IF('Weighting Factors'!J6="Pending","PX","R")) ->  | BF6: =SUM((S6+T6+Y6+AA6+AE6+AH6+AJ6++AO6+AP6+AQ6+AU6+AR6)*'Weighting Factors'!$Q$5)+'2021 Legal Max'!BA6+'2021 Legal Max'!BB6 -> 4940003 | BG6: =SUM((AV6+AR6)*'Weighting Factors'!$Q$5)+BA6+'2021 Legal Max'!BB6 -> 5483257 | BH6: =IF('Weighting Factors'!H6>0,'Weighting Factors'!H6,'Preliminary SO66'!AV5) -> 5748716 | BI6: =MIN(BG6,BH6) -> 5483257 | BJ6: ='Weighting Factors'!G6 -> 0 | BK6: ='Weighting Factors'!F6 -> 0 | BL6: ='Weighting Factors'!E6 -> 0 | BM6: 0 | BN6: 5483257 | BO6: =SUM((S6+T6+Y6+AA6+AE6+AH6+AJ6+AO6+AP6+AQ6+AR6)*'Weighting Factors'!Q$12)+(MAX(AS6,'Weighting Factors'!B6)) -> 5525460 | BP6: 0.3 | BQ6: 1657638 | BR6: 1739386 | BS6: 1657638 | BT6: 0.3 | BU6: 0 | BV6: FALSE | BW6: 0 | BX6: 0 | BY6: 0 | BZ6: TRUE | CA6: 449.955 | CB6: 0.360654 | CC6: 239.3 | CD6: 0 | CE6: 538 | CF6: 0.178 | CG6: =IF(CF6<0.06,1,IF(CF6>=18.29,52,MATCH(CF6-0.001,'Weighting Factors'!$Y$5:$Y$156)+1)) -> 13 | CH6: =VLOOKUP(CG6, 'Weighting Factors'!$W$5:$Z$56,4) -> 1320 | CI6: =('Weighting Factors'!$Q$5/'Weighting Factors'!$Q$14) -> 1.097 | CJ6: 126720 | CK6: =CJ6*'Weighting Factors'!$S$7 -> 126720 | CL6: 139012 | CM6: =AM6/'Weighting Factors'!$Q$5 -> 30.4 | CN6: 0 | CO6: 0 | CP6: 0 | CQ6: 0 | CR6: =SUM((AV6*'Weighting Factors'!$Q$5)+'2021 Legal Max'!BA6)*CQ6 -> 0 | CS6: 0 | CT6: 0.295 | CU6: 0 | CV6: 0 | CW6: 1200.1 | CX6: ='LOB Transfers'!G5 -> 127472 | CY6: ='LOB Transfers'!J5 -> 53873 | CZ6: D0102
A7: 103 | B7: Cheyenne | C7: Cheylin | D7: 128.5 | E7: 0 | F7: 128.5 | G7: 126.5 | H7: 0 | I7: 126.5 | J7: 143 | K7: 0 | L7: 143 | M7: =IF(ISNA(VLOOKUP($CZ7,'Audit Values'!$A:$BW,2,FALSE)),'Preliminary SO66'!C6,VLOOKUP($CZ7,'Audit Values'!$A:$BW,73,FALSE)) -> 144 | N7: =IF(ISNA(VLOOKUP($CZ7,'Audit Values'!$A:$BW,2,FALSE)),'Preliminary SO66'!F6,VLOOKUP($CZ7,'Audit Values'!$A$2:$BW$381,4,FALSE)) -> 0 | O7: 144 | P7: =IF('Military Provision'!J8="YES", MAX('2021 Legal Max'!L7,'2021 Legal Max'!I7,AVERAGE('2021 Legal Max'!F7,'2021 Legal Max'!I7,'2021 Legal Max'!L7)), MAX(L7, I7)) -> 143 | Q7: =IF(ISNA(VLOOKUP($CZ7,'Audit Values'!$A:BU,2,FALSE)),'Preliminary SO66'!AL6,VLOOKUP($CZ7,'Audit Values'!$A$2:$BU280,58,FALSE)) -> 0 | R7: 0 | S7: 143 | T7: 128.8 | U7: =IF(ISNA(VLOOKUP($CZ7,'Audit Values'!$A:$BW,2,FALSE)),'Preliminary SO66'!AM6,VLOOKUP($CZ7,'Audit Values'!$A:$BW,62,FALSE)) -> 122.3 | V7: =(U7/6)*'Weighting Factors'!$Q$7 -> 8.1 | W7: =IF(ISNA(VLOOKUP($CZ7,'Audit Values'!$A:$BW,2,FALSE)),'Preliminary SO66'!AN6,VLOOKUP($CZ7,'Audit Values'!$A:$BW,61,FALSE)) -> 34 | X7: =W7*'Weighting Factors'!$Q$8 -> 6.3 | Y7: 8.1 | Z7: =IF(ISNA(VLOOKUP($CZ7,'Audit Values'!$A:$BW,2,FALSE)),'Preliminary SO66'!AO6,VLOOKUP($CZ7,'Audit Values'!$A:$BW,60,FALSE)) -> 69.2 | AA7: =Z7/6*'Weighting Factors'!$Q$6 -> 5.8 | AB7: =IF(ISNA(VLOOKUP($CZ7,'Audit Values'!$A:$BU,2,FALSE)),'Preliminary SO66'!AS6,VLOOKUP($CZ7,'Audit Values'!$A:$BU,63,FALSE)) -> 145 | AC7: 0 | AD7: =IF(ISNA(VLOOKUP($CZ7,'Audit Values'!$A:$BU,2,FALSE)),'Preliminary SO66'!AP6,VLOOKUP($CZ7,'Audit Values'!$A:$BU,64,FALSE)) -> 67 | AE7: =IF(A7=207, AD7,MAX(AC7,AD7))*'Weighting Factors'!$Q$9 -> 32.4 | AF7: 5.3 | AG7: =IF(ISNA(VLOOKUP($CZ7,'Audit Values'!$A:$BW,2,FALSE)),'Preliminary SO66'!AG6,VLOOKUP($CZ7,'Audit Values'!$A$2:$BW$385,70,FALSE)) -> 5.3 | AH7: 5.3 | AI7: =IF(ISNA(VLOOKUP($CZ7,'Audit Values'!$A:$BU,2,FALSE)),'Preliminary SO66'!AQ6,VLOOKUP($CZ7,'Audit Values'!$A:$BU,65,FALSE)) -> 0 | AJ7: =AI7*'Weighting Factors'!$Q$10 -> 0 | AK7: =IF(ISNA(VLOOKUP($CZ7,'Audit Values'!$A:$BU,2,FALSE)),'Preliminary SO66'!AR6,VLOOKUP($CZ7,'Audit Values'!$A:$BU,66,FALSE)) -> 58.5 | AM7: 96262 | AN7: 105545 | AO7: =MAX(AN7, AM7)/'Weighting Factors'!$Q$5 -> 23.1 | AP7: =CN7/'Weighting Factors'!$Q$5 -> 0 | AQ7: 0 | AR7: =CS7/'Weighting Factors'!$Q$5 -> 0 | AS7: 119732 | AT7: =AS7/'Weighting Factors'!$Q$5 -> 26.2 | AU7: =IF(ISNA(VLOOKUP($CZ7,'Audit Values'!$A:$BU,2,FALSE)),'Preliminary SO66'!X6,VLOOKUP($CZ7,'Audit Values'!$A$2:$BU$385,47,FALSE)) -> 0 | AV7: 372.7 | AW7: 346.5 | AX7: =IF(ISNA(VLOOKUP($CZ7,'Audit Values'!$A$2:$BU$385,2,FALSE)),'Preliminary SO66'!AA6,VLOOKUP($CZ7,'Audit Values'!$A$2:$BU$385,41,FALSE)) -> 0 | AY7: =IF(ISNA(VLOOKUP($CZ7,'Audit Values'!$A$2:$BU$385,2,FALSE)),'Preliminary SO66'!AB6,VLOOKUP($CZ7,'Audit Values'!$A$2:$BU$385,42,FALSE)) -> 0 | AZ7: 0 | BA7: =SUM(AX7*'Weighting Factors'!$T$10)+('2021 Legal Max'!AY7*'Weighting Factors'!$T$11)+('2021 Legal Max'!AZ7*'Weighting Factors'!$T$12) -> 0 | BB7: 0 | BC7: =IF(ISNA(VLOOKUP($CZ7,'Audit Values'!$A$2:$BU$385,2,FALSE)),"",IF(AND('Weighting Factors'!H7>0,VLOOKUP($CZ7,'Audit Values'!$A$2:$BU$385,51,FALSE)<'Weighting Factors'!H7),'Weighting Factors'!H7,VLOOKUP($CZ7,'Audit Values'!$A$2:$BU$385,50,FALSE))) -> 20 | BD7: =IF(ISNA(VLOOKUP($CZ7,'Audit Values'!$A$2:$BV$385,2,FALSE)),"",VLOOKUP($CZ7,'Audit Values'!$A$2:$BV$385,51,FALSE)) -> A | BE7: =IF('Weighting Factors'!H7="","",IF('Weighting Factors'!J7="Pending","PX","R")) ->  | BF7: =SUM((S7+T7+Y7+AA7+AE7+AH7+AJ7++AO7+AP7+AQ7+AU7+AR7)*'Weighting Factors'!$Q$5)+'2021 Legal Max'!BA7+'2021 Legal Max'!BB7 -> 1583159 | BG7: =SUM((AV7+AR7)*'Weighting Factors'!$Q$5)+BA7+'2021 Legal Max'!BB7 -> 1702866 | BH7: =IF('Weighting Factors'!H7>0,'Weighting Factors'!H7,'Preliminary SO66'!AV6) -> 1821660 | BI7: 1702866 | BJ7: ='Weighting Factors'!G7 -> 0 | BK7: ='Weighting Factors'!F7 -> 0 | BL7: ='Weighting Factors'!E7 -> 0 | BM7: 0 | BN7: 1702866 | BO7: =SUM((S7+T7+Y7+AA7+AE7+AH7+AJ7+AO7+AP7+AQ7+AR7)*'Weighting Factors'!Q$12)+(MAX(AS7,'Weighting Factors'!B7)) -> 1786927 | BP7: 0.3 | BQ7: 536078 | BR7: 553773 | BS7: 536078 | BT7: 0.3 | BU7: 0 | BV7: TRUE | BW7: 415.165 | BX7: 0.90035 | BY7: 128.8 | BZ7: FALSE | CA7: 0 | CB7: 0 | CC7: 0 | CD7: 0 | CE7: 688 | CF7: 0.085 | CG7: =IF(CF7<0.06,1,IF(CF7>=18.29,52,MATCH(CF7-0.001,'Weighting Factors'!$Y$5:$Y$156)+1)) -> 4 | CH7: =VLOOKUP(CG7, 'Weighting Factors'!$W$5:$Z$56,4) -> 1500 | CI7: =('Weighting Factors'!$Q$5/'Weighting Factors'!$Q$14) -> 1.097 | CJ7: 87750 | CK7: =CJ7*'Weighting Factors'!$S$7 -> 87750 | CL7: 96262 | CM7: =AM7/'Weighting Factors'!$Q$5 -> 21.1 | CN7: 0 | CO7: 0 | CP7: 0 | CQ7: 0 | CR7: =SUM((AV7*'Weighting Factors'!$Q$5)+'2021 Legal Max'!BA7)*CQ7 -> 0 | CS7: 0 | CT7: 0.4621 | CU7: 0 | CV7: 5.3 | CW7: 372.7 | CX7: ='LOB Transfers'!G6 -> 46585 | CY7: ='LOB Transfers'!J6 -> 11633 | CZ7: D0103
A8: 105 | B8: Rawlins | C8: Rawlins County | D8: 329.5 | E8: 0 | F8: 329.5 | G8: 353.9 | H8: 0 | I8: 353.9 | J8: 364 | K8: 0 | L8: 364 | M8: =IF(ISNA(VLOOKUP($CZ8,'Audit Values'!$A:$BW,2,FALSE)),'Preliminary SO66'!C7,VLOOKUP($CZ8,'Audit Values'!$A:$BW,73,FALSE)) -> 341 | N8: =IF(ISNA(VLOOKUP($CZ8,'Audit Values'!$A:$BW,2,FALSE)),'Preliminary SO66'!F7,VLOOKUP($CZ8,'Audit Values'!$A$2:$BW$381,4,FALSE)) -> 0 | O8: 341 | P8: =IF('Military Provision'!J9="YES", MAX('2021 Legal Max'!L8,'2021 Legal Max'!I8,AVERAGE('2021 Legal Max'!F8,'2021 Legal Max'!I8,'2021 Legal Max'!L8)), MAX(L8, I8)) -> 364 | Q8: =IF(ISNA(VLOOKUP($CZ8,'Audit Values'!$A:BU,2,FALSE)),'Preliminary SO66'!AL7,VLOOKUP($CZ8,'Audit Values'!$A$2:$BU281,58,FALSE)) -> 0 | R8: 0 | S8: 364 | T8: 168.3 | U8: =IF(ISNA(VLOOKUP($CZ8,'Audit Values'!$A:$BW,2,FALSE)),'Preliminary SO66'!AM7,VLOOKUP($CZ8,'Audit Values'!$A:$BW,62,FALSE)) -> 37.6 | V8: =(U8/6)*'Weighting Factors'!$Q$7 -> 2.5 | W8: =IF(ISNA(VLOOKUP($CZ8,'Audit Values'!$A:$BW,2,FALSE)),'Preliminary SO66'!AN7,VLOOKUP($CZ8,'Audit Values'!$A:$BW,61,FALSE)) -> 27 | X8: =W8*'Weighting Factors'!$Q$8 -> 5 | Y8: 5 | Z8: =IF(ISNA(VLOOKUP($CZ8,'Audit Values'!$A:$BW,2,FALSE)),'Preliminary SO66'!AO7,VLOOKUP($CZ8,'Audit Values'!$A:$BW,60,FALSE)) -> 128.2 | AA8: =Z8/6*'Weighting Factors'!$Q$6 -> 10.7 | AB8: =IF(ISNA(VLOOKUP($CZ8,'Audit Values'!$A:$BU,2,FALSE)),'Preliminary SO66'!AS7,VLOOKUP($CZ8,'Audit Values'!$A:$BU,63,FALSE)) -> 344 | AC8: 0 | AD8: =IF(ISNA(VLOOKUP($CZ8,'Audit Values'!$A:$BU,2,FALSE)),'Preliminary SO66'!AP7,VLOOKUP($CZ8,'Audit Values'!$A:$BU,64,FALSE)) -> 109 | AE8: =IF(A8=207, AD8,MAX(AC8,AD8))*'Weighting Factors'!$Q$9 -> 52.8 | AF8: 0 | AG8: =IF(ISNA(VLOOKUP($CZ8,'Audit Values'!$A:$BW,2,FALSE)),'Preliminary SO66'!AG7,VLOOKUP($CZ8,'Audit Values'!$A$2:$BW$385,70,FALSE)) -> 1 | AH8: 1 | AI8: =IF(ISNA(VLOOKUP($CZ8,'Audit Values'!$A:$BU,2,FALSE)),'Preliminary SO66'!AQ7,VLOOKUP($CZ8,'Audit Values'!$A:$BU,65,FALSE)) -> 0 | AJ8: =AI8*'Weighting Factors'!$Q$10 -> 0 | AK8: =IF(ISNA(VLOOKUP($CZ8,'Audit Values'!$A:$BU,2,FALSE)),'Preliminary SO66'!AR7,VLOOKUP($CZ8,'Audit Values'!$A:$BU,66,FALSE)) -> 109.5 | AM8: 164566 | AN8: 196837 | AO8: =MAX(AN8, AM8)/'Weighting Factors'!$Q$5 -> 43.1 | AP8: =CN8/'Weighting Factors'!$Q$5 -> 0 | AQ8: 0 | AR8: =CS8/'Weighting Factors'!$Q$5 -> 0 | AS8: 316909 | AT8: =AS8/'Weighting Factors'!$Q$5 -> 69.4 | AU8: =IF(ISNA(VLOOKUP($CZ8,'Audit Values'!$A:$BU,2,FALSE)),'Preliminary SO66'!X7,VLOOKUP($CZ8,'Audit Values'!$A$2:$BU$385,47,FALSE)) -> 0 | AV8: 714.3 | AW8: 644.9 | AX8: =IF(ISNA(VLOOKUP($CZ8,'Audit Values'!$A$2:$BU$385,2,FALSE)),'Preliminary SO66'!AA7,VLOOKUP($CZ8,'Audit Values'!$A$2:$BU$385,41,FALSE)) -> 0 | AY8: =IF(ISNA(VLOOKUP($CZ8,'Audit Values'!$A$2:$BU$385,2,FALSE)),'Preliminary SO66'!AB7,VLOOKUP($CZ8,'Audit Values'!$A$2:$BU$385,42,FALSE)) -> 0 | AZ8: 0 | BA8: =SUM(AX8*'Weighting Factors'!$T$10)+('2021 Legal Max'!AY8*'Weighting Factors'!$T$11)+('2021 Legal Max'!AZ8*'Weighting Factors'!$T$12) -> 0 | BB8: 0 | BC8: =IF(ISNA(VLOOKUP($CZ8,'Audit Values'!$A$2:$BU$385,2,FALSE)),"",IF(AND('Weighting Factors'!H8>0,VLOOKUP($CZ8,'Audit Values'!$A$2:$BU$385,51,FALSE)<'Weighting Factors'!H8),'Weighting Factors'!H8,VLOOKUP($CZ8,'Audit Values'!$A$2:$BU$385,50,FALSE))) -> 20 | BD8: =IF(ISNA(VLOOKUP($CZ8,'Audit Values'!$A$2:$BV$385,2,FALSE)),"",VLOOKUP($CZ8,'Audit Values'!$A$2:$BV$385,51,FALSE)) -> A | BE8: =IF('Weighting Factors'!H8="","",IF('Weighting Factors'!J8="Pending","PX","R")) ->  | BF8: =SUM((S8+T8+Y8+AA8+AE8+AH8+AJ8++AO8+AP8+AQ8+AU8+AR8)*'Weighting Factors'!$Q$5)+'2021 Legal Max'!BA8+'2021 Legal Max'!BB8 -> 2946548 | BG8: =SUM((AV8+AR8)*'Weighting Factors'!$Q$5)+BA8+'2021 Legal Max'!BB8 -> 3263637 | BH8: =IF('Weighting Factors'!H8>0,'Weighting Factors'!H8,'Preliminary SO66'!AV7) -> 3463302 | BI8: 3263637 | BJ8: ='Weighting Factors'!G8 -> 0 | BK8: ='Weighting Factors'!F8 -> 0 | BL8: ='Weighting Factors'!E8 -> 0 | BM8: 0 | BN8: 3263637 | BO8: =SUM((S8+T8+Y8+AA8+AE8+AH8+AJ8+AO8+AP8+AQ8+AR8)*'Weighting Factors'!Q$12)+(MAX(AS8,'Weighting Factors'!B8)) -> 3305302 | BP8: 0.3 | BQ8: 991591 | BR8: 1046990 | BS8: 991591 | BT8: 0.3 | BU8: 0 | BV8: FALSE | BW8: 0 | BX8: 0 | BY8: 0 | BZ8: TRUE | CA8: 79.2 | CB8: 0.462442 | CC8: 168.3 | CD8: 0 | CE8: 740.1 | CF8: 0.148 | CG8: =IF(CF8<0.06,1,IF(CF8>=18.29,52,MATCH(CF8-0.001,'Weighting Factors'!$Y$5:$Y$156)+1)) -> 10 | CH8: =VLOOKUP(CG8, 'Weighting Factors'!$W$5:$Z$56,4) -> 1370 | CI8: =('Weighting Factors'!$Q$5/'Weighting Factors'!$Q$14) -> 1.097 | CJ8: 150015 | CK8: =CJ8*'Weighting Factors'!$S$7 -> 150015 | CL8: 164566 | CM8: =AM8/'Weighting Factors'!$Q$5 -> 36 | CN8: 0 | CO8: 0 | CP8: 0 | CQ8: 0 | CR8: =SUM((AV8*'Weighting Factors'!$Q$5)+'2021 Legal Max'!BA8)*CQ8 -> 0 | CS8: 0 | CT8: 0.3169 | CU8: 0 | CV8: 0 | CW8: 714.3 | CX8: ='LOB Transfers'!G7 -> 73279 | CY8: ='LOB Transfers'!J7 -> 6941 | CZ8: D0105
A9: 106 | B9: Ness | C9: Western Plains | D9: 94.5 | E9: 0 | F9: 94.5 | G9: 99.5 | H9: 0 | I9: 99.5 | J9: 109.5 | K9: 0 | L9: 109.5 | M9: =IF(ISNA(VLOOKUP($CZ9,'Audit Values'!$A:$BW,2,FALSE)),'Preliminary SO66'!C8,VLOOKUP($CZ9,'Audit Values'!$A:$BW,73,FALSE)) -> 104.5 | N9: =IF(ISNA(VLOOKUP($CZ9,'Audit Values'!$A:$BW,2,FALSE)),'Preliminary SO66'!F8,VLOOKUP($CZ9,'Audit Values'!$A$2:$BW$381,4,FALSE)) -> 0 | O9: 104.5 | P9: =IF('Military Provision'!J10="YES", MAX('2021 Legal Max'!L9,'2021 Legal Max'!I9,AVERAGE('2021 Legal Max'!F9,'2021 Legal Max'!I9,'2021 Legal Max'!L9)), MAX(L9, I9)) -> 109.5 | Q9: =IF(ISNA(VLOOKUP($CZ9,'Audit Values'!$A:BU,2,FALSE)),'Preliminary SO66'!AL8,VLOOKUP($CZ9,'Audit Values'!$A$2:$BU282,58,FALSE)) -> 1.5 | R9: 0 | S9: 111 | T9: 109.4 | U9: =IF(ISNA(VLOOKUP($CZ9,'Audit Values'!$A:$BW,2,FALSE)),'Preliminary SO66'!AM8,VLOOKUP($CZ9,'Audit Values'!$A:$BW,62,FALSE)) -> 95.7 | V9: =(U9/6)*'Weighting Factors'!$Q$7 -> 6.3 | W9: =IF(ISNA(VLOOKUP($CZ9,'Audit Values'!$A:$BW,2,FALSE)),'Preliminary SO66'!AN8,VLOOKUP($CZ9,'Audit Values'!$A:$BW,61,FALSE)) -> 19 | X9: =W9*'Weighting Factors'!$Q$8 -> 3.5 | Y9: 6.3 | Z9: =IF(ISNA(VLOOKUP($CZ9,'Audit Values'!$A:$BW,2,FALSE)),'Preliminary SO66'!AO8,VLOOKUP($CZ9,'Audit Values'!$A:$BW,60,FALSE)) -> 109.5 | AA9: =Z9/6*'Weighting Factors'!$Q$6 -> 9.1 | AB9: =IF(ISNA(VLOOKUP($CZ9,'Audit Values'!$A:$BU,2,FALSE)),'Preliminary SO66'!AS8,VLOOKUP($CZ9,'Audit Values'!$A:$BU,63,FALSE)) -> 108 | AC9: 0 | AD9: =IF(ISNA(VLOOKUP($CZ9,'Audit Values'!$A:$BU,2,FALSE)),'Preliminary SO66'!AP8,VLOOKUP($CZ9,'Audit Values'!$A:$BU,64,FALSE)) -> 58 | AE9: =IF(A9=207, AD9,MAX(AC9,AD9))*'Weighting Factors'!$Q$9 -> 28.1 | AF9: 6.1 | AG9: =IF(ISNA(VLOOKUP($CZ9,'Audit Values'!$A:$BW,2,FALSE)),'Preliminary SO66'!AG8,VLOOKUP($CZ9,'Audit Values'!$A$2:$BW$385,70,FALSE)) -> 5.3 | AH9: 6.1 | AI9: =IF(ISNA(VLOOKUP($CZ9,'Audit Values'!$A:$BU,2,FALSE)),'Preliminary SO66'!AQ8,VLOOKUP($CZ9,'Audit Values'!$A:$BU,65,FALSE)) -> 0 | AJ9: =AI9*'Weighting Factors'!$Q$10 -> 0 | AK9: =IF(ISNA(VLOOKUP($CZ9,'Audit Values'!$A:$BU,2,FALSE)),'Preliminary SO66'!AR8,VLOOKUP($CZ9,'Audit Values'!$A:$BU,66,FALSE)) -> 29.5 | AM9: 52426 | AN9: 98996 | AO9: =MAX(AN9, AM9)/'Weighting Factors'!$Q$5 -> 21.7 | AP9: =CN9/'Weighting Factors'!$Q$5 -> 0 | AQ9: 0 | AR9: =CS9/'Weighting Factors'!$Q$5 -> 0 | AS9: 86928 | AT9: =AS9/'Weighting Factors'!$Q$5 -> 19 | AU9: =IF(ISNA(VLOOKUP($CZ9,'Audit Values'!$A:$BU,2,FALSE)),'Preliminary SO66'!X8,VLOOKUP($CZ9,'Audit Values'!$A$2:$BU$385,47,FALSE)) -> 0 | AV9: 310.7 | AW9: 291.7 | AX9: =IF(ISNA(VLOOKUP($CZ9,'Audit Values'!$A$2:$BU$385,2,FALSE)),'Preliminary SO66'!AA8,VLOOKUP($CZ9,'Audit Values'!$A$2:$BU$385,41,FALSE)) -> 0 | AY9: =IF(ISNA(VLOOKUP($CZ9,'Audit Values'!$A$2:$BU$385,2,FALSE)),'Preliminary SO66'!AB8,VLOOKUP($CZ9,'Audit Values'!$A$2:$BU$385,42,FALSE)) -> 0 | AZ9: 0 | BA9: =SUM(AX9*'Weighting Factors'!$T$10)+('2021 Legal Max'!AY9*'Weighting Factors'!$T$11)+('2021 Legal Max'!AZ9*'Weighting Factors'!$T$12) -> 0 | BB9: 0 | BC9: =IF(ISNA(VLOOKUP($CZ9,'Audit Values'!$A$2:$BU$385,2,FALSE)),"",IF(AND('Weighting Factors'!H9>0,VLOOKUP($CZ9,'Audit Values'!$A$2:$BU$385,51,FALSE)<'Weighting Factors'!H9),'Weighting Factors'!H9,VLOOKUP($CZ9,'Audit Values'!$A$2:$BU$385,50,FALSE))) -> 19 | BD9: =IF(ISNA(VLOOKUP($CZ9,'Audit Values'!$A$2:$BV$385,2,FALSE)),"",VLOOKUP($CZ9,'Audit Values'!$A$2:$BV$385,51,FALSE)) -> A | BE9: =IF('Weighting Factors'!H9="","",IF('Weighting Factors'!J9="Pending","PX","R")) ->  | BF9: =SUM((S9+T9+Y9+AA9+AE9+AH9+AJ9++AO9+AP9+AQ9+AU9+AR9)*'Weighting Factors'!$Q$5)+'2021 Legal Max'!BA9+'2021 Legal Max'!BB9 -> 1332777 | BG9: =SUM((AV9+AR9)*'Weighting Factors'!$Q$5)+BA9+'2021 Legal Max'!BB9 -> 1419588 | BH9: =IF('Weighting Factors'!H9>0,'Weighting Factors'!H9,'Preliminary SO66'!AV8) -> 1475787 | BI9: 1419588 | BJ9: ='Weighting Factors'!G9 -> 0 | BK9: ='Weighting Factors'!F9 -> -50306 | BL9: ='Weighting Factors'!E9 -> 0 | BM9: -50306 | BN9: 1369282 | BO9: =SUM((S9+T9+Y9+AA9+AE9+AH9+AJ9+AO9+AP9+AQ9+AR9)*'Weighting Factors'!Q$12)+(MAX(AS9,'Weighting Factors'!B9)) -> 1495496 | BP9: 0.33 | BQ9: 493514 | BR9: 511305 | BS9: 493514 | BT9: 0.33 | BU9: 0 | BV9: TRUE | BW9: 106.205 | BX9: 0.985173 | BY9: 109.4 | BZ9: FALSE | CA9: 0 | CB9: 0 | CC9: 0 | CD9: 0 | CE9: 601.2 | CF9: 0.049 | CG9: =IF(CF9<0.06,1,IF(CF9>=18.29,52,MATCH(CF9-0.001,'Weighting Factors'!$Y$5:$Y$156)+1)) -> 1 | CH9: =VLOOKUP(CG9, 'Weighting Factors'!$W$5:$Z$56,4) -> 1620 | CI9: =('Weighting Factors'!$Q$5/'Weighting Factors'!$Q$14) -> 1.097 | CJ9: 47790 | CK9: =CJ9*'Weighting Factors'!$S$7 -> 47790 | CL9: 52426 | CM9: =AM9/'Weighting Factors'!$Q$5 -> 11.5 | CN9: 0 | CO9: 0 | CP9: 0 | CQ9: 0 | CR9: =SUM((AV9*'Weighting Factors'!$Q$5)+'2021 Legal Max'!BA9)*CQ9 -> 0 | CS9: 0 | CT9: 0.537 | CU9: 6.1 | CV9: 0 | CW9: 310.7 | CX9: ='LOB Transfers'!G8 -> 44860 | CY9: ='LOB Transfers'!J8 -> 10068 | CZ9: D0106
A10: 107 | B10: Jewell | C10: Rock Hills | D10: 302.5 | E10: 0 | F10: 302.5 | G10: 293.5 | H10: 0 | I10: 293.5 | J10: 316 | K10: 0 | L10: 316 | M10: =IF(ISNA(VLOOKUP($CZ10,'Audit Values'!$A:$BW,2,FALSE)),'Preliminary SO66'!C9,VLOOKUP($CZ10,'Audit Values'!$A:$BW,73,FALSE)) -> 328.2 | N10: =IF(ISNA(VLOOKUP($CZ10,'Audit Values'!$A:$BW,2,FALSE)),'Preliminary SO66'!F9,VLOOKUP($CZ10,'Audit Values'!$A$2:$BW$381,4,FALSE)) -> 0 | O10: 328.2 | P10: =IF('Military Provision'!J11="YES", MAX('2021 Legal Max'!L10,'2021 Legal Max'!I10,AVERAGE('2021 Legal Max'!F10,'2021 Legal Max'!I10,'2021 Legal Max'!L10)), MAX(L10, I10)) -> 316 | Q10: =IF(ISNA(VLOOKUP($CZ10,'Audit Values'!$A:BU,2,FALSE)),'Preliminary SO66'!AL9,VLOOKUP($CZ10,'Audit Values'!$A$2:$BU283,58,FALSE)) -> 4 | R10: 0 | S10: 320 | T10: 152.8 | U10: =IF(ISNA(VLOOKUP($CZ10,'Audit Values'!$A:$BW,2,FALSE)),'Preliminary SO66'!AM9,VLOOKUP($CZ10,'Audit Values'!$A:$BW,62,FALSE)) -> 0 | V10: =(U10/6)*'Weighting Factors'!$Q$7 -> 0 | W10: =IF(ISNA(VLOOKUP($CZ10,'Audit Values'!$A:$BW,2,FALSE)),'Preliminary SO66'!AN9,VLOOKUP($CZ10,'Audit Values'!$A:$BW,61,FALSE)) -> 0 | X10: =W10*'Weighting Factors'!$Q$8 -> 0 | Y10: 0 | Z10: =IF(ISNA(VLOOKUP($CZ10,'Audit Values'!$A:$BW,2,FALSE)),'Preliminary SO66'!AO9,VLOOKUP($CZ10,'Audit Values'!$A:$BW,60,FALSE)) -> 90.7 | AA10: =Z10/6*'Weighting Factors'!$Q$6 -> 7.6 | AB10: =IF(ISNA(VLOOKUP($CZ10,'Audit Values'!$A:$BU,2,FALSE)),'Preliminary SO66'!AS9,VLOOKUP($CZ10,'Audit Values'!$A:$BU,63,FALSE)) -> 340 | AC10: 0 | AD10: =IF(ISNA(VLOOKUP($CZ10,'Audit Values'!$A:$BU,2,FALSE)),'Preliminary SO66'!AP9,VLOOKUP($CZ10,'Audit Values'!$A:$BU,64,FALSE)) -> 129 | AE10: =IF(A10=207, AD10,MAX(AC10,AD10))*'Weighting Factors'!$Q$9 -> 62.4 | AF10: 2.7 | AG10: =IF(ISNA(VLOOKUP($CZ10,'Audit Values'!$A:$BW,2,FALSE)),'Preliminary SO66'!AG9,VLOOKUP($CZ10,'Audit Values'!$A$2:$BW$385,70,FALSE)) -> 2.8 | AH10: 2.8 | AI10: =IF(ISNA(VLOOKUP($CZ10,'Audit Values'!$A:$BU,2,FALSE)),'Preliminary SO66'!AQ9,VLOOKUP($CZ10,'Audit Values'!$A:$BU,65,FALSE)) -> 0 | AJ10: =AI10*'Weighting Factors'!$Q$10 -> 0 | AK10: =IF(ISNA(VLOOKUP($CZ10,'Audit Values'!$A:$BU,2,FALSE)),'Preliminary SO66'!AR9,VLOOKUP($CZ10,'Audit Values'!$A:$BU,66,FALSE)) -> 153 | AM10: 216515 | AN10: 228038 | AO10: =MAX(AN10, AM10)/'Weighting Factors'!$Q$5 -> 49.9 | AP10: =CN10/'Weighting Factors'!$Q$5 -> 0 | AQ10: 0 | AR10: =CS10/'Weighting Factors'!$Q$5 -> 0 | AS10: 377018 | AT10: =AS10/'Weighting Factors'!$Q$5 -> 82.5 | AU10: =IF(ISNA(VLOOKUP($CZ10,'Audit Values'!$A:$BU,2,FALSE)),'Preliminary SO66'!X9,VLOOKUP($CZ10,'Audit Values'!$A$2:$BU$385,47,FALSE)) -> 0 | AV10: 678 | AW10: 595.5 | AX10: =IF(ISNA(VLOOKUP($CZ10,'Audit Values'!$A$2:$BU$385,2,FALSE)),'Preliminary SO66'!AA9,VLOOKUP($CZ10,'Audit Values'!$A$2:$BU$385,41,FALSE)) -> 0 | AY10: =IF(ISNA(VLOOKUP($CZ10,'Audit Values'!$A$2:$BU$385,2,FALSE)),'Preliminary SO66'!AB9,VLOOKUP($CZ10,'Audit Values'!$A$2:$BU$385,42,FALSE)) -> 0 | AZ10: 0 | BA10: =SUM(AX10*'Weighting Factors'!$T$10)+('2021 Legal Max'!AY10*'Weighting Factors'!$T$11)+('2021 Legal Max'!AZ10*'Weighting Factors'!$T$12) -> 0 | BB10: 0 | BC10: =IF(ISNA(VLOOKUP($CZ10,'Audit Values'!$A$2:$BU$385,2,FALSE)),"",IF(AND('Weighting Factors'!H10>0,VLOOKUP($CZ10,'Audit Values'!$A$2:$BU$385,51,FALSE)<'Weighting Factors'!H10),'Weighting Factors'!H10,VLOOKUP($CZ10,'Audit Values'!$A$2:$BU$385,50,FALSE))) -> 14 | BD10: =IF(ISNA(VLOOKUP($CZ10,'Audit Values'!$A$2:$BV$385,2,FALSE)),"",VLOOKUP($CZ10,'Audit Values'!$A$2:$BV$385,51,FALSE)) -> A | BE10: =IF('Weighting Factors'!H10="","",IF('Weighting Factors'!J10="Pending","PX","R")) ->  | BF10: =SUM((S10+T10+Y10+AA10+AE10+AH10+AJ10++AO10+AP10+AQ10+AU10+AR10)*'Weighting Factors'!$Q$5)+'2021 Legal Max'!BA10+'2021 Legal Max'!BB10 -> 2720840 | BG10: =SUM((AV10+AR10)*'Weighting Factors'!$Q$5)+BA10+'2021 Legal Max'!BB10 -> 3097782 | BH10: =IF('Weighting Factors'!H10>0,'Weighting Factors'!H10,'Preliminary SO66'!AV9) -> 3238507 | BI10: 3097782 | BJ10: ='Weighting Factors'!G10 -> 0 | BK10: ='Weighting Factors'!F10 -> 0 | BL10: ='Weighting Factors'!E10 -> 0 | BM10: 0 | BN10: 3097782 | BO10: =SUM((S10+T10+Y10+AA10+AE10+AH10+AJ10+AO10+AP10+AQ10+AR10)*'Weighting Factors'!Q$12)+(MAX(AS10,'Weighting Factors'!B10)) -> 3121082 | BP10: 0.3 | BQ10: 936325 | BR10: 978885 | BS10: 936325 | BT10: 0.3 | BU10: 0 | BV10: FALSE | BW10: 0 | BX10: 0 | BY10: 0 | BZ10: TRUE | CA10: 24.75 | CB10: 0.477391 | CC10: 152.8 | CD10: 0 | CE10: 762 | CF10: 0.201 | CG10: =IF(CF10<0.06,1,IF(CF10>=18.29,52,MATCH(CF10-0.001,'Weighting Factors'!$Y$5:$Y$156)+1)) -> 15 | CH10: =VLOOKUP(CG10, 'Weighting Factors'!$W$5:$Z$56,4) -> 1290 | CI10: =('Weighting Factors'!$Q$5/'Weighting Factors'!$Q$14) -> 1.097 | CJ10: 197370 | CK10: =CJ10*'Weighting Factors'!$S$7 -> 197370 | CL10: 216515 | CM10: =AM10/'Weighting Factors'!$Q$5 -> 47.4 | CN10: 0 | CO10: 0 | CP10: 0 | CQ10: 0 | CR10: =SUM((AV10*'Weighting Factors'!$Q$5)+'2021 Legal Max'!BA10)*CQ10 -> 0 | CS10: 0 | CT10: 0.3794 | CU10: 0 | CV10: 2.7 | CW10: 678 | CX10: ='LOB Transfers'!G9 -> 86704 | CY10: ='LOB Transfers'!J9 -> 0 | CZ10: D0107
A11: 108 | B11: Washington | C11: Washington Co. Schools | D11: 329.2 | E11: 0 | F11: 329.2 | G11: 327.3 | H11: 0 | I11: 327.3 | J11: 350.7 | K11: 0 | L11: 350.7 | M11: =IF(ISNA(VLOOKUP($CZ11,'Audit Values'!$A:$BW,2,FALSE)),'Preliminary SO66'!C10,VLOOKUP($CZ11,'Audit Values'!$A:$BW,73,FALSE)) -> 365.1 | N11: =IF(ISNA(VLOOKUP($CZ11,'Audit Values'!$A:$BW,2,FALSE)),'Preliminary SO66'!F10,VLOOKUP($CZ11,'Audit Values'!$A$2:$BW$381,4,FALSE)) -> 0 | O11: 365.1 | P11: =IF('Military Provision'!J12="YES", MAX('2021 Legal Max'!L11,'2021 Legal Max'!I11,AVERAGE('2021 Legal Max'!F11,'2021 Legal Max'!I11,'2021 Legal Max'!L11)), MAX(L11, I11)) -> 350.7 | Q11: =IF(ISNA(VLOOKUP($CZ11,'Audit Values'!$A:BU,2,FALSE)),'Preliminary SO66'!AL10,VLOOKUP($CZ11,'Audit Values'!$A$2:$BU284,58,FALSE)) -> 0 | R11: 0 | S11: 350.7 | T11: 163.8 | U11: =IF(ISNA(VLOOKUP($CZ11,'Audit Values'!$A:$BW,2,FALSE)),'Preliminary SO66'!AM10,VLOOKUP($CZ11,'Audit Values'!$A:$BW,62,FALSE)) -> 9.5 | V11: =(U11/6)*'Weighting Factors'!$Q$7 -> 0.6 | W11: =IF(ISNA(VLOOKUP($CZ11,'Audit Values'!$A:$BW,2,FALSE)),'Preliminary SO66'!AN10,VLOOKUP($CZ11,'Audit Values'!$A:$BW,61,FALSE)) -> 20 | X11: =W11*'Weighting Factors'!$Q$8 -> 3.7 | Y11: 3.7 | Z11: =IF(ISNA(VLOOKUP($CZ11,'Audit Values'!$A:$BW,2,FALSE)),'Preliminary SO66'!AO10,VLOOKUP($CZ11,'Audit Values'!$A:$BW,60,FALSE)) -> 154 | AA11: =Z11/6*'Weighting Factors'!$Q$6 -> 12.8 | AB11: =IF(ISNA(VLOOKUP($CZ11,'Audit Values'!$A:$BU,2,FALSE)),'Preliminary SO66'!AS10,VLOOKUP($CZ11,'Audit Values'!$A:$BU,63,FALSE)) -> 369 | AC11: 0 | AD11: =IF(ISNA(VLOOKUP($CZ11,'Audit Values'!$A:$BU,2,FALSE)),'Preliminary SO66'!AP10,VLOOKUP($CZ11,'Audit Values'!$A:$BU,64,FALSE)) -> 131 | AE11: =IF(A11=207, AD11,MAX(AC11,AD11))*'Weighting Factors'!$Q$9 -> 63.4 | AF11: 0.5 | AG11: =IF(ISNA(VLOOKUP($CZ11,'Audit Values'!$A:$BW,2,FALSE)),'Preliminary SO66'!AG10,VLOOKUP($CZ11,'Audit Values'!$A$2:$BW$385,70,FALSE)) -> 1.4 | AH11: 1.4 | AI11: =IF(ISNA(VLOOKUP($CZ11,'Audit Values'!$A:$BU,2,FALSE)),'Preliminary SO66'!AQ10,VLOOKUP($CZ11,'Audit Values'!$A:$BU,65,FALSE)) -> 0 | AJ11: =AI11*'Weighting Factors'!$Q$10 -> 0 | AK11: =IF(ISNA(VLOOKUP($CZ11,'Audit Values'!$A:$BU,2,FALSE)),'Preliminary SO66'!AR10,VLOOKUP($CZ11,'Audit Values'!$A:$BU,66,FALSE)) -> 147 | AM11: 185448 | AN11: 208778 | AO11: =MAX(AN11, AM11)/'Weighting Factors'!$Q$5 -> 45.7 | AP11: =CN11/'Weighting Factors'!$Q$5 -> 0 | AQ11: 0 | AR11: =CS11/'Weighting Factors'!$Q$5 -> 0 | AS11: 329487 | AT11: =AS11/'Weighting Factors'!$Q$5 -> 72.1 | AU11: =IF(ISNA(VLOOKUP($CZ11,'Audit Values'!$A:$BU,2,FALSE)),'Preliminary SO66'!X10,VLOOKUP($CZ11,'Audit Values'!$A$2:$BU$385,47,FALSE)) -> 0 | AV11: 713.6 | AW11: 641.5 | AX11: =IF(ISNA(VLOOKUP($CZ11,'Audit Values'!$A:$BU,2,FALSE)),'Preliminary SO66'!AA10,VLOOKUP($CZ11,'Audit Values'!$A:$BU,41,FALSE)) -> 0 | AY11: =IF(ISNA(VLOOKUP($CZ11,'Audit Values'!$A$2:$BU$385,2,FALSE)),'Preliminary SO66'!AB10,VLOOKUP($CZ11,'Audit Values'!$A$2:$BU$385,42,FALSE)) -> 0 | AZ11: 0 | BA11: =SUM(AX11*'Weighting Factors'!$T$10)+('2021 Legal Max'!AY11*'Weighting Factors'!$T$11)+('2021 Legal Max'!AZ11*'Weighting Factors'!$T$12) -> 0 | BB11: 0 | BC11: =IF(ISNA(VLOOKUP($CZ11,'Audit Values'!$A$2:$BU$385,2,FALSE)),"",IF(AND('Weighting Factors'!H11>0,VLOOKUP($CZ11,'Audit Values'!$A$2:$BU$385,51,FALSE)<'Weighting Factors'!H11),'Weighting Factors'!H11,VLOOKUP($CZ11,'Audit Values'!$A$2:$BU$385,50,FALSE))) -> 12 | BD11: =IF(ISNA(VLOOKUP($CZ11,'Audit Values'!$A$2:$BV$385,2,FALSE)),"",VLOOKUP($CZ11,'Audit Values'!$A$2:$BV$385,51,FALSE)) -> A | BE11: =IF('Weighting Factors'!H11="","",IF('Weighting Factors'!J11="Pending","PX","R")) ->  | BF11: =SUM((S11+T11+Y11+AA11+AE11+AH11+AJ11++AO11+AP11+AQ11+AU11+AR11)*'Weighting Factors'!$Q$5)+'2021 Legal Max'!BA11+'2021 Legal Max'!BB11 -> 2931014 | BG11: =SUM((AV11+AR11)*'Weighting Factors'!$Q$5)+BA11+'2021 Legal Max'!BB11 -> 3260438 | BH11: =IF('Weighting Factors'!H11>0,'Weighting Factors'!H11,'Preliminary SO66'!AV10) -> 3280542 | BI11: 3260438 | BJ11: ='Weighting Factors'!G11 -> 0 | BK11: ='Weighting Factors'!F11 -> -13771 | BL11: ='Weighting Factors'!E11 -> 0 | BM11: -13771 | BN11: 3246667 | BO11: =SUM((S11+T11+Y11+AA11+AE11+AH11+AJ11+AO11+AP11+AQ11+AR11)*'Weighting Factors'!Q$12)+(MAX(AS11,'Weighting Factors'!B11)) -> 3504363 | BP11: 0.3 | BQ11: 1051309 | BR11: 1044259 | BS11: 1044259 | BT11: 0.298 | BU11: 0 | BV11: FALSE | BW11: 0 | BX11: 0 | BY11: 0 | BZ11: TRUE | CA11: 62.7413 | CB11: 0.466961 | CC11: 163.8 | CD11: 0 | CE11: 389 | CF11: 0.378 | CG11: =IF(CF11<0.06,1,IF(CF11>=18.29,52,MATCH(CF11-0.001,'Weighting Factors'!$Y$5:$Y$156)+1)) -> 22 | CH11: =VLOOKUP(CG11, 'Weighting Factors'!$W$5:$Z$56,4) -> 1150 | CI11: =('Weighting Factors'!$Q$5/'Weighting Factors'!$Q$14) -> 1.097 | CJ11: 169050 | CK11: =CJ11*'Weighting Factors'!$S$7 -> 169050 | CL11: 185448 | CM11: =AM11/'Weighting Factors'!$Q$5 -> 40.6 | CN11: 0 | CO11: 0 | CP11: 0 | CQ11: 0 | CR11: =SUM((AV11*'Weighting Factors'!$Q$5)+'2021 Legal Max'!BA11)*CQ11 -> 0 | CS11: 0 | CT11: 0.355 | CU11: 0 | CV11: 0.5 | CW11: 713.6 | CX11: ='LOB Transfers'!G10 -> 92730 | CY11: ='LOB Transfers'!J10 -> 5430 | CZ11: D0108
A12: 109 | B12: Republic | C12: Republic County | D12: 511 | E12: 0 | F12: =SUM(D12:E12) -> 511 | G12: 515.4 | H12: 0 | I12: =SUM(G12:H12) -> 515.4 | J12: 514.7 | K12: 0 | L12: =SUM(J12+K12) -> 514.7 | M12: =IF(ISNA(VLOOKUP($CZ12,'Audit Values'!$A:$BW,2,FALSE)),'Preliminary SO66'!C11,VLOOKUP($CZ12,'Audit Values'!$A:$BW,73,FALSE)) -> 477.4 | N12: =IF(ISNA(VLOOKUP($CZ12,'Audit Values'!$A:$BW,2,FALSE)),'Preliminary SO66'!F11,VLOOKUP($CZ12,'Audit Values'!$A$2:$BW$381,4,FALSE)) -> 0 | O12: =M12+N12 -> 477.4 | P12: =IF('Military Provision'!J13="YES", MAX('2021 Legal Max'!L12,'2021 Legal Max'!I12,AVERAGE('2021 Legal Max'!F12,'2021 Legal Max'!I12,'2021 Legal Max'!L12)), MAX(L12, I12)) -> 515.4 | Q12: =IF(ISNA(VLOOKUP($CZ12,'Audit Values'!$A:BU,2,FALSE)),'Preliminary SO66'!AL11,VLOOKUP($CZ12,'Audit Values'!$A$2:$BU285,58,FALSE)) -> 3.5 | R12: 0 | S12: =P12+Q12+R12 -> 518.9 | T12: =MAX(BU12, BY12, CC12, CD12) -> 212.7 | U12: =IF(ISNA(VLOOKUP($CZ12,'Audit Values'!$A:$BW,2,FALSE)),'Preliminary SO66'!AM11,VLOOKUP($CZ12,'Audit Values'!$A:$BW,62,FALSE)) -> 0 | V12: =(U12/6)*'Weighting Factors'!$Q$7 -> 0 | W12: =IF(ISNA(VLOOKUP($CZ12,'Audit Values'!$A:$BW,2,FALSE)),'Preliminary SO66'!AN11,VLOOKUP($CZ12,'Audit Values'!$A:$BW,61,FALSE)) -> 4 | X12: =W12*'Weighting Factors'!$Q$8 -> 0.7 | Y12: =MAX(V12,X12) -> 0.7 | Z12: =IF(ISNA(VLOOKUP($CZ12,'Audit Values'!$A:$BW,2,FALSE)),'Preliminary SO66'!AO11,VLOOKUP($CZ12,'Audit Values'!$A:$BW,60,FALSE)) -> 103.7 | AA12: =Z12/6*'Weighting Factors'!$Q$6 -> 8.6 | AB12: =IF(ISNA(VLOOKUP($CZ12,'Audit Values'!$A:$BU,2,FALSE)),'Preliminary SO66'!AS11,VLOOKUP($CZ12,'Audit Values'!$A:$BU,63,FALSE)) -> 489 | AC12: 0 | AD12: =IF(ISNA(VLOOKUP($CZ12,'Audit Values'!$A:$BU,2,FALSE)),'Preliminary SO66'!AP11,VLOOKUP($CZ12,'Audit Values'!$A:$BU,64,FALSE)) -> 180 | AE12: =IF(A12=207, AD12,MAX(AC12,AD12))*'Weighting Factors'!$Q$9 -> 87.1 | AF12: =MAX(CU12,CV12) -> 2.3 | AG12: =IF(ISNA(VLOOKUP($CZ12,'Audit Values'!$A:$BW,2,FALSE)),'Preliminary SO66'!AG11,VLOOKUP($CZ12,'Audit Values'!$A$2:$BW$385,70,FALSE)) -> 2.4 | AH12: =MAX(AF12, AG12) -> 2.4 | AI12: =IF(ISNA(VLOOKUP($CZ12,'Audit Values'!$A:$BU,2,FALSE)),'Preliminary SO66'!AQ11,VLOOKUP($CZ12,'Audit Values'!$A:$BU,65,FALSE)) -> 0 | AJ12: =AI12*'Weighting Factors'!$Q$10 -> 0 | AK12: =IF(ISNA(VLOOKUP($CZ12,'Audit Values'!$A:$BU,2,FALSE)),'Preliminary SO66'!AR11,VLOOKUP($CZ12,'Audit Values'!$A:$BU,66,FALSE)) -> 152 | AM12: =CL12 -> 201760 | AN12: 251536 | AO12: =MAX(AN12, AM12)/'Weighting Factors'!$Q$5 -> 55.1 | AP12: =CN12/'Weighting Factors'!$Q$5 -> 0 | AQ12: 0 | AR12: =CS12/'Weighting Factors'!$Q$5 -> 0 | AS12: 482036 | AT12: =AS12/'Weighting Factors'!$Q$5 -> 105.5 | AU12: =IF(ISNA(VLOOKUP($CZ12,'Audit Values'!$A:$BU,2,FALSE)),'Preliminary SO66'!X11,VLOOKUP($CZ12,'Audit Values'!$A$2:$BU$385,47,FALSE)) -> 0 | AV12: =SUM(S12+T12+Y12+AA12+AE12+AH12+AJ12++AO12+AP12+AQ12+AT12+AU12) -> 991 | AW12: =SUM(S12+T12+Y12+AA12+AE12+AH12+AJ12++AO12+AP12+AQ12+AR12+AU12) -> 885.5 | AX12: =IF(ISNA(VLOOKUP($CZ12,'Audit Values'!$A$2:$BU$385,2,FALSE)),'Preliminary SO66'!AA11,VLOOKUP($CZ12,'Audit Values'!$A$2:$BU$385,41,FALSE)) -> 0 | AY12: =IF(ISNA(VLOOKUP($CZ12,'Audit Values'!$A$2:$BU$385,2,FALSE)),'Preliminary SO66'!AB11,VLOOKUP($CZ12,'Audit Values'!$A$2:$BU$385,42,FALSE)) -> 0 | AZ12: 0 | BA12: =SUM(AX12*'Weighting Factors'!$T$10)+('2021 Legal Max'!AY12*'Weighting Factors'!$T$11)+('2021 Legal Max'!AZ12*'Weighting Factors'!$T$12) -> 0 | BB12: 0 | BC12: =IF(ISNA(VLOOKUP($CZ12,'Audit Values'!$A$2:$BU$385,2,FALSE)),"",IF(AND('Weighting Factors'!H12>0,VLOOKUP($CZ12,'Audit Values'!$A$2:$BU$385,51,FALSE)<'Weighting Factors'!H12),'Weighting Factors'!H12,VLOOKUP($CZ12,'Audit Values'!$A$2:$BU$385,50,FALSE))) -> 2 | BD12: =IF(ISNA(VLOOKUP($CZ12,'Audit Values'!$A$2:$BV$385,2,FALSE)),"",VLOOKUP($CZ12,'Audit Values'!$A$2:$BV$385,51,FALSE)) -> A | BE12: =IF('Weighting Factors'!H12="","",IF('Weighting Factors'!J12="Pending","PX","R")) ->  | BF12: =SUM((S12+T12+Y12+AA12+AE12+AH12+AJ12++AO12+AP12+AQ12+AU12+AR12)*'Weighting Factors'!$Q$5)+'2021 Legal Max'!BA12+'2021 Legal Max'!BB12 -> 4045850 | BG12: =SUM((AV12+AR12)*'Weighting Factors'!$Q$5)+BA12+'2021 Legal Max'!BB12 -> 4527879 | BH12: =IF('Weighting Factors'!H12>0,'Weighting Factors'!H12,'Preliminary SO66'!AV11) -> 4653527 | BI12: =MIN(BG12,BH12) -> 4527879 | BJ12: ='Weighting Factors'!G12 -> 0 | BK12: ='Weighting Factors'!F12 -> -13950 | BL12: ='Weighting Factors'!E12 -> 0 | BM12: =SUM(BJ12:BL12) -> -13950 | BN12: =BI12+BM12 -> 4513929 | BO12: =SUM((S12+T12+Y12+AA12+AE12+AH12+AJ12+AO12+AP12+AQ12+AR12)*'Weighting Factors'!Q$12)+(MAX(AS12,'Weighting Factors'!B12)) -> 4695644 | BP12: 0.3 | BQ12: =BO12*BP12 -> 1408693 | BR12: 1428738 | BS12: =MIN(BQ12,BR12) -> 1408693 | BT12: =BS12/BO12 -> 0.3 | BU12: =ROUND(IF(S12<=99.9,(S12*1.014331),0),1) -> 0 | BV12: =AND(S12>99.9,S12<=299.9) -> FALSE | BW12: =IF(BV12=TRUE,ROUND((S12-100)*9.655,3),0) -> 0 | BX12: =IF(BV12=TRUE,ROUND(((7337-BW12)/3642.4)-1,6),0) -> 0 | BY12: =ROUND(BX12*S12,1) -> 0 | BZ12: =AND(S12>299.9,S12<=1621.9) -> TRUE | CA12: =IF(BZ12=TRUE,ROUND((S12-300)*1.2375,4),0) -> 270.8888 | CB12: =IF(BZ12=TRUE,ROUND(((5406-CA12)/3642.4)-1,6),0) -> 0.409815 | CC12: =ROUND(CB12*S12,1) -> 212.7 | CD12: =ROUND(IF(S12>=1622,(S12*0.03504),0),1) -> 0 | CE12: 560 | CF12: =AK12/CE12 -> 0.271 | CG12: =IF(CF12<0.06,1,IF(CF12>=18.29,52,MATCH(CF12-0.001,'Weighting Factors'!$Y$5:$Y$156)+1)) -> 19 | CH12: =VLOOKUP(CG12, 'Weighting Factors'!$W$5:$Z$56,4) -> 1210 | CI12: =('Weighting Factors'!$Q$5/'Weighting Factors'!$Q$14) -> 1.097 | CJ12: =AK12*CH12 -> 183920 | CK12: =CJ12*'Weighting Factors'!$S$7 -> 183920 | CL12: =CK12*CI12 -> 201760 | CM12: =AM12/'Weighting Factors'!$Q$5 -> 44.2 | CN12: 0 | CO12: 0 | CP12: 0 | CQ12: 0 | CR12: =SUM((AV12*'Weighting Factors'!$Q$5)+'2021 Legal Max'!BA12)*CQ12 -> 0 | CS12: =IF(CP12>CR12,CR12,CP12) -> 0 | CT12: =AD12/AB12 -> 0.3681 | CU12: =IF(CT12>=50%,AD12*10.5%,0) -> 0 | CV12: =IF(AND(CT12>35%,CT12<50%),AD12*(CT12-35%)*0.7,0) -> 2.3 | CW12: =AW12+AT12 -> 991 | CX12: ='LOB Transfers'!G11 -> 124247 | CY12: ='LOB Transfers'!J11 -> 986 | CZ12: D0109
A13: 110 | B13: Phillips | C13: Thunder Ridge Schools | D13: 197.5 | E13: 0 | F13: 197.5 | G13: 196 | H13: 0 | I13: 196 | J13: 190.1 | K13: 0 | L13: 190.1 | M13: =IF(ISNA(VLOOKUP($CZ13,'Audit Values'!$A:$BW,2,FALSE)),'Preliminary SO66'!C12,VLOOKUP($CZ13,'Audit Values'!$A:$BW,73,FALSE)) -> 178 | N13: =IF(ISNA(VLOOKUP($CZ13,'Audit Values'!$A:$BW,2,FALSE)),'Preliminary SO66'!F12,VLOOKUP($CZ13,'Audit Values'!$A$2:$BW$381,4,FALSE)) -> 0 | O13: 178 | P13: =IF('Military Provision'!J14="YES", MAX('2021 Legal Max'!L13,'2021 Legal Max'!I13,AVERAGE('2021 Legal Max'!F13,'2021 Legal Max'!I13,'2021 Legal Max'!L13)), MAX(L13, I13)) -> 196 | Q13: =IF(ISNA(VLOOKUP($CZ13,'Audit Values'!$A:BU,2,FALSE)),'Preliminary SO66'!AL12,VLOOKUP($CZ13,'Audit Values'!$A$2:$BU286,58,FALSE)) -> 0 | R13: 0 | S13: 196 | T13: 148.9 | U13: =IF(ISNA(VLOOKUP($CZ13,'Audit Values'!$A:$BW,2,FALSE)),'Preliminary SO66'!AM12,VLOOKUP($CZ13,'Audit Values'!$A:$BW,62,FALSE)) -> 0 | V13: =(U13/6)*'Weighting Factors'!$Q$7 -> 0 | W13: =IF(ISNA(VLOOKUP($CZ13,'Audit Values'!$A:$BW,2,FALSE)),'Preliminary SO66'!AN12,VLOOKUP($CZ13,'Audit Values'!$A:$BW,61,FALSE)) -> 0 | X13: =W13*'Weighting Factors'!$Q$8 -> 0 | Y13: 0 | Z13: =IF(ISNA(VLOOKUP($CZ13,'Audit Values'!$A:$BW,2,FALSE)),'Preliminary SO66'!AO12,VLOOKUP($CZ13,'Audit Values'!$A:$BW,60,FALSE)) -> 57 | AA13: =Z13/6*'Weighting Factors'!$Q$6 -> 4.8 | AB13: =IF(ISNA(VLOOKUP($CZ13,'Audit Values'!$A:$BU,2,FALSE)),'Preliminary SO66'!AS12,VLOOKUP($CZ13,'Audit Values'!$A:$BU,63,FALSE)) -> 179 | AC13: 0 | AD13: =IF(ISNA(VLOOKUP($CZ13,'Audit Values'!$A:$BU,2,FALSE)),'Preliminary SO66'!AP12,VLOOKUP($CZ13,'Audit Values'!$A:$BU,64,FALSE)) -> 67 | AE13: =IF(A13=207, AD13,MAX(AC13,AD13))*'Weighting Factors'!$Q$9 -> 32.4 | AF13: 1.1 | AG13: =IF(ISNA(VLOOKUP($CZ13,'Audit Values'!$A:$BW,2,FALSE)),'Preliminary SO66'!AG12,VLOOKUP($CZ13,'Audit Values'!$A$2:$BW$385,70,FALSE)) -> 2.7 | AH13: 2.7 | AI13: =IF(ISNA(VLOOKUP($CZ13,'Audit Values'!$A:$BU,2,FALSE)),'Preliminary SO66'!AQ12,VLOOKUP($CZ13,'Audit Values'!$A:$BU,65,FALSE)) -> 0 | AJ13: =AI13*'Weighting Factors'!$Q$10 -> 0 | AK13: =IF(ISNA(VLOOKUP($CZ13,'Audit Values'!$A:$BU,2,FALSE)),'Preliminary SO66'!AR12,VLOOKUP($CZ13,'Audit Values'!$A:$BU,66,FALSE)) -> 121 | AM13: 163267 | AN13: 214171 | AO13: =MAX(AN13, AM13)/'Weighting Factors'!$Q$5 -> 46.9 | AP13: =CN13/'Weighting Factors'!$Q$5 -> 0 | AQ13: 0 | AR13: =CS13/'Weighting Factors'!$Q$5 -> 0 | AS13: 251200 | AT13: =AS13/'Weighting Factors'!$Q$5 -> 55 | AU13: =IF(ISNA(VLOOKUP($CZ13,'Audit Values'!$A:$BU,2,FALSE)),'Preliminary SO66'!X12,VLOOKUP($CZ13,'Audit Values'!$A$2:$BU$385,47,FALSE)) -> 0 | AV13: 486.7 | AW13: 431.7 | AX13: =IF(ISNA(VLOOKUP($CZ13,'Audit Values'!$A$2:$BU$385,2,FALSE)),'Preliminary SO66'!AA12,VLOOKUP($CZ13,'Audit Values'!$A$2:$BU$385,41,FALSE)) -> 0 | AY13: =IF(ISNA(VLOOKUP($CZ13,'Audit Values'!$A$2:$BU$385,2,FALSE)),'Preliminary SO66'!AB12,VLOOKUP($CZ13,'Audit Values'!$A$2:$BU$385,42,FALSE)) -> 0 | AZ13: 0 | BA13: =SUM(AX13*'Weighting Factors'!$T$10)+('2021 Legal Max'!AY13*'Weighting Factors'!$T$11)+('2021 Legal Max'!AZ13*'Weighting Factors'!$T$12) -> 0 | BB13: 0 | BC13: =IF(ISNA(VLOOKUP($CZ13,'Audit Values'!$A$2:$BU$385,2,FALSE)),"",IF(AND('Weighting Factors'!H13>0,VLOOKUP($CZ13,'Audit Values'!$A$2:$BU$385,51,FALSE)<'Weighting Factors'!H13),'Weighting Factors'!H13,VLOOKUP($CZ13,'Audit Values'!$A$2:$BU$385,50,FALSE))) -> 20 | BD13: =IF(ISNA(VLOOKUP($CZ13,'Audit Values'!$A$2:$BV$385,2,FALSE)),"",VLOOKUP($CZ13,'Audit Values'!$A$2:$BV$385,51,FALSE)) -> A | BE13: =IF('Weighting Factors'!H13="","",IF('Weighting Factors'!J13="Pending","PX","R")) ->  | BF13: =SUM((S13+T13+Y13+AA13+AE13+AH13+AJ13++AO13+AP13+AQ13+AU13+AR13)*'Weighting Factors'!$Q$5)+'2021 Legal Max'!BA13+'2021 Legal Max'!BB13 -> 1972437 | BG13: =SUM((AV13+AR13)*'Weighting Factors'!$Q$5)+BA13+'2021 Legal Max'!BB13 -> 2223732 | BH13: =IF('Weighting Factors'!H13>0,'Weighting Factors'!H13,'Preliminary SO66'!AV12) -> 2330190 | BI13: 2223732 | BJ13: ='Weighting Factors'!G13 -> 0 | BK13: ='Weighting Factors'!F13 -> 0 | BL13: ='Weighting Factors'!E13 -> 0 | BM13: 0 | BN13: 2223732 | BO13: =SUM((S13+T13+Y13+AA13+AE13+AH13+AJ13+AO13+AP13+AQ13+AR13)*'Weighting Factors'!Q$12)+(MAX(AS13,'Weighting Factors'!B13)) -> 2323205 | BP13: 0.3 | BQ13: 696962 | BR13: 723503 | BS13: 696962 | BT13: 0.3 | BU13: 0 | BV13: TRUE | BW13: 926.88 | BX13: 0.759862 | BY13: 148.9 | BZ13: FALSE | CA13: 0 | CB13: 0 | CC13: 0 | CD13: 0 | CE13: 491 | CF13: 0.246 | CG13: =IF(CF13<0.06,1,IF(CF13>=18.29,52,MATCH(CF13-0.001,'Weighting Factors'!$Y$5:$Y$156)+1)) -> 18 | CH13: =VLOOKUP(CG13, 'Weighting Factors'!$W$5:$Z$56,4) -> 1230 | CI13: =('Weighting Factors'!$Q$5/'Weighting Factors'!$Q$14) -> 1.097 | CJ13: 148830 | CK13: =CJ13*'Weighting Factors'!$S$7 -> 148830 | CL13: 163267 | CM13: =AM13/'Weighting Factors'!$Q$5 -> 35.7 | CN13: 0 | CO13: 0 | CP13: 0 | CQ13: 0 | CR13: =SUM((AV13*'Weighting Factors'!$Q$5)+'2021 Legal Max'!BA13)*CQ13 -> 0 | CS13: 0 | CT13: 0.3743 | CU13: 0 | CV13: 1.1 | CW13: 486.7 | CX13: ='LOB Transfers'!G12 -> 46418 | CY13: ='LOB Transfers'!J12 -> 0 | CZ13: D0110
A14: 111 | B14: Doniphan | C14: Doniphan West Schools | D14: 310 | E14: 0 | F14: 310 | G14: 316 | H14: 0 | I14: 316 | J14: 318.7 | K14: 0 | L14: 318.7 | M14: =IF(ISNA(VLOOKUP($CZ14,'Audit Values'!$A:$BW,2,FALSE)),'Preliminary SO66'!C13,VLOOKUP($CZ14,'Audit Values'!$A:$BW,73,FALSE)) -> 290.5 | N14: =IF(ISNA(VLOOKUP($CZ14,'Audit Values'!$A:$BW,2,FALSE)),'Preliminary SO66'!F13,VLOOKUP($CZ14,'Audit Values'!$A$2:$BW$381,4,FALSE)) -> 0 | O14: 290.5 | P14: =IF('Military Provision'!J15="YES", MAX('2021 Legal Max'!L14,'2021 Legal Max'!I14,AVERAGE('2021 Legal Max'!F14,'2021 Legal Max'!I14,'2021 Legal Max'!L14)), MAX(L14, I14)) -> 318.7 | Q14: =IF(ISNA(VLOOKUP($CZ14,'Audit Values'!$A:BU,2,FALSE)),'Preliminary SO66'!AL13,VLOOKUP($CZ14,'Audit Values'!$A$2:$BU287,58,FALSE)) -> 3 | R14: 0 | S14: 321.7 | T14: 153.4 | U14: =IF(ISNA(VLOOKUP($CZ14,'Audit Values'!$A:$BW,2,FALSE)),'Preliminary SO66'!AM13,VLOOKUP($CZ14,'Audit Values'!$A:$BW,62,FALSE)) -> 0 | V14: =(U14/6)*'Weighting Factors'!$Q$7 -> 0 | W14: =IF(ISNA(VLOOKUP($CZ14,'Audit Values'!$A:$BW,2,FALSE)),'Preliminary SO66'!AN13,VLOOKUP($CZ14,'Audit Values'!$A:$BW,61,FALSE)) -> 0 | X14: =W14*'Weighting Factors'!$Q$8 -> 0 | Y14: 0 | Z14: =IF(ISNA(VLOOKUP($CZ14,'Audit Values'!$A:$BW,2,FALSE)),'Preliminary SO66'!AO13,VLOOKUP($CZ14,'Audit Values'!$A:$BW,60,FALSE)) -> 49.5 | AA14: =Z14/6*'Weighting Factors'!$Q$6 -> 4.1 | AB14: =IF(ISNA(VLOOKUP($CZ14,'Audit Values'!$A:$BU,2,FALSE)),'Preliminary SO66'!AS13,VLOOKUP($CZ14,'Audit Values'!$A:$BU,63,FALSE)) -> 297 | AC14: 0 | AD14: =IF(ISNA(VLOOKUP($CZ14,'Audit Values'!$A:$BU,2,FALSE)),'Preliminary SO66'!AP13,VLOOKUP($CZ14,'Audit Values'!$A:$BU,64,FALSE)) -> 67 | AE14: =IF(A14=207, AD14,MAX(AC14,AD14))*'Weighting Factors'!$Q$9 -> 32.4 | AF14: 0 | AG14: =IF(ISNA(VLOOKUP($CZ14,'Audit Values'!$A:$BW,2,FALSE)),'Preliminary SO66'!AG13,VLOOKUP($CZ14,'Audit Values'!$A$2:$BW$385,70,FALSE)) -> 0 | AH14: 0 | AI14: =IF(ISNA(VLOOKUP($CZ14,'Audit Values'!$A:$BU,2,FALSE)),'Preliminary SO66'!AQ13,VLOOKUP($CZ14,'Audit Values'!$A:$BU,65,FALSE)) -> 0 | AJ14: =AI14*'Weighting Factors'!$Q$10 -> 0 | AK14: =IF(ISNA(VLOOKUP($CZ14,'Audit Values'!$A:$BU,2,FALSE)),'Preliminary SO66'!AR13,VLOOKUP($CZ14,'Audit Values'!$A:$BU,66,FALSE)) -> 96.5 | AM14: 119622 | AN14: 261166 | AO14: =MAX(AN14, AM14)/'Weighting Factors'!$Q$5 -> 57.2 | AP14: =CN14/'Weighting Factors'!$Q$5 -> 0 | AQ14: 0 | AR14: =CS14/'Weighting Factors'!$Q$5 -> 0 | AS14: 345823 | AT14: =AS14/'Weighting Factors'!$Q$5 -> 75.7 | AU14: =IF(ISNA(VLOOKUP($CZ14,'Audit Values'!$A:$BU,2,FALSE)),'Preliminary SO66'!X13,VLOOKUP($CZ14,'Audit Values'!$A$2:$BU$385,47,FALSE)) -> 0 | AV14: 644.5 | AW14: 568.8 | AX14: =IF(ISNA(VLOOKUP($CZ14,'Audit Values'!$A$2:$BU$385,2,FALSE)),'Preliminary SO66'!AA13,VLOOKUP($CZ14,'Audit Values'!$A$2:$BU$385,41,FALSE)) -> 0 | AY14: =IF(ISNA(VLOOKUP($CZ14,'Audit Values'!$A$2:$BU$385,2,FALSE)),'Preliminary SO66'!AB13,VLOOKUP($CZ14,'Audit Values'!$A$2:$BU$385,42,FALSE)) -> 0 | AZ14: 0 | BA14: =SUM(AX14*'Weighting Factors'!$T$10)+('2021 Legal Max'!AY14*'Weighting Factors'!$T$11)+('2021 Legal Max'!AZ14*'Weighting Factors'!$T$12) -> 0 | BB14: 0 | BC14: =IF(ISNA(VLOOKUP($CZ14,'Audit Values'!$A$2:$BU$385,2,FALSE)),"",IF(AND('Weighting Factors'!H14>0,VLOOKUP($CZ14,'Audit Values'!$A$2:$BU$385,51,FALSE)<'Weighting Factors'!H14),'Weighting Factors'!H14,VLOOKUP($CZ14,'Audit Values'!$A$2:$BU$385,50,FALSE))) -> 10 | BD14: =IF(ISNA(VLOOKUP($CZ14,'Audit Values'!$A$2:$BV$385,2,FALSE)),"",VLOOKUP($CZ14,'Audit Values'!$A$2:$BV$385,51,FALSE)) -> A | BE14: =IF('Weighting Factors'!H14="","",IF('Weighting Factors'!J14="Pending","PX","R")) ->  | BF14: =SUM((S14+T14+Y14+AA14+AE14+AH14+AJ14++AO14+AP14+AQ14+AU14+AR14)*'Weighting Factors'!$Q$5)+'2021 Legal Max'!BA14+'2021 Legal Max'!BB14 -> 2598847 | BG14: =SUM((AV14+AR14)*'Weighting Factors'!$Q$5)+BA14+'2021 Legal Max'!BB14 -> 2944721 | BH14: =IF('Weighting Factors'!H14>0,'Weighting Factors'!H14,'Preliminary SO66'!AV13) -> 3249016 | BI14: 2944721 | BJ14: ='Weighting Factors'!G14 -> 0 | BK14: ='Weighting Factors'!F14 -> -56354 | BL14: ='Weighting Factors'!E14 -> 0 | BM14: -56354 | BN14: 2888367 | BO14: =SUM((S14+T14+Y14+AA14+AE14+AH14+AJ14+AO14+AP14+AQ14+AR14)*'Weighting Factors'!Q$12)+(MAX(AS14,'Weighting Factors'!B14)) -> 3176251 | BP14: 0.3 | BQ14: 952875 | BR14: 1020475 | BS14: 952875 | BT14: 0.3 | BU14: 0 | BV14: FALSE | BW14: 0 | BX14: 0 | BY14: 0 | BZ14: TRUE | CA14: 26.8538 | CB14: 0.476814 | CC14: 153.4 | CD14: 0 | CE14: 229 | CF14: 0.421 | CG14: =IF(CF14<0.06,1,IF(CF14>=18.29,52,MATCH(CF14-0.001,'Weighting Factors'!$Y$5:$Y$156)+1)) -> 23 | CH14: =VLOOKUP(CG14, 'Weighting Factors'!$W$5:$Z$56,4) -> 1130 | CI14: =('Weighting Factors'!$Q$5/'Weighting Factors'!$Q$14) -> 1.097 | CJ14: 109045 | CK14: =CJ14*'Weighting Factors'!$S$7 -> 109045 | CL14: 119622 | CM14: =AM14/'Weighting Factors'!$Q$5 -> 26.2 | CN14: 0 | CO14: 0 | CP14: 0 | CQ14: 0 | CR14: =SUM((AV14*'Weighting Factors'!$Q$5)+'2021 Legal Max'!BA14)*CQ14 -> 0 | CS14: 0 | CT14: 0.2256 | CU14: 0 | CV14: 0 | CW14: 644.5 | CX14: ='LOB Transfers'!G13 -> 48120 | CY14: ='LOB Transfers'!J13 -> 0 | CZ14: D0111
A15: 112 | B15: Ellsworth | C15: Central Plains | D15: 457.1 | E15: 0 | F15: 457.1 | G15: 456 | H15: 0 | I15: 456 | J15: 428 | K15: 0 | L15: 428 | M15: =IF(ISNA(VLOOKUP($CZ15,'Audit Values'!$A:$BW,2,FALSE)),'Preliminary SO66'!C14,VLOOKUP($CZ15,'Audit Values'!$A:$BW,73,FALSE)) -> 433.5 | N15: =IF(ISNA(VLOOKUP($CZ15,'Audit Values'!$A:$BW,2,FALSE)),'Preliminary SO66'!F14,VLOOKUP($CZ15,'Audit Values'!$A$2:$BW$381,4,FALSE)) -> 0 | O15: 433.5 | P15: =IF('Military Provision'!J16="YES", MAX('2021 Legal Max'!L15,'2021 Legal Max'!I15,AVERAGE('2021 Legal Max'!F15,'2021 Legal Max'!I15,'2021 Legal Max'!L15)), MAX(L15, I15)) -> 456 | Q15: =IF(ISNA(VLOOKUP($CZ15,'Audit Values'!$A:BU,2,FALSE)),'Preliminary SO66'!AL14,VLOOKUP($CZ15,'Audit Values'!$A$2:$BU288,58,FALSE)) -> 6.5 | R15: 0 | S15: 462.5 | T15: 198.4 | U15: =IF(ISNA(VLOOKUP($CZ15,'Audit Values'!$A:$BW,2,FALSE)),'Preliminary SO66'!AM14,VLOOKUP($CZ15,'Audit Values'!$A:$BW,62,FALSE)) -> 0 | V15: =(U15/6)*'Weighting Factors'!$Q$7 -> 0 | W15: =IF(ISNA(VLOOKUP($CZ15,'Audit Values'!$A:$BW,2,FALSE)),'Preliminary SO66'!AN14,VLOOKUP($CZ15,'Audit Values'!$A:$BW,61,FALSE)) -> 0 | X15: =W15*'Weighting Factors'!$Q$8 -> 0 | Y15: 0 | Z15: =IF(ISNA(VLOOKUP($CZ15,'Audit Values'!$A:$BW,2,FALSE)),'Preliminary SO66'!AO14,VLOOKUP($CZ15,'Audit Values'!$A:$BW,60,FALSE)) -> 110.2 | AA15: =Z15/6*'Weighting Factors'!$Q$6 -> 9.2 | AB15: =IF(ISNA(VLOOKUP($CZ15,'Audit Values'!$A:$BU,2,FALSE)),'Preliminary SO66'!AS14,VLOOKUP($CZ15,'Audit Values'!$A:$BU,63,FALSE)) -> 452 | AC15: 0 | AD15: =IF(ISNA(VLOOKUP($CZ15,'Audit Values'!$A:$BU,2,FALSE)),'Preliminary SO66'!AP14,VLOOKUP($CZ15,'Audit Values'!$A:$BU,64,FALSE)) -> 169 | AE15: =IF(A15=207, AD15,MAX(AC15,AD15))*'Weighting Factors'!$Q$9 -> 81.8 | AF15: 2.8 | AG15: =IF(ISNA(VLOOKUP($CZ15,'Audit Values'!$A:$BW,2,FALSE)),'Preliminary SO66'!AG14,VLOOKUP($CZ15,'Audit Values'!$A$2:$BW$385,70,FALSE)) -> 4.1 | AH15: 4.1 | AI15: =IF(ISNA(VLOOKUP($CZ15,'Audit Values'!$A:$BU,2,FALSE)),'Preliminary SO66'!AQ14,VLOOKUP($CZ15,'Audit Values'!$A:$BU,65,FALSE)) -> 0 | AJ15: =AI15*'Weighting Factors'!$Q$10 -> 0 | AK15: =IF(ISNA(VLOOKUP($CZ15,'Audit Values'!$A:$BU,2,FALSE)),'Preliminary SO66'!AR14,VLOOKUP($CZ15,'Audit Values'!$A:$BU,66,FALSE)) -> 218 | AM15: 275018 | AN15: 303538 | AO15: =MAX(AN15, AM15)/'Weighting Factors'!$Q$5 -> 66.4 | AP15: =CN15/'Weighting Factors'!$Q$5 -> 0 | AQ15: 0 | AR15: =CS15/'Weighting Factors'!$Q$5 -> 0 | AS15: 516291 | AT15: =AS15/'Weighting Factors'!$Q$5 -> 113 | AU15: =IF(ISNA(VLOOKUP($CZ15,'Audit Values'!$A:$BU,2,FALSE)),'Preliminary SO66'!X14,VLOOKUP($CZ15,'Audit Values'!$A$2:$BU$385,47,FALSE)) -> 0 | AV15: 935.4 | AW15: 822.4 | AX15: =IF(ISNA(VLOOKUP($CZ15,'Audit Values'!$A$2:$BU$385,2,FALSE)),'Preliminary SO66'!AA14,VLOOKUP($CZ15,'Audit Values'!$A$2:$BU$385,41,FALSE)) -> 12 | AY15: =IF(ISNA(VLOOKUP($CZ15,'Audit Values'!$A$2:$BU$385,2,FALSE)),'Preliminary SO66'!AB14,VLOOKUP($CZ15,'Audit Values'!$A$2:$BU$385,42,FALSE)) -> 4.4 | AZ15: 2224 | BA15: =SUM(AX15*'Weighting Factors'!$T$10)+('2021 Legal Max'!AY15*'Weighting Factors'!$T$11)+('2021 Legal Max'!AZ15*'Weighting Factors'!$T$12) -> 1644296 | BB15: 0 | BC15: 27 | BD15: =IF(ISNA(VLOOKUP($CZ15,'Audit Values'!$A$2:$BV$385,2,FALSE)),"",VLOOKUP($CZ15,'Audit Values'!$A$2:$BV$385,51,FALSE)) -> A | BE15: =IF('Weighting Factors'!H15="","",IF('Weighting Factors'!J15="Pending","PX","R")) -> R | BF15: =SUM((S15+T15+Y15+AA15+AE15+AH15+AJ15++AO15+AP15+AQ15+AU15+AR15)*'Weighting Factors'!$Q$5)+'2021 Legal Max'!BA15+'2021 Legal Max'!BB15 -> 5401842 | BG15: =SUM((AV15+AR15)*'Weighting Factors'!$Q$5)+BA15+'2021 Legal Max'!BB15 -> 5918139 | BH15: =IF('Weighting Factors'!H15>0,'Weighting Factors'!H15,'Preliminary SO66'!AV14) -> 5912283 | BI15: 5912283 | BJ15: ='Weighting Factors'!G15 -> 0 | BK15: ='Weighting Factors'!F15 -> -13297 | BL15: ='Weighting Factors'!E15 -> -1773 | BM15: -15070 | BN15: 5897213 | BO15: =SUM((S15+T15+Y15+AA15+AE15+AH15+AJ15+AO15+AP15+AQ15+AR15)*'Weighting Factors'!Q$12)+(MAX(AS15,'Weighting Factors'!B15)) -> 4475595 | BP15: 0.33 | BQ15: 1476946 | BR15: 1466150 | BS15: 1466150 | BT15: 0.3276 | BU15: 0 | BV15: FALSE | BW15: 0 | BX15: 0 | BY15: 0 | BZ15: TRUE | CA15: 201.0938 | CB15: 0.428977 | CC15: 198.4 | CD15: 0 | CE15: 582.8 | CF15: 0.374 | CG15: =IF(CF15<0.06,1,IF(CF15>=18.29,52,MATCH(CF15-0.001,'Weighting Factors'!$Y$5:$Y$156)+1)) -> 22 | CH15: =VLOOKUP(CG15, 'Weighting Factors'!$W$5:$Z$56,4) -> 1150 | CI15: =('Weighting Factors'!$Q$5/'Weighting Factors'!$Q$14) -> 1.097 | CJ15: 250700 | CK15: =CJ15*'Weighting Factors'!$S$7 -> 250700 | CL15: 275018 | CM15: =AM15/'Weighting Factors'!$Q$5 -> 60.2 | CN15: 0 | CO15: 0 | CP15: 0 | CQ15: 0 | CR15: =SUM((AV15*'Weighting Factors'!$Q$5)+'2021 Legal Max'!BA15)*CQ15 -> 0 | CS15: 0 | CT15: 0.3739 | CU15: 0 | CV15: 2.8 | CW15: 935.4 | CX15: ='LOB Transfers'!G14 -> 129168 | CY15: ='LOB Transfers'!J14 -> 0 | CZ15: D0112
A16: 113 | B16: Nemaha | C16: Prairie Hills | D16: 1050.1 | E16: 0 | F16: 1050.1 | G16: 1072.3 | H16: 0 | I16: 1072.3 | J16: 1053.5 | K16: 0 | L16: 1053.5 | M16: =IF(ISNA(VLOOKUP($CZ16,'Audit Values'!$A:$BW,2,FALSE)),'Preliminary SO66'!C15,VLOOKUP($CZ16,'Audit Values'!$A:$BW,73,FALSE)) -> 1044.2 | N16: =IF(ISNA(VLOOKUP($CZ16,'Audit Values'!$A:$BW,2,FALSE)),'Preliminary SO66'!F15,VLOOKUP($CZ16,'Audit Values'!$A$2:$BW$381,4,FALSE)) -> 0 | O16: 1044.2 | P16: =IF('Military Provision'!J17="YES", MAX('2021 Legal Max'!L16,'2021 Legal Max'!I16,AVERAGE('2021 Legal Max'!F16,'2021 Legal Max'!I16,'2021 Legal Max'!L16)), MAX(L16, I16)) -> 1072.3 | Q16: =IF(ISNA(VLOOKUP($CZ16,'Audit Values'!$A:BU,2,FALSE)),'Preliminary SO66'!AL15,VLOOKUP($CZ16,'Audit Values'!$A$2:$BU289,58,FALSE)) -> 11.5 | R16: 0 | S16: 1083.8 | T16: 236.2 | U16: =IF(ISNA(VLOOKUP($CZ16,'Audit Values'!$A:$BW,2,FALSE)),'Preliminary SO66'!AM15,VLOOKUP($CZ16,'Audit Values'!$A:$BW,62,FALSE)) -> 0 | V16: =(U16/6)*'Weighting Factors'!$Q$7 -> 0 | W16: =IF(ISNA(VLOOKUP($CZ16,'Audit Values'!$A:$BW,2,FALSE)),'Preliminary SO66'!AN15,VLOOKUP($CZ16,'Audit Values'!$A:$BW,61,FALSE)) -> 0 | X16: =W16*'Weighting Factors'!$Q$8 -> 0 | Y16: 0 | Z16: =IF(ISNA(VLOOKUP($CZ16,'Audit Values'!$A:$BW,2,FALSE)),'Preliminary SO66'!AO15,VLOOKUP($CZ16,'Audit Values'!$A:$BW,60,FALSE)) -> 282.9 | AA16: =Z16/6*'Weighting Factors'!$Q$6 -> 23.6 | AB16: =IF(ISNA(VLOOKUP($CZ16,'Audit Values'!$A:$BU,2,FALSE)),'Preliminary SO66'!AS15,VLOOKUP($CZ16,'Audit Values'!$A:$BU,63,FALSE)) -> 1077 | AC16: 0 | AD16: =IF(ISNA(VLOOKUP($CZ16,'Audit Values'!$A:$BU,2,FALSE)),'Preliminary SO66'!AP15,VLOOKUP($CZ16,'Audit Values'!$A:$BU,64,FALSE)) -> 245 | AE16: =IF(A16=207, AD16,MAX(AC16,AD16))*'Weighting Factors'!$Q$9 -> 118.6 | AF16: 0 | AG16: =IF(ISNA(VLOOKUP($CZ16,'Audit Values'!$A:$BW,2,FALSE)),'Preliminary SO66'!AG15,VLOOKUP($CZ16,'Audit Values'!$A$2:$BW$385,70,FALSE)) -> 0 | AH16: 0 | AI16: =IF(ISNA(VLOOKUP($CZ16,'Audit Values'!$A:$BU,2,FALSE)),'Preliminary SO66'!AQ15,VLOOKUP($CZ16,'Audit Values'!$A:$BU,65,FALSE)) -> 0 | AJ16: =AI16*'Weighting Factors'!$Q$10 -> 0 | AK16: =IF(ISNA(VLOOKUP($CZ16,'Audit Values'!$A:$BU,2,FALSE)),'Preliminary SO66'!AR15,VLOOKUP($CZ16,'Audit Values'!$A:$BU,66,FALSE)) -> 377 | AM16: 425976 | AN16: 458388 | AO16: =MAX(AN16, AM16)/'Weighting Factors'!$Q$5 -> 100.3 | AP16: =CN16/'Weighting Factors'!$Q$5 -> 0 | AQ16: 0 | AR16: =CS16/'Weighting Factors'!$Q$5 -> 0 | AS16: 752922 | AT16: =AS16/'Weighting Factors'!$Q$5 -> 164.8 | AU16: =IF(ISNA(VLOOKUP($CZ16,'Audit Values'!$A:$BU,2,FALSE)),'Preliminary SO66'!X15,VLOOKUP($CZ16,'Audit Values'!$A$2:$BU$385,47,FALSE)) -> 0 | AV16: 1727.3 | AW16: 1562.5 | AX16: =IF(ISNA(VLOOKUP($CZ16,'Audit Values'!$A$2:$BU$385,2,FALSE)),'Preliminary SO66'!AA15,VLOOKUP($CZ16,'Audit Values'!$A$2:$BU$385,41,FALSE)) -> 0 | AY16: =IF(ISNA(VLOOKUP($CZ16,'Audit Values'!$A$2:$BU$385,2,FALSE)),'Preliminary SO66'!AB15,VLOOKUP($CZ16,'Audit Values'!$A$2:$BU$385,42,FALSE)) -> 0 | AZ16: 0 | BA16: =SUM(AX16*'Weighting Factors'!$T$10)+('2021 Legal Max'!AY16*'Weighting Factors'!$T$11)+('2021 Legal Max'!AZ16*'Weighting Factors'!$T$12) -> 0 | BB16: 0 | BC16: =IF(ISNA(VLOOKUP($CZ16,'Audit Values'!$A$2:$BU$385,2,FALSE)),"",IF(AND('Weighting Factors'!H16>0,VLOOKUP($CZ16,'Audit Values'!$A$2:$BU$385,51,FALSE)<'Weighting Factors'!H16),'Weighting Factors'!H16,VLOOKUP($CZ16,'Audit Values'!$A$2:$BU$385,50,FALSE))) -> 6 | BD16: =IF(ISNA(VLOOKUP($CZ16,'Audit Values'!$A$2:$BV$385,2,FALSE)),"",VLOOKUP($CZ16,'Audit Values'!$A$2:$BV$385,51,FALSE)) -> A | BE16: =IF('Weighting Factors'!H16="","",IF('Weighting Factors'!J16="Pending","PX","R")) ->  | BF16: =SUM((S16+T16+Y16+AA16+AE16+AH16+AJ16++AO16+AP16+AQ16+AU16+AR16)*'Weighting Factors'!$Q$5)+'2021 Legal Max'!BA16+'2021 Legal Max'!BB16 -> 7139063 | BG16: =SUM((AV16+AR16)*'Weighting Factors'!$Q$5)+BA16+'2021 Legal Max'!BB16 -> 7892034 | BH16: =IF('Weighting Factors'!H16>0,'Weighting Factors'!H16,'Preliminary SO66'!AV15) -> 8067483 | BI16: 7892034 | BJ16: ='Weighting Factors'!G16 -> 0 | BK16: ='Weighting Factors'!F16 -> -4768 | BL16: ='Weighting Factors'!E16 -> 0 | BM16: -4768 | BN16: 7887266 | BO16: =SUM((S16+T16+Y16+AA16+AE16+AH16+AJ16+AO16+AP16+AQ16+AR16)*'Weighting Factors'!Q$12)+(MAX(AS16,'Weighting Factors'!B16)) -> 8300793 | BP16: 0.33 | BQ16: 2739262 | BR16: 2783816 | BS16: 2739262 | BT16: 0.33 | BU16: 0 | BV16: FALSE | BW16: 0 | BX16: 0 | BY16: 0 | BZ16: TRUE | CA16: 969.9525 | CB16: 0.217891 | CC16: 236.2 | CD16: 0 | CE16: 543 | CF16: 0.694 | CG16: =IF(CF16<0.06,1,IF(CF16>=18.29,52,MATCH(CF16-0.001,'Weighting Factors'!$Y$5:$Y$156)+1)) -> 28 | CH16: =VLOOKUP(CG16, 'Weighting Factors'!$W$5:$Z$56,4) -> 1030 | CI16: =('Weighting Factors'!$Q$5/'Weighting Factors'!$Q$14) -> 1.097 | CJ16: 388310 | CK16: =CJ16*'Weighting Factors'!$S$7 -> 388310 | CL16: 425976 | CM16: =AM16/'Weighting Factors'!$Q$5 -> 93.2 | CN16: 0 | CO16: 0 | CP16: 0 | CQ16: 0 | CR16: =SUM((AV16*'Weighting Factors'!$Q$5)+'2021 Legal Max'!BA16)*CQ16 -> 0 | CS16: 0 | CT16: 0.2275 | CU16: 0 | CV16: 0 | CW16: 1727.3 | CX16: ='LOB Transfers'!G15 -> 189283 | CY16: ='LOB Transfers'!J15 -> 0 | CZ16: D0113
A17: 114 | B17: Doniphan | C17: Riverside | D17: 588.5 | E17: 0 | F17: 588.5 | G17: 580 | H17: 0 | I17: 580 | J17: 563.4 | K17: 0 | L17: 563.4 | M17: =IF(ISNA(VLOOKUP($CZ17,'Audit Values'!$A:$BW,2,FALSE)),'Preliminary SO66'!C16,VLOOKUP($CZ17,'Audit Values'!$A:$BW,73,FALSE)) -> 577.3 | N17: =IF(ISNA(VLOOKUP($CZ17,'Audit Values'!$A:$BW,2,FALSE)),'Preliminary SO66'!F16,VLOOKUP($CZ17,'Audit Values'!$A$2:$BW$381,4,FALSE)) -> 0 | O17: 577.3 | P17: =IF('Military Provision'!J18="YES", MAX('2021 Legal Max'!L17,'2021 Legal Max'!I17,AVERAGE('2021 Legal Max'!F17,'2021 Legal Max'!I17,'2021 Legal Max'!L17)), MAX(L17, I17)) -> 580 | Q17: =IF(ISNA(VLOOKUP($CZ17,'Audit Values'!$A:BU,2,FALSE)),'Preliminary SO66'!AL16,VLOOKUP($CZ17,'Audit Values'!$A$2:$BU290,58,FALSE)) -> 6 | R17: 0 | S17: 586 | T17: 226.8 | U17: =IF(ISNA(VLOOKUP($CZ17,'Audit Values'!$A:$BW,2,FALSE)),'Preliminary SO66'!AM16,VLOOKUP($CZ17,'Audit Values'!$A:$BW,62,FALSE)) -> 0 | V17: =(U17/6)*'Weighting Factors'!$Q$7 -> 0 | W17: =IF(ISNA(VLOOKUP($CZ17,'Audit Values'!$A:$BW,2,FALSE)),'Preliminary SO66'!AN16,VLOOKUP($CZ17,'Audit Values'!$A:$BW,61,FALSE)) -> 0 | X17: =W17*'Weighting Factors'!$Q$8 -> 0 | Y17: 0 | Z17: =IF(ISNA(VLOOKUP($CZ17,'Audit Values'!$A:$BW,2,FALSE)),'Preliminary SO66'!AO16,VLOOKUP($CZ17,'Audit Values'!$A:$BW,60,FALSE)) -> 208 | AA17: =Z17/6*'Weighting Factors'!$Q$6 -> 17.3 | AB17: =IF(ISNA(VLOOKUP($CZ17,'Audit Values'!$A:$BU,2,FALSE)),'Preliminary SO66'!AS16,VLOOKUP($CZ17,'Audit Values'!$A:$BU,63,FALSE)) -> 600 | AC17: 0 | AD17: =IF(ISNA(VLOOKUP($CZ17,'Audit Values'!$A:$BU,2,FALSE)),'Preliminary SO66'!AP16,VLOOKUP($CZ17,'Audit Values'!$A:$BU,64,FALSE)) -> 245 | AE17: =IF(A17=207, AD17,MAX(AC17,AD17))*'Weighting Factors'!$Q$9 -> 118.6 | AF17: 10 | AG17: =IF(ISNA(VLOOKUP($CZ17,'Audit Values'!$A:$BW,2,FALSE)),'Preliminary SO66'!AG16,VLOOKUP($CZ17,'Audit Values'!$A$2:$BW$385,70,FALSE)) -> 13.1 | AH17: 13.1 | AI17: =IF(ISNA(VLOOKUP($CZ17,'Audit Values'!$A:$BU,2,FALSE)),'Preliminary SO66'!AQ16,VLOOKUP($CZ17,'Audit Values'!$A:$BU,65,FALSE)) -> 0 | AJ17: =AI17*'Weighting Factors'!$Q$10 -> 0 | AK17: =IF(ISNA(VLOOKUP($CZ17,'Audit Values'!$A:$BU,2,FALSE)),'Preliminary SO66'!AR16,VLOOKUP($CZ17,'Audit Values'!$A:$BU,66,FALSE)) -> 308 | AM17: 260165 | AN17: 227268 | AO17: =MAX(AN17, AM17)/'Weighting Factors'!$Q$5 -> 56.9 | AP17: =CN17/'Weighting Factors'!$Q$5 -> 0 | AQ17: 0 | AR17: =CS17/'Weighting Factors'!$Q$5 -> 0 | AS17: 659351 | AT17: =AS17/'Weighting Factors'!$Q$5 -> 144.3 | AU17: =IF(ISNA(VLOOKUP($CZ17,'Audit Values'!$A:$BU,2,FALSE)),'Preliminary SO66'!X16,VLOOKUP($CZ17,'Audit Values'!$A$2:$BU$385,47,FALSE)) -> 0 | AV17: 1163 | AW17: 1018.7 | AX17: =IF(ISNA(VLOOKUP($CZ17,'Audit Values'!$A$2:$BU$385,2,FALSE)),'Preliminary SO66'!AA16,VLOOKUP($CZ17,'Audit Values'!$A$2:$BU$385,41,FALSE)) -> 2 | AY17: =IF(ISNA(VLOOKUP($CZ17,'Audit Values'!$A$2:$BU$385,2,FALSE)),'Preliminary SO66'!AB16,VLOOKUP($CZ17,'Audit Values'!$A$2:$BU$385,42,FALSE)) -> 0 | AZ17: 28.5 | BA17: =SUM(AX17*'Weighting Factors'!$T$10)+('2021 Legal Max'!AY17*'Weighting Factors'!$T$11)+('2021 Legal Max'!AZ17*'Weighting Factors'!$T$12) -> 30207 | BB17: 0 | BC17: =IF(ISNA(VLOOKUP($CZ17,'Audit Values'!$A$2:$BU$385,2,FALSE)),"",IF(AND('Weighting Factors'!H17>0,VLOOKUP($CZ17,'Audit Values'!$A$2:$BU$385,51,FALSE)<'Weighting Factors'!H17),'Weighting Factors'!H17,VLOOKUP($CZ17,'Audit Values'!$A$2:$BU$385,50,FALSE))) -> 13 | BD17: =IF(ISNA(VLOOKUP($CZ17,'Audit Values'!$A$2:$BV$385,2,FALSE)),"",VLOOKUP($CZ17,'Audit Values'!$A$2:$BV$385,51,FALSE)) -> A | BE17: =IF('Weighting Factors'!H17="","",IF('Weighting Factors'!J17="Pending","PX","R")) ->  | BF17: =SUM((S17+T17+Y17+AA17+AE17+AH17+AJ17++AO17+AP17+AQ17+AU17+AR17)*'Weighting Factors'!$Q$5)+'2021 Legal Max'!BA17+'2021 Legal Max'!BB17 -> 4684647 | BG17: =SUM((AV17+AR17)*'Weighting Factors'!$Q$5)+BA17+'2021 Legal Max'!BB17 -> 5343954 | BH17: =IF('Weighting Factors'!H17>0,'Weighting Factors'!H17,'Preliminary SO66'!AV16) -> 5429177 | BI17: 5343954 | BJ17: ='Weighting Factors'!G17 -> 0 | BK17: ='Weighting Factors'!F17 -> -23477 | BL17: ='Weighting Factors'!E17 -> 0 | BM17: -23477 | BN17: 5320477 | BO17: =SUM((S17+T17+Y17+AA17+AE17+AH17+AJ17+AO17+AP17+AQ17+AR17)*'Weighting Factors'!Q$12)+(MAX(AS17,'Weighting Factors'!B17)) -> 5353521 | BP17: 0.3 | BQ17: 1606056 | BR17: 1630592 | BS17: 1606056 | BT17: 0.3 | BU17: 0 | BV17: FALSE | BW17: 0 | BX17: 0 | BY17: 0 | BZ17: TRUE | CA17: 353.925 | CB17: 0.387018 | CC17: 226.8 | CD17: 0 | CE17: 88 | CF17: 3.5 | CG17: =IF(CF17<0.06,1,IF(CF17>=18.29,52,MATCH(CF17-0.001,'Weighting Factors'!$Y$5:$Y$156)+1)) -> 41 | CH17: =VLOOKUP(CG17, 'Weighting Factors'!$W$5:$Z$56,4) -> 770 | CI17: =('Weighting Factors'!$Q$5/'Weighting Factors'!$Q$14) -> 1.097 | CJ17: 237160 | CK17: =CJ17*'Weighting Factors'!$S$7 -> 237160 | CL17: 260165 | CM17: =AM17/'Weighting Factors'!$Q$5 -> 56.9 | CN17: 0 | CO17: 0 | CP17: 0 | CQ17: 0 | CR17: =SUM((AV17*'Weighting Factors'!$Q$5)+'2021 Legal Max'!BA17)*CQ17 -> 0 | CS17: 0 | CT17: 0.4083 | CU17: 0 | CV17: 10 | CW17: 1163 | CX17: ='LOB Transfers'!G16 -> 164621 | CY17: ='LOB Transfers'!J16 -> 0 | CZ17: D0114
A18: 115 | B18: Nemaha | C18: Nemaha Central | D18: 555.2 | E18: 0 | F18: 555.2 | G18: 564.4 | H18: 0 | I18: 564.4 | J18: 595.3 | K18: 0 | L18: 595.3 | M18: =IF(ISNA(VLOOKUP($CZ18,'Audit Values'!$A:$BW,2,FALSE)),'Preliminary SO66'!C17,VLOOKUP($CZ18,'Audit Values'!$A:$BW,73,FALSE)) -> 591.6 | N18: =IF(ISNA(VLOOKUP($CZ18,'Audit Values'!$A:$BW,2,FALSE)),'Preliminary SO66'!F17,VLOOKUP($CZ18,'Audit Values'!$A$2:$BW$381,4,FALSE)) -> 0 | O18: 591.6 | P18: =IF('Military Provision'!J19="YES", MAX('2021 Legal Max'!L18,'2021 Legal Max'!I18,AVERAGE('2021 Legal Max'!F18,'2021 Legal Max'!I18,'2021 Legal Max'!L18)), MAX(L18, I18)) -> 595.3 | Q18: =IF(ISNA(VLOOKUP($CZ18,'Audit Values'!$A:BU,2,FALSE)),'Preliminary SO66'!AL17,VLOOKUP($CZ18,'Audit Values'!$A$2:$BU291,58,FALSE)) -> 17 | R18: 0 | S18: 612.3 | T18: 231.5 | U18: =IF(ISNA(VLOOKUP($CZ18,'Audit Values'!$A:$BW,2,FALSE)),'Preliminary SO66'!AM17,VLOOKUP($CZ18,'Audit Values'!$A:$BW,62,FALSE)) -> 13.3 | V18: =(U18/6)*'Weighting Factors'!$Q$7 -> 0.9 | W18: =IF(ISNA(VLOOKUP($CZ18,'Audit Values'!$A:$BW,2,FALSE)),'Preliminary SO66'!AN17,VLOOKUP($CZ18,'Audit Values'!$A:$BW,61,FALSE)) -> 8 | X18: =W18*'Weighting Factors'!$Q$8 -> 1.5 | Y18: 1.5 | Z18: =IF(ISNA(VLOOKUP($CZ18,'Audit Values'!$A:$BW,2,FALSE)),'Preliminary SO66'!AO17,VLOOKUP($CZ18,'Audit Values'!$A:$BW,60,FALSE)) -> 208 | AA18: =Z18/6*'Weighting Factors'!$Q$6 -> 17.3 | AB18: =IF(ISNA(VLOOKUP($CZ18,'Audit Values'!$A:$BU,2,FALSE)),'Preliminary SO66'!AS17,VLOOKUP($CZ18,'Audit Values'!$A:$BU,63,FALSE)) -> 635 | AC18: 0 | AD18: =IF(ISNA(VLOOKUP($CZ18,'Audit Values'!$A:$BU,2,FALSE)),'Preliminary SO66'!AP17,VLOOKUP($CZ18,'Audit Values'!$A:$BU,64,FALSE)) -> 115 | AE18: =IF(A18=207, AD18,MAX(AC18,AD18))*'Weighting Factors'!$Q$9 -> 55.7 | AF18: 0 | AG18: =IF(ISNA(VLOOKUP($CZ18,'Audit Values'!$A:$BW,2,FALSE)),'Preliminary SO66'!AG17,VLOOKUP($CZ18,'Audit Values'!$A$2:$BW$385,70,FALSE)) -> 0 | AH18: 0 | AI18: =IF(ISNA(VLOOKUP($CZ18,'Audit Values'!$A:$BU,2,FALSE)),'Preliminary SO66'!AQ17,VLOOKUP($CZ18,'Audit Values'!$A:$BU,65,FALSE)) -> 0 | AJ18: =AI18*'Weighting Factors'!$Q$10 -> 0 | AK18: =IF(ISNA(VLOOKUP($CZ18,'Audit Values'!$A:$BU,2,FALSE)),'Preliminary SO66'!AR17,VLOOKUP($CZ18,'Audit Values'!$A:$BU,66,FALSE)) -> 225.5 | AM18: 235005 | AN18: 225342 | AO18: =MAX(AN18, AM18)/'Weighting Factors'!$Q$5 -> 51.4 | AP18: =CN18/'Weighting Factors'!$Q$5 -> 0 | AQ18: 0 | AR18: =CS18/'Weighting Factors'!$Q$5 -> 0 | AS18: 553013 | AT18: =AS18/'Weighting Factors'!$Q$5 -> 121 | AU18: =IF(ISNA(VLOOKUP($CZ18,'Audit Values'!$A:$BU,2,FALSE)),'Preliminary SO66'!X17,VLOOKUP($CZ18,'Audit Values'!$A$2:$BU$385,47,FALSE)) -> 0 | AV18: 1090.7 | AW18: 969.7 | AX18: =IF(ISNA(VLOOKUP($CZ18,'Audit Values'!$A$2:$BU$385,2,FALSE)),'Preliminary SO66'!AA17,VLOOKUP($CZ18,'Audit Values'!$A$2:$BU$385,41,FALSE)) -> 0 | AY18: =IF(ISNA(VLOOKUP($CZ18,'Audit Values'!$A$2:$BU$385,2,FALSE)),'Preliminary SO66'!AB17,VLOOKUP($CZ18,'Audit Values'!$A$2:$BU$385,42,FALSE)) -> 0 | AZ18: 0 | BA18: =SUM(AX18*'Weighting Factors'!$T$10)+('2021 Legal Max'!AY18*'Weighting Factors'!$T$11)+('2021 Legal Max'!AZ18*'Weighting Factors'!$T$12) -> 0 | BB18: 0 | BC18: =IF(ISNA(VLOOKUP($CZ18,'Audit Values'!$A$2:$BU$385,2,FALSE)),"",IF(AND('Weighting Factors'!H18>0,VLOOKUP($CZ18,'Audit Values'!$A$2:$BU$385,51,FALSE)<'Weighting Factors'!H18),'Weighting Factors'!H18,VLOOKUP($CZ18,'Audit Values'!$A$2:$BU$385,50,FALSE))) -> 13 | BD18: =IF(ISNA(VLOOKUP($CZ18,'Audit Values'!$A$2:$BV$385,2,FALSE)),"",VLOOKUP($CZ18,'Audit Values'!$A$2:$BV$385,51,FALSE)) -> A | BE18: =IF('Weighting Factors'!H18="","",IF('Weighting Factors'!J18="Pending","PX","R")) ->  | BF18: =SUM((S18+T18+Y18+AA18+AE18+AH18+AJ18++AO18+AP18+AQ18+AU18+AR18)*'Weighting Factors'!$Q$5)+'2021 Legal Max'!BA18+'2021 Legal Max'!BB18 -> 4430559 | BG18: =SUM((AV18+AR18)*'Weighting Factors'!$Q$5)+BA18+'2021 Legal Max'!BB18 -> 4983408 | BH18: =IF('Weighting Factors'!H18>0,'Weighting Factors'!H18,'Preliminary SO66'!AV17) -> 5106771 | BI18: 4983408 | BJ18: ='Weighting Factors'!G18 -> 0 | BK18: ='Weighting Factors'!F18 -> -6679 | BL18: ='Weighting Factors'!E18 -> 0 | BM18: -6679 | BN18: 4976729 | BO18: =SUM((S18+T18+Y18+AA18+AE18+AH18+AJ18+AO18+AP18+AQ18+AR18)*'Weighting Factors'!Q$12)+(MAX(AS18,'Weighting Factors'!B18)) -> 5045611 | BP18: 0.3 | BQ18: 1513683 | BR18: 1543472 | BS18: 1513683 | BT18: 0.3 | BU18: 0 | BV18: FALSE | BW18: 0 | BX18: 0 | BY18: 0 | BZ18: TRUE | CA18: 386.4713 | CB18: 0.378083 | CC18: 231.5 | CD18: 0 | CE18: 222 | CF18: 1.016 | CG18: =IF(CF18<0.06,1,IF(CF18>=18.29,52,MATCH(CF18-0.001,'Weighting Factors'!$Y$5:$Y$156)+1)) -> 32 | CH18: =VLOOKUP(CG18, 'Weighting Factors'!$W$5:$Z$56,4) -> 950 | CI18: =('Weighting Factors'!$Q$5/'Weighting Factors'!$Q$14) -> 1.097 | CJ18: 214225 | CK18: =CJ18*'Weighting Factors'!$S$7 -> 214225 | CL18: 235005 | CM18: =AM18/'Weighting Factors'!$Q$5 -> 51.4 | CN18: 0 | CO18: 0 | CP18: 0 | CQ18: 0 | CR18: =SUM((AV18*'Weighting Factors'!$Q$5)+'2021 Legal Max'!BA18)*CQ18 -> 0 | CS18: 0 | CT18: 0.1811 | CU18: 0 | CV18: 0 | CW18: 1090.7 | CX18: ='LOB Transfers'!G17 -> 78560 | CY18: ='LOB Transfers'!J17 -> 2119 | CZ18: D0115
A19: 200 | B19: Greeley | C19: Greeley County Schools | D19: 253.1 | E19: 0 | F19: 253.1 | G19: 250 | H19: 0 | I19: 250 | J19: 234.2 | K19: 0 | L19: 234.2 | M19: =IF(ISNA(VLOOKUP($CZ19,'Audit Values'!$A:$BW,2,FALSE)),'Preliminary SO66'!C18,VLOOKUP($CZ19,'Audit Values'!$A:$BW,73,FALSE)) -> 234.6 | N19: =IF(ISNA(VLOOKUP($CZ19,'Audit Values'!$A:$BW,2,FALSE)),'Preliminary SO66'!F18,VLOOKUP($CZ19,'Audit Values'!$A$2:$BW$381,4,FALSE)) -> 0 | O19: 234.6 | P19: =IF('Military Provision'!J20="YES", MAX('2021 Legal Max'!L19,'2021 Legal Max'!I19,AVERAGE('2021 Legal Max'!F19,'2021 Legal Max'!I19,'2021 Legal Max'!L19)), MAX(L19, I19)) -> 250 | Q19: =IF(ISNA(VLOOKUP($CZ19,'Audit Values'!$A:BU,2,FALSE)),'Preliminary SO66'!AL18,VLOOKUP($CZ19,'Audit Values'!$A$2:$BU292,58,FALSE)) -> 4 | R19: 0 | S19: 254 | T19: 154 | U19: =IF(ISNA(VLOOKUP($CZ19,'Audit Values'!$A:$BW,2,FALSE)),'Preliminary SO66'!AM18,VLOOKUP($CZ19,'Audit Values'!$A:$BW,62,FALSE)) -> 101.4 | V19: =(U19/6)*'Weighting Factors'!$Q$7 -> 6.7 | W19: =IF(ISNA(VLOOKUP($CZ19,'Audit Values'!$A:$BW,2,FALSE)),'Preliminary SO66'!AN18,VLOOKUP($CZ19,'Audit Values'!$A:$BW,61,FALSE)) -> 51 | X19: =W19*'Weighting Factors'!$Q$8 -> 9.4 | Y19: 9.4 | Z19: =IF(ISNA(VLOOKUP($CZ19,'Audit Values'!$A:$BW,2,FALSE)),'Preliminary SO66'!AO18,VLOOKUP($CZ19,'Audit Values'!$A:$BW,60,FALSE)) -> 71.2 | AA19: =Z19/6*'Weighting Factors'!$Q$6 -> 5.9 | AB19: =IF(ISNA(VLOOKUP($CZ19,'Audit Values'!$A:$BU,2,FALSE)),'Preliminary SO66'!AS18,VLOOKUP($CZ19,'Audit Values'!$A:$BU,63,FALSE)) -> 244 | AC19: 0 | AD19: =IF(ISNA(VLOOKUP($CZ19,'Audit Values'!$A:$BU,2,FALSE)),'Preliminary SO66'!AP18,VLOOKUP($CZ19,'Audit Values'!$A:$BU,64,FALSE)) -> 93 | AE19: =IF(A19=207, AD19,MAX(AC19,AD19))*'Weighting Factors'!$Q$9 -> 45 | AF19: 2 | AG19: =IF(ISNA(VLOOKUP($CZ19,'Audit Values'!$A:$BW,2,FALSE)),'Preliminary SO66'!AG18,VLOOKUP($CZ19,'Audit Values'!$A$2:$BW$385,70,FALSE)) -> 2.5 | AH19: 2.5 | AI19: =IF(ISNA(VLOOKUP($CZ19,'Audit Values'!$A:$BU,2,FALSE)),'Preliminary SO66'!AQ18,VLOOKUP($CZ19,'Audit Values'!$A:$BU,65,FALSE)) -> 0 | AJ19: =AI19*'Weighting Factors'!$Q$10 -> 0 | AK19: =IF(ISNA(VLOOKUP($CZ19,'Audit Values'!$A:$BU,2,FALSE)),'Preliminary SO66'!AR18,VLOOKUP($CZ19,'Audit Values'!$A:$BU,66,FALSE)) -> 64 | AM19: 105312 | AN19: 124420 | AO19: =MAX(AN19, AM19)/'Weighting Factors'!$Q$5 -> 27.2 | AP19: =CN19/'Weighting Factors'!$Q$5 -> 0 | AQ19: 0 | AR19: =CS19/'Weighting Factors'!$Q$5 -> 0 | AS19: 163431 | AT19: =AS19/'Weighting Factors'!$Q$5 -> 35.8 | AU19: =IF(ISNA(VLOOKUP($CZ19,'Audit Values'!$A:$BU,2,FALSE)),'Preliminary SO66'!X18,VLOOKUP($CZ19,'Audit Values'!$A$2:$BU$385,47,FALSE)) -> 0 | AV19: 533.8 | AW19: 498 | AX19: =IF(ISNA(VLOOKUP($CZ19,'Audit Values'!$A$2:$BU$385,2,FALSE)),'Preliminary SO66'!AA18,VLOOKUP($CZ19,'Audit Values'!$A$2:$BU$385,41,FALSE)) -> 0 | AY19: =IF(ISNA(VLOOKUP($CZ19,'Audit Values'!$A$2:$BU$385,2,FALSE)),'Preliminary SO66'!AB18,VLOOKUP($CZ19,'Audit Values'!$A$2:$BU$385,42,FALSE)) -> 0 | AZ19: 0 | BA19: =SUM(AX19*'Weighting Factors'!$T$10)+('2021 Legal Max'!AY19*'Weighting Factors'!$T$11)+('2021 Legal Max'!AZ19*'Weighting Factors'!$T$12) -> 0 | BB19: 0 | BC19: =IF(ISNA(VLOOKUP($CZ19,'Audit Values'!$A$2:$BU$385,2,FALSE)),"",IF(AND('Weighting Factors'!H19>0,VLOOKUP($CZ19,'Audit Values'!$A$2:$BU$385,51,FALSE)<'Weighting Factors'!H19),'Weighting Factors'!H19,VLOOKUP($CZ19,'Audit Values'!$A$2:$BU$385,50,FALSE))) -> 13 | BD19: =IF(ISNA(VLOOKUP($CZ19,'Audit Values'!$A$2:$BV$385,2,FALSE)),"",VLOOKUP($CZ19,'Audit Values'!$A$2:$BV$385,51,FALSE)) -> A | BE19: =IF('Weighting Factors'!H19="","",IF('Weighting Factors'!J19="Pending","PX","R")) ->  | BF19: =SUM((S19+T19+Y19+AA19+AE19+AH19+AJ19++AO19+AP19+AQ19+AU19+AR19)*'Weighting Factors'!$Q$5)+'2021 Legal Max'!BA19+'2021 Legal Max'!BB19 -> 2275362 | BG19: =SUM((AV19+AR19)*'Weighting Factors'!$Q$5)+BA19+'2021 Legal Max'!BB19 -> 2438932 | BH19: =IF('Weighting Factors'!H19>0,'Weighting Factors'!H19,'Preliminary SO66'!AV18) -> 2526657 | BI19: 2438932 | BJ19: ='Weighting Factors'!G19 -> 0 | BK19: ='Weighting Factors'!F19 -> 0 | BL19: ='Weighting Factors'!E19 -> 0 | BM19: 0 | BN19: 2438932 | BO19: =SUM((S19+T19+Y19+AA19+AE19+AH19+AJ19+AO19+AP19+AQ19+AR19)*'Weighting Factors'!Q$12)+(MAX(AS19,'Weighting Factors'!B19)) -> 2460635 | BP19: 0.3 | BQ19: 738191 | BR19: 763969 | BS19: 738191 | BT19: 0.3 | BU19: 0 | BV19: TRUE | BW19: 1486.87 | BX19: 0.60612 | BY19: 154 | BZ19: FALSE | CA19: 0 | CB19: 0 | CC19: 0 | CD19: 0 | CE19: 780 | CF19: 0.082 | CG19: =IF(CF19<0.06,1,IF(CF19>=18.29,52,MATCH(CF19-0.001,'Weighting Factors'!$Y$5:$Y$156)+1)) -> 4 | CH19: =VLOOKUP(CG19, 'Weighting Factors'!$W$5:$Z$56,4) -> 1500 | CI19: =('Weighting Factors'!$Q$5/'Weighting Factors'!$Q$14) -> 1.097 | CJ19: 96000 | CK19: =CJ19*'Weighting Factors'!$S$7 -> 96000 | CL19: 105312 | CM19: =AM19/'Weighting Factors'!$Q$5 -> 23 | CN19: 0 | CO19: 0 | CP19: 0 | CQ19: 0 | CR19: =SUM((AV19*'Weighting Factors'!$Q$5)+'2021 Legal Max'!BA19)*CQ19 -> 0 | CS19: 0 | CT19: 0.3811 | CU19: 0 | CV19: 2 | CW19: 533.8 | CX19: ='LOB Transfers'!G18 -> 62672 | CY19: ='LOB Transfers'!J18 -> 13066 | CZ19: D0200
A20: 202 | B20: Wyandotte | C20: Turner-Kansas City | D20: 3956 | E20: 0 | F20: 3956 | G20: 3899.5 | H20: 0 | I20: 3899.5 | J20: 3839.8 | K20: 0 | L20: 3839.8 | M20: =IF(ISNA(VLOOKUP($CZ20,'Audit Values'!$A:$BW,2,FALSE)),'Preliminary SO66'!C19,VLOOKUP($CZ20,'Audit Values'!$A:$BW,73,FALSE)) -> 3681.8 | N20: =IF(ISNA(VLOOKUP($CZ20,'Audit Values'!$A:$BW,2,FALSE)),'Preliminary SO66'!F19,VLOOKUP($CZ20,'Audit Values'!$A$2:$BW$381,4,FALSE)) -> 0 | O20: 3681.8 | P20: =IF('Military Provision'!J21="YES", MAX('2021 Legal Max'!L20,'2021 Legal Max'!I20,AVERAGE('2021 Legal Max'!F20,'2021 Legal Max'!I20,'2021 Legal Max'!L20)), MAX(L20, I20)) -> 3899.5 | Q20: =IF(ISNA(VLOOKUP($CZ20,'Audit Values'!$A:BU,2,FALSE)),'Preliminary SO66'!AL19,VLOOKUP($CZ20,'Audit Values'!$A$2:$BU293,58,FALSE)) -> 58 | R20: 0 | S20: =P20+Q20 -> 3957.5 | T20: 138.7 | U20: =IF(ISNA(VLOOKUP($CZ20,'Audit Values'!$A:$BW,2,FALSE)),'Preliminary SO66'!AM19,VLOOKUP($CZ20,'Audit Values'!$A:$BW,62,FALSE)) -> 1361 | V20: =(U20/6)*'Weighting Factors'!$Q$7 -> 89.6 | W20: =IF(ISNA(VLOOKUP($CZ20,'Audit Values'!$A:$BW,2,FALSE)),'Preliminary SO66'!AN19,VLOOKUP($CZ20,'Audit Values'!$A:$BW,61,FALSE)) -> 889 | X20: =W20*'Weighting Factors'!$Q$8 -> 164.5 | Y20: 164.5 | Z20: =IF(ISNA(VLOOKUP($CZ20,'Audit Values'!$A:$BW,2,FALSE)),'Preliminary SO66'!AO19,VLOOKUP($CZ20,'Audit Values'!$A:$BW,60,FALSE)) -> 722.8 | AA20: =Z20/6*'Weighting Factors'!$Q$6 -> 60.2 | AB20: =IF(ISNA(VLOOKUP($CZ20,'Audit Values'!$A:$BU,2,FALSE)),'Preliminary SO66'!AS19,VLOOKUP($CZ20,'Audit Values'!$A:$BU,63,FALSE)) -> 3815 | AC20: 0 | AD20: =IF(ISNA(VLOOKUP($CZ20,'Audit Values'!$A:$BU,2,FALSE)),'Preliminary SO66'!AP19,VLOOKUP($CZ20,'Audit Values'!$A:$BU,64,FALSE)) -> 2271 | AE20: =IF(A20=207, AD20,MAX(AC20,AD20))*'Weighting Factors'!$Q$9 -> 1099.2 | AF20: 238.5 | AG20: =IF(ISNA(VLOOKUP($CZ20,'Audit Values'!$A:$BW,2,FALSE)),'Preliminary SO66'!AG19,VLOOKUP($CZ20,'Audit Values'!$A$2:$BW$385,70,FALSE)) -> 237.1 | AH20: 238.5 | AI20: =IF(ISNA(VLOOKUP($CZ20,'Audit Values'!$A:$BU,2,FALSE)),'Preliminary SO66'!AQ19,VLOOKUP($CZ20,'Audit Values'!$A:$BU,65,FALSE)) -> 0 | AJ20: =AI20*'Weighting Factors'!$Q$10 -> 0 | AK20: =IF(ISNA(VLOOKUP($CZ20,'Audit Values'!$A:$BU,2,FALSE)),'Preliminary SO66'!AR19,VLOOKUP($CZ20,'Audit Values'!$A:$BU,66,FALSE)) -> 1053 | AM20: 635328 | AN20: 671789 | AO20: =MAX(AN20, AM20)/'Weighting Factors'!$Q$5 -> 147 | AP20: =CN20/'Weighting Factors'!$Q$5 -> 0 | AQ20: 0 | AR20: =CS20/'Weighting Factors'!$Q$5 -> 0 | AS20: 3237825 | AT20: =AS20/'Weighting Factors'!$Q$5 -> 708.7 | AU20: =IF(ISNA(VLOOKUP($CZ20,'Audit Values'!$A:$BU,2,FALSE)),'Preliminary SO66'!X19,VLOOKUP($CZ20,'Audit Values'!$A$2:$BU$385,47,FALSE)) -> 3 | AV20: 6517.3 | AW20: 5808.6 | AX20: =IF(ISNA(VLOOKUP($CZ20,'Audit Values'!$A$2:$BU$385,2,FALSE)),'Preliminary SO66'!AA19,VLOOKUP($CZ20,'Audit Values'!$A$2:$BU$385,41,FALSE)) -> 0 | AY20: =IF(ISNA(VLOOKUP($CZ20,'Audit Values'!$A$2:$BU$385,2,FALSE)),'Preliminary SO66'!AB19,VLOOKUP($CZ20,'Audit Values'!$A$2:$BU$385,42,FALSE)) -> 0 | AZ20: 109 | BA20: =SUM(AX20*'Weighting Factors'!$T$10)+('2021 Legal Max'!AY20*'Weighting Factors'!$T$11)+('2021 Legal Max'!AZ20*'Weighting Factors'!$T$12) -> 77281 | BB20: 0 | BC20: =IF(ISNA(VLOOKUP($CZ20,'Audit Values'!$A$2:$BU$385,2,FALSE)),"",IF(AND('Weighting Factors'!H20>0,VLOOKUP($CZ20,'Audit Values'!$A$2:$BU$385,51,FALSE)<'Weighting Factors'!H20),'Weighting Factors'!H20,VLOOKUP($CZ20,'Audit Values'!$A$2:$BU$385,50,FALSE))) -> 12 | BD20: =IF(ISNA(VLOOKUP($CZ20,'Audit Values'!$A$2:$BV$385,2,FALSE)),"",VLOOKUP($CZ20,'Audit Values'!$A$2:$BV$385,51,FALSE)) -> A | BE20: =IF('Weighting Factors'!H20="","",IF('Weighting Factors'!J20="Pending","PX","R")) ->  | BF20: =SUM((S20+T20+Y20+AA20+AE20+AH20+AJ20++AO20+AP20+AQ20+AU20+AR20)*'Weighting Factors'!$Q$5)+'2021 Legal Max'!BA20+'2021 Legal Max'!BB20 -> 26616774 | BG20: =SUM((AV20+AR20)*'Weighting Factors'!$Q$5)+BA20+'2021 Legal Max'!BB20 -> 29854825 | BH20: =IF('Weighting Factors'!H20>0,'Weighting Factors'!H20,'Preliminary SO66'!AV19) -> 31290034 | BI20: 29854825 | BJ20: ='Weighting Factors'!G20 -> 0 | BK20: ='Weighting Factors'!F20 -> 0 | BL20: ='Weighting Factors'!E20 -> -6736 | BM20: -6736 | BN20: 29848089 | BO20: =SUM((S20+T20+Y20+AA20+AE20+AH20+AJ20+AO20+AP20+AQ20+AR20)*'Weighting Factors'!Q$12)+(MAX(AS20,'Weighting Factors'!B20)) -> 29990030 | BP20: 0.3 | BQ20: 8997009 | BR20: 9414778 | BS20: 8997009 | BT20: 0.3 | BU20: 0 | BV20: FALSE | BW20: 0 | BX20: 0 | BY20: 0 | BZ20: FALSE | CA20: 0 | CB20: 0 | CC20: 0 | CD20: 138.7 | CE20: 17 | CF20: 61.941 | CG20: =IF(CF20<0.06,1,IF(CF20>=18.29,52,MATCH(CF20-0.001,'Weighting Factors'!$Y$5:$Y$156)+1)) -> 52 | CH20: =VLOOKUP(CG20, 'Weighting Factors'!$W$5:$Z$56,4) -> 550 | CI20: =('Weighting Factors'!$Q$5/'Weighting Factors'!$Q$14) -> 1.097 | CJ20: 579150 | CK20: =CJ20*'Weighting Factors'!$S$7 -> 579150 | CL20: 635328 | CM20: =AM20/'Weighting Factors'!$Q$5 -> 139.1 | CN20: 0 | CO20: 0 | CP20: 0 | CQ20: 0 | CR20: =SUM((AV20*'Weighting Factors'!$Q$5)+'2021 Legal Max'!BA20)*CQ20 -> 0 | CS20: 0 | CT20: 0.5953 | CU20: 238.5 | CV20: 0 | CW20: 6517.3 | CX20: ='LOB Transfers'!G19 -> 1532191 | CY20: ='LOB Transfers'!J19 -> 229424 | CZ20: D0202
A21: 203 | B21: Wyandotte | C21: Piper-Kansas City | D21: 2260.3 | E21: 0 | F21: 2260.3 | G21: 2314 | H21: 0 | I21: 2314 | J21: 2435.5 | K21: 0 | L21: 2435.5 | M21: =IF(ISNA(VLOOKUP($CZ21,'Audit Values'!$A:$BW,2,FALSE)),'Preliminary SO66'!C20,VLOOKUP($CZ21,'Audit Values'!$A:$BW,73,FALSE)) -> 2465.2 | N21: =IF(ISNA(VLOOKUP($CZ21,'Audit Values'!$A:$BW,2,FALSE)),'Preliminary SO66'!F20,VLOOKUP($CZ21,'Audit Values'!$A$2:$BW$381,4,FALSE)) -> 0 | O21: 2465.2 | P21: =IF('Military Provision'!J22="YES", MAX('2021 Legal Max'!L21,'2021 Legal Max'!I21,AVERAGE('2021 Legal Max'!F21,'2021 Legal Max'!I21,'2021 Legal Max'!L21)), MAX(L21, I21)) -> 2435.5 | Q21: =IF(ISNA(VLOOKUP($CZ21,'Audit Values'!$A:BU,2,FALSE)),'Preliminary SO66'!AL20,VLOOKUP($CZ21,'Audit Values'!$A$2:$BU294,58,FALSE)) -> 1.5 | R21: 0 | S21: 2437 | T21: 85.4 | U21: =IF(ISNA(VLOOKUP($CZ21,'Audit Values'!$A:$BW,2,FALSE)),'Preliminary SO66'!AM20,VLOOKUP($CZ21,'Audit Values'!$A:$BW,62,FALSE)) -> 186.5 | V21: =(U21/6)*'Weighting Factors'!$Q$7 -> 12.3 | W21: =IF(ISNA(VLOOKUP($CZ21,'Audit Values'!$A:$BW,2,FALSE)),'Preliminary SO66'!AN20,VLOOKUP($CZ21,'Audit Values'!$A:$BW,61,FALSE)) -> 121 | X21: =W21*'Weighting Factors'!$Q$8 -> 22.4 | Y21: 22.4 | Z21: =IF(ISNA(VLOOKUP($CZ21,'Audit Values'!$A:$BW,2,FALSE)),'Preliminary SO66'!AO20,VLOOKUP($CZ21,'Audit Values'!$A:$BW,60,FALSE)) -> 290.3 | AA21: =Z21/6*'Weighting Factors'!$Q$6 -> 24.2 | AB21: =IF(ISNA(VLOOKUP($CZ21,'Audit Values'!$A:$BU,2,FALSE)),'Preliminary SO66'!AS20,VLOOKUP($CZ21,'Audit Values'!$A:$BU,63,FALSE)) -> 2477 | AC21: 0 | AD21: =IF(ISNA(VLOOKUP($CZ21,'Audit Values'!$A:$BU,2,FALSE)),'Preliminary SO66'!AP20,VLOOKUP($CZ21,'Audit Values'!$A:$BU,64,FALSE)) -> 301 | AE21: =IF(A21=207, AD21,MAX(AC21,AD21))*'Weighting Factors'!$Q$9 -> 145.7 | AF21: 0 | AG21: =IF(ISNA(VLOOKUP($CZ21,'Audit Values'!$A:$BW,2,FALSE)),'Preliminary SO66'!AG20,VLOOKUP($CZ21,'Audit Values'!$A$2:$BW$385,70,FALSE)) -> 0 | AH21: 0 | AI21: =IF(ISNA(VLOOKUP($CZ21,'Audit Values'!$A:$BU,2,FALSE)),'Preliminary SO66'!AQ20,VLOOKUP($CZ21,'Audit Values'!$A:$BU,65,FALSE)) -> 0 | AJ21: =AI21*'Weighting Factors'!$Q$10 -> 0 | AK21: =IF(ISNA(VLOOKUP($CZ21,'Audit Values'!$A:$BU,2,FALSE)),'Preliminary SO66'!AR20,VLOOKUP($CZ21,'Audit Values'!$A:$BU,66,FALSE)) -> 1000 | AM21: 603350 | AN21: 608616 | AO21: =MAX(AN21, AM21)/'Weighting Factors'!$Q$5 -> 133.2 | AP21: =CN21/'Weighting Factors'!$Q$5 -> 0 | AQ21: 0 | AR21: =CS21/'Weighting Factors'!$Q$5 -> 112 | AS21: 2637316 | AT21: =AS21/'Weighting Factors'!$Q$5 -> 577.2 | AU21: =IF(ISNA(VLOOKUP($CZ21,'Audit Values'!$A:$BU,2,FALSE)),'Preliminary SO66'!X20,VLOOKUP($CZ21,'Audit Values'!$A$2:$BU$385,47,FALSE)) -> 0 | AV21: 3425.1 | AW21: 2959.9 | AX21: =IF(ISNA(VLOOKUP($CZ21,'Audit Values'!$A:$BU,2,FALSE)),'Preliminary SO66'!AA20,VLOOKUP($CZ21,'Audit Values'!$A:$BU,41,FALSE)) -> 19 | AY21: =IF(ISNA(VLOOKUP($CZ21,'Audit Values'!$A$2:$BU$385,2,FALSE)),'Preliminary SO66'!AB20,VLOOKUP($CZ21,'Audit Values'!$A$2:$BU$385,42,FALSE)) -> 1.7 | AZ21: 0 | BA21: =SUM(AX21*'Weighting Factors'!$T$10)+('2021 Legal Max'!AY21*'Weighting Factors'!$T$11)+('2021 Legal Max'!AZ21*'Weighting Factors'!$T$12) -> 97890 | BB21: 0 | BC21: =IF(ISNA(VLOOKUP($CZ21,'Audit Values'!$A$2:$BU$385,2,FALSE)),"",IF(AND('Weighting Factors'!H21>0,VLOOKUP($CZ21,'Audit Values'!$A$2:$BU$385,51,FALSE)<'Weighting Factors'!H21),'Weighting Factors'!H21,VLOOKUP($CZ21,'Audit Values'!$A$2:$BU$385,50,FALSE))) -> 20 | BD21: =IF(ISNA(VLOOKUP($CZ21,'Audit Values'!$A$2:$BV$385,2,FALSE)),"",VLOOKUP($CZ21,'Audit Values'!$A$2:$BV$385,51,FALSE)) -> A | BE21: =IF('Weighting Factors'!H21="","",IF('Weighting Factors'!J21="Pending","PX","R")) ->  | BF21: =SUM((S21+T21+Y21+AA21+AE21+AH21+AJ21++AO21+AP21+AQ21+AU21+AR21)*'Weighting Factors'!$Q$5)+'2021 Legal Max'!BA21+'2021 Legal Max'!BB21 -> 13621673 | BG21: =SUM((AV21+AR21)*'Weighting Factors'!$Q$5)+BA21+'2021 Legal Max'!BB21 -> 16258900 | BH21: =IF('Weighting Factors'!H21>0,'Weighting Factors'!H21,'Preliminary SO66'!AV20) -> 17169457 | BI21: 16258900 | BJ21: ='Weighting Factors'!G21 -> 0 | BK21: ='Weighting Factors'!F21 -> 0 | BL21: ='Weighting Factors'!E21 -> 0 | BM21: 0 | BN21: 16258900 | BO21: =SUM((S21+T21+Y21+AA21+AE21+AH21+AJ21+AO21+AP21+AQ21+AR21)*'Weighting Factors'!Q$12)+(MAX(AS21,'Weighting Factors'!B21)) -> 16276535 | BP21: 0.33 | BQ21: 5371257 | BR21: 5680638 | BS21: 5371257 | BT21: 0.33 | BU21: 0 | BV21: FALSE | BW21: 0 | BX21: 0 | BY21: 0 | BZ21: FALSE | CA21: 0 | CB21: 0 | CC21: 0 | CD21: 85.4 | CE21: 31.4 | CF21: 31.847 | CG21: =IF(CF21<0.06,1,IF(CF21>=18.29,52,MATCH(CF21-0.001,'Weighting Factors'!$Y$5:$Y$156)+1)) -> 52 | CH21: =VLOOKUP(CG21, 'Weighting Factors'!$W$5:$Z$56,4) -> 550 | CI21: =('Weighting Factors'!$Q$5/'Weighting Factors'!$Q$14) -> 1.097 | CJ21: 550000 | CK21: =CJ21*'Weighting Factors'!$S$7 -> 550000 | CL21: 603350 | CM21: =AM21/'Weighting Factors'!$Q$5 -> 132.1 | CN21: 0 | CO21: 0 | CP21: 537070 | CQ21: 0.0325 | CR21: =SUM((AV21*'Weighting Factors'!$Q$5)+'2021 Legal Max'!BA21)*CQ21 -> 511783 | CS21: 511783 | CT21: 0.1215 | CU21: 0 | CV21: 0 | CW21: 3537.1 | CX21: ='LOB Transfers'!G20 -> 221296 | CY21: ='LOB Transfers'!J20 -> 33839 | CZ21: D0203
A22: 204 | B22: Wyandotte | C22: Bonner Springs | D22: 2607.7 | E22: 0 | F22: 2607.7 | G22: 2591.3 | H22: 0 | I22: 2591.3 | J22: 2621.5 | K22: 0 | L22: 2621.5 | M22: =IF(ISNA(VLOOKUP($CZ22,'Audit Values'!$A:$BW,2,FALSE)),'Preliminary SO66'!C21,VLOOKUP($CZ22,'Audit Values'!$A:$BW,73,FALSE)) -> 2515.9 | N22: =IF(ISNA(VLOOKUP($CZ22,'Audit Values'!$A:$BW,2,FALSE)),'Preliminary SO66'!F21,VLOOKUP($CZ22,'Audit Values'!$A$2:$BW$381,4,FALSE)) -> 0 | O22: 2515.9 | P22: =IF('Military Provision'!J23="YES", MAX('2021 Legal Max'!L22,'2021 Legal Max'!I22,AVERAGE('2021 Legal Max'!F22,'2021 Legal Max'!I22,'2021 Legal Max'!L22)), MAX(L22, I22)) -> 2621.5 | Q22: =IF(ISNA(VLOOKUP($CZ22,'Audit Values'!$A:BU,2,FALSE)),'Preliminary SO66'!AL21,VLOOKUP($CZ22,'Audit Values'!$A$2:$BU295,58,FALSE)) -> 10.5 | R22: 0 | S22: 2632 | T22: 92.2 | U22: =IF(ISNA(VLOOKUP($CZ22,'Audit Values'!$A:$BW,2,FALSE)),'Preliminary SO66'!AM21,VLOOKUP($CZ22,'Audit Values'!$A:$BW,62,FALSE)) -> 232.3 | V22: =(U22/6)*'Weighting Factors'!$Q$7 -> 15.3 | W22: =IF(ISNA(VLOOKUP($CZ22,'Audit Values'!$A:$BW,2,FALSE)),'Preliminary SO66'!AN21,VLOOKUP($CZ22,'Audit Values'!$A:$BW,61,FALSE)) -> 136 | X22: =W22*'Weighting Factors'!$Q$8 -> 25.2 | Y22: 25.2 | Z22: =IF(ISNA(VLOOKUP($CZ22,'Audit Values'!$A:$BW,2,FALSE)),'Preliminary SO66'!AO21,VLOOKUP($CZ22,'Audit Values'!$A:$BW,60,FALSE)) -> 794.6 | AA22: =Z22/6*'Weighting Factors'!$Q$6 -> 66.2 | AB22: =IF(ISNA(VLOOKUP($CZ22,'Audit Values'!$A:$BU,2,FALSE)),'Preliminary SO66'!AS21,VLOOKUP($CZ22,'Audit Values'!$A:$BU,63,FALSE)) -> 2558 | AC22: 0 | AD22: =IF(ISNA(VLOOKUP($CZ22,'Audit Values'!$A:$BU,2,FALSE)),'Preliminary SO66'!AP21,VLOOKUP($CZ22,'Audit Values'!$A:$BU,64,FALSE)) -> 869 | AE22: =IF(A22=207, AD22,MAX(AC22,AD22))*'Weighting Factors'!$Q$9 -> 420.6 | AF22: 0 | AG22: =IF(ISNA(VLOOKUP($CZ22,'Audit Values'!$A:$BW,2,FALSE)),'Preliminary SO66'!AG21,VLOOKUP($CZ22,'Audit Values'!$A$2:$BW$385,70,FALSE)) -> 7.6 | AH22: 7.6 | AI22: =IF(ISNA(VLOOKUP($CZ22,'Audit Values'!$A:$BU,2,FALSE)),'Preliminary SO66'!AQ21,VLOOKUP($CZ22,'Audit Values'!$A:$BU,65,FALSE)) -> 0 | AJ22: =AI22*'Weighting Factors'!$Q$10 -> 0 | AK22: =IF(ISNA(VLOOKUP($CZ22,'Audit Values'!$A:$BU,2,FALSE)),'Preliminary SO66'!AR21,VLOOKUP($CZ22,'Audit Values'!$A:$BU,66,FALSE)) -> 383 | AM22: 264695 | AN22: 506538 | AO22: =MAX(AN22, AM22)/'Weighting Factors'!$Q$5 -> 110.9 | AP22: =CN22/'Weighting Factors'!$Q$5 -> 0 | AQ22: 0 | AR22: =CS22/'Weighting Factors'!$Q$5 -> 0 | AS22: 3638050 | AT22: =AS22/'Weighting Factors'!$Q$5 -> 796.2 | AU22: =IF(ISNA(VLOOKUP($CZ22,'Audit Values'!$A:$BU,2,FALSE)),'Preliminary SO66'!X21,VLOOKUP($CZ22,'Audit Values'!$A$2:$BU$385,47,FALSE)) -> 0 | AV22: 4150.9 | AW22: 3354.7 | AX22: =IF(ISNA(VLOOKUP($CZ22,'Audit Values'!$A$2:$BU$385,2,FALSE)),'Preliminary SO66'!AA21,VLOOKUP($CZ22,'Audit Values'!$A$2:$BU$385,41,FALSE)) -> 22 | AY22: =IF(ISNA(VLOOKUP($CZ22,'Audit Values'!$A$2:$BU$385,2,FALSE)),'Preliminary SO66'!AB21,VLOOKUP($CZ22,'Audit Values'!$A$2:$BU$385,42,FALSE)) -> 4.8 | AZ22: 34 | BA22: =SUM(AX22*'Weighting Factors'!$T$10)+('2021 Legal Max'!AY22*'Weighting Factors'!$T$11)+('2021 Legal Max'!AZ22*'Weighting Factors'!$T$12) -> 142266 | BB22: 0 | BC22: =IF(ISNA(VLOOKUP($CZ22,'Audit Values'!$A$2:$BU$385,2,FALSE)),"",IF(AND('Weighting Factors'!H22>0,VLOOKUP($CZ22,'Audit Values'!$A$2:$BU$385,51,FALSE)<'Weighting Factors'!H22),'Weighting Factors'!H22,VLOOKUP($CZ22,'Audit Values'!$A$2:$BU$385,50,FALSE))) -> 14 | BD22: =IF(ISNA(VLOOKUP($CZ22,'Audit Values'!$A$2:$BV$385,2,FALSE)),"",VLOOKUP($CZ22,'Audit Values'!$A$2:$BV$385,51,FALSE)) -> A | BE22: =IF('Weighting Factors'!H22="","",IF('Weighting Factors'!J22="Pending","PX","R")) ->  | BF22: =SUM((S22+T22+Y22+AA22+AE22+AH22+AJ22++AO22+AP22+AQ22+AU22+AR22)*'Weighting Factors'!$Q$5)+'2021 Legal Max'!BA22+'2021 Legal Max'!BB22 -> 15469890 | BG22: =SUM((AV22+AR22)*'Weighting Factors'!$Q$5)+BA22+'2021 Legal Max'!BB22 -> 19107728 | BH22: =IF('Weighting Factors'!H22>0,'Weighting Factors'!H22,'Preliminary SO66'!AV21) -> 20215049 | BI22: 19107728 | BJ22: ='Weighting Factors'!G22 -> 0 | BK22: ='Weighting Factors'!F22 -> 0 | BL22: ='Weighting Factors'!E22 -> -709 | BM22: -709 | BN22: 19107019 | BO22: =SUM((S22+T22+Y22+AA22+AE22+AH22+AJ22+AO22+AP22+AQ22+AR22)*'Weighting Factors'!Q$12)+(MAX(AS22,'Weighting Factors'!B22)) -> 19096508 | BP22: 0.33 | BQ22: 6301848 | BR22: 6635248 | BS22: 6301848 | BT22: 0.33 | BU22: 0 | BV22: FALSE | BW22: 0 | BX22: 0 | BY22: 0 | BZ22: FALSE | CA22: 0 | CB22: 0 | CC22: 0 | CD22: 92.2 | CE22: 38 | CF22: 10.079 | CG22: =IF(CF22<0.06,1,IF(CF22>=18.29,52,MATCH(CF22-0.001,'Weighting Factors'!$Y$5:$Y$156)+1)) -> 48 | CH22: =VLOOKUP(CG22, 'Weighting Factors'!$W$5:$Z$56,4) -> 630 | CI22: =('Weighting Factors'!$Q$5/'Weighting Factors'!$Q$14) -> 1.097 | CJ22: 241290 | CK22: =CJ22*'Weighting Factors'!$S$7 -> 241290 | CL22: 264695 | CM22: =AM22/'Weighting Factors'!$Q$5 -> 57.9 | CN22: 0 | CO22: 0 | CP22: 0 | CQ22: 0 | CR22: =SUM((AV22*'Weighting Factors'!$Q$5)+'2021 Legal Max'!BA22)*CQ22 -> 0 | CS22: 0 | CT22: 0.3397 | CU22: 0 | CV22: 0 | CW22: 4150.9 | CX22: ='LOB Transfers'!G21 -> 640268 | CY22: ='LOB Transfers'!J21 -> 38441 | CZ22: D0204
A23: 205 | B23: Butler | C23: Bluestem | D23: 475.5 | E23: 0 | F23: 475.5 | G23: 496 | H23: 0 | I23: 496 | J23: 483.2 | K23: 0 | L23: 483.2 | M23: =IF(ISNA(VLOOKUP($CZ23,'Audit Values'!$A:$BW,2,FALSE)),'Preliminary SO66'!C22,VLOOKUP($CZ23,'Audit Values'!$A:$BW,73,FALSE)) -> 476.6 | N23: =IF(ISNA(VLOOKUP($CZ23,'Audit Values'!$A:$BW,2,FALSE)),'Preliminary SO66'!F22,VLOOKUP($CZ23,'Audit Values'!$A$2:$BW$381,4,FALSE)) -> 0 | O23: 476.6 | P23: =IF('Military Provision'!J24="YES", MAX('2021 Legal Max'!L23,'2021 Legal Max'!I23,AVERAGE('2021 Legal Max'!F23,'2021 Legal Max'!I23,'2021 Legal Max'!L23)), MAX(L23, I23)) -> 496 | Q23: =IF(ISNA(VLOOKUP($CZ23,'Audit Values'!$A:BU,2,FALSE)),'Preliminary SO66'!AL22,VLOOKUP($CZ23,'Audit Values'!$A$2:$BU296,58,FALSE)) -> 0 | R23: 0 | S23: 496 | T23: 207.1 | U23: =IF(ISNA(VLOOKUP($CZ23,'Audit Values'!$A:$BW,2,FALSE)),'Preliminary SO66'!AM22,VLOOKUP($CZ23,'Audit Values'!$A:$BW,62,FALSE)) -> 0 | V23: =(U23/6)*'Weighting Factors'!$Q$7 -> 0 | W23: =IF(ISNA(VLOOKUP($CZ23,'Audit Values'!$A:$BW,2,FALSE)),'Preliminary SO66'!AN22,VLOOKUP($CZ23,'Audit Values'!$A:$BW,61,FALSE)) -> 4 | X23: =W23*'Weighting Factors'!$Q$8 -> 0.7 | Y23: 0.7 | Z23: =IF(ISNA(VLOOKUP($CZ23,'Audit Values'!$A:$BW,2,FALSE)),'Preliminary SO66'!AO22,VLOOKUP($CZ23,'Audit Values'!$A:$BW,60,FALSE)) -> 158.2 | AA23: =Z23/6*'Weighting Factors'!$Q$6 -> 13.2 | AB23: =IF(ISNA(VLOOKUP($CZ23,'Audit Values'!$A:$BU,2,FALSE)),'Preliminary SO66'!AS22,VLOOKUP($CZ23,'Audit Values'!$A:$BU,63,FALSE)) -> 482 | AC23: 0 | AD23: =IF(ISNA(VLOOKUP($CZ23,'Audit Values'!$A:$BU,2,FALSE)),'Preliminary SO66'!AP22,VLOOKUP($CZ23,'Audit Values'!$A:$BU,64,FALSE)) -> 163 | AE23: =IF(A23=207, AD23,MAX(AC23,AD23))*'Weighting Factors'!$Q$9 -> 78.9 | AF23: 0 | AG23: =IF(ISNA(VLOOKUP($CZ23,'Audit Values'!$A:$BW,2,FALSE)),'Preliminary SO66'!AG22,VLOOKUP($CZ23,'Audit Values'!$A$2:$BW$385,70,FALSE)) -> 0 | AH23: 0 | AI23: =IF(ISNA(VLOOKUP($CZ23,'Audit Values'!$A:$BU,2,FALSE)),'Preliminary SO66'!AQ22,VLOOKUP($CZ23,'Audit Values'!$A:$BU,65,FALSE)) -> 0 | AJ23: =AI23*'Weighting Factors'!$Q$10 -> 0 | AK23: =IF(ISNA(VLOOKUP($CZ23,'Audit Values'!$A:$BU,2,FALSE)),'Preliminary SO66'!AR22,VLOOKUP($CZ23,'Audit Values'!$A:$BU,66,FALSE)) -> 245 | AM23: 276828 | AN23: 294293 | AO23: =MAX(AN23, AM23)/'Weighting Factors'!$Q$5 -> 64.4 | AP23: =CN23/'Weighting Factors'!$Q$5 -> 0 | AQ23: 0 | AR23: =CS23/'Weighting Factors'!$Q$5 -> 0 | AS23: 567749 | AT23: =AS23/'Weighting Factors'!$Q$5 -> 124.3 | AU23: =IF(ISNA(VLOOKUP($CZ23,'Audit Values'!$A:$BU,2,FALSE)),'Preliminary SO66'!X22,VLOOKUP($CZ23,'Audit Values'!$A$2:$BU$385,47,FALSE)) -> 0 | AV23: 984.6 | AW23: 860.3 | AX23: =IF(ISNA(VLOOKUP($CZ23,'Audit Values'!$A$2:$BU$385,2,FALSE)),'Preliminary SO66'!AA22,VLOOKUP($CZ23,'Audit Values'!$A$2:$BU$385,41,FALSE)) -> 7 | AY23: =IF(ISNA(VLOOKUP($CZ23,'Audit Values'!$A$2:$BU$385,2,FALSE)),'Preliminary SO66'!AB22,VLOOKUP($CZ23,'Audit Values'!$A$2:$BU$385,42,FALSE)) -> 0 | AZ23: 0 | BA23: =SUM(AX23*'Weighting Factors'!$T$10)+('2021 Legal Max'!AY23*'Weighting Factors'!$T$11)+('2021 Legal Max'!AZ23*'Weighting Factors'!$T$12) -> 35000 | BB23: 0 | BC23: 27 | BD23: =IF(ISNA(VLOOKUP($CZ23,'Audit Values'!$A$2:$BV$385,2,FALSE)),"",VLOOKUP($CZ23,'Audit Values'!$A$2:$BV$385,51,FALSE)) -> A | BE23: =IF('Weighting Factors'!H23="","",IF('Weighting Factors'!J23="Pending","PX","R")) -> R | BF23: =SUM((S23+T23+Y23+AA23+AE23+AH23+AJ23++AO23+AP23+AQ23+AU23+AR23)*'Weighting Factors'!$Q$5)+'2021 Legal Max'!BA23+'2021 Legal Max'!BB23 -> 3965711 | BG23: =SUM((AV23+AR23)*'Weighting Factors'!$Q$5)+BA23+'2021 Legal Max'!BB23 -> 4533637 | BH23: =IF('Weighting Factors'!H23>0,'Weighting Factors'!H23,'Preliminary SO66'!AV22) -> 4566259 | BI23: 4533637 | BJ23: ='Weighting Factors'!G23 -> 0 | BK23: ='Weighting Factors'!F23 -> -37020 | BL23: ='Weighting Factors'!E23 -> 0 | BM23: -37020 | BN23: 4496617 | BO23: =SUM((S23+T23+Y23+AA23+AE23+AH23+AJ23+AO23+AP23+AQ23+AR23)*'Weighting Factors'!Q$12)+(MAX(AS23,'Weighting Factors'!B23)) -> 4570736 | BP23: 0.3 | BQ23: 1371221 | BR23: 1378686 | BS23: 1371221 | BT23: 0.3 | BU23: 0 | BV23: FALSE | BW23: 0 | BX23: 0 | BY23: 0 | BZ23: TRUE | CA23: 242.55 | CB23: 0.417596 | CC23: 207.1 | CD23: 0 | CE23: 348.6 | CF23: 0.703 | CG23: =IF(CF23<0.06,1,IF(CF23>=18.29,52,MATCH(CF23-0.001,'Weighting Factors'!$Y$5:$Y$156)+1)) -> 28 | CH23: =VLOOKUP(CG23, 'Weighting Factors'!$W$5:$Z$56,4) -> 1030 | CI23: =('Weighting Factors'!$Q$5/'Weighting Factors'!$Q$14) -> 1.097 | CJ23: 252350 | CK23: =CJ23*'Weighting Factors'!$S$7 -> 252350 | CL23: 276828 | CM23: =AM23/'Weighting Factors'!$Q$5 -> 60.6 | CN23: 0 | CO23: 0 | CP23: 0 | CQ23: 0 | CR23: =SUM((AV23*'Weighting Factors'!$Q$5)+'2021 Legal Max'!BA23)*CQ23 -> 0 | CS23: 0 | CT23: 0.3382 | CU23: 0 | CV23: 0 | CW23: 984.6 | CX23: ='LOB Transfers'!G22 -> 109835 | CY23: ='LOB Transfers'!J22 -> 960 | CZ23: D0205
A24: 206 | B24: Butler | C24: Remington-Whitewater | D24: 504.7 | E24: 0 | F24: 504.7 | G24: 492.9 | H24: 0 | I24: 492.9 | J24: 460.8 | K24: 0 | L24: 460.8 | M24: =IF(ISNA(VLOOKUP($CZ24,'Audit Values'!$A:$BW,2,FALSE)),'Preliminary SO66'!C23,VLOOKUP($CZ24,'Audit Values'!$A:$BW,73,FALSE)) -> 454 | N24: =IF(ISNA(VLOOKUP($CZ24,'Audit Values'!$A:$BW,2,FALSE)),'Preliminary SO66'!F23,VLOOKUP($CZ24,'Audit Values'!$A$2:$BW$381,4,FALSE)) -> 0 | O24: 454 | P24: =IF('Military Provision'!J25="YES", MAX('2021 Legal Max'!L24,'2021 Legal Max'!I24,AVERAGE('2021 Legal Max'!F24,'2021 Legal Max'!I24,'2021 Legal Max'!L24)), MAX(L24, I24)) -> 492.9 | Q24: =IF(ISNA(VLOOKUP($CZ24,'Audit Values'!$A:BU,2,FALSE)),'Preliminary SO66'!AL23,VLOOKUP($CZ24,'Audit Values'!$A$2:$BU297,58,FALSE)) -> 3 | R24: 0 | S24: 495.9 | T24: 207.1 | U24: =IF(ISNA(VLOOKUP($CZ24,'Audit Values'!$A:$BW,2,FALSE)),'Preliminary SO66'!AM23,VLOOKUP($CZ24,'Audit Values'!$A:$BW,62,FALSE)) -> 30.6 | V24: =(U24/6)*'Weighting Factors'!$Q$7 -> 2 | W24: =IF(ISNA(VLOOKUP($CZ24,'Audit Values'!$A:$BW,2,FALSE)),'Preliminary SO66'!AN23,VLOOKUP($CZ24,'Audit Values'!$A:$BW,61,FALSE)) -> 13 | X24: =W24*'Weighting Factors'!$Q$8 -> 2.4 | Y24: 2.4 | Z24: =IF(ISNA(VLOOKUP($CZ24,'Audit Values'!$A:$BW,2,FALSE)),'Preliminary SO66'!AO23,VLOOKUP($CZ24,'Audit Values'!$A:$BW,60,FALSE)) -> 46.2 | AA24: =Z24/6*'Weighting Factors'!$Q$6 -> 3.9 | AB24: =IF(ISNA(VLOOKUP($CZ24,'Audit Values'!$A:$BU,2,FALSE)),'Preliminary SO66'!AS23,VLOOKUP($CZ24,'Audit Values'!$A:$BU,63,FALSE)) -> 463 | AC24: 0 | AD24: =IF(ISNA(VLOOKUP($CZ24,'Audit Values'!$A:$BU,2,FALSE)),'Preliminary SO66'!AP23,VLOOKUP($CZ24,'Audit Values'!$A:$BU,64,FALSE)) -> 128 | AE24: =IF(A24=207, AD24,MAX(AC24,AD24))*'Weighting Factors'!$Q$9 -> 62 | AF24: 0 | AG24: =IF(ISNA(VLOOKUP($CZ24,'Audit Values'!$A:$BW,2,FALSE)),'Preliminary SO66'!AG23,VLOOKUP($CZ24,'Audit Values'!$A$2:$BW$385,70,FALSE)) -> 0 | AH24: 0 | AI24: =IF(ISNA(VLOOKUP($CZ24,'Audit Values'!$A:$BU,2,FALSE)),'Preliminary SO66'!AQ23,VLOOKUP($CZ24,'Audit Values'!$A:$BU,65,FALSE)) -> 0 | AJ24: =AI24*'Weighting Factors'!$Q$10 -> 0 | AK24: =IF(ISNA(VLOOKUP($CZ24,'Audit Values'!$A:$BU,2,FALSE)),'Preliminary SO66'!AR23,VLOOKUP($CZ24,'Audit Values'!$A:$BU,66,FALSE)) -> 313 | AM24: 319326 | AN24: 348606 | AO24: =MAX(AN24, AM24)/'Weighting Factors'!$Q$5 -> 76.3 | AP24: =CN24/'Weighting Factors'!$Q$5 -> 0 | AQ24: 0 | AR24: =CS24/'Weighting Factors'!$Q$5 -> 0 | AS24: 565349 | AT24: =AS24/'Weighting Factors'!$Q$5 -> 123.7 | AU24: =IF(ISNA(VLOOKUP($CZ24,'Audit Values'!$A:$BU,2,FALSE)),'Preliminary SO66'!X23,VLOOKUP($CZ24,'Audit Values'!$A$2:$BU$385,47,FALSE)) -> 0 | AV24: 971.3 | AW24: 847.6 | AX24: =IF(ISNA(VLOOKUP($CZ24,'Audit Values'!$A$2:$BU$385,2,FALSE)),'Preliminary SO66'!AA23,VLOOKUP($CZ24,'Audit Values'!$A$2:$BU$385,41,FALSE)) -> 0 | AY24: =IF(ISNA(VLOOKUP($CZ24,'Audit Values'!$A$2:$BU$385,2,FALSE)),'Preliminary SO66'!AB23,VLOOKUP($CZ24,'Audit Values'!$A$2:$BU$385,42,FALSE)) -> 0 | AZ24: 0 | BA24: =SUM(AX24*'Weighting Factors'!$T$10)+('2021 Legal Max'!AY24*'Weighting Factors'!$T$11)+('2021 Legal Max'!AZ24*'Weighting Factors'!$T$12) -> 0 | BB24: 0 | BC24: =IF(ISNA(VLOOKUP($CZ24,'Audit Values'!$A$2:$BU$385,2,FALSE)),"",IF(AND('Weighting Factors'!H24>0,VLOOKUP($CZ24,'Audit Values'!$A$2:$BU$385,51,FALSE)<'Weighting Factors'!H24),'Weighting Factors'!H24,VLOOKUP($CZ24,'Audit Values'!$A$2:$BU$385,50,FALSE))) -> 4 | BD24: =IF(ISNA(VLOOKUP($CZ24,'Audit Values'!$A$2:$BV$385,2,FALSE)),"",VLOOKUP($CZ24,'Audit Values'!$A$2:$BV$385,51,FALSE)) -> A | BE24: =IF('Weighting Factors'!H24="","",IF('Weighting Factors'!J24="Pending","PX","R")) ->  | BF24: =SUM((S24+T24+Y24+AA24+AE24+AH24+AJ24++AO24+AP24+AQ24+AU24+AR24)*'Weighting Factors'!$Q$5)+'2021 Legal Max'!BA24+'2021 Legal Max'!BB24 -> 3872684 | BG24: =SUM((AV24+AR24)*'Weighting Factors'!$Q$5)+BA24+'2021 Legal Max'!BB24 -> 4437870 | BH24: =IF('Weighting Factors'!H24>0,'Weighting Factors'!H24,'Preliminary SO66'!AV23) -> 4623828 | BI24: 4437870 | BJ24: ='Weighting Factors'!G24 -> 0 | BK24: ='Weighting Factors'!F24 -> -74790 | BL24: ='Weighting Factors'!E24 -> 0 | BM24: -74790 | BN24: 4363080 | BO24: =SUM((S24+T24+Y24+AA24+AE24+AH24+AJ24+AO24+AP24+AQ24+AR24)*'Weighting Factors'!Q$12)+(MAX(AS24,'Weighting Factors'!B24)) -> 4471090 | BP24: 0.33 | BQ24: 1475460 | BR24: 1536995 | BS24: 1475460 | BT24: 0.33 | BU24: 0 | BV24: FALSE | BW24: 0 | BX24: 0 | BY24: 0 | BZ24: TRUE | CA24: 242.4263 | CB24: 0.41763 | CC24: 207.1 | CD24: 0 | CE24: 253 | CF24: 1.237 | CG24: =IF(CF24<0.06,1,IF(CF24>=18.29,52,MATCH(CF24-0.001,'Weighting Factors'!$Y$5:$Y$156)+1)) -> 33 | CH24: =VLOOKUP(CG24, 'Weighting Factors'!$W$5:$Z$56,4) -> 930 | CI24: =('Weighting Factors'!$Q$5/'Weighting Factors'!$Q$14) -> 1.097 | CJ24: 291090 | CK24: =CJ24*'Weighting Factors'!$S$7 -> 291090 | CL24: 319326 | CM24: =AM24/'Weighting Factors'!$Q$5 -> 69.9 | CN24: 0 | CO24: 0 | CP24: 0 | CQ24: 0 | CR24: =SUM((AV24*'Weighting Factors'!$Q$5)+'2021 Legal Max'!BA24)*CQ24 -> 0 | CS24: 0 | CT24: 0.2765 | CU24: 0 | CV24: 0 | CW24: 971.3 | CX24: ='LOB Transfers'!G23 -> 94429 | CY24: ='LOB Transfers'!J23 -> 3689 | CZ24: D0206
A25: 207 | B25: Leavenworth | C25: Ft Leavenworth | D25: 1756.6 | E25: 67 | F25: 1823.6 | G25: 1695.5 | H25: 61 | I25: 1756.5 | J25: 1649.2 | K25: 66.8 | L25: 1716 | M25: =IF(ISNA(VLOOKUP($CZ25,'Audit Values'!$A:$BW,2,FALSE)),'Preliminary SO66'!C24,VLOOKUP($CZ25,'Audit Values'!$A:$BW,73,FALSE)) -> 1350.8 | N25: =IF(ISNA(VLOOKUP($CZ25,'Audit Values'!$A:$BW,2,FALSE)),'Preliminary SO66'!F24,VLOOKUP($CZ25,'Audit Values'!$A$2:$BW$381,4,FALSE)) -> 78.5 | O25: 1429.3 | P25: =IF('Military Provision'!J26="YES", MAX('2021 Legal Max'!L25,'2021 Legal Max'!I25,AVERAGE('2021 Legal Max'!F25,'2021 Legal Max'!I25,'2021 Legal Max'!L25)), MAX(L25, I25)) -> 1765.4 | Q25: =IF(ISNA(VLOOKUP($CZ25,'Audit Values'!$A:BU,2,FALSE)),'Preliminary SO66'!AL24,VLOOKUP($CZ25,'Audit Values'!$A$2:$BU298,58,FALSE)) -> 0 | R25: 0 | S25: 1765.4 | T25: 61.9 | U25: =IF(ISNA(VLOOKUP($CZ25,'Audit Values'!$A:$BW,2,FALSE)),'Preliminary SO66'!AM24,VLOOKUP($CZ25,'Audit Values'!$A:$BW,62,FALSE)) -> 40.8 | V25: =(U25/6)*'Weighting Factors'!$Q$7 -> 2.7 | W25: =IF(ISNA(VLOOKUP($CZ25,'Audit Values'!$A:$BW,2,FALSE)),'Preliminary SO66'!AN24,VLOOKUP($CZ25,'Audit Values'!$A:$BW,61,FALSE)) -> 49 | X25: =W25*'Weighting Factors'!$Q$8 -> 9.1 | Y25: 9.1 | Z25: =IF(ISNA(VLOOKUP($CZ25,'Audit Values'!$A:$BW,2,FALSE)),'Preliminary SO66'!AO24,VLOOKUP($CZ25,'Audit Values'!$A:$BW,60,FALSE)) -> 0 | AA25: =Z25/6*'Weighting Factors'!$Q$6 -> 0 | AB25: =IF(ISNA(VLOOKUP($CZ25,'Audit Values'!$A:$BU,2,FALSE)),'Preliminary SO66'!AS24,VLOOKUP($CZ25,'Audit Values'!$A:$BU,63,FALSE)) -> 1441 | AC25: 0 | AD25: =IF(ISNA(VLOOKUP($CZ25,'Audit Values'!$A:$BU,2,FALSE)),'Preliminary SO66'!AP24,VLOOKUP($CZ25,'Audit Values'!$A:$BU,64,FALSE)) -> 21 | AE25: =IF(A25=207, AD25,MAX(AC25,AD25))*'Weighting Factors'!$Q$9 -> 10.2 | AF25: 0 | AG25: =IF(ISNA(VLOOKUP($CZ25,'Audit Values'!$A:$BW,2,FALSE)),'Preliminary SO66'!AG24,VLOOKUP($CZ25,'Audit Values'!$A$2:$BW$385,70,FALSE)) -> 0 | AH25: 0 | AI25: =IF(ISNA(VLOOKUP($CZ25,'Audit Values'!$A:$BU,2,FALSE)),'Preliminary SO66'!AQ24,VLOOKUP($CZ25,'Audit Values'!$A:$BU,65,FALSE)) -> 0 | AJ25: =AI25*'Weighting Factors'!$Q$10 -> 0 | AK25: =IF(ISNA(VLOOKUP($CZ25,'Audit Values'!$A:$BU,2,FALSE)),'Preliminary SO66'!AR24,VLOOKUP($CZ25,'Audit Values'!$A:$BU,66,FALSE)) -> 162 | AM25: 97743 | AN25: 83974 | AO25: =MAX(AN25, AM25)/'Weighting Factors'!$Q$5 -> 21.4 | AP25: =CN25/'Weighting Factors'!$Q$5 -> 0 | AQ25: 0 | AR25: =CS25/'Weighting Factors'!$Q$5 -> 0 | AS25: 1132656 | AT25: =AS25/'Weighting Factors'!$Q$5 -> 247.9 | AU25: =IF(ISNA(VLOOKUP($CZ25,'Audit Values'!$A:$BU,2,FALSE)),'Preliminary SO66'!X24,VLOOKUP($CZ25,'Audit Values'!$A$2:$BU$385,47,FALSE)) -> 0 | AV25: 2115.9 | AW25: 1868 | AX25: =IF(ISNA(VLOOKUP($CZ25,'Audit Values'!$A$2:$BU$385,2,FALSE)),'Preliminary SO66'!AA24,VLOOKUP($CZ25,'Audit Values'!$A$2:$BU$385,41,FALSE)) -> 0 | AY25: =IF(ISNA(VLOOKUP($CZ25,'Audit Values'!$A$2:$BU$385,2,FALSE)),'Preliminary SO66'!AB24,VLOOKUP($CZ25,'Audit Values'!$A$2:$BU$385,42,FALSE)) -> 0 | AZ25: 0 | BA25: =SUM(AX25*'Weighting Factors'!$T$10)+('2021 Legal Max'!AY25*'Weighting Factors'!$T$11)+('2021 Legal Max'!AZ25*'Weighting Factors'!$T$12) -> 0 | BB25: 0 | BC25: =IF(ISNA(VLOOKUP($CZ25,'Audit Values'!$A$2:$BU$385,2,FALSE)),"",IF(AND('Weighting Factors'!H25>0,VLOOKUP($CZ25,'Audit Values'!$A$2:$BU$385,51,FALSE)<'Weighting Factors'!H25),'Weighting Factors'!H25,VLOOKUP($CZ25,'Audit Values'!$A$2:$BU$385,50,FALSE))) -> 20 | BD25: =IF(ISNA(VLOOKUP($CZ25,'Audit Values'!$A$2:$BV$385,2,FALSE)),"",VLOOKUP($CZ25,'Audit Values'!$A$2:$BV$385,51,FALSE)) -> A | BE25: =IF('Weighting Factors'!H25="","",IF('Weighting Factors'!J25="Pending","PX","R")) ->  | BF25: =SUM((S25+T25+Y25+AA25+AE25+AH25+AJ25++AO25+AP25+AQ25+AU25+AR25)*'Weighting Factors'!$Q$5)+'2021 Legal Max'!BA25+'2021 Legal Max'!BB25 -> 8534892 | BG25: =SUM((AV25+AR25)*'Weighting Factors'!$Q$5)+BA25+'2021 Legal Max'!BB25 -> 9667547 | BH25: =IF('Weighting Factors'!H25>0,'Weighting Factors'!H25,'Preliminary SO66'!AV24) -> 9952196 | BI25: 9667547 | BJ25: ='Weighting Factors'!G25 -> 0 | BK25: ='Weighting Factors'!F25 -> 0 | BL25: ='Weighting Factors'!E25 -> 0 | BM25: 0 | BN25: 9667547 | BO25: =SUM((S25+T25+Y25+AA25+AE25+AH25+AJ25+AO25+AP25+AQ25+AR25)*'Weighting Factors'!Q$12)+(MAX(AS25,'Weighting Factors'!B25)) -> 9847344 | BP25: 0.33 | BQ25: 3249624 | BR25: 3308557 | BS25: 3249624 | BT25: 0.33 | BU25: 0 | BV25: FALSE | BW25: 0 | BX25: 0 | BY25: 0 | BZ25: FALSE | CA25: 0 | CB25: 0 | CC25: 0 | CD25: 61.9 | CE25: 8.5 | CF25: 19.059 | CG25: =IF(CF25<0.06,1,IF(CF25>=18.29,52,MATCH(CF25-0.001,'Weighting Factors'!$Y$5:$Y$156)+1)) -> 52 | CH25: =VLOOKUP(CG25, 'Weighting Factors'!$W$5:$Z$56,4) -> 550 | CI25: =('Weighting Factors'!$Q$5/'Weighting Factors'!$Q$14) -> 1.097 | CJ25: 89100 | CK25: =CJ25*'Weighting Factors'!$S$7 -> 89100 | CL25: 97743 | CM25: =AM25/'Weighting Factors'!$Q$5 -> 21.4 | CN25: 0 | CO25: 0 | CP25: 0 | CQ25: 0 | CR25: =SUM((AV25*'Weighting Factors'!$Q$5)+'2021 Legal Max'!BA25)*CQ25 -> 0 | CS25: 0 | CT25: 0.0146 | CU25: 0 | CV25: 0 | CW25: 2115.9 | CX25: ='LOB Transfers'!G24 -> 15598 | CY25: ='LOB Transfers'!J24 -> 13973 | CZ25: D0207
A26: 208 | B26: Trego | C26: Wakeeney | D26: 385.3 | E26: 0 | F26: 385.3 | G26: 375.5 | H26: 0 | I26: 375.5 | J26: 384.5 | K26: 0 | L26: 384.5 | M26: =IF(ISNA(VLOOKUP($CZ26,'Audit Values'!$A:$BW,2,FALSE)),'Preliminary SO66'!C25,VLOOKUP($CZ26,'Audit Values'!$A:$BW,73,FALSE)) -> 355.1 | N26: =IF(ISNA(VLOOKUP($CZ26,'Audit Values'!$A:$BW,2,FALSE)),'Preliminary SO66'!F25,VLOOKUP($CZ26,'Audit Values'!$A$2:$BW$381,4,FALSE)) -> 0 | O26: 355.1 | P26: =IF('Military Provision'!J27="YES", MAX('2021 Legal Max'!L26,'2021 Legal Max'!I26,AVERAGE('2021 Legal Max'!F26,'2021 Legal Max'!I26,'2021 Legal Max'!L26)), MAX(L26, I26)) -> 384.5 | Q26: =IF(ISNA(VLOOKUP($CZ26,'Audit Values'!$A:BU,2,FALSE)),'Preliminary SO66'!AL25,VLOOKUP($CZ26,'Audit Values'!$A$2:$BU299,58,FALSE)) -> 1.5 | R26: 0 | S26: 386 | T26: 175.6 | U26: =IF(ISNA(VLOOKUP($CZ26,'Audit Values'!$A:$BW,2,FALSE)),'Preliminary SO66'!AM25,VLOOKUP($CZ26,'Audit Values'!$A:$BW,62,FALSE)) -> 0 | V26: =(U26/6)*'Weighting Factors'!$Q$7 -> 0 | W26: =IF(ISNA(VLOOKUP($CZ26,'Audit Values'!$A:$BW,2,FALSE)),'Preliminary SO66'!AN25,VLOOKUP($CZ26,'Audit Values'!$A:$BW,61,FALSE)) -> 0 | X26: =W26*'Weighting Factors'!$Q$8 -> 0 | Y26: 0 | Z26: =IF(ISNA(VLOOKUP($CZ26,'Audit Values'!$A:$BW,2,FALSE)),'Preliminary SO66'!AO25,VLOOKUP($CZ26,'Audit Values'!$A:$BW,60,FALSE)) -> 167.1 | AA26: =Z26/6*'Weighting Factors'!$Q$6 -> 13.9 | AB26: =IF(ISNA(VLOOKUP($CZ26,'Audit Values'!$A:$BU,2,FALSE)),'Preliminary SO66'!AS25,VLOOKUP($CZ26,'Audit Values'!$A:$BU,63,FALSE)) -> 362 | AC26: 0 | AD26: =IF(ISNA(VLOOKUP($CZ26,'Audit Values'!$A:$BU,2,FALSE)),'Preliminary SO66'!AP25,VLOOKUP($CZ26,'Audit Values'!$A:$BU,64,FALSE)) -> 83 | AE26: =IF(A26=207, AD26,MAX(AC26,AD26))*'Weighting Factors'!$Q$9 -> 40.2 | AF26: 0 | AG26: =IF(ISNA(VLOOKUP($CZ26,'Audit Values'!$A:$BW,2,FALSE)),'Preliminary SO66'!AG25,VLOOKUP($CZ26,'Audit Values'!$A$2:$BW$385,70,FALSE)) -> 0 | AH26: 0 | AI26: =IF(ISNA(VLOOKUP($CZ26,'Audit Values'!$A:$BU,2,FALSE)),'Preliminary SO66'!AQ25,VLOOKUP($CZ26,'Audit Values'!$A:$BU,65,FALSE)) -> 0 | AJ26: =AI26*'Weighting Factors'!$Q$10 -> 0 | AK26: =IF(ISNA(VLOOKUP($CZ26,'Audit Values'!$A:$BU,2,FALSE)),'Preliminary SO66'!AR25,VLOOKUP($CZ26,'Audit Values'!$A:$BU,66,FALSE)) -> 77 | AM26: 122480 | AN26: 131353 | AO26: =MAX(AN26, AM26)/'Weighting Factors'!$Q$5 -> 28.7 | AP26: =CN26/'Weighting Factors'!$Q$5 -> 0 | AQ26: 0 | AR26: =CS26/'Weighting Factors'!$Q$5 -> 0 | AS26: 406648 | AT26: =AS26/'Weighting Factors'!$Q$5 -> 89 | AU26: =IF(ISNA(VLOOKUP($CZ26,'Audit Values'!$A:$BU,2,FALSE)),'Preliminary SO66'!X25,VLOOKUP($CZ26,'Audit Values'!$A$2:$BU$385,47,FALSE)) -> 0 | AV26: 733.4 | AW26: 644.4 | AX26: =IF(ISNA(VLOOKUP($CZ26,'Audit Values'!$A$2:$BU$385,2,FALSE)),'Preliminary SO66'!AA25,VLOOKUP($CZ26,'Audit Values'!$A$2:$BU$385,41,FALSE)) -> 0 | AY26: =IF(ISNA(VLOOKUP($CZ26,'Audit Values'!$A$2:$BU$385,2,FALSE)),'Preliminary SO66'!AB25,VLOOKUP($CZ26,'Audit Values'!$A$2:$BU$385,42,FALSE)) -> 0 | AZ26: 0 | BA26: =SUM(AX26*'Weighting Factors'!$T$10)+('2021 Legal Max'!AY26*'Weighting Factors'!$T$11)+('2021 Legal Max'!AZ26*'Weighting Factors'!$T$12) -> 0 | BB26: 0 | BC26: =IF(ISNA(VLOOKUP($CZ26,'Audit Values'!$A$2:$BU$385,2,FALSE)),"",IF(AND('Weighting Factors'!H26>0,VLOOKUP($CZ26,'Audit Values'!$A$2:$BU$385,51,FALSE)<'Weighting Factors'!H26),'Weighting Factors'!H26,VLOOKUP($CZ26,'Audit Values'!$A$2:$BU$385,50,FALSE))) -> 2 | BD26: =IF(ISNA(VLOOKUP($CZ26,'Audit Values'!$A$2:$BV$385,2,FALSE)),"",VLOOKUP($CZ26,'Audit Values'!$A$2:$BV$385,51,FALSE)) -> A | BE26: =IF('Weighting Factors'!H26="","",IF('Weighting Factors'!J26="Pending","PX","R")) ->  | BF26: =SUM((S26+T26+Y26+AA26+AE26+AH26+AJ26++AO26+AP26+AQ26+AU26+AR26)*'Weighting Factors'!$Q$5)+'2021 Legal Max'!BA26+'2021 Legal Max'!BB26 -> 2944264 | BG26: =SUM((AV26+AR26)*'Weighting Factors'!$Q$5)+BA26+'2021 Legal Max'!BB26 -> 3350905 | BH26: =IF('Weighting Factors'!H26>0,'Weighting Factors'!H26,'Preliminary SO66'!AV25) -> 3524070 | BI26: 3350905 | BJ26: ='Weighting Factors'!G26 -> 0 | BK26: ='Weighting Factors'!F26 -> 0 | BL26: ='Weighting Factors'!E26 -> 0 | BM26: 0 | BN26: 3350905 | BO26: =SUM((S26+T26+Y26+AA26+AE26+AH26+AJ26+AO26+AP26+AQ26+AR26)*'Weighting Factors'!Q$12)+(MAX(AS26,'Weighting Factors'!B26)) -> 3479393 | BP26: 0.33 | BQ26: 1148200 | BR26: 1184087 | BS26: 1148200 | BT26: 0.33 | BU26: 0 | BV26: FALSE | BW26: 0 | BX26: 0 | BY26: 0 | BZ26: TRUE | CA26: 106.425 | CB26: 0.454968 | CC26: 175.6 | CD26: 0 | CE26: 706.7 | CF26: 0.109 | CG26: =IF(CF26<0.06,1,IF(CF26>=18.29,52,MATCH(CF26-0.001,'Weighting Factors'!$Y$5:$Y$156)+1)) -> 6 | CH26: =VLOOKUP(CG26, 'Weighting Factors'!$W$5:$Z$56,4) -> 1450 | CI26: =('Weighting Factors'!$Q$5/'Weighting Factors'!$Q$14) -> 1.097 | CJ26: 111650 | CK26: =CJ26*'Weighting Factors'!$S$7 -> 111650 | CL26: 122480 | CM26: =AM26/'Weighting Factors'!$Q$5 -> 26.8 | CN26: 0 | CO26: 0 | CP26: 0 | CQ26: 0 | CR26: =SUM((AV26*'Weighting Factors'!$Q$5)+'2021 Legal Max'!BA26)*CQ26 -> 0 | CS26: 0 | CT26: 0.2293 | CU26: 0 | CV26: 0 | CW26: 733.4 | CX26: ='LOB Transfers'!G25 -> 63036 | CY26: ='LOB Transfers'!J25 -> 0 | CZ26: D0208
A27: 209 | B27: Stevens | C27: Moscow Public Schools | D27: 176 | E27: 0 | F27: 176 | G27: 159.2 | H27: 0 | I27: 159.2 | J27: 148.9 | K27: 0 | L27: 148.9 | M27: =IF(ISNA(VLOOKUP($CZ27,'Audit Values'!$A:$BW,2,FALSE)),'Preliminary SO66'!C26,VLOOKUP($CZ27,'Audit Values'!$A:$BW,73,FALSE)) -> 128 | N27: =IF(ISNA(VLOOKUP($CZ27,'Audit Values'!$A:$BW,2,FALSE)),'Preliminary SO66'!F26,VLOOKUP($CZ27,'Audit Values'!$A$2:$BW$381,4,FALSE)) -> 0 | O27: 128 | P27: =IF('Military Provision'!J28="YES", MAX('2021 Legal Max'!L27,'2021 Legal Max'!I27,AVERAGE('2021 Legal Max'!F27,'2021 Legal Max'!I27,'2021 Legal Max'!L27)), MAX(L27, I27)) -> 159.2 | Q27: =IF(ISNA(VLOOKUP($CZ27,'Audit Values'!$A:BU,2,FALSE)),'Preliminary SO66'!AL26,VLOOKUP($CZ27,'Audit Values'!$A$2:$BU300,58,FALSE)) -> 3 | R27: 0 | S27: 162.2 | T27: 137.8 | U27: =IF(ISNA(VLOOKUP($CZ27,'Audit Values'!$A:$BW,2,FALSE)),'Preliminary SO66'!AM26,VLOOKUP($CZ27,'Audit Values'!$A:$BW,62,FALSE)) -> 168 | V27: =(U27/6)*'Weighting Factors'!$Q$7 -> 11.1 | W27: =IF(ISNA(VLOOKUP($CZ27,'Audit Values'!$A:$BW,2,FALSE)),'Preliminary SO66'!AN26,VLOOKUP($CZ27,'Audit Values'!$A:$BW,61,FALSE)) -> 39 | X27: =W27*'Weighting Factors'!$Q$8 -> 7.2 | Y27: 11.1 | Z27: =IF(ISNA(VLOOKUP($CZ27,'Audit Values'!$A:$BW,2,FALSE)),'Preliminary SO66'!AO26,VLOOKUP($CZ27,'Audit Values'!$A:$BW,60,FALSE)) -> 0 | AA27: =Z27/6*'Weighting Factors'!$Q$6 -> 0 | AB27: =IF(ISNA(VLOOKUP($CZ27,'Audit Values'!$A:$BU,2,FALSE)),'Preliminary SO66'!AS26,VLOOKUP($CZ27,'Audit Values'!$A:$BU,63,FALSE)) -> 134 | AC27: 0 | AD27: =IF(ISNA(VLOOKUP($CZ27,'Audit Values'!$A:$BU,2,FALSE)),'Preliminary SO66'!AP26,VLOOKUP($CZ27,'Audit Values'!$A:$BU,64,FALSE)) -> 65 | AE27: =IF(A27=207, AD27,MAX(AC27,AD27))*'Weighting Factors'!$Q$9 -> 31.5 | AF27: 6.1 | AG27: =IF(ISNA(VLOOKUP($CZ27,'Audit Values'!$A:$BW,2,FALSE)),'Preliminary SO66'!AG26,VLOOKUP($CZ27,'Audit Values'!$A$2:$BW$385,70,FALSE)) -> 5.1 | AH27: 6.1 | AI27: =IF(ISNA(VLOOKUP($CZ27,'Audit Values'!$A:$BU,2,FALSE)),'Preliminary SO66'!AQ26,VLOOKUP($CZ27,'Audit Values'!$A:$BU,65,FALSE)) -> 0 | AJ27: =AI27*'Weighting Factors'!$Q$10 -> 0 | AK27: =IF(ISNA(VLOOKUP($CZ27,'Audit Values'!$A:$BU,2,FALSE)),'Preliminary SO66'!AR26,VLOOKUP($CZ27,'Audit Values'!$A:$BU,66,FALSE)) -> 25 | AM27: 39218 | AN27: 69721 | AO27: =MAX(AN27, AM27)/'Weighting Factors'!$Q$5 -> 15.3 | AP27: =CN27/'Weighting Factors'!$Q$5 -> 0 | AQ27: 0 | AR27: =CS27/'Weighting Factors'!$Q$5 -> 0 | AS27: 111068 | AT27: =AS27/'Weighting Factors'!$Q$5 -> 24.3 | AU27: =IF(ISNA(VLOOKUP($CZ27,'Audit Values'!$A:$BU,2,FALSE)),'Preliminary SO66'!X26,VLOOKUP($CZ27,'Audit Values'!$A$2:$BU$385,47,FALSE)) -> 0 | AV27: 388.3 | AW27: 364 | AX27: =IF(ISNA(VLOOKUP($CZ27,'Audit Values'!$A$2:$BU$385,2,FALSE)),'Preliminary SO66'!AA26,VLOOKUP($CZ27,'Audit Values'!$A$2:$BU$385,41,FALSE)) -> 0 | AY27: =IF(ISNA(VLOOKUP($CZ27,'Audit Values'!$A$2:$BU$385,2,FALSE)),'Preliminary SO66'!AB26,VLOOKUP($CZ27,'Audit Values'!$A$2:$BU$385,42,FALSE)) -> 0 | AZ27: 0 | BA27: =SUM(AX27*'Weighting Factors'!$T$10)+('2021 Legal Max'!AY27*'Weighting Factors'!$T$11)+('2021 Legal Max'!AZ27*'Weighting Factors'!$T$12) -> 0 | BB27: 0 | BC27: =IF(ISNA(VLOOKUP($CZ27,'Audit Values'!$A$2:$BU$385,2,FALSE)),"",IF(AND('Weighting Factors'!H27>0,VLOOKUP($CZ27,'Audit Values'!$A$2:$BU$385,51,FALSE)<'Weighting Factors'!H27),'Weighting Factors'!H27,VLOOKUP($CZ27,'Audit Values'!$A$2:$BU$385,50,FALSE))) -> 14 | BD27: =IF(ISNA(VLOOKUP($CZ27,'Audit Values'!$A$2:$BV$385,2,FALSE)),"",VLOOKUP($CZ27,'Audit Values'!$A$2:$BV$385,51,FALSE)) -> A | BE27: =IF('Weighting Factors'!H27="","",IF('Weighting Factors'!J27="Pending","PX","R")) ->  | BF27: =SUM((S27+T27+Y27+AA27+AE27+AH27+AJ27++AO27+AP27+AQ27+AU27+AR27)*'Weighting Factors'!$Q$5)+'2021 Legal Max'!BA27+'2021 Legal Max'!BB27 -> 1663116 | BG27: =SUM((AV27+AR27)*'Weighting Factors'!$Q$5)+BA27+'2021 Legal Max'!BB27 -> 1774143 | BH27: =IF('Weighting Factors'!H27>0,'Weighting Factors'!H27,'Preliminary SO66'!AV26) -> 1811152 | BI27: 1774143 | BJ27: ='Weighting Factors'!G27 -> 0 | BK27: ='Weighting Factors'!F27 -> 0 | BL27: ='Weighting Factors'!E27 -> 0 | BM27: 0 | BN27: 1774143 | BO27: =SUM((S27+T27+Y27+AA27+AE27+AH27+AJ27+AO27+AP27+AQ27+AR27)*'Weighting Factors'!Q$12)+(MAX(AS27,'Weighting Factors'!B27)) -> 1815473 | BP27: 0.33 | BQ27: 599106 | BR27: 605493 | BS27: 599106 | BT27: 0.33 | BU27: 0 | BV27: TRUE | BW27: 600.541 | BX27: 0.849456 | BY27: 137.8 | BZ27: FALSE | CA27: 0 | CB27: 0 | CC27: 0 | CD27: 0 | CE27: 223 | CF27: 0.112 | CG27: =IF(CF27<0.06,1,IF(CF27>=18.29,52,MATCH(CF27-0.001,'Weighting Factors'!$Y$5:$Y$156)+1)) -> 7 | CH27: =VLOOKUP(CG27, 'Weighting Factors'!$W$5:$Z$56,4) -> 1430 | CI27: =('Weighting Factors'!$Q$5/'Weighting Factors'!$Q$14) -> 1.097 | CJ27: 35750 | CK27: =CJ27*'Weighting Factors'!$S$7 -> 35750 | CL27: 39218 | CM27: =AM27/'Weighting Factors'!$Q$5 -> 8.6 | CN27: 0 | CO27: 0 | CP27: 0 | CQ27: 0 | CR27: =SUM((AV27*'Weighting Factors'!$Q$5)+'2021 Legal Max'!BA27)*CQ27 -> 0 | CS27: 0 | CT27: 0.4851 | CU27: 0 | CV27: 6.1 | CW27: 388.3 | CX27: ='LOB Transfers'!G26 -> 49007 | CY27: ='LOB Transfers'!J26 -> 17254 | CZ27: D0209
A28: 210 | B28: Stevens | C28: Hugoton Public Schools | D28: 959.1 | E28: 0 | F28: 959.1 | G28: 999.8 | H28: 0 | I28: 999.8 | J28: 984.7 | K28: 0 | L28: 984.7 | M28: =IF(ISNA(VLOOKUP($CZ28,'Audit Values'!$A:$BW,2,FALSE)),'Preliminary SO66'!C27,VLOOKUP($CZ28,'Audit Values'!$A:$BW,73,FALSE)) -> 974.6 | N28: =IF(ISNA(VLOOKUP($CZ28,'Audit Values'!$A:$BW,2,FALSE)),'Preliminary SO66'!F27,VLOOKUP($CZ28,'Audit Values'!$A$2:$BW$381,4,FALSE)) -> 0 | O28: 974.6 | P28: =IF('Military Provision'!J29="YES", MAX('2021 Legal Max'!L28,'2021 Legal Max'!I28,AVERAGE('2021 Legal Max'!F28,'2021 Legal Max'!I28,'2021 Legal Max'!L28)), MAX(L28, I28)) -> 999.8 | Q28: =IF(ISNA(VLOOKUP($CZ28,'Audit Values'!$A:BU,2,FALSE)),'Preliminary SO66'!AL27,VLOOKUP($CZ28,'Audit Values'!$A$2:$BU301,58,FALSE)) -> 21.5 | R28: 0 | S28: 1021.3 | T28: 244.2 | U28: =IF(ISNA(VLOOKUP($CZ28,'Audit Values'!$A:$BW,2,FALSE)),'Preliminary SO66'!AM27,VLOOKUP($CZ28,'Audit Values'!$A:$BW,62,FALSE)) -> 1037.4 | V28: =(U28/6)*'Weighting Factors'!$Q$7 -> 68.3 | W28: =IF(ISNA(VLOOKUP($CZ28,'Audit Values'!$A:$BW,2,FALSE)),'Preliminary SO66'!AN27,VLOOKUP($CZ28,'Audit Values'!$A:$BW,61,FALSE)) -> 251 | X28: =W28*'Weighting Factors'!$Q$8 -> 46.4 | Y28: 68.3 | Z28: =IF(ISNA(VLOOKUP($CZ28,'Audit Values'!$A:$BW,2,FALSE)),'Preliminary SO66'!AO27,VLOOKUP($CZ28,'Audit Values'!$A:$BW,60,FALSE)) -> 338.4 | AA28: =Z28/6*'Weighting Factors'!$Q$6 -> 28.2 | AB28: =IF(ISNA(VLOOKUP($CZ28,'Audit Values'!$A:$BU,2,FALSE)),'Preliminary SO66'!AS27,VLOOKUP($CZ28,'Audit Values'!$A:$BU,63,FALSE)) -> 1021 | AC28: 0 | AD28: =IF(ISNA(VLOOKUP($CZ28,'Audit Values'!$A:$BU,2,FALSE)),'Preliminary SO66'!AP27,VLOOKUP($CZ28,'Audit Values'!$A:$BU,64,FALSE)) -> 472 | AE28: =IF(A28=207, AD28,MAX(AC28,AD28))*'Weighting Factors'!$Q$9 -> 228.4 | AF28: 37.1 | AG28: =IF(ISNA(VLOOKUP($CZ28,'Audit Values'!$A:$BW,2,FALSE)),'Preliminary SO66'!AG27,VLOOKUP($CZ28,'Audit Values'!$A$2:$BW$385,70,FALSE)) -> 38 | AH28: 38 | AI28: =IF(ISNA(VLOOKUP($CZ28,'Audit Values'!$A:$BU,2,FALSE)),'Preliminary SO66'!AQ27,VLOOKUP($CZ28,'Audit Values'!$A:$BU,65,FALSE)) -> 0 | AJ28: =AI28*'Weighting Factors'!$Q$10 -> 0 | AK28: =IF(ISNA(VLOOKUP($CZ28,'Audit Values'!$A:$BU,2,FALSE)),'Preliminary SO66'!AR27,VLOOKUP($CZ28,'Audit Values'!$A:$BU,66,FALSE)) -> 145 | AM28: 195650 | AN28: 245372 | AO28: =MAX(AN28, AM28)/'Weighting Factors'!$Q$5 -> 53.7 | AP28: =CN28/'Weighting Factors'!$Q$5 -> 0 | AQ28: 0 | AR28: =CS28/'Weighting Factors'!$Q$5 -> 0 | AS28: 610734 | AT28: =AS28/'Weighting Factors'!$Q$5 -> 133.7 | AU28: =IF(ISNA(VLOOKUP($CZ28,'Audit Values'!$A:$BU,2,FALSE)),'Preliminary SO66'!X27,VLOOKUP($CZ28,'Audit Values'!$A$2:$BU$385,47,FALSE)) -> 0 | AV28: 1815.8 | AW28: 1682.1 | AX28: =IF(ISNA(VLOOKUP($CZ28,'Audit Values'!$A$2:$BU$385,2,FALSE)),'Preliminary SO66'!AA27,VLOOKUP($CZ28,'Audit Values'!$A$2:$BU$385,41,FALSE)) -> 1 | AY28: =IF(ISNA(VLOOKUP($CZ28,'Audit Values'!$A$2:$BU$385,2,FALSE)),'Preliminary SO66'!AB27,VLOOKUP($CZ28,'Audit Values'!$A$2:$BU$385,42,FALSE)) -> 1.4 | AZ28: 60.5 | BA28: =SUM(AX28*'Weighting Factors'!$T$10)+('2021 Legal Max'!AY28*'Weighting Factors'!$T$11)+('2021 Legal Max'!AZ28*'Weighting Factors'!$T$12) -> 50275 | BB28: 0 | BC28: =IF(ISNA(VLOOKUP($CZ28,'Audit Values'!$A$2:$BU$385,2,FALSE)),"",IF(AND('Weighting Factors'!H28>0,VLOOKUP($CZ28,'Audit Values'!$A$2:$BU$385,51,FALSE)<'Weighting Factors'!H28),'Weighting Factors'!H28,VLOOKUP($CZ28,'Audit Values'!$A$2:$BU$385,50,FALSE))) -> 15 | BD28: =IF(ISNA(VLOOKUP($CZ28,'Audit Values'!$A$2:$BV$385,2,FALSE)),"",VLOOKUP($CZ28,'Audit Values'!$A$2:$BV$385,51,FALSE)) -> A | BE28: =IF('Weighting Factors'!H28="","",IF('Weighting Factors'!J28="Pending","PX","R")) ->  | BF28: =SUM((S28+T28+Y28+AA28+AE28+AH28+AJ28++AO28+AP28+AQ28+AU28+AR28)*'Weighting Factors'!$Q$5)+'2021 Legal Max'!BA28+'2021 Legal Max'!BB28 -> 7735790 | BG28: =SUM((AV28+AR28)*'Weighting Factors'!$Q$5)+BA28+'2021 Legal Max'!BB28 -> 8346665 | BH28: =IF('Weighting Factors'!H28>0,'Weighting Factors'!H28,'Preliminary SO66'!AV27) -> 8667393 | BI28: 8346665 | BJ28: ='Weighting Factors'!G28 -> 0 | BK28: ='Weighting Factors'!F28 -> 0 | BL28: ='Weighting Factors'!E28 -> 0 | BM28: 0 | BN28: 8346665 | BO28: =SUM((S28+T28+Y28+AA28+AE28+AH28+AJ28+AO28+AP28+AQ28+AR28)*'Weighting Factors'!Q$12)+(MAX(AS28,'Weighting Factors'!B28)) -> 8373896 | BP28: 0.3 | BQ28: 2512169 | BR28: 2508091 | BS28: 2508091 | BT28: 0.2995 | BU28: 0 | BV28: FALSE | BW28: 0 | BX28: 0 | BY28: 0 | BZ28: TRUE | CA28: 892.6088 | CB28: 0.239126 | CC28: 244.2 | CD28: 0 | CE28: 575 | CF28: 0.252 | CG28: =IF(CF28<0.06,1,IF(CF28>=18.29,52,MATCH(CF28-0.001,'Weighting Factors'!$Y$5:$Y$156)+1)) -> 18 | CH28: =VLOOKUP(CG28, 'Weighting Factors'!$W$5:$Z$56,4) -> 1230 | CI28: =('Weighting Factors'!$Q$5/'Weighting Factors'!$Q$14) -> 1.097 | CJ28: 178350 | CK28: =CJ28*'Weighting Factors'!$S$7 -> 178350 | CL28: 195650 | CM28: =AM28/'Weighting Factors'!$Q$5 -> 42.8 | CN28: 0 | CO28: 0 | CP28: 0 | CQ28: 0 | CR28: =SUM((AV28*'Weighting Factors'!$Q$5)+'2021 Legal Max'!BA28)*CQ28 -> 0 | CS28: 0 | CT28: 0.4623 | CU28: 0 | CV28: 37.1 | CW28: 1815.8 | CX28: ='LOB Transfers'!G27 -> 319280 | CY28: ='LOB Transfers'!J27 -> 95558 | CZ28: D0210
A29: 211 | B29: Norton | C29: Norton Community Schools | D29: 675.1 | E29: 0 | F29: 675.1 | G29: 672 | H29: 0 | I29: 672 | J29: 653.7 | K29: 0 | L29: 653.7 | M29: =IF(ISNA(VLOOKUP($CZ29,'Audit Values'!$A:$BW,2,FALSE)),'Preliminary SO66'!C28,VLOOKUP($CZ29,'Audit Values'!$A:$BW,73,FALSE)) -> 618.5 | N29: =IF(ISNA(VLOOKUP($CZ29,'Audit Values'!$A:$BW,2,FALSE)),'Preliminary SO66'!F28,VLOOKUP($CZ29,'Audit Values'!$A$2:$BW$381,4,FALSE)) -> 0 | O29: 618.5 | P29: =IF('Military Provision'!J30="YES", MAX('2021 Legal Max'!L29,'2021 Legal Max'!I29,AVERAGE('2021 Legal Max'!F29,'2021 Legal Max'!I29,'2021 Legal Max'!L29)), MAX(L29, I29)) -> 672 | Q29: =IF(ISNA(VLOOKUP($CZ29,'Audit Values'!$A:BU,2,FALSE)),'Preliminary SO66'!AL28,VLOOKUP($CZ29,'Audit Values'!$A$2:$BU302,58,FALSE)) -> 0 | R29: 0 | S29: 672 | T29: 240.4 | U29: =IF(ISNA(VLOOKUP($CZ29,'Audit Values'!$A:$BW,2,FALSE)),'Preliminary SO66'!AM28,VLOOKUP($CZ29,'Audit Values'!$A:$BW,62,FALSE)) -> 0 | V29: =(U29/6)*'Weighting Factors'!$Q$7 -> 0 | W29: =IF(ISNA(VLOOKUP($CZ29,'Audit Values'!$A:$BW,2,FALSE)),'Preliminary SO66'!AN28,VLOOKUP($CZ29,'Audit Values'!$A:$BW,61,FALSE)) -> 4 | X29: =W29*'Weighting Factors'!$Q$8 -> 0.7 | Y29: 0.7 | Z29: =IF(ISNA(VLOOKUP($CZ29,'Audit Values'!$A:$BW,2,FALSE)),'Preliminary SO66'!AO28,VLOOKUP($CZ29,'Audit Values'!$A:$BW,60,FALSE)) -> 106.5 | AA29: =Z29/6*'Weighting Factors'!$Q$6 -> 8.9 | AB29: =IF(ISNA(VLOOKUP($CZ29,'Audit Values'!$A:$BU,2,FALSE)),'Preliminary SO66'!AS28,VLOOKUP($CZ29,'Audit Values'!$A:$BU,63,FALSE)) -> 627 | AC29: 0 | AD29: =IF(ISNA(VLOOKUP($CZ29,'Audit Values'!$A:$BU,2,FALSE)),'Preliminary SO66'!AP28,VLOOKUP($CZ29,'Audit Values'!$A:$BU,64,FALSE)) -> 175 | AE29: =IF(A29=207, AD29,MAX(AC29,AD29))*'Weighting Factors'!$Q$9 -> 84.7 | AF29: 0 | AG29: =IF(ISNA(VLOOKUP($CZ29,'Audit Values'!$A:$BW,2,FALSE)),'Preliminary SO66'!AG28,VLOOKUP($CZ29,'Audit Values'!$A$2:$BW$385,70,FALSE)) -> 0 | AH29: 0 | AI29: =IF(ISNA(VLOOKUP($CZ29,'Audit Values'!$A:$BU,2,FALSE)),'Preliminary SO66'!AQ28,VLOOKUP($CZ29,'Audit Values'!$A:$BU,65,FALSE)) -> 0 | AJ29: =AI29*'Weighting Factors'!$Q$10 -> 0 | AK29: =IF(ISNA(VLOOKUP($CZ29,'Audit Values'!$A:$BU,2,FALSE)),'Preliminary SO66'!AR28,VLOOKUP($CZ29,'Audit Values'!$A:$BU,66,FALSE)) -> 112 | AM29: 164638 | AN29: 220334 | AO29: =MAX(AN29, AM29)/'Weighting Factors'!$Q$5 -> 48.2 | AP29: =CN29/'Weighting Factors'!$Q$5 -> 0 | AQ29: 0 | AR29: =CS29/'Weighting Factors'!$Q$5 -> 0 | AS29: 853072 | AT29: =AS29/'Weighting Factors'!$Q$5 -> 186.7 | AU29: =IF(ISNA(VLOOKUP($CZ29,'Audit Values'!$A:$BU,2,FALSE)),'Preliminary SO66'!X28,VLOOKUP($CZ29,'Audit Values'!$A$2:$BU$385,47,FALSE)) -> 1 | AV29: 1242.6 | AW29: 1055.9 | AX29: =IF(ISNA(VLOOKUP($CZ29,'Audit Values'!$A$2:$BU$385,2,FALSE)),'Preliminary SO66'!AA28,VLOOKUP($CZ29,'Audit Values'!$A$2:$BU$385,41,FALSE)) -> 0 | AY29: =IF(ISNA(VLOOKUP($CZ29,'Audit Values'!$A$2:$BU$385,2,FALSE)),'Preliminary SO66'!AB28,VLOOKUP($CZ29,'Audit Values'!$A$2:$BU$385,42,FALSE)) -> 0 | AZ29: 0 | BA29: =SUM(AX29*'Weighting Factors'!$T$10)+('2021 Legal Max'!AY29*'Weighting Factors'!$T$11)+('2021 Legal Max'!AZ29*'Weighting Factors'!$T$12) -> 0 | BB29: 0 | BC29: =IF(ISNA(VLOOKUP($CZ29,'Audit Values'!$A$2:$BU$385,2,FALSE)),"",IF(AND('Weighting Factors'!H29>0,VLOOKUP($CZ29,'Audit Values'!$A$2:$BU$385,51,FALSE)<'Weighting Factors'!H29),'Weighting Factors'!H29,VLOOKUP($CZ29,'Audit Values'!$A$2:$BU$385,50,FALSE))) -> 30 | BD29: =IF(ISNA(VLOOKUP($CZ29,'Audit Values'!$A$2:$BV$385,2,FALSE)),"",VLOOKUP($CZ29,'Audit Values'!$A$2:$BV$385,51,FALSE)) -> A | BE29: =IF('Weighting Factors'!H29="","",IF('Weighting Factors'!J29="Pending","PX","R")) ->  | BF29: =SUM((S29+T29+Y29+AA29+AE29+AH29+AJ29++AO29+AP29+AQ29+AU29+AR29)*'Weighting Factors'!$Q$5)+'2021 Legal Max'!BA29+'2021 Legal Max'!BB29 -> 4824407 | BG29: =SUM((AV29+AR29)*'Weighting Factors'!$Q$5)+BA29+'2021 Legal Max'!BB29 -> 5677439 | BH29: =IF('Weighting Factors'!H29>0,'Weighting Factors'!H29,'Preliminary SO66'!AV28) -> 5796233 | BI29: 5677439 | BJ29: ='Weighting Factors'!G29 -> 0 | BK29: ='Weighting Factors'!F29 -> 0 | BL29: ='Weighting Factors'!E29 -> 0 | BM29: 0 | BN29: 5677439 | BO29: =SUM((S29+T29+Y29+AA29+AE29+AH29+AJ29+AO29+AP29+AQ29+AR29)*'Weighting Factors'!Q$12)+(MAX(AS29,'Weighting Factors'!B29)) -> 5727513 | BP29: 0.3 | BQ29: 1718254 | BR29: 1750135 | BS29: 1718254 | BT29: 0.3 | BU29: 0 | BV29: FALSE | BW29: 0 | BX29: 0 | BY29: 0 | BZ29: TRUE | CA29: 460.35 | CB29: 0.3578 | CC29: 240.4 | CD29: 0 | CE29: 678 | CF29: 0.165 | CG29: =IF(CF29<0.06,1,IF(CF29>=18.29,52,MATCH(CF29-0.001,'Weighting Factors'!$Y$5:$Y$156)+1)) -> 12 | CH29: =VLOOKUP(CG29, 'Weighting Factors'!$W$5:$Z$56,4) -> 1340 | CI29: =('Weighting Factors'!$Q$5/'Weighting Factors'!$Q$14) -> 1.097 | CJ29: 150080 | CK29: =CJ29*'Weighting Factors'!$S$7 -> 150080 | CL29: 164638 | CM29: =AM29/'Weighting Factors'!$Q$5 -> 36 | CN29: 0 | CO29: 0 | CP29: 0 | CQ29: 0 | CR29: =SUM((AV29*'Weighting Factors'!$Q$5)+'2021 Legal Max'!BA29)*CQ29 -> 0 | CS29: 0 | CT29: 0.2791 | CU29: 0 | CV29: 0 | CW29: 1242.6 | CX29: ='LOB Transfers'!G28 -> 117185 | CY29: ='LOB Transfers'!J28 -> 1031 | CZ29: D0211
A30: 212 | B30: Norton | C30: Northern Valley | D30: 150.5 | E30: 0 | F30: 150.5 | G30: 144 | H30: 0 | I30: 144 | J30: 135.4 | K30: 0 | L30: 135.4 | M30: =IF(ISNA(VLOOKUP($CZ30,'Audit Values'!$A:$BW,2,FALSE)),'Preliminary SO66'!C29,VLOOKUP($CZ30,'Audit Values'!$A:$BW,73,FALSE)) -> 122.7 | N30: =IF(ISNA(VLOOKUP($CZ30,'Audit Values'!$A:$BW,2,FALSE)),'Preliminary SO66'!F29,VLOOKUP($CZ30,'Audit Values'!$A$2:$BW$381,4,FALSE)) -> 0 | O30: 122.7 | P30: =IF('Military Provision'!J31="YES", MAX('2021 Legal Max'!L30,'2021 Legal Max'!I30,AVERAGE('2021 Legal Max'!F30,'2021 Legal Max'!I30,'2021 Legal Max'!L30)), MAX(L30, I30)) -> 144 | Q30: =IF(ISNA(VLOOKUP($CZ30,'Audit Values'!$A:BU,2,FALSE)),'Preliminary SO66'!AL29,VLOOKUP($CZ30,'Audit Values'!$A$2:$BU303,58,FALSE)) -> 0 | R30: 0 | S30: 144 | T30: 129.3 | U30: =IF(ISNA(VLOOKUP($CZ30,'Audit Values'!$A:$BW,2,FALSE)),'Preliminary SO66'!AM29,VLOOKUP($CZ30,'Audit Values'!$A:$BW,62,FALSE)) -> 0 | V30: =(U30/6)*'Weighting Factors'!$Q$7 -> 0 | W30: =IF(ISNA(VLOOKUP($CZ30,'Audit Values'!$A:$BW,2,FALSE)),'Preliminary SO66'!AN29,VLOOKUP($CZ30,'Audit Values'!$A:$BW,61,FALSE)) -> 0 | X30: =W30*'Weighting Factors'!$Q$8 -> 0 | Y30: 0 | Z30: =IF(ISNA(VLOOKUP($CZ30,'Audit Values'!$A:$BW,2,FALSE)),'Preliminary SO66'!AO29,VLOOKUP($CZ30,'Audit Values'!$A:$BW,60,FALSE)) -> 88 | AA30: =Z30/6*'Weighting Factors'!$Q$6 -> 7.3 | AB30: =IF(ISNA(VLOOKUP($CZ30,'Audit Values'!$A:$BU,2,FALSE)),'Preliminary SO66'!AS29,VLOOKUP($CZ30,'Audit Values'!$A:$BU,63,FALSE)) -> 128 | AC30: 0 | AD30: =IF(ISNA(VLOOKUP($CZ30,'Audit Values'!$A:$BU,2,FALSE)),'Preliminary SO66'!AP29,VLOOKUP($CZ30,'Audit Values'!$A:$BU,64,FALSE)) -> 33 | AE30: =IF(A30=207, AD30,MAX(AC30,AD30))*'Weighting Factors'!$Q$9 -> 16 | AF30: 0 | AG30: =IF(ISNA(VLOOKUP($CZ30,'Audit Values'!$A:$BW,2,FALSE)),'Preliminary SO66'!AG29,VLOOKUP($CZ30,'Audit Values'!$A$2:$BW$385,70,FALSE)) -> 0 | AH30: 0 | AI30: =IF(ISNA(VLOOKUP($CZ30,'Audit Values'!$A:$BU,2,FALSE)),'Preliminary SO66'!AQ29,VLOOKUP($CZ30,'Audit Values'!$A:$BU,65,FALSE)) -> 0 | AJ30: =AI30*'Weighting Factors'!$Q$10 -> 0 | AK30: =IF(ISNA(VLOOKUP($CZ30,'Audit Values'!$A:$BU,2,FALSE)),'Preliminary SO66'!AR29,VLOOKUP($CZ30,'Audit Values'!$A:$BU,66,FALSE)) -> 22 | AM30: 36201 | AN30: 124805 | AO30: =MAX(AN30, AM30)/'Weighting Factors'!$Q$5 -> 27.3 | AP30: =CN30/'Weighting Factors'!$Q$5 -> 0 | AQ30: 0 | AR30: =CS30/'Weighting Factors'!$Q$5 -> 0 | AS30: 176622 | AT30: =AS30/'Weighting Factors'!$Q$5 -> 38.7 | AU30: =IF(ISNA(VLOOKUP($CZ30,'Audit Values'!$A:$BU,2,FALSE)),'Preliminary SO66'!X29,VLOOKUP($CZ30,'Audit Values'!$A$2:$BU$385,47,FALSE)) -> 0 | AV30: 362.6 | AW30: 323.9 | AX30: =IF(ISNA(VLOOKUP($CZ30,'Audit Values'!$A$2:$BU$385,2,FALSE)),'Preliminary SO66'!AA29,VLOOKUP($CZ30,'Audit Values'!$A$2:$BU$385,41,FALSE)) -> 0 | AY30: =IF(ISNA(VLOOKUP($CZ30,'Audit Values'!$A$2:$BU$385,2,FALSE)),'Preliminary SO66'!AB29,VLOOKUP($CZ30,'Audit Values'!$A$2:$BU$385,42,FALSE)) -> 0 | AZ30: 0 | BA30: =SUM(AX30*'Weighting Factors'!$T$10)+('2021 Legal Max'!AY30*'Weighting Factors'!$T$11)+('2021 Legal Max'!AZ30*'Weighting Factors'!$T$12) -> 0 | BB30: 0 | BC30: =IF(ISNA(VLOOKUP($CZ30,'Audit Values'!$A$2:$BU$385,2,FALSE)),"",IF(AND('Weighting Factors'!H30>0,VLOOKUP($CZ30,'Audit Values'!$A$2:$BU$385,51,FALSE)<'Weighting Factors'!H30),'Weighting Factors'!H30,VLOOKUP($CZ30,'Audit Values'!$A$2:$BU$385,50,FALSE))) -> 20 | BD30: =IF(ISNA(VLOOKUP($CZ30,'Audit Values'!$A$2:$BV$385,2,FALSE)),"",VLOOKUP($CZ30,'Audit Values'!$A$2:$BV$385,51,FALSE)) -> A | BE30: =IF('Weighting Factors'!H30="","",IF('Weighting Factors'!J30="Pending","PX","R")) ->  | BF30: =SUM((S30+T30+Y30+AA30+AE30+AH30+AJ30++AO30+AP30+AQ30+AU30+AR30)*'Weighting Factors'!$Q$5)+'2021 Legal Max'!BA30+'2021 Legal Max'!BB30 -> 1479899 | BG30: =SUM((AV30+AR30)*'Weighting Factors'!$Q$5)+BA30+'2021 Legal Max'!BB30 -> 1656719 | BH30: =IF('Weighting Factors'!H30>0,'Weighting Factors'!H30,'Preliminary SO66'!AV29) -> 1754953 | BI30: 1656719 | BJ30: ='Weighting Factors'!G30 -> 0 | BK30: ='Weighting Factors'!F30 -> 0 | BL30: ='Weighting Factors'!E30 -> 0 | BM30: 0 | BN30: 1656719 | BO30: =SUM((S30+T30+Y30+AA30+AE30+AH30+AJ30+AO30+AP30+AQ30+AR30)*'Weighting Factors'!Q$12)+(MAX(AS30,'Weighting Factors'!B30)) -> 1739631 | BP30: 0.3 | BQ30: 521889 | BR30: 551335 | BS30: 521889 | BT30: 0.3 | BU30: 0 | BV30: TRUE | BW30: 424.82 | BX30: 0.897699 | BY30: 129.3 | BZ30: FALSE | CA30: 0 | CB30: 0 | CC30: 0 | CD30: 0 | CE30: 263 | CF30: 0.084 | CG30: =IF(CF30<0.06,1,IF(CF30>=18.29,52,MATCH(CF30-0.001,'Weighting Factors'!$Y$5:$Y$156)+1)) -> 4 | CH30: =VLOOKUP(CG30, 'Weighting Factors'!$W$5:$Z$56,4) -> 1500 | CI30: =('Weighting Factors'!$Q$5/'Weighting Factors'!$Q$14) -> 1.097 | CJ30: 33000 | CK30: =CJ30*'Weighting Factors'!$S$7 -> 33000 | CL30: 36201 | CM30: =AM30/'Weighting Factors'!$Q$5 -> 7.9 | CN30: 0 | CO30: 0 | CP30: 0 | CQ30: 0 | CR30: =SUM((AV30*'Weighting Factors'!$Q$5)+'2021 Legal Max'!BA30)*CQ30 -> 0 | CS30: 0 | CT30: 0.2578 | CU30: 0 | CV30: 0 | CW30: 362.6 | CX30: ='LOB Transfers'!G29 -> 23015 | CY30: ='LOB Transfers'!J29 -> 0 | CZ30: D0212
A31: 214 | B31: Grant | C31: Ulysses | D31: 1599.7 | E31: 0 | F31: 1599.7 | G31: 1545 | H31: 0 | I31: 1545 | J31: 1530 | K31: 0 | L31: 1530 | M31: =IF(ISNA(VLOOKUP($CZ31,'Audit Values'!$A:$BW,2,FALSE)),'Preliminary SO66'!C30,VLOOKUP($CZ31,'Audit Values'!$A:$BW,73,FALSE)) -> 1508.9 | N31: =IF(ISNA(VLOOKUP($CZ31,'Audit Values'!$A:$BW,2,FALSE)),'Preliminary SO66'!F30,VLOOKUP($CZ31,'Audit Values'!$A$2:$BW$381,4,FALSE)) -> 0 | O31: 1508.9 | P31: =IF('Military Provision'!J32="YES", MAX('2021 Legal Max'!L31,'2021 Legal Max'!I31,AVERAGE('2021 Legal Max'!F31,'2021 Legal Max'!I31,'2021 Legal Max'!L31)), MAX(L31, I31)) -> 1545 | Q31: =IF(ISNA(VLOOKUP($CZ31,'Audit Values'!$A:BU,2,FALSE)),'Preliminary SO66'!AL30,VLOOKUP($CZ31,'Audit Values'!$A$2:$BU304,58,FALSE)) -> 16.5 | R31: 0 | S31: 1561.5 | T31: 86.8 | U31: =IF(ISNA(VLOOKUP($CZ31,'Audit Values'!$A:$BW,2,FALSE)),'Preliminary SO66'!AM30,VLOOKUP($CZ31,'Audit Values'!$A:$BW,62,FALSE)) -> 1317.6 | V31: =(U31/6)*'Weighting Factors'!$Q$7 -> 86.7 | W31: =IF(ISNA(VLOOKUP($CZ31,'Audit Values'!$A:$BW,2,FALSE)),'Preliminary SO66'!AN30,VLOOKUP($CZ31,'Audit Values'!$A:$BW,61,FALSE)) -> 456 | X31: =W31*'Weighting Factors'!$Q$8 -> 84.4 | Y31: 86.7 | Z31: =IF(ISNA(VLOOKUP($CZ31,'Audit Values'!$A:$BW,2,FALSE)),'Preliminary SO66'!AO30,VLOOKUP($CZ31,'Audit Values'!$A:$BW,60,FALSE)) -> 486.3 | AA31: =Z31/6*'Weighting Factors'!$Q$6 -> 40.5 | AB31: =IF(ISNA(VLOOKUP($CZ31,'Audit Values'!$A:$BU,2,FALSE)),'Preliminary SO66'!AS30,VLOOKUP($CZ31,'Audit Values'!$A:$BU,63,FALSE)) -> 1553 | AC31: 0 | AD31: =IF(ISNA(VLOOKUP($CZ31,'Audit Values'!$A:$BU,2,FALSE)),'Preliminary SO66'!AP30,VLOOKUP($CZ31,'Audit Values'!$A:$BU,64,FALSE)) -> 806 | AE31: =IF(A31=207, AD31,MAX(AC31,AD31))*'Weighting Factors'!$Q$9 -> 390.1 | AF31: 84.6 | AG31: =IF(ISNA(VLOOKUP($CZ31,'Audit Values'!$A:$BW,2,FALSE)),'Preliminary SO66'!AG30,VLOOKUP($CZ31,'Audit Values'!$A$2:$BW$385,70,FALSE)) -> 74.5 | AH31: 84.6 | AI31: =IF(ISNA(VLOOKUP($CZ31,'Audit Values'!$A:$BU,2,FALSE)),'Preliminary SO66'!AQ30,VLOOKUP($CZ31,'Audit Values'!$A:$BU,65,FALSE)) -> 0 | AJ31: =AI31*'Weighting Factors'!$Q$10 -> 0 | AK31: =IF(ISNA(VLOOKUP($CZ31,'Audit Values'!$A:$BU,2,FALSE)),'Preliminary SO66'!AR30,VLOOKUP($CZ31,'Audit Values'!$A:$BU,66,FALSE)) -> 203 | AM31: 251641 | AN31: 263477 | AO31: =MAX(AN31, AM31)/'Weighting Factors'!$Q$5 -> 57.7 | AP31: =CN31/'Weighting Factors'!$Q$5 -> 0 | AQ31: 0 | AR31: =CS31/'Weighting Factors'!$Q$5 -> 0 | AS31: 935112 | AT31: =AS31/'Weighting Factors'!$Q$5 -> 204.7 | AU31: =IF(ISNA(VLOOKUP($CZ31,'Audit Values'!$A:$BU,2,FALSE)),'Preliminary SO66'!X30,VLOOKUP($CZ31,'Audit Values'!$A$2:$BU$385,47,FALSE)) -> 0 | AV31: 2512.6 | AW31: 2307.9 | AX31: =IF(ISNA(VLOOKUP($CZ31,'Audit Values'!$A$2:$BU$385,2,FALSE)),'Preliminary SO66'!AA30,VLOOKUP($CZ31,'Audit Values'!$A$2:$BU$385,41,FALSE)) -> 6 | AY31: =IF(ISNA(VLOOKUP($CZ31,'Audit Values'!$A$2:$BU$385,2,FALSE)),'Preliminary SO66'!AB30,VLOOKUP($CZ31,'Audit Values'!$A$2:$BU$385,42,FALSE)) -> 1.2 | AZ31: 70 | BA31: =SUM(AX31*'Weighting Factors'!$T$10)+('2021 Legal Max'!AY31*'Weighting Factors'!$T$11)+('2021 Legal Max'!AZ31*'Weighting Factors'!$T$12) -> 81670 | BB31: 0 | BC31: =IF(ISNA(VLOOKUP($CZ31,'Audit Values'!$A$2:$BU$385,2,FALSE)),"",IF(AND('Weighting Factors'!H31>0,VLOOKUP($CZ31,'Audit Values'!$A$2:$BU$385,51,FALSE)<'Weighting Factors'!H31),'Weighting Factors'!H31,VLOOKUP($CZ31,'Audit Values'!$A$2:$BU$385,50,FALSE))) -> 20 | BD31: =IF(ISNA(VLOOKUP($CZ31,'Audit Values'!$A$2:$BV$385,2,FALSE)),"",VLOOKUP($CZ31,'Audit Values'!$A$2:$BV$385,51,FALSE)) -> A | BE31: =IF('Weighting Factors'!H31="","",IF('Weighting Factors'!J31="Pending","PX","R")) ->  | BF31: =SUM((S31+T31+Y31+AA31+AE31+AH31+AJ31++AO31+AP31+AQ31+AU31+AR31)*'Weighting Factors'!$Q$5)+'2021 Legal Max'!BA31+'2021 Legal Max'!BB31 -> 10626465 | BG31: =SUM((AV31+AR31)*'Weighting Factors'!$Q$5)+BA31+'2021 Legal Max'!BB31 -> 11561739 | BH31: =IF('Weighting Factors'!H31>0,'Weighting Factors'!H31,'Preliminary SO66'!AV30) -> 11746851 | BI31: 11561739 | BJ31: ='Weighting Factors'!G31 -> 0 | BK31: ='Weighting Factors'!F31 -> 0 | BL31: ='Weighting Factors'!E31 -> -17371 | BM31: -17371 | BN31: 11544368 | BO31: =SUM((S31+T31+Y31+AA31+AE31+AH31+AJ31+AO31+AP31+AQ31+AR31)*'Weighting Factors'!Q$12)+(MAX(AS31,'Weighting Factors'!B31)) -> 11629033 | BP31: 0.3 | BQ31: 3488710 | BR31: 3531240 | BS31: 3488710 | BT31: 0.3 | BU31: 0 | BV31: FALSE | BW31: 0 | BX31: 0 | BY31: 0 | BZ31: TRUE | CA31: 1561.1063 | CB31: 0.055593 | CC31: 86.8 | CD31: 0 | CE31: 517 | CF31: 0.393 | CG31: =IF(CF31<0.06,1,IF(CF31>=18.29,52,MATCH(CF31-0.001,'Weighting Factors'!$Y$5:$Y$156)+1)) -> 23 | CH31: =VLOOKUP(CG31, 'Weighting Factors'!$W$5:$Z$56,4) -> 1130 | CI31: =('Weighting Factors'!$Q$5/'Weighting Factors'!$Q$14) -> 1.097 | CJ31: 229390 | CK31: =CJ31*'Weighting Factors'!$S$7 -> 229390 | CL31: 251641 | CM31: =AM31/'Weighting Factors'!$Q$5 -> 55.1 | CN31: 0 | CO31: 0 | CP31: 0 | CQ31: 0 | CR31: =SUM((AV31*'Weighting Factors'!$Q$5)+'2021 Legal Max'!BA31)*CQ31 -> 0 | CS31: 0 | CT31: 0.519 | CU31: 84.6 | CV31: 0 | CW31: 2512.6 | CX31: ='LOB Transfers'!G30 -> 545285 | CY31: ='LOB Transfers'!J30 -> 121058 | CZ31: D0214
A32: 215 | B32: Kearny | C32: Lakin | D32: 639 | E32: 0 | F32: 639 | G32: 641 | H32: 0 | I32: 641 | J32: 668 | K32: 0 | L32: 668 | M32: =IF(ISNA(VLOOKUP($CZ32,'Audit Values'!$A:$BW,2,FALSE)),'Preliminary SO66'!C31,VLOOKUP($CZ32,'Audit Values'!$A:$BW,73,FALSE)) -> 615 | N32: =IF(ISNA(VLOOKUP($CZ32,'Audit Values'!$A:$BW,2,FALSE)),'Preliminary SO66'!F31,VLOOKUP($CZ32,'Audit Values'!$A$2:$BW$381,4,FALSE)) -> 0 | O32: 615 | P32: =IF('Military Provision'!J33="YES", MAX('2021 Legal Max'!L32,'2021 Legal Max'!I32,AVERAGE('2021 Legal Max'!F32,'2021 Legal Max'!I32,'2021 Legal Max'!L32)), MAX(L32, I32)) -> 668 | Q32: =IF(ISNA(VLOOKUP($CZ32,'Audit Values'!$A:BU,2,FALSE)),'Preliminary SO66'!AL31,VLOOKUP($CZ32,'Audit Values'!$A$2:$BU305,58,FALSE)) -> 4 | R32: 0 | S32: 672 | T32: 240.4 | U32: =IF(ISNA(VLOOKUP($CZ32,'Audit Values'!$A:$BW,2,FALSE)),'Preliminary SO66'!AM31,VLOOKUP($CZ32,'Audit Values'!$A:$BW,62,FALSE)) -> 259.6 | V32: =(U32/6)*'Weighting Factors'!$Q$7 -> 17.1 | W32: =IF(ISNA(VLOOKUP($CZ32,'Audit Values'!$A:$BW,2,FALSE)),'Preliminary SO66'!AN31,VLOOKUP($CZ32,'Audit Values'!$A:$BW,61,FALSE)) -> 97 | X32: =W32*'Weighting Factors'!$Q$8 -> 17.9 | Y32: 17.9 | Z32: =IF(ISNA(VLOOKUP($CZ32,'Audit Values'!$A:$BW,2,FALSE)),'Preliminary SO66'!AO31,VLOOKUP($CZ32,'Audit Values'!$A:$BW,60,FALSE)) -> 164.8 | AA32: =Z32/6*'Weighting Factors'!$Q$6 -> 13.7 | AB32: =IF(ISNA(VLOOKUP($CZ32,'Audit Values'!$A:$BU,2,FALSE)),'Preliminary SO66'!AS31,VLOOKUP($CZ32,'Audit Values'!$A:$BU,63,FALSE)) -> 635 | AC32: 0 | AD32: =IF(ISNA(VLOOKUP($CZ32,'Audit Values'!$A:$BU,2,FALSE)),'Preliminary SO66'!AP31,VLOOKUP($CZ32,'Audit Values'!$A:$BU,64,FALSE)) -> 262 | AE32: =IF(A32=207, AD32,MAX(AC32,AD32))*'Weighting Factors'!$Q$9 -> 126.8 | AF32: 11.5 | AG32: =IF(ISNA(VLOOKUP($CZ32,'Audit Values'!$A:$BW,2,FALSE)),'Preliminary SO66'!AG31,VLOOKUP($CZ32,'Audit Values'!$A$2:$BW$385,70,FALSE)) -> 12 | AH32: 12 | AI32: =IF(ISNA(VLOOKUP($CZ32,'Audit Values'!$A:$BU,2,FALSE)),'Preliminary SO66'!AQ31,VLOOKUP($CZ32,'Audit Values'!$A:$BU,65,FALSE)) -> 0 | AJ32: =AI32*'Weighting Factors'!$Q$10 -> 0 | AK32: =IF(ISNA(VLOOKUP($CZ32,'Audit Values'!$A:$BU,2,FALSE)),'Preliminary SO66'!AR31,VLOOKUP($CZ32,'Audit Values'!$A:$BU,66,FALSE)) -> 68 | AM32: 108164 | AN32: 141754 | AO32: =MAX(AN32, AM32)/'Weighting Factors'!$Q$5 -> 31 | AP32: =CN32/'Weighting Factors'!$Q$5 -> 0 | AQ32: 0 | AR32: =CS32/'Weighting Factors'!$Q$5 -> 0 | AS32: 394032 | AT32: =AS32/'Weighting Factors'!$Q$5 -> 86.2 | AU32: =IF(ISNA(VLOOKUP($CZ32,'Audit Values'!$A:$BU,2,FALSE)),'Preliminary SO66'!X31,VLOOKUP($CZ32,'Audit Values'!$A$2:$BU$385,47,FALSE)) -> 0 | AV32: 1200 | AW32: 1113.8 | AX32: =IF(ISNA(VLOOKUP($CZ32,'Audit Values'!$A$2:$BU$385,2,FALSE)),'Preliminary SO66'!AA31,VLOOKUP($CZ32,'Audit Values'!$A$2:$BU$385,41,FALSE)) -> 0 | AY32: =IF(ISNA(VLOOKUP($CZ32,'Audit Values'!$A$2:$BU$385,2,FALSE)),'Preliminary SO66'!AB31,VLOOKUP($CZ32,'Audit Values'!$A$2:$BU$385,42,FALSE)) -> 0 | AZ32: 0 | BA32: =SUM(AX32*'Weighting Factors'!$T$10)+('2021 Legal Max'!AY32*'Weighting Factors'!$T$11)+('2021 Legal Max'!AZ32*'Weighting Factors'!$T$12) -> 0 | BB32: 0 | BC32: =IF(ISNA(VLOOKUP($CZ32,'Audit Values'!$A$2:$BU$385,2,FALSE)),"",IF(AND('Weighting Factors'!H32>0,VLOOKUP($CZ32,'Audit Values'!$A$2:$BU$385,51,FALSE)<'Weighting Factors'!H32),'Weighting Factors'!H32,VLOOKUP($CZ32,'Audit Values'!$A$2:$BU$385,50,FALSE))) -> 13 | BD32: =IF(ISNA(VLOOKUP($CZ32,'Audit Values'!$A$2:$BV$385,2,FALSE)),"",VLOOKUP($CZ32,'Audit Values'!$A$2:$BV$385,51,FALSE)) -> A | BE32: =IF('Weighting Factors'!H32="","",IF('Weighting Factors'!J32="Pending","PX","R")) ->  | BF32: =SUM((S32+T32+Y32+AA32+AE32+AH32+AJ32++AO32+AP32+AQ32+AU32+AR32)*'Weighting Factors'!$Q$5)+'2021 Legal Max'!BA32+'2021 Legal Max'!BB32 -> 5088952 | BG32: =SUM((AV32+AR32)*'Weighting Factors'!$Q$5)+BA32+'2021 Legal Max'!BB32 -> 5482800 | BH32: =IF('Weighting Factors'!H32>0,'Weighting Factors'!H32,'Preliminary SO66'!AV31) -> 5751000 | BI32: 5482800 | BJ32: ='Weighting Factors'!G32 -> 0 | BK32: ='Weighting Factors'!F32 -> 0 | BL32: ='Weighting Factors'!E32 -> 0 | BM32: 0 | BN32: 5482800 | BO32: =SUM((S32+T32+Y32+AA32+AE32+AH32+AJ32+AO32+AP32+AQ32+AR32)*'Weighting Factors'!Q$12)+(MAX(AS32,'Weighting Factors'!B32)) -> 5528941 | BP32: 0.3 | BQ32: 1658682 | BR32: 1738895 | BS32: 1658682 | BT32: 0.3 | BU32: 0 | BV32: FALSE | BW32: 0 | BX32: 0 | BY32: 0 | BZ32: TRUE | CA32: 460.35 | CB32: 0.3578 | CC32: 240.4 | CD32: 0 | CE32: 646 | CF32: 0.105 | CG32: =IF(CF32<0.06,1,IF(CF32>=18.29,52,MATCH(CF32-0.001,'Weighting Factors'!$Y$5:$Y$156)+1)) -> 6 | CH32: =VLOOKUP(CG32, 'Weighting Factors'!$W$5:$Z$56,4) -> 1450 | CI32: =('Weighting Factors'!$Q$5/'Weighting Factors'!$Q$14) -> 1.097 | CJ32: 98600 | CK32: =CJ32*'Weighting Factors'!$S$7 -> 98600 | CL32: 108164 | CM32: =AM32/'Weighting Factors'!$Q$5 -> 23.7 | CN32: 0 | CO32: 0 | CP32: 0 | CQ32: 0 | CR32: =SUM((AV32*'Weighting Factors'!$Q$5)+'2021 Legal Max'!BA32)*CQ32 -> 0 | CS32: 0 | CT32: 0.4126 | CU32: 0 | CV32: 11.5 | CW32: 1200 | CX32: ='LOB Transfers'!G31 -> 175820 | CY32: ='LOB Transfers'!J31 -> 24880 | CZ32: D0215
A33: 216 | B33: Kearny | C33: Deerfield | D33: 180 | E33: 0 | F33: 180 | G33: 182 | H33: 0 | I33: 182 | J33: 178 | K33: 0 | L33: 178 | M33: =IF(ISNA(VLOOKUP($CZ33,'Audit Values'!$A:$BW,2,FALSE)),'Preliminary SO66'!C32,VLOOKUP($CZ33,'Audit Values'!$A:$BW,73,FALSE)) -> 179.5 | N33: =IF(ISNA(VLOOKUP($CZ33,'Audit Values'!$A:$BW,2,FALSE)),'Preliminary SO66'!F32,VLOOKUP($CZ33,'Audit Values'!$A$2:$BW$381,4,FALSE)) -> 0 | O33: 179.5 | P33: =IF('Military Provision'!J34="YES", MAX('2021 Legal Max'!L33,'2021 Legal Max'!I33,AVERAGE('2021 Legal Max'!F33,'2021 Legal Max'!I33,'2021 Legal Max'!L33)), MAX(L33, I33)) -> 182 | Q33: =IF(ISNA(VLOOKUP($CZ33,'Audit Values'!$A:BU,2,FALSE)),'Preliminary SO66'!AL32,VLOOKUP($CZ33,'Audit Values'!$A$2:$BU306,58,FALSE)) -> 5 | R33: 0 | S33: 187 | T33: 146.6 | U33: =IF(ISNA(VLOOKUP($CZ33,'Audit Values'!$A:$BW,2,FALSE)),'Preliminary SO66'!AM32,VLOOKUP($CZ33,'Audit Values'!$A:$BW,62,FALSE)) -> 442.6 | V33: =(U33/6)*'Weighting Factors'!$Q$7 -> 29.1 | W33: =IF(ISNA(VLOOKUP($CZ33,'Audit Values'!$A:$BW,2,FALSE)),'Preliminary SO66'!AN32,VLOOKUP($CZ33,'Audit Values'!$A:$BW,61,FALSE)) -> 92 | X33: =W33*'Weighting Factors'!$Q$8 -> 17 | Y33: 29.1 | Z33: =IF(ISNA(VLOOKUP($CZ33,'Audit Values'!$A:$BW,2,FALSE)),'Preliminary SO66'!AO32,VLOOKUP($CZ33,'Audit Values'!$A:$BW,60,FALSE)) -> 41.8 | AA33: =Z33/6*'Weighting Factors'!$Q$6 -> 3.5 | AB33: =IF(ISNA(VLOOKUP($CZ33,'Audit Values'!$A:$BU,2,FALSE)),'Preliminary SO66'!AS32,VLOOKUP($CZ33,'Audit Values'!$A:$BU,63,FALSE)) -> 191 | AC33: 0 | AD33: =IF(ISNA(VLOOKUP($CZ33,'Audit Values'!$A:$BU,2,FALSE)),'Preliminary SO66'!AP32,VLOOKUP($CZ33,'Audit Values'!$A:$BU,64,FALSE)) -> 113 | AE33: =IF(A33=207, AD33,MAX(AC33,AD33))*'Weighting Factors'!$Q$9 -> 54.7 | AF33: 11.9 | AG33: =IF(ISNA(VLOOKUP($CZ33,'Audit Values'!$A:$BW,2,FALSE)),'Preliminary SO66'!AG32,VLOOKUP($CZ33,'Audit Values'!$A$2:$BW$385,70,FALSE)) -> 11.8 | AH33: 11.9 | AI33: =IF(ISNA(VLOOKUP($CZ33,'Audit Values'!$A:$BU,2,FALSE)),'Preliminary SO66'!AQ32,VLOOKUP($CZ33,'Audit Values'!$A:$BU,65,FALSE)) -> 0 | AJ33: =AI33*'Weighting Factors'!$Q$10 -> 0 | AK33: =IF(ISNA(VLOOKUP($CZ33,'Audit Values'!$A:$BU,2,FALSE)),'Preliminary SO66'!AR32,VLOOKUP($CZ33,'Audit Values'!$A:$BU,66,FALSE)) -> 10 | AM33: 17771 | AN33: 24268 | AO33: =MAX(AN33, AM33)/'Weighting Factors'!$Q$5 -> 5.3 | AP33: =CN33/'Weighting Factors'!$Q$5 -> 0 | AQ33: 0 | AR33: =CS33/'Weighting Factors'!$Q$5 -> 0 | AS33: 124821 | AT33: =AS33/'Weighting Factors'!$Q$5 -> 27.3 | AU33: =IF(ISNA(VLOOKUP($CZ33,'Audit Values'!$A:$BU,2,FALSE)),'Preliminary SO66'!X32,VLOOKUP($CZ33,'Audit Values'!$A$2:$BU$385,47,FALSE)) -> 0 | AV33: 465.4 | AW33: 438.1 | AX33: =IF(ISNA(VLOOKUP($CZ33,'Audit Values'!$A$2:$BU$385,2,FALSE)),'Preliminary SO66'!AA32,VLOOKUP($CZ33,'Audit Values'!$A$2:$BU$385,41,FALSE)) -> 0 | AY33: =IF(ISNA(VLOOKUP($CZ33,'Audit Values'!$A$2:$BU$385,2,FALSE)),'Preliminary SO66'!AB32,VLOOKUP($CZ33,'Audit Values'!$A$2:$BU$385,42,FALSE)) -> 0 | AZ33: 0 | BA33: =SUM(AX33*'Weighting Factors'!$T$10)+('2021 Legal Max'!AY33*'Weighting Factors'!$T$11)+('2021 Legal Max'!AZ33*'Weighting Factors'!$T$12) -> 0 | BB33: 0 | BC33: =IF(ISNA(VLOOKUP($CZ33,'Audit Values'!$A$2:$BU$385,2,FALSE)),"",IF(AND('Weighting Factors'!H33>0,VLOOKUP($CZ33,'Audit Values'!$A$2:$BU$385,51,FALSE)<'Weighting Factors'!H33),'Weighting Factors'!H33,VLOOKUP($CZ33,'Audit Values'!$A$2:$BU$385,50,FALSE))) -> 9 | BD33: =IF(ISNA(VLOOKUP($CZ33,'Audit Values'!$A$2:$BV$385,2,FALSE)),"",VLOOKUP($CZ33,'Audit Values'!$A$2:$BV$385,51,FALSE)) -> A | BE33: =IF('Weighting Factors'!H33="","",IF('Weighting Factors'!J33="Pending","PX","R")) ->  | BF33: =SUM((S33+T33+Y33+AA33+AE33+AH33+AJ33++AO33+AP33+AQ33+AU33+AR33)*'Weighting Factors'!$Q$5)+'2021 Legal Max'!BA33+'2021 Legal Max'!BB33 -> 2001679 | BG33: =SUM((AV33+AR33)*'Weighting Factors'!$Q$5)+BA33+'2021 Legal Max'!BB33 -> 2126413 | BH33: =IF('Weighting Factors'!H33>0,'Weighting Factors'!H33,'Preliminary SO66'!AV32) -> 2161594 | BI33: 2126413 | BJ33: ='Weighting Factors'!G33 -> 0 | BK33: ='Weighting Factors'!F33 -> 0 | BL33: ='Weighting Factors'!E33 -> 0 | BM33: 0 | BN33: 2126413 | BO33: =SUM((S33+T33+Y33+AA33+AE33+AH33+AJ33+AO33+AP33+AQ33+AR33)*'Weighting Factors'!Q$12)+(MAX(AS33,'Weighting Factors'!B33)) -> 2224654 | BP33: 0.33 | BQ33: 734136 | BR33: 740371 | BS33: 734136 | BT33: 0.33 | BU33: 0 | BV33: TRUE | BW33: 839.985 | BX33: 0.783718 | BY33: 146.6 | BZ33: FALSE | CA33: 0 | CB33: 0 | CC33: 0 | CD33: 0 | CE33: 216 | CF33: 0.046 | CG33: =IF(CF33<0.06,1,IF(CF33>=18.29,52,MATCH(CF33-0.001,'Weighting Factors'!$Y$5:$Y$156)+1)) -> 1 | CH33: =VLOOKUP(CG33, 'Weighting Factors'!$W$5:$Z$56,4) -> 1620 | CI33: =('Weighting Factors'!$Q$5/'Weighting Factors'!$Q$14) -> 1.097 | CJ33: 16200 | CK33: =CJ33*'Weighting Factors'!$S$7 -> 16200 | CL33: 17771 | CM33: =AM33/'Weighting Factors'!$Q$5 -> 3.9 | CN33: 0 | CO33: 0 | CP33: 0 | CQ33: 0 | CR33: =SUM((AV33*'Weighting Factors'!$Q$5)+'2021 Legal Max'!BA33)*CQ33 -> 0 | CS33: 0 | CT33: 0.5916 | CU33: 11.9 | CV33: 0 | CW33: 465.4 | CX33: ='LOB Transfers'!G32 -> 87215 | CY33: ='LOB Transfers'!J32 -> 46397 | CZ33: D0216
A34: 217 | B34: Morton | C34: Rolla | D34: 115 | E34: 0 | F34: 115 | G34: 113 | H34: 0 | I34: 113 | J34: 109 | K34: 0 | L34: 109 | M34: =IF(ISNA(VLOOKUP($CZ34,'Audit Values'!$A:$BW,2,FALSE)),'Preliminary SO66'!C33,VLOOKUP($CZ34,'Audit Values'!$A:$BW,73,FALSE)) -> 108 | N34: =IF(ISNA(VLOOKUP($CZ34,'Audit Values'!$A:$BW,2,FALSE)),'Preliminary SO66'!F33,VLOOKUP($CZ34,'Audit Values'!$A$2:$BW$381,4,FALSE)) -> 0 | O34: 108 | P34: =IF('Military Provision'!J35="YES", MAX('2021 Legal Max'!L34,'2021 Legal Max'!I34,AVERAGE('2021 Legal Max'!F34,'2021 Legal Max'!I34,'2021 Legal Max'!L34)), MAX(L34, I34)) -> 113 | Q34: =IF(ISNA(VLOOKUP($CZ34,'Audit Values'!$A:BU,2,FALSE)),'Preliminary SO66'!AL33,VLOOKUP($CZ34,'Audit Values'!$A$2:$BU307,58,FALSE)) -> 2.4 | R34: 0 | S34: 115.4 | T34: 112.3 | U34: =IF(ISNA(VLOOKUP($CZ34,'Audit Values'!$A:$BW,2,FALSE)),'Preliminary SO66'!AM33,VLOOKUP($CZ34,'Audit Values'!$A:$BW,62,FALSE)) -> 115.5 | V34: =(U34/6)*'Weighting Factors'!$Q$7 -> 7.6 | W34: =IF(ISNA(VLOOKUP($CZ34,'Audit Values'!$A:$BW,2,FALSE)),'Preliminary SO66'!AN33,VLOOKUP($CZ34,'Audit Values'!$A:$BW,61,FALSE)) -> 30 | X34: =W34*'Weighting Factors'!$Q$8 -> 5.6 | Y34: 7.6 | Z34: =IF(ISNA(VLOOKUP($CZ34,'Audit Values'!$A:$BW,2,FALSE)),'Preliminary SO66'!AO33,VLOOKUP($CZ34,'Audit Values'!$A:$BW,60,FALSE)) -> 49.2 | AA34: =Z34/6*'Weighting Factors'!$Q$6 -> 4.1 | AB34: =IF(ISNA(VLOOKUP($CZ34,'Audit Values'!$A:$BU,2,FALSE)),'Preliminary SO66'!AS33,VLOOKUP($CZ34,'Audit Values'!$A:$BU,63,FALSE)) -> 113 | AC34: 0 | AD34: =IF(ISNA(VLOOKUP($CZ34,'Audit Values'!$A:$BU,2,FALSE)),'Preliminary SO66'!AP33,VLOOKUP($CZ34,'Audit Values'!$A:$BU,64,FALSE)) -> 46 | AE34: =IF(A34=207, AD34,MAX(AC34,AD34))*'Weighting Factors'!$Q$9 -> 22.3 | AF34: 1.8 | AG34: =IF(ISNA(VLOOKUP($CZ34,'Audit Values'!$A:$BW,2,FALSE)),'Preliminary SO66'!AG33,VLOOKUP($CZ34,'Audit Values'!$A$2:$BW$385,70,FALSE)) -> 2.7 | AH34: 2.7 | AI34: =IF(ISNA(VLOOKUP($CZ34,'Audit Values'!$A:$BU,2,FALSE)),'Preliminary SO66'!AQ33,VLOOKUP($CZ34,'Audit Values'!$A:$BU,65,FALSE)) -> 0 | AJ34: =AI34*'Weighting Factors'!$Q$10 -> 0 | AK34: =IF(ISNA(VLOOKUP($CZ34,'Audit Values'!$A:$BU,2,FALSE)),'Preliminary SO66'!AR33,VLOOKUP($CZ34,'Audit Values'!$A:$BU,66,FALSE)) -> 17 | AM34: 29465 | AN34: 51617 | AO34: =MAX(AN34, AM34)/'Weighting Factors'!$Q$5 -> 11.3 | AP34: =CN34/'Weighting Factors'!$Q$5 -> 0 | AQ34: 0 | AR34: =CS34/'Weighting Factors'!$Q$5 -> 0 | AS34: 81451 | AT34: =AS34/'Weighting Factors'!$Q$5 -> 17.8 | AU34: =IF(ISNA(VLOOKUP($CZ34,'Audit Values'!$A:$BU,2,FALSE)),'Preliminary SO66'!X33,VLOOKUP($CZ34,'Audit Values'!$A$2:$BU$385,47,FALSE)) -> 0 | AV34: 293.5 | AW34: 275.7 | AX34: =IF(ISNA(VLOOKUP($CZ34,'Audit Values'!$A$2:$BU$385,2,FALSE)),'Preliminary SO66'!AA33,VLOOKUP($CZ34,'Audit Values'!$A$2:$BU$385,41,FALSE)) -> 0 | AY34: =IF(ISNA(VLOOKUP($CZ34,'Audit Values'!$A$2:$BU$385,2,FALSE)),'Preliminary SO66'!AB33,VLOOKUP($CZ34,'Audit Values'!$A$2:$BU$385,42,FALSE)) -> 0 | AZ34: 0 | BA34: =SUM(AX34*'Weighting Factors'!$T$10)+('2021 Legal Max'!AY34*'Weighting Factors'!$T$11)+('2021 Legal Max'!AZ34*'Weighting Factors'!$T$12) -> 0 | BB34: 0 | BC34: =IF(ISNA(VLOOKUP($CZ34,'Audit Values'!$A$2:$BU$385,2,FALSE)),"",IF(AND('Weighting Factors'!H34>0,VLOOKUP($CZ34,'Audit Values'!$A$2:$BU$385,51,FALSE)<'Weighting Factors'!H34),'Weighting Factors'!H34,VLOOKUP($CZ34,'Audit Values'!$A$2:$BU$385,50,FALSE))) -> 3 | BD34: =IF(ISNA(VLOOKUP($CZ34,'Audit Values'!$A$2:$BV$385,2,FALSE)),"",VLOOKUP($CZ34,'Audit Values'!$A$2:$BV$385,51,FALSE)) -> A | BE34: =IF('Weighting Factors'!H34="","",IF('Weighting Factors'!J34="Pending","PX","R")) ->  | BF34: =SUM((S34+T34+Y34+AA34+AE34+AH34+AJ34++AO34+AP34+AQ34+AU34+AR34)*'Weighting Factors'!$Q$5)+'2021 Legal Max'!BA34+'2021 Legal Max'!BB34 -> 1259673 | BG34: =SUM((AV34+AR34)*'Weighting Factors'!$Q$5)+BA34+'2021 Legal Max'!BB34 -> 1341002 | BH34: =IF('Weighting Factors'!H34>0,'Weighting Factors'!H34,'Preliminary SO66'!AV33) -> 1366131 | BI34: 1341002 | BJ34: ='Weighting Factors'!G34 -> 0 | BK34: ='Weighting Factors'!F34 -> 0 | BL34: ='Weighting Factors'!E34 -> 0 | BM34: 0 | BN34: 1341002 | BO34: =SUM((S34+T34+Y34+AA34+AE34+AH34+AJ34+AO34+AP34+AQ34+AR34)*'Weighting Factors'!Q$12)+(MAX(AS34,'Weighting Factors'!B34)) -> 1416766 | BP34: 0.33 | BQ34: 467533 | BR34: 473767 | BS34: 467533 | BT34: 0.33 | BU34: 0 | BV34: TRUE | BW34: 148.687 | BX34: 0.97351 | BY34: 112.3 | BZ34: FALSE | CA34: 0 | CB34: 0 | CC34: 0 | CD34: 0 | CE34: 252 | CF34: 0.067 | CG34: =IF(CF34<0.06,1,IF(CF34>=18.29,52,MATCH(CF34-0.001,'Weighting Factors'!$Y$5:$Y$156)+1)) -> 2 | CH34: =VLOOKUP(CG34, 'Weighting Factors'!$W$5:$Z$56,4) -> 1580 | CI34: =('Weighting Factors'!$Q$5/'Weighting Factors'!$Q$14) -> 1.097 | CJ34: 26860 | CK34: =CJ34*'Weighting Factors'!$S$7 -> 26860 | CL34: 29465 | CM34: =AM34/'Weighting Factors'!$Q$5 -> 6.4 | CN34: 0 | CO34: 0 | CP34: 0 | CQ34: 0 | CR34: =SUM((AV34*'Weighting Factors'!$Q$5)+'2021 Legal Max'!BA34)*CQ34 -> 0 | CS34: 0 | CT34: 0.4071 | CU34: 0 | CV34: 1.8 | CW34: 293.5 | CX34: ='LOB Transfers'!G33 -> 35813 | CY34: ='LOB Transfers'!J33 -> 12203 | CZ34: D0217
A35: 218 | B35: Morton | C35: Elkhart | D35: 420.2 | E35: 0 | F35: 420.2 | G35: 407.2 | H35: 0 | I35: 407.2 | J35: 426.2 | K35: 0 | L35: 426.2 | M35: =IF(ISNA(VLOOKUP($CZ35,'Audit Values'!$A:$BW,2,FALSE)),'Preliminary SO66'!C34,VLOOKUP($CZ35,'Audit Values'!$A:$BW,73,FALSE)) -> 389.5 | N35: =IF(ISNA(VLOOKUP($CZ35,'Audit Values'!$A:$BW,2,FALSE)),'Preliminary SO66'!F34,VLOOKUP($CZ35,'Audit Values'!$A$2:$BW$381,4,FALSE)) -> 0 | O35: 389.5 | P35: =IF('Military Provision'!J36="YES", MAX('2021 Legal Max'!L35,'2021 Legal Max'!I35,AVERAGE('2021 Legal Max'!F35,'2021 Legal Max'!I35,'2021 Legal Max'!L35)), MAX(L35, I35)) -> 426.2 | Q35: =IF(ISNA(VLOOKUP($CZ35,'Audit Values'!$A:BU,2,FALSE)),'Preliminary SO66'!AL34,VLOOKUP($CZ35,'Audit Values'!$A$2:$BU308,58,FALSE)) -> 7.5 | R35: 0 | S35: 433.7 | T35: 190.3 | U35: =IF(ISNA(VLOOKUP($CZ35,'Audit Values'!$A:$BW,2,FALSE)),'Preliminary SO66'!AM34,VLOOKUP($CZ35,'Audit Values'!$A:$BW,62,FALSE)) -> 396.1 | V35: =(U35/6)*'Weighting Factors'!$Q$7 -> 26.1 | W35: =IF(ISNA(VLOOKUP($CZ35,'Audit Values'!$A:$BW,2,FALSE)),'Preliminary SO66'!AN34,VLOOKUP($CZ35,'Audit Values'!$A:$BW,61,FALSE)) -> 78 | X35: =W35*'Weighting Factors'!$Q$8 -> 14.4 | Y35: 26.1 | Z35: =IF(ISNA(VLOOKUP($CZ35,'Audit Values'!$A:$BW,2,FALSE)),'Preliminary SO66'!AO34,VLOOKUP($CZ35,'Audit Values'!$A:$BW,60,FALSE)) -> 103 | AA35: =Z35/6*'Weighting Factors'!$Q$6 -> 8.6 | AB35: =IF(ISNA(VLOOKUP($CZ35,'Audit Values'!$A:$BU,2,FALSE)),'Preliminary SO66'!AS34,VLOOKUP($CZ35,'Audit Values'!$A:$BU,63,FALSE)) -> 414 | AC35: 0 | AD35: =IF(ISNA(VLOOKUP($CZ35,'Audit Values'!$A:$BU,2,FALSE)),'Preliminary SO66'!AP34,VLOOKUP($CZ35,'Audit Values'!$A:$BU,64,FALSE)) -> 150 | AE35: =IF(A35=207, AD35,MAX(AC35,AD35))*'Weighting Factors'!$Q$9 -> 72.6 | AF35: 1.3 | AG35: =IF(ISNA(VLOOKUP($CZ35,'Audit Values'!$A:$BW,2,FALSE)),'Preliminary SO66'!AG34,VLOOKUP($CZ35,'Audit Values'!$A$2:$BW$385,70,FALSE)) -> 4 | AH35: 4 | AI35: =IF(ISNA(VLOOKUP($CZ35,'Audit Values'!$A:$BU,2,FALSE)),'Preliminary SO66'!AQ34,VLOOKUP($CZ35,'Audit Values'!$A:$BU,65,FALSE)) -> 0 | AJ35: =AI35*'Weighting Factors'!$Q$10 -> 0 | AK35: =IF(ISNA(VLOOKUP($CZ35,'Audit Values'!$A:$BU,2,FALSE)),'Preliminary SO66'!AR34,VLOOKUP($CZ35,'Audit Values'!$A:$BU,66,FALSE)) -> 20 | AM35: 35543 | AN35: 68180 | AO35: =MAX(AN35, AM35)/'Weighting Factors'!$Q$5 -> 14.9 | AP35: =CN35/'Weighting Factors'!$Q$5 -> 0 | AQ35: 0 | AR35: =CS35/'Weighting Factors'!$Q$5 -> 0 | AS35: 259030 | AT35: =AS35/'Weighting Factors'!$Q$5 -> 56.7 | AU35: =IF(ISNA(VLOOKUP($CZ35,'Audit Values'!$A:$BU,2,FALSE)),'Preliminary SO66'!X34,VLOOKUP($CZ35,'Audit Values'!$A$2:$BU$385,47,FALSE)) -> 0 | AV35: 806.9 | AW35: 750.2 | AX35: =IF(ISNA(VLOOKUP($CZ35,'Audit Values'!$A$2:$BU$385,2,FALSE)),'Preliminary SO66'!AA34,VLOOKUP($CZ35,'Audit Values'!$A$2:$BU$385,41,FALSE)) -> 1617 | AY35: =IF(ISNA(VLOOKUP($CZ35,'Audit Values'!$A$2:$BU$385,2,FALSE)),'Preliminary SO66'!AB34,VLOOKUP($CZ35,'Audit Values'!$A$2:$BU$385,42,FALSE)) -> 213.4 | AZ35: 0 | BA35: =SUM(AX35*'Weighting Factors'!$T$10)+('2021 Legal Max'!AY35*'Weighting Factors'!$T$11)+('2021 Legal Max'!AZ35*'Weighting Factors'!$T$12) -> 8447780 | BB35: 0 | BC35: =IF(ISNA(VLOOKUP($CZ35,'Audit Values'!$A$2:$BU$385,2,FALSE)),"",IF(AND('Weighting Factors'!H35>0,VLOOKUP($CZ35,'Audit Values'!$A$2:$BU$385,51,FALSE)<'Weighting Factors'!H35),'Weighting Factors'!H35,VLOOKUP($CZ35,'Audit Values'!$A$2:$BU$385,50,FALSE))) -> 27 | BD35: =IF(ISNA(VLOOKUP($CZ35,'Audit Values'!$A$2:$BV$385,2,FALSE)),"",VLOOKUP($CZ35,'Audit Values'!$A$2:$BV$385,51,FALSE)) -> A | BE35: =IF('Weighting Factors'!H35="","",IF('Weighting Factors'!J35="Pending","PX","R")) -> R | BF35: =SUM((S35+T35+Y35+AA35+AE35+AH35+AJ35++AO35+AP35+AQ35+AU35+AR35)*'Weighting Factors'!$Q$5)+'2021 Legal Max'!BA35+'2021 Legal Max'!BB35 -> 11875444 | BG35: =SUM((AV35+AR35)*'Weighting Factors'!$Q$5)+BA35+'2021 Legal Max'!BB35 -> 12134506 | BH35: =IF('Weighting Factors'!H35>0,'Weighting Factors'!H35,'Preliminary SO66'!AV34) -> 12629288 | BI35: 12134506 | BJ35: ='Weighting Factors'!G35 -> 0 | BK35: ='Weighting Factors'!F35 -> 0 | BL35: ='Weighting Factors'!E35 -> 0 | BM35: 0 | BN35: 12134506 | BO35: =SUM((S35+T35+Y35+AA35+AE35+AH35+AJ35+AO35+AP35+AQ35+AR35)*'Weighting Factors'!Q$12)+(MAX(AS35,'Weighting Factors'!B35)) -> 3847711 | BP35: 0.3 | BQ35: 1154313 | BR35: 1217765 | BS35: 1154313 | BT35: 0.3 | BU35: 0 | BV35: FALSE | BW35: 0 | BX35: 0 | BY35: 0 | BZ35: TRUE | CA35: 165.4538 | CB35: 0.438762 | CC35: 190.3 | CD35: 0 | CE35: 376 | CF35: 0.053 | CG35: =IF(CF35<0.06,1,IF(CF35>=18.29,52,MATCH(CF35-0.001,'Weighting Factors'!$Y$5:$Y$156)+1)) -> 1 | CH35: =VLOOKUP(CG35, 'Weighting Factors'!$W$5:$Z$56,4) -> 1620 | CI35: =('Weighting Factors'!$Q$5/'Weighting Factors'!$Q$14) -> 1.097 | CJ35: 32400 | CK35: =CJ35*'Weighting Factors'!$S$7 -> 32400 | CL35: 35543 | CM35: =AM35/'Weighting Factors'!$Q$5 -> 7.8 | CN35: 0 | CO35: 0 | CP35: 0 | CQ35: 0 | CR35: =SUM((AV35*'Weighting Factors'!$Q$5)+'2021 Legal Max'!BA35)*CQ35 -> 0 | CS35: 0 | CT35: 0.3623 | CU35: 0 | CV35: 1.3 | CW35: 806.9 | CX35: ='LOB Transfers'!G34 -> 104812 | CY35: ='LOB Transfers'!J34 -> 37631 | CZ35: D0218
A36: 219 | B36: Clark | C36: Minneola | D36: 236.5 | E36: 0 | F36: 236.5 | G36: 237.5 | H36: 0 | I36: 237.5 | J36: 232.5 | K36: 0 | L36: 232.5 | M36: =IF(ISNA(VLOOKUP($CZ36,'Audit Values'!$A:$BW,2,FALSE)),'Preliminary SO66'!C35,VLOOKUP($CZ36,'Audit Values'!$A:$BW,73,FALSE)) -> 247.7 | N36: =IF(ISNA(VLOOKUP($CZ36,'Audit Values'!$A:$BW,2,FALSE)),'Preliminary SO66'!F35,VLOOKUP($CZ36,'Audit Values'!$A$2:$BW$381,4,FALSE)) -> 0 | O36: 247.7 | P36: =IF('Military Provision'!J37="YES", MAX('2021 Legal Max'!L36,'2021 Legal Max'!I36,AVERAGE('2021 Legal Max'!F36,'2021 Legal Max'!I36,'2021 Legal Max'!L36)), MAX(L36, I36)) -> 237.5 | Q36: =IF(ISNA(VLOOKUP($CZ36,'Audit Values'!$A:BU,2,FALSE)),'Preliminary SO66'!AL35,VLOOKUP($CZ36,'Audit Values'!$A$2:$BU309,58,FALSE)) -> 0.5 | R36: 0 | S36: 238 | T36: 154.4 | U36: =IF(ISNA(VLOOKUP($CZ36,'Audit Values'!$A:$BW,2,FALSE)),'Preliminary SO66'!AM35,VLOOKUP($CZ36,'Audit Values'!$A:$BW,62,FALSE)) -> 0 | V36: =(U36/6)*'Weighting Factors'!$Q$7 -> 0 | W36: =IF(ISNA(VLOOKUP($CZ36,'Audit Values'!$A:$BW,2,FALSE)),'Preliminary SO66'!AN35,VLOOKUP($CZ36,'Audit Values'!$A:$BW,61,FALSE)) -> 0 | X36: =W36*'Weighting Factors'!$Q$8 -> 0 | Y36: 0 | Z36: =IF(ISNA(VLOOKUP($CZ36,'Audit Values'!$A:$BW,2,FALSE)),'Preliminary SO66'!AO35,VLOOKUP($CZ36,'Audit Values'!$A:$BW,60,FALSE)) -> 0 | AA36: =Z36/6*'Weighting Factors'!$Q$6 -> 0 | AB36: =IF(ISNA(VLOOKUP($CZ36,'Audit Values'!$A:$BU,2,FALSE)),'Preliminary SO66'!AS35,VLOOKUP($CZ36,'Audit Values'!$A:$BU,63,FALSE)) -> 251 | AC36: 0 | AD36: =IF(ISNA(VLOOKUP($CZ36,'Audit Values'!$A:$BU,2,FALSE)),'Preliminary SO66'!AP35,VLOOKUP($CZ36,'Audit Values'!$A:$BU,64,FALSE)) -> 106 | AE36: =IF(A36=207, AD36,MAX(AC36,AD36))*'Weighting Factors'!$Q$9 -> 51.3 | AF36: 5.4 | AG36: =IF(ISNA(VLOOKUP($CZ36,'Audit Values'!$A:$BW,2,FALSE)),'Preliminary SO66'!AG35,VLOOKUP($CZ36,'Audit Values'!$A$2:$BW$385,70,FALSE)) -> 6.2 | AH36: 6.2 | AI36: =IF(ISNA(VLOOKUP($CZ36,'Audit Values'!$A:$BU,2,FALSE)),'Preliminary SO66'!AQ35,VLOOKUP($CZ36,'Audit Values'!$A:$BU,65,FALSE)) -> 0 | AJ36: =AI36*'Weighting Factors'!$Q$10 -> 0 | AK36: =IF(ISNA(VLOOKUP($CZ36,'Audit Values'!$A:$BU,2,FALSE)),'Preliminary SO66'!AR35,VLOOKUP($CZ36,'Audit Values'!$A:$BU,66,FALSE)) -> 40 | AM36: 60993 | AN36: 70106 | AO36: =MAX(AN36, AM36)/'Weighting Factors'!$Q$5 -> 15.3 | AP36: =CN36/'Weighting Factors'!$Q$5 -> 0 | AQ36: 0 | AR36: =CS36/'Weighting Factors'!$Q$5 -> 0 | AS36: 214678 | AT36: =AS36/'Weighting Factors'!$Q$5 -> 47 | AU36: =IF(ISNA(VLOOKUP($CZ36,'Audit Values'!$A:$BU,2,FALSE)),'Preliminary SO66'!X35,VLOOKUP($CZ36,'Audit Values'!$A$2:$BU$385,47,FALSE)) -> 1 | AV36: 513.2 | AW36: 466.2 | AX36: =IF(ISNA(VLOOKUP($CZ36,'Audit Values'!$A$2:$BU$385,2,FALSE)),'Preliminary SO66'!AA35,VLOOKUP($CZ36,'Audit Values'!$A$2:$BU$385,41,FALSE)) -> 0 | AY36: =IF(ISNA(VLOOKUP($CZ36,'Audit Values'!$A$2:$BU$385,2,FALSE)),'Preliminary SO66'!AB35,VLOOKUP($CZ36,'Audit Values'!$A$2:$BU$385,42,FALSE)) -> 0 | AZ36: 0 | BA36: =SUM(AX36*'Weighting Factors'!$T$10)+('2021 Legal Max'!AY36*'Weighting Factors'!$T$11)+('2021 Legal Max'!AZ36*'Weighting Factors'!$T$12) -> 0 | BB36: 0 | BC36: =IF(ISNA(VLOOKUP($CZ36,'Audit Values'!$A$2:$BU$385,2,FALSE)),"",IF(AND('Weighting Factors'!H36>0,VLOOKUP($CZ36,'Audit Values'!$A$2:$BU$385,51,FALSE)<'Weighting Factors'!H36),'Weighting Factors'!H36,VLOOKUP($CZ36,'Audit Values'!$A$2:$BU$385,50,FALSE))) -> 3 | BD36: =IF(ISNA(VLOOKUP($CZ36,'Audit Values'!$A$2:$BV$385,2,FALSE)),"",VLOOKUP($CZ36,'Audit Values'!$A$2:$BV$385,51,FALSE)) -> A | BE36: =IF('Weighting Factors'!H36="","",IF('Weighting Factors'!J36="Pending","PX","R")) ->  | BF36: =SUM((S36+T36+Y36+AA36+AE36+AH36+AJ36++AO36+AP36+AQ36+AU36+AR36)*'Weighting Factors'!$Q$5)+'2021 Legal Max'!BA36+'2021 Legal Max'!BB36 -> 2130068 | BG36: =SUM((AV36+AR36)*'Weighting Factors'!$Q$5)+BA36+'2021 Legal Max'!BB36 -> 2344811 | BH36: =IF('Weighting Factors'!H36>0,'Weighting Factors'!H36,'Preliminary SO66'!AV35) -> 2357147 | BI36: 2344811 | BJ36: ='Weighting Factors'!G36 -> 0 | BK36: ='Weighting Factors'!F36 -> 0 | BL36: ='Weighting Factors'!E36 -> 0 | BM36: 0 | BN36: 2344811 | BO36: =SUM((S36+T36+Y36+AA36+AE36+AH36+AJ36+AO36+AP36+AQ36+AR36)*'Weighting Factors'!Q$12)+(MAX(AS36,'Weighting Factors'!B36)) -> 2391465 | BP36: 0.3 | BQ36: 717440 | BR36: 713845 | BS36: 713845 | BT36: 0.2985 | BU36: 0 | BV36: TRUE | BW36: 1332.39 | BX36: 0.648531 | BY36: 154.4 | BZ36: FALSE | CA36: 0 | CB36: 0 | CC36: 0 | CD36: 0 | CE36: 292 | CF36: 0.137 | CG36: =IF(CF36<0.06,1,IF(CF36>=18.29,52,MATCH(CF36-0.001,'Weighting Factors'!$Y$5:$Y$156)+1)) -> 9 | CH36: =VLOOKUP(CG36, 'Weighting Factors'!$W$5:$Z$56,4) -> 1390 | CI36: =('Weighting Factors'!$Q$5/'Weighting Factors'!$Q$14) -> 1.097 | CJ36: 55600 | CK36: =CJ36*'Weighting Factors'!$S$7 -> 55600 | CL36: 60993 | CM36: =AM36/'Weighting Factors'!$Q$5 -> 13.3 | CN36: 0 | CO36: 0 | CP36: 0 | CQ36: 0 | CR36: =SUM((AV36*'Weighting Factors'!$Q$5)+'2021 Legal Max'!BA36)*CQ36 -> 0 | CS36: 0 | CT36: 0.4223 | CU36: 0 | CV36: 5.4 | CW36: 513.2 | CX36: ='LOB Transfers'!G35 -> 71599 | CY36: ='LOB Transfers'!J35 -> 0 | CZ36: D0219
A37: 220 | B37: Clark | C37: Ashland | D37: 208 | E37: 0 | F37: 208 | G37: 207.3 | H37: 0 | I37: 207.3 | J37: 200.7 | K37: 0 | L37: 200.7 | M37: =IF(ISNA(VLOOKUP($CZ37,'Audit Values'!$A:$BW,2,FALSE)),'Preliminary SO66'!C36,VLOOKUP($CZ37,'Audit Values'!$A:$BW,73,FALSE)) -> 186.1 | N37: =IF(ISNA(VLOOKUP($CZ37,'Audit Values'!$A:$BW,2,FALSE)),'Preliminary SO66'!F36,VLOOKUP($CZ37,'Audit Values'!$A$2:$BW$381,4,FALSE)) -> 0 | O37: 186.1 | P37: =IF('Military Provision'!J38="YES", MAX('2021 Legal Max'!L37,'2021 Legal Max'!I37,AVERAGE('2021 Legal Max'!F37,'2021 Legal Max'!I37,'2021 Legal Max'!L37)), MAX(L37, I37)) -> 207.3 | Q37: =IF(ISNA(VLOOKUP($CZ37,'Audit Values'!$A:BU,2,FALSE)),'Preliminary SO66'!AL36,VLOOKUP($CZ37,'Audit Values'!$A$2:$BU310,58,FALSE)) -> 1 | R37: 0 | S37: 208.3 | T37: 151.5 | U37: =IF(ISNA(VLOOKUP($CZ37,'Audit Values'!$A:$BW,2,FALSE)),'Preliminary SO66'!AM36,VLOOKUP($CZ37,'Audit Values'!$A:$BW,62,FALSE)) -> 41.3 | V37: =(U37/6)*'Weighting Factors'!$Q$7 -> 2.7 | W37: =IF(ISNA(VLOOKUP($CZ37,'Audit Values'!$A:$BW,2,FALSE)),'Preliminary SO66'!AN36,VLOOKUP($CZ37,'Audit Values'!$A:$BW,61,FALSE)) -> 18 | X37: =W37*'Weighting Factors'!$Q$8 -> 3.3 | Y37: 3.3 | Z37: =IF(ISNA(VLOOKUP($CZ37,'Audit Values'!$A:$BW,2,FALSE)),'Preliminary SO66'!AO36,VLOOKUP($CZ37,'Audit Values'!$A:$BW,60,FALSE)) -> 51 | AA37: =Z37/6*'Weighting Factors'!$Q$6 -> 4.3 | AB37: =IF(ISNA(VLOOKUP($CZ37,'Audit Values'!$A:$BU,2,FALSE)),'Preliminary SO66'!AS36,VLOOKUP($CZ37,'Audit Values'!$A:$BU,63,FALSE)) -> 189 | AC37: 0 | AD37: =IF(ISNA(VLOOKUP($CZ37,'Audit Values'!$A:$BU,2,FALSE)),'Preliminary SO66'!AP36,VLOOKUP($CZ37,'Audit Values'!$A:$BU,64,FALSE)) -> 76 | AE37: =IF(A37=207, AD37,MAX(AC37,AD37))*'Weighting Factors'!$Q$9 -> 36.8 | AF37: 2.8 | AG37: =IF(ISNA(VLOOKUP($CZ37,'Audit Values'!$A:$BW,2,FALSE)),'Preliminary SO66'!AG36,VLOOKUP($CZ37,'Audit Values'!$A$2:$BW$385,70,FALSE)) -> 4.3 | AH37: 4.3 | AI37: =IF(ISNA(VLOOKUP($CZ37,'Audit Values'!$A:$BU,2,FALSE)),'Preliminary SO66'!AQ36,VLOOKUP($CZ37,'Audit Values'!$A:$BU,65,FALSE)) -> 0 | AJ37: =AI37*'Weighting Factors'!$Q$10 -> 0 | AK37: =IF(ISNA(VLOOKUP($CZ37,'Audit Values'!$A:$BU,2,FALSE)),'Preliminary SO66'!AR36,VLOOKUP($CZ37,'Audit Values'!$A:$BU,66,FALSE)) -> 39.5 | AM37: 68464 | AN37: 91292 | AO37: =MAX(AN37, AM37)/'Weighting Factors'!$Q$5 -> 20 | AP37: =CN37/'Weighting Factors'!$Q$5 -> 0 | AQ37: 0 | AR37: =CS37/'Weighting Factors'!$Q$5 -> 0 | AS37: 180249 | AT37: =AS37/'Weighting Factors'!$Q$5 -> 39.5 | AU37: =IF(ISNA(VLOOKUP($CZ37,'Audit Values'!$A:$BU,2,FALSE)),'Preliminary SO66'!X36,VLOOKUP($CZ37,'Audit Values'!$A$2:$BU$385,47,FALSE)) -> 0 | AV37: 468 | AW37: 428.5 | AX37: =IF(ISNA(VLOOKUP($CZ37,'Audit Values'!$A$2:$BU$385,2,FALSE)),'Preliminary SO66'!AA36,VLOOKUP($CZ37,'Audit Values'!$A$2:$BU$385,41,FALSE)) -> 0 | AY37: =IF(ISNA(VLOOKUP($CZ37,'Audit Values'!$A$2:$BU$385,2,FALSE)),'Preliminary SO66'!AB36,VLOOKUP($CZ37,'Audit Values'!$A$2:$BU$385,42,FALSE)) -> 0 | AZ37: 0 | BA37: =SUM(AX37*'Weighting Factors'!$T$10)+('2021 Legal Max'!AY37*'Weighting Factors'!$T$11)+('2021 Legal Max'!AZ37*'Weighting Factors'!$T$12) -> 0 | BB37: 0 | BC37: 26 | BD37: =IF(ISNA(VLOOKUP($CZ37,'Audit Values'!$A$2:$BV$385,2,FALSE)),"",VLOOKUP($CZ37,'Audit Values'!$A$2:$BV$385,51,FALSE)) -> A | BE37: =IF('Weighting Factors'!H37="","",IF('Weighting Factors'!J37="Pending","PX","R")) -> R | BF37: =SUM((S37+T37+Y37+AA37+AE37+AH37+AJ37++AO37+AP37+AQ37+AU37+AR37)*'Weighting Factors'!$Q$5)+'2021 Legal Max'!BA37+'2021 Legal Max'!BB37 -> 1957817 | BG37: =SUM((AV37+AR37)*'Weighting Factors'!$Q$5)+BA37+'2021 Legal Max'!BB37 -> 2138292 | BH37: =IF('Weighting Factors'!H37>0,'Weighting Factors'!H37,'Preliminary SO66'!AV36) -> 2138292 | BI37: 2138292 | BJ37: ='Weighting Factors'!G37 -> 0 | BK37: ='Weighting Factors'!F37 -> 0 | BL37: ='Weighting Factors'!E37 -> 0 | BM37: 0 | BN37: 2138292 | BO37: =SUM((S37+T37+Y37+AA37+AE37+AH37+AJ37+AO37+AP37+AQ37+AR37)*'Weighting Factors'!Q$12)+(MAX(AS37,'Weighting Factors'!B37)) -> 2173209 | BP37: 0.3 | BQ37: 651963 | BR37: 654175 | BS37: 651963 | BT37: 0.3 | BU37: 0 | BV37: TRUE | BW37: 1045.637 | BX37: 0.727258 | BY37: 151.5 | BZ37: FALSE | CA37: 0 | CB37: 0 | CC37: 0 | CD37: 0 | CE37: 660 | CF37: 0.06 | CG37: =IF(CF37<0.06,1,IF(CF37>=18.29,52,MATCH(CF37-0.001,'Weighting Factors'!$Y$5:$Y$156)+1)) -> 2 | CH37: =VLOOKUP(CG37, 'Weighting Factors'!$W$5:$Z$56,4) -> 1580 | CI37: =('Weighting Factors'!$Q$5/'Weighting Factors'!$Q$14) -> 1.097 | CJ37: 62410 | CK37: =CJ37*'Weighting Factors'!$S$7 -> 62410 | CL37: 68464 | CM37: =AM37/'Weighting Factors'!$Q$5 -> 15 | CN37: 0 | CO37: 0 | CP37: 0 | CQ37: 0 | CR37: =SUM((AV37*'Weighting Factors'!$Q$5)+'2021 Legal Max'!BA37)*CQ37 -> 0 | CS37: 0 | CT37: 0.4021 | CU37: 0 | CV37: 2.8 | CW37: 468 | CX37: ='LOB Transfers'!G36 -> 51375 | CY37: ='LOB Transfers'!J36 -> 4629 | CZ37: D0220
A38: 223 | B38: Washington | C38: Barnes | D38: 368.8 | E38: 0 | F38: 368.8 | G38: 365 | H38: 0 | I38: 365 | J38: 352.6 | K38: 0 | L38: 352.6 | M38: =IF(ISNA(VLOOKUP($CZ38,'Audit Values'!$A:$BW,2,FALSE)),'Preliminary SO66'!C37,VLOOKUP($CZ38,'Audit Values'!$A:$BW,73,FALSE)) -> 361.1 | N38: =IF(ISNA(VLOOKUP($CZ38,'Audit Values'!$A:$BW,2,FALSE)),'Preliminary SO66'!F37,VLOOKUP($CZ38,'Audit Values'!$A$2:$BW$381,4,FALSE)) -> 0 | O38: 361.1 | P38: =IF('Military Provision'!J39="YES", MAX('2021 Legal Max'!L38,'2021 Legal Max'!I38,AVERAGE('2021 Legal Max'!F38,'2021 Legal Max'!I38,'2021 Legal Max'!L38)), MAX(L38, I38)) -> 365 | Q38: =IF(ISNA(VLOOKUP($CZ38,'Audit Values'!$A:BU,2,FALSE)),'Preliminary SO66'!AL37,VLOOKUP($CZ38,'Audit Values'!$A$2:$BU311,58,FALSE)) -> 0 | R38: 0 | S38: 365 | T38: 168.7 | U38: =IF(ISNA(VLOOKUP($CZ38,'Audit Values'!$A:$BW,2,FALSE)),'Preliminary SO66'!AM37,VLOOKUP($CZ38,'Audit Values'!$A:$BW,62,FALSE)) -> 81 | V38: =(U38/6)*'Weighting Factors'!$Q$7 -> 5.3 | W38: =IF(ISNA(VLOOKUP($CZ38,'Audit Values'!$A:$BW,2,FALSE)),'Preliminary SO66'!AN37,VLOOKUP($CZ38,'Audit Values'!$A:$BW,61,FALSE)) -> 32 | X38: =W38*'Weighting Factors'!$Q$8 -> 5.9 | Y38: 5.9 | Z38: =IF(ISNA(VLOOKUP($CZ38,'Audit Values'!$A:$BW,2,FALSE)),'Preliminary SO66'!AO37,VLOOKUP($CZ38,'Audit Values'!$A:$BW,60,FALSE)) -> 116.4 | AA38: =Z38/6*'Weighting Factors'!$Q$6 -> 9.7 | AB38: =IF(ISNA(VLOOKUP($CZ38,'Audit Values'!$A:$BU,2,FALSE)),'Preliminary SO66'!AS37,VLOOKUP($CZ38,'Audit Values'!$A:$BU,63,FALSE)) -> 440 | AC38: 0 | AD38: =IF(ISNA(VLOOKUP($CZ38,'Audit Values'!$A:$BU,2,FALSE)),'Preliminary SO66'!AP37,VLOOKUP($CZ38,'Audit Values'!$A:$BU,64,FALSE)) -> 91 | AE38: =IF(A38=207, AD38,MAX(AC38,AD38))*'Weighting Factors'!$Q$9 -> 44 | AF38: 0 | AG38: =IF(ISNA(VLOOKUP($CZ38,'Audit Values'!$A:$BW,2,FALSE)),'Preliminary SO66'!AG37,VLOOKUP($CZ38,'Audit Values'!$A$2:$BW$385,70,FALSE)) -> 0 | AH38: 0 | AI38: =IF(ISNA(VLOOKUP($CZ38,'Audit Values'!$A:$BU,2,FALSE)),'Preliminary SO66'!AQ37,VLOOKUP($CZ38,'Audit Values'!$A:$BU,65,FALSE)) -> 0 | AJ38: =AI38*'Weighting Factors'!$Q$10 -> 0 | AK38: =IF(ISNA(VLOOKUP($CZ38,'Audit Values'!$A:$BU,2,FALSE)),'Preliminary SO66'!AR37,VLOOKUP($CZ38,'Audit Values'!$A:$BU,66,FALSE)) -> 126.9 | AM38: 162875 | AN38: 178348 | AO38: =MAX(AN38, AM38)/'Weighting Factors'!$Q$5 -> 39 | AP38: =CN38/'Weighting Factors'!$Q$5 -> 0 | AQ38: 0 | AR38: =CS38/'Weighting Factors'!$Q$5 -> 0 | AS38: 492692 | AT38: =AS38/'Weighting Factors'!$Q$5 -> 107.8 | AU38: =IF(ISNA(VLOOKUP($CZ38,'Audit Values'!$A:$BU,2,FALSE)),'Preliminary SO66'!X37,VLOOKUP($CZ38,'Audit Values'!$A$2:$BU$385,47,FALSE)) -> 0 | AV38: 740.1 | AW38: 632.3 | AX38: =IF(ISNA(VLOOKUP($CZ38,'Audit Values'!$A$2:$BU$385,2,FALSE)),'Preliminary SO66'!AA37,VLOOKUP($CZ38,'Audit Values'!$A$2:$BU$385,41,FALSE)) -> 0 | AY38: =IF(ISNA(VLOOKUP($CZ38,'Audit Values'!$A$2:$BU$385,2,FALSE)),'Preliminary SO66'!AB37,VLOOKUP($CZ38,'Audit Values'!$A$2:$BU$385,42,FALSE)) -> 0 | AZ38: 0 | BA38: =SUM(AX38*'Weighting Factors'!$T$10)+('2021 Legal Max'!AY38*'Weighting Factors'!$T$11)+('2021 Legal Max'!AZ38*'Weighting Factors'!$T$12) -> 0 | BB38: 0 | BC38: =IF(ISNA(VLOOKUP($CZ38,'Audit Values'!$A$2:$BU$385,2,FALSE)),"",IF(AND('Weighting Factors'!H38>0,VLOOKUP($CZ38,'Audit Values'!$A$2:$BU$385,51,FALSE)<'Weighting Factors'!H38),'Weighting Factors'!H38,VLOOKUP($CZ38,'Audit Values'!$A$2:$BU$385,50,FALSE))) -> 12 | BD38: =IF(ISNA(VLOOKUP($CZ38,'Audit Values'!$A$2:$BV$385,2,FALSE)),"",VLOOKUP($CZ38,'Audit Values'!$A$2:$BV$385,51,FALSE)) -> A | BE38: =IF('Weighting Factors'!H38="","",IF('Weighting Factors'!J38="Pending","PX","R")) ->  | BF38: =SUM((S38+T38+Y38+AA38+AE38+AH38+AJ38++AO38+AP38+AQ38+AU38+AR38)*'Weighting Factors'!$Q$5)+'2021 Legal Max'!BA38+'2021 Legal Max'!BB38 -> 2888979 | BG38: =SUM((AV38+AR38)*'Weighting Factors'!$Q$5)+BA38+'2021 Legal Max'!BB38 -> 3381517 | BH38: =IF('Weighting Factors'!H38>0,'Weighting Factors'!H38,'Preliminary SO66'!AV37) -> 3437259 | BI38: 3381517 | BJ38: ='Weighting Factors'!G38 -> 0 | BK38: ='Weighting Factors'!F38 -> 0 | BL38: ='Weighting Factors'!E38 -> 0 | BM38: 0 | BN38: 3381517 | BO38: =SUM((S38+T38+Y38+AA38+AE38+AH38+AJ38+AO38+AP38+AQ38+AR38)*'Weighting Factors'!Q$12)+(MAX(AS38,'Weighting Factors'!B38)) -> 3406330 | BP38: 0.3 | BQ38: 1021899 | BR38: 1038664 | BS38: 1021899 | BT38: 0.3 | BU38: 0 | BV38: FALSE | BW38: 0 | BX38: 0 | BY38: 0 | BZ38: TRUE | CA38: 80.4375 | CB38: 0.462103 | CC38: 168.7 | CD38: 0 | CE38: 378 | CF38: 0.336 | CG38: =IF(CF38<0.06,1,IF(CF38>=18.29,52,MATCH(CF38-0.001,'Weighting Factors'!$Y$5:$Y$156)+1)) -> 21 | CH38: =VLOOKUP(CG38, 'Weighting Factors'!$W$5:$Z$56,4) -> 1170 | CI38: =('Weighting Factors'!$Q$5/'Weighting Factors'!$Q$14) -> 1.097 | CJ38: 148473 | CK38: =CJ38*'Weighting Factors'!$S$7 -> 148473 | CL38: 162875 | CM38: =AM38/'Weighting Factors'!$Q$5 -> 35.6 | CN38: 0 | CO38: 0 | CP38: 0 | CQ38: 0 | CR38: =SUM((AV38*'Weighting Factors'!$Q$5)+'2021 Legal Max'!BA38)*CQ38 -> 0 | CS38: 0 | CT38: 0.2068 | CU38: 0 | CV38: 0 | CW38: 740.1 | CX38: ='LOB Transfers'!G37 -> 60803 | CY38: ='LOB Transfers'!J37 -> 8175 | CZ38: D0223
A39: 224 | B39: Washington | C39: Clifton-Clyde | D39: 300 | E39: 0 | F39: 300 | G39: 311.5 | H39: 0 | I39: 311.5 | J39: 314 | K39: 0 | L39: 314 | M39: =IF(ISNA(VLOOKUP($CZ39,'Audit Values'!$A:$BW,2,FALSE)),'Preliminary SO66'!C38,VLOOKUP($CZ39,'Audit Values'!$A:$BW,73,FALSE)) -> 289.8 | N39: =IF(ISNA(VLOOKUP($CZ39,'Audit Values'!$A:$BW,2,FALSE)),'Preliminary SO66'!F38,VLOOKUP($CZ39,'Audit Values'!$A$2:$BW$381,4,FALSE)) -> 0 | O39: 289.8 | P39: =IF('Military Provision'!J40="YES", MAX('2021 Legal Max'!L39,'2021 Legal Max'!I39,AVERAGE('2021 Legal Max'!F39,'2021 Legal Max'!I39,'2021 Legal Max'!L39)), MAX(L39, I39)) -> 314 | Q39: =IF(ISNA(VLOOKUP($CZ39,'Audit Values'!$A:BU,2,FALSE)),'Preliminary SO66'!AL38,VLOOKUP($CZ39,'Audit Values'!$A$2:$BU312,58,FALSE)) -> 2 | R39: 0 | S39: 316 | T39: 151.3 | U39: =IF(ISNA(VLOOKUP($CZ39,'Audit Values'!$A:$BW,2,FALSE)),'Preliminary SO66'!AM38,VLOOKUP($CZ39,'Audit Values'!$A:$BW,62,FALSE)) -> 0 | V39: =(U39/6)*'Weighting Factors'!$Q$7 -> 0 | W39: =IF(ISNA(VLOOKUP($CZ39,'Audit Values'!$A:$BW,2,FALSE)),'Preliminary SO66'!AN38,VLOOKUP($CZ39,'Audit Values'!$A:$BW,61,FALSE)) -> 0 | X39: =W39*'Weighting Factors'!$Q$8 -> 0 | Y39: 0 | Z39: =IF(ISNA(VLOOKUP($CZ39,'Audit Values'!$A:$BW,2,FALSE)),'Preliminary SO66'!AO38,VLOOKUP($CZ39,'Audit Values'!$A:$BW,60,FALSE)) -> 154.5 | AA39: =Z39/6*'Weighting Factors'!$Q$6 -> 12.9 | AB39: =IF(ISNA(VLOOKUP($CZ39,'Audit Values'!$A:$BU,2,FALSE)),'Preliminary SO66'!AS38,VLOOKUP($CZ39,'Audit Values'!$A:$BU,63,FALSE)) -> 298 | AC39: 0 | AD39: =IF(ISNA(VLOOKUP($CZ39,'Audit Values'!$A:$BU,2,FALSE)),'Preliminary SO66'!AP38,VLOOKUP($CZ39,'Audit Values'!$A:$BU,64,FALSE)) -> 66 | AE39: =IF(A39=207, AD39,MAX(AC39,AD39))*'Weighting Factors'!$Q$9 -> 31.9 | AF39: 0 | AG39: =IF(ISNA(VLOOKUP($CZ39,'Audit Values'!$A:$BW,2,FALSE)),'Preliminary SO66'!AG38,VLOOKUP($CZ39,'Audit Values'!$A$2:$BW$385,70,FALSE)) -> 0 | AH39: 0 | AI39: =IF(ISNA(VLOOKUP($CZ39,'Audit Values'!$A:$BU,2,FALSE)),'Preliminary SO66'!AQ38,VLOOKUP($CZ39,'Audit Values'!$A:$BU,65,FALSE)) -> 0 | AJ39: =AI39*'Weighting Factors'!$Q$10 -> 0 | AK39: =IF(ISNA(VLOOKUP($CZ39,'Audit Values'!$A:$BU,2,FALSE)),'Preliminary SO66'!AR38,VLOOKUP($CZ39,'Audit Values'!$A:$BU,66,FALSE)) -> 155 | AM39: 178537 | AN39: 211475 | AO39: =MAX(AN39, AM39)/'Weighting Factors'!$Q$5 -> 46.3 | AP39: =CN39/'Weighting Factors'!$Q$5 -> 0 | AQ39: 0 | AR39: =CS39/'Weighting Factors'!$Q$5 -> 0 | AS39: 303403 | AT39: =AS39/'Weighting Factors'!$Q$5 -> 66.4 | AU39: =IF(ISNA(VLOOKUP($CZ39,'Audit Values'!$A:$BU,2,FALSE)),'Preliminary SO66'!X38,VLOOKUP($CZ39,'Audit Values'!$A$2:$BU$385,47,FALSE)) -> 0 | AV39: 624.8 | AW39: 558.4 | AX39: =IF(ISNA(VLOOKUP($CZ39,'Audit Values'!$A$2:$BU$385,2,FALSE)),'Preliminary SO66'!AA38,VLOOKUP($CZ39,'Audit Values'!$A$2:$BU$385,41,FALSE)) -> 0 | AY39: =IF(ISNA(VLOOKUP($CZ39,'Audit Values'!$A$2:$BU$385,2,FALSE)),'Preliminary SO66'!AB38,VLOOKUP($CZ39,'Audit Values'!$A$2:$BU$385,42,FALSE)) -> 0 | AZ39: 0 | BA39: =SUM(AX39*'Weighting Factors'!$T$10)+('2021 Legal Max'!AY39*'Weighting Factors'!$T$11)+('2021 Legal Max'!AZ39*'Weighting Factors'!$T$12) -> 0 | BB39: 0 | BC39: =IF(ISNA(VLOOKUP($CZ39,'Audit Values'!$A$2:$BU$385,2,FALSE)),"",IF(AND('Weighting Factors'!H39>0,VLOOKUP($CZ39,'Audit Values'!$A$2:$BU$385,51,FALSE)<'Weighting Factors'!H39),'Weighting Factors'!H39,VLOOKUP($CZ39,'Audit Values'!$A$2:$BU$385,50,FALSE))) -> 1 | BD39: =IF(ISNA(VLOOKUP($CZ39,'Audit Values'!$A$2:$BV$385,2,FALSE)),"",VLOOKUP($CZ39,'Audit Values'!$A$2:$BV$385,51,FALSE)) -> A | BE39: =IF('Weighting Factors'!H39="","",IF('Weighting Factors'!J39="Pending","PX","R")) ->  | BF39: =SUM((S39+T39+Y39+AA39+AE39+AH39+AJ39++AO39+AP39+AQ39+AU39+AR39)*'Weighting Factors'!$Q$5)+'2021 Legal Max'!BA39+'2021 Legal Max'!BB39 -> 2551330 | BG39: =SUM((AV39+AR39)*'Weighting Factors'!$Q$5)+BA39+'2021 Legal Max'!BB39 -> 2854711 | BH39: =IF('Weighting Factors'!H39>0,'Weighting Factors'!H39,'Preliminary SO66'!AV38) -> 2939238 | BI39: 2854711 | BJ39: ='Weighting Factors'!G39 -> 0 | BK39: ='Weighting Factors'!F39 -> 0 | BL39: ='Weighting Factors'!E39 -> 0 | BM39: 0 | BN39: 2854711 | BO39: =SUM((S39+T39+Y39+AA39+AE39+AH39+AJ39+AO39+AP39+AQ39+AR39)*'Weighting Factors'!Q$12)+(MAX(AS39,'Weighting Factors'!B39)) -> 2920965 | BP39: 0.3 | BQ39: 876290 | BR39: 900205 | BS39: 876290 | BT39: 0.3 | BU39: 0 | BV39: FALSE | BW39: 0 | BX39: 0 | BY39: 0 | BZ39: TRUE | CA39: 19.8 | CB39: 0.47875 | CC39: 151.3 | CD39: 0 | CE39: 255 | CF39: 0.608 | CG39: =IF(CF39<0.06,1,IF(CF39>=18.29,52,MATCH(CF39-0.001,'Weighting Factors'!$Y$5:$Y$156)+1)) -> 27 | CH39: =VLOOKUP(CG39, 'Weighting Factors'!$W$5:$Z$56,4) -> 1050 | CI39: =('Weighting Factors'!$Q$5/'Weighting Factors'!$Q$14) -> 1.097 | CJ39: 162750 | CK39: =CJ39*'Weighting Factors'!$S$7 -> 162750 | CL39: 178537 | CM39: =AM39/'Weighting Factors'!$Q$5 -> 39.1 | CN39: 0 | CO39: 0 | CP39: 0 | CQ39: 0 | CR39: =SUM((AV39*'Weighting Factors'!$Q$5)+'2021 Legal Max'!BA39)*CQ39 -> 0 | CS39: 0 | CT39: 0.2215 | CU39: 0 | CV39: 0 | CW39: 624.8 | CX39: ='LOB Transfers'!G38 -> 44866 | CY39: ='LOB Transfers'!J38 -> 0 | CZ39: D0224
A40: 225 | B40: Meade | C40: Fowler | D40: 132 | E40: 0 | F40: 132 | G40: 132.5 | H40: 0 | I40: 132.5 | J40: 120 | K40: 0 | L40: 120 | M40: =IF(ISNA(VLOOKUP($CZ40,'Audit Values'!$A:$BW,2,FALSE)),'Preliminary SO66'!C39,VLOOKUP($CZ40,'Audit Values'!$A:$BW,73,FALSE)) -> 117 | N40: =IF(ISNA(VLOOKUP($CZ40,'Audit Values'!$A:$BW,2,FALSE)),'Preliminary SO66'!F39,VLOOKUP($CZ40,'Audit Values'!$A$2:$BW$381,4,FALSE)) -> 0 | O40: 117 | P40: =IF('Military Provision'!J41="YES", MAX('2021 Legal Max'!L40,'2021 Legal Max'!I40,AVERAGE('2021 Legal Max'!F40,'2021 Legal Max'!I40,'2021 Legal Max'!L40)), MAX(L40, I40)) -> 132.5 | Q40: =IF(ISNA(VLOOKUP($CZ40,'Audit Values'!$A:BU,2,FALSE)),'Preliminary SO66'!AL39,VLOOKUP($CZ40,'Audit Values'!$A$2:$BU313,58,FALSE)) -> 2 | R40: 0 | S40: 134.5 | T40: 124.1 | U40: =IF(ISNA(VLOOKUP($CZ40,'Audit Values'!$A:$BW,2,FALSE)),'Preliminary SO66'!AM39,VLOOKUP($CZ40,'Audit Values'!$A:$BW,62,FALSE)) -> 4.5 | V40: =(U40/6)*'Weighting Factors'!$Q$7 -> 0.3 | W40: =IF(ISNA(VLOOKUP($CZ40,'Audit Values'!$A:$BW,2,FALSE)),'Preliminary SO66'!AN39,VLOOKUP($CZ40,'Audit Values'!$A:$BW,61,FALSE)) -> 11 | X40: =W40*'Weighting Factors'!$Q$8 -> 2 | Y40: 2 | Z40: =IF(ISNA(VLOOKUP($CZ40,'Audit Values'!$A:$BW,2,FALSE)),'Preliminary SO66'!AO39,VLOOKUP($CZ40,'Audit Values'!$A:$BW,60,FALSE)) -> 6.9 | AA40: =Z40/6*'Weighting Factors'!$Q$6 -> 0.6 | AB40: =IF(ISNA(VLOOKUP($CZ40,'Audit Values'!$A:$BU,2,FALSE)),'Preliminary SO66'!AS39,VLOOKUP($CZ40,'Audit Values'!$A:$BU,63,FALSE)) -> 121 | AC40: 0 | AD40: =IF(ISNA(VLOOKUP($CZ40,'Audit Values'!$A:$BU,2,FALSE)),'Preliminary SO66'!AP39,VLOOKUP($CZ40,'Audit Values'!$A:$BU,64,FALSE)) -> 36 | AE40: =IF(A40=207, AD40,MAX(AC40,AD40))*'Weighting Factors'!$Q$9 -> 17.4 | AF40: 0 | AG40: =IF(ISNA(VLOOKUP($CZ40,'Audit Values'!$A:$BW,2,FALSE)),'Preliminary SO66'!AG39,VLOOKUP($CZ40,'Audit Values'!$A$2:$BW$385,70,FALSE)) -> 0.3 | AH40: 0.3 | AI40: =IF(ISNA(VLOOKUP($CZ40,'Audit Values'!$A:$BU,2,FALSE)),'Preliminary SO66'!AQ39,VLOOKUP($CZ40,'Audit Values'!$A:$BU,65,FALSE)) -> 0 | AJ40: =AI40*'Weighting Factors'!$Q$10 -> 0 | AK40: =IF(ISNA(VLOOKUP($CZ40,'Audit Values'!$A:$BU,2,FALSE)),'Preliminary SO66'!AR39,VLOOKUP($CZ40,'Audit Values'!$A:$BU,66,FALSE)) -> 15 | AM40: 26657 | AN40: 40831 | AO40: =MAX(AN40, AM40)/'Weighting Factors'!$Q$5 -> 8.9 | AP40: =CN40/'Weighting Factors'!$Q$5 -> 0 | AQ40: 0 | AR40: =CS40/'Weighting Factors'!$Q$5 -> 0 | AS40: 102732 | AT40: =AS40/'Weighting Factors'!$Q$5 -> 22.5 | AU40: =IF(ISNA(VLOOKUP($CZ40,'Audit Values'!$A:$BU,2,FALSE)),'Preliminary SO66'!X39,VLOOKUP($CZ40,'Audit Values'!$A$2:$BU$385,47,FALSE)) -> 0 | AV40: 310.3 | AW40: 287.8 | AX40: =IF(ISNA(VLOOKUP($CZ40,'Audit Values'!$A$2:$BU$385,2,FALSE)),'Preliminary SO66'!AA39,VLOOKUP($CZ40,'Audit Values'!$A$2:$BU$385,41,FALSE)) -> 0 | AY40: =IF(ISNA(VLOOKUP($CZ40,'Audit Values'!$A$2:$BU$385,2,FALSE)),'Preliminary SO66'!AB39,VLOOKUP($CZ40,'Audit Values'!$A$2:$BU$385,42,FALSE)) -> 0 | AZ40: 0 | BA40: =SUM(AX40*'Weighting Factors'!$T$10)+('2021 Legal Max'!AY40*'Weighting Factors'!$T$11)+('2021 Legal Max'!AZ40*'Weighting Factors'!$T$12) -> 0 | BB40: 0 | BC40: =IF(ISNA(VLOOKUP($CZ40,'Audit Values'!$A$2:$BU$385,2,FALSE)),"",IF(AND('Weighting Factors'!H40>0,VLOOKUP($CZ40,'Audit Values'!$A$2:$BU$385,51,FALSE)<'Weighting Factors'!H40),'Weighting Factors'!H40,VLOOKUP($CZ40,'Audit Values'!$A$2:$BU$385,50,FALSE))) -> 13 | BD40: =IF(ISNA(VLOOKUP($CZ40,'Audit Values'!$A$2:$BV$385,2,FALSE)),"",VLOOKUP($CZ40,'Audit Values'!$A$2:$BV$385,51,FALSE)) -> A | BE40: =IF('Weighting Factors'!H40="","",IF('Weighting Factors'!J40="Pending","PX","R")) ->  | BF40: =SUM((S40+T40+Y40+AA40+AE40+AH40+AJ40++AO40+AP40+AQ40+AU40+AR40)*'Weighting Factors'!$Q$5)+'2021 Legal Max'!BA40+'2021 Legal Max'!BB40 -> 1314958 | BG40: =SUM((AV40+AR40)*'Weighting Factors'!$Q$5)+BA40+'2021 Legal Max'!BB40 -> 1417761 | BH40: =IF('Weighting Factors'!H40>0,'Weighting Factors'!H40,'Preliminary SO66'!AV39) -> 1601891 | BI40: 1417761 | BJ40: ='Weighting Factors'!G40 -> 0 | BK40: ='Weighting Factors'!F40 -> 0 | BL40: ='Weighting Factors'!E40 -> 0 | BM40: 0 | BN40: 1417761 | BO40: =SUM((S40+T40+Y40+AA40+AE40+AH40+AJ40+AO40+AP40+AQ40+AR40)*'Weighting Factors'!Q$12)+(MAX(AS40,'Weighting Factors'!B40)) -> 1478969 | BP40: 0.33 | BQ40: 488060 | BR40: 548581 | BS40: 488060 | BT40: 0.33 | BU40: 0 | BV40: TRUE | BW40: 333.098 | BX40: 0.922881 | BY40: 124.1 | BZ40: FALSE | CA40: 0 | CB40: 0 | CC40: 0 | CD40: 0 | CE40: 281 | CF40: 0.053 | CG40: =IF(CF40<0.06,1,IF(CF40>=18.29,52,MATCH(CF40-0.001,'Weighting Factors'!$Y$5:$Y$156)+1)) -> 1 | CH40: =VLOOKUP(CG40, 'Weighting Factors'!$W$5:$Z$56,4) -> 1620 | CI40: =('Weighting Factors'!$Q$5/'Weighting Factors'!$Q$14) -> 1.097 | CJ40: 24300 | CK40: =CJ40*'Weighting Factors'!$S$7 -> 24300 | CL40: 26657 | CM40: =AM40/'Weighting Factors'!$Q$5 -> 5.8 | CN40: 0 | CO40: 0 | CP40: 0 | CQ40: 0 | CR40: =SUM((AV40*'Weighting Factors'!$Q$5)+'2021 Legal Max'!BA40)*CQ40 -> 0 | CS40: 0 | CT40: 0.2975 | CU40: 0 | CV40: 0 | CW40: 310.3 | CX40: ='LOB Transfers'!G39 -> 27527 | CY40: ='LOB Transfers'!J39 -> 3172 | CZ40: D0225
A41: 226 | B41: Meade | C41: Meade | D41: 412.1 | E41: 0 | F41: 412.1 | G41: 379 | H41: 0 | I41: 379 | J41: 370.9 | K41: 0 | L41: 370.9 | M41: =IF(ISNA(VLOOKUP($CZ41,'Audit Values'!$A:$BW,2,FALSE)),'Preliminary SO66'!C40,VLOOKUP($CZ41,'Audit Values'!$A:$BW,73,FALSE)) -> 332 | N41: =IF(ISNA(VLOOKUP($CZ41,'Audit Values'!$A:$BW,2,FALSE)),'Preliminary SO66'!F40,VLOOKUP($CZ41,'Audit Values'!$A$2:$BW$381,4,FALSE)) -> 0 | O41: 332 | P41: =IF('Military Provision'!J42="YES", MAX('2021 Legal Max'!L41,'2021 Legal Max'!I41,AVERAGE('2021 Legal Max'!F41,'2021 Legal Max'!I41,'2021 Legal Max'!L41)), MAX(L41, I41)) -> 379 | Q41: =IF(ISNA(VLOOKUP($CZ41,'Audit Values'!$A:BU,2,FALSE)),'Preliminary SO66'!AL40,VLOOKUP($CZ41,'Audit Values'!$A$2:$BU314,58,FALSE)) -> 3 | R41: 0 | S41: 382 | T41: 174.3 | U41: =IF(ISNA(VLOOKUP($CZ41,'Audit Values'!$A:$BW,2,FALSE)),'Preliminary SO66'!AM40,VLOOKUP($CZ41,'Audit Values'!$A:$BW,62,FALSE)) -> 54.1 | V41: =(U41/6)*'Weighting Factors'!$Q$7 -> 3.6 | W41: =IF(ISNA(VLOOKUP($CZ41,'Audit Values'!$A:$BW,2,FALSE)),'Preliminary SO66'!AN40,VLOOKUP($CZ41,'Audit Values'!$A:$BW,61,FALSE)) -> 14 | X41: =W41*'Weighting Factors'!$Q$8 -> 2.6 | Y41: 3.6 | Z41: =IF(ISNA(VLOOKUP($CZ41,'Audit Values'!$A:$BW,2,FALSE)),'Preliminary SO66'!AO40,VLOOKUP($CZ41,'Audit Values'!$A:$BW,60,FALSE)) -> 39.1 | AA41: =Z41/6*'Weighting Factors'!$Q$6 -> 3.3 | AB41: =IF(ISNA(VLOOKUP($CZ41,'Audit Values'!$A:$BU,2,FALSE)),'Preliminary SO66'!AS40,VLOOKUP($CZ41,'Audit Values'!$A:$BU,63,FALSE)) -> 341 | AC41: 0 | AD41: =IF(ISNA(VLOOKUP($CZ41,'Audit Values'!$A:$BU,2,FALSE)),'Preliminary SO66'!AP40,VLOOKUP($CZ41,'Audit Values'!$A:$BU,64,FALSE)) -> 99 | AE41: =IF(A41=207, AD41,MAX(AC41,AD41))*'Weighting Factors'!$Q$9 -> 47.9 | AF41: 0 | AG41: =IF(ISNA(VLOOKUP($CZ41,'Audit Values'!$A:$BW,2,FALSE)),'Preliminary SO66'!AG40,VLOOKUP($CZ41,'Audit Values'!$A$2:$BW$385,70,FALSE)) -> 0 | AH41: 0 | AI41: =IF(ISNA(VLOOKUP($CZ41,'Audit Values'!$A:$BU,2,FALSE)),'Preliminary SO66'!AQ40,VLOOKUP($CZ41,'Audit Values'!$A:$BU,65,FALSE)) -> 0 | AJ41: =AI41*'Weighting Factors'!$Q$10 -> 0 | AK41: =IF(ISNA(VLOOKUP($CZ41,'Audit Values'!$A:$BU,2,FALSE)),'Preliminary SO66'!AR40,VLOOKUP($CZ41,'Audit Values'!$A:$BU,66,FALSE)) -> 35 | AM41: 57593 | AN41: 103619 | AO41: =MAX(AN41, AM41)/'Weighting Factors'!$Q$5 -> 22.7 | AP41: =CN41/'Weighting Factors'!$Q$5 -> 0 | AQ41: 0 | AR41: =CS41/'Weighting Factors'!$Q$5 -> 0 | AS41: 312856 | AT41: =AS41/'Weighting Factors'!$Q$5 -> 68.5 | AU41: =IF(ISNA(VLOOKUP($CZ41,'Audit Values'!$A:$BU,2,FALSE)),'Preliminary SO66'!X40,VLOOKUP($CZ41,'Audit Values'!$A$2:$BU$385,47,FALSE)) -> 0 | AV41: 702.3 | AW41: 633.8 | AX41: =IF(ISNA(VLOOKUP($CZ41,'Audit Values'!$A$2:$BU$385,2,FALSE)),'Preliminary SO66'!AA40,VLOOKUP($CZ41,'Audit Values'!$A$2:$BU$385,41,FALSE)) -> 0 | AY41: =IF(ISNA(VLOOKUP($CZ41,'Audit Values'!$A$2:$BU$385,2,FALSE)),'Preliminary SO66'!AB40,VLOOKUP($CZ41,'Audit Values'!$A$2:$BU$385,42,FALSE)) -> 0 | AZ41: 0 | BA41: =SUM(AX41*'Weighting Factors'!$T$10)+('2021 Legal Max'!AY41*'Weighting Factors'!$T$11)+('2021 Legal Max'!AZ41*'Weighting Factors'!$T$12) -> 0 | BB41: 0 | BC41: =IF(ISNA(VLOOKUP($CZ41,'Audit Values'!$A$2:$BU$385,2,FALSE)),"",IF(AND('Weighting Factors'!H41>0,VLOOKUP($CZ41,'Audit Values'!$A$2:$BU$385,51,FALSE)<'Weighting Factors'!H41),'Weighting Factors'!H41,VLOOKUP($CZ41,'Audit Values'!$A$2:$BU$385,50,FALSE))) -> 12 | BD41: =IF(ISNA(VLOOKUP($CZ41,'Audit Values'!$A$2:$BV$385,2,FALSE)),"",VLOOKUP($CZ41,'Audit Values'!$A$2:$BV$385,51,FALSE)) -> A | BE41: =IF('Weighting Factors'!H41="","",IF('Weighting Factors'!J41="Pending","PX","R")) ->  | BF41: =SUM((S41+T41+Y41+AA41+AE41+AH41+AJ41++AO41+AP41+AQ41+AU41+AR41)*'Weighting Factors'!$Q$5)+'2021 Legal Max'!BA41+'2021 Legal Max'!BB41 -> 2895832 | BG41: =SUM((AV41+AR41)*'Weighting Factors'!$Q$5)+BA41+'2021 Legal Max'!BB41 -> 3208809 | BH41: =IF('Weighting Factors'!H41>0,'Weighting Factors'!H41,'Preliminary SO66'!AV40) -> 3331715 | BI41: 3208809 | BJ41: ='Weighting Factors'!G41 -> 0 | BK41: ='Weighting Factors'!F41 -> -27356 | BL41: ='Weighting Factors'!E41 -> 0 | BM41: -27356 | BN41: 3181453 | BO41: =SUM((S41+T41+Y41+AA41+AE41+AH41+AJ41+AO41+AP41+AQ41+AR41)*'Weighting Factors'!Q$12)+(MAX(AS41,'Weighting Factors'!B41)) -> 3314144 | BP41: 0.33 | BQ41: 1093668 | BR41: 1141264 | BS41: 1093668 | BT41: 0.33 | BU41: 0 | BV41: FALSE | BW41: 0 | BX41: 0 | BY41: 0 | BZ41: TRUE | CA41: 101.475 | CB41: 0.456327 | CC41: 174.3 | CD41: 0 | CE41: 440 | CF41: 0.08 | CG41: =IF(CF41<0.06,1,IF(CF41>=18.29,52,MATCH(CF41-0.001,'Weighting Factors'!$Y$5:$Y$156)+1)) -> 4 | CH41: =VLOOKUP(CG41, 'Weighting Factors'!$W$5:$Z$56,4) -> 1500 | CI41: =('Weighting Factors'!$Q$5/'Weighting Factors'!$Q$14) -> 1.097 | CJ41: 52500 | CK41: =CJ41*'Weighting Factors'!$S$7 -> 52500 | CL41: 57593 | CM41: =AM41/'Weighting Factors'!$Q$5 -> 12.6 | CN41: 0 | CO41: 0 | CP41: 0 | CQ41: 0 | CR41: =SUM((AV41*'Weighting Factors'!$Q$5)+'2021 Legal Max'!BA41)*CQ41 -> 0 | CS41: 0 | CT41: 0.2903 | CU41: 0 | CV41: 0 | CW41: 702.3 | CX41: ='LOB Transfers'!G40 -> 74916 | CY41: ='LOB Transfers'!J40 -> 5578 | CZ41: D0226
A42: 227 | B42: Hodgeman | C42: Hodgeman County Schools | D42: 296.5 | E42: 0 | F42: 296.5 | G42: 280.5 | H42: 0 | I42: 280.5 | J42: 282 | K42: 0 | L42: 282 | M42: =IF(ISNA(VLOOKUP($CZ42,'Audit Values'!$A:$BW,2,FALSE)),'Preliminary SO66'!C41,VLOOKUP($CZ42,'Audit Values'!$A:$BW,73,FALSE)) -> 293.5 | N42: =IF(ISNA(VLOOKUP($CZ42,'Audit Values'!$A:$BW,2,FALSE)),'Preliminary SO66'!F41,VLOOKUP($CZ42,'Audit Values'!$A$2:$BW$381,4,FALSE)) -> 0 | O42: 293.5 | P42: =IF('Military Provision'!J43="YES", MAX('2021 Legal Max'!L42,'2021 Legal Max'!I42,AVERAGE('2021 Legal Max'!F42,'2021 Legal Max'!I42,'2021 Legal Max'!L42)), MAX(L42, I42)) -> 282 | Q42: =IF(ISNA(VLOOKUP($CZ42,'Audit Values'!$A:BU,2,FALSE)),'Preliminary SO66'!AL41,VLOOKUP($CZ42,'Audit Values'!$A$2:$BU315,58,FALSE)) -> 0 | R42: 0 | S42: 282 | T42: 150 | U42: =IF(ISNA(VLOOKUP($CZ42,'Audit Values'!$A:$BW,2,FALSE)),'Preliminary SO66'!AM41,VLOOKUP($CZ42,'Audit Values'!$A:$BW,62,FALSE)) -> 8.5 | V42: =(U42/6)*'Weighting Factors'!$Q$7 -> 0.6 | W42: =IF(ISNA(VLOOKUP($CZ42,'Audit Values'!$A:$BW,2,FALSE)),'Preliminary SO66'!AN41,VLOOKUP($CZ42,'Audit Values'!$A:$BW,61,FALSE)) -> 8 | X42: =W42*'Weighting Factors'!$Q$8 -> 1.5 | Y42: 1.5 | Z42: =IF(ISNA(VLOOKUP($CZ42,'Audit Values'!$A:$BW,2,FALSE)),'Preliminary SO66'!AO41,VLOOKUP($CZ42,'Audit Values'!$A:$BW,60,FALSE)) -> 38.9 | AA42: =Z42/6*'Weighting Factors'!$Q$6 -> 3.2 | AB42: =IF(ISNA(VLOOKUP($CZ42,'Audit Values'!$A:$BU,2,FALSE)),'Preliminary SO66'!AS41,VLOOKUP($CZ42,'Audit Values'!$A:$BU,63,FALSE)) -> 301 | AC42: 0 | AD42: =IF(ISNA(VLOOKUP($CZ42,'Audit Values'!$A:$BU,2,FALSE)),'Preliminary SO66'!AP41,VLOOKUP($CZ42,'Audit Values'!$A:$BU,64,FALSE)) -> 69 | AE42: =IF(A42=207, AD42,MAX(AC42,AD42))*'Weighting Factors'!$Q$9 -> 33.4 | AF42: 0 | AG42: =IF(ISNA(VLOOKUP($CZ42,'Audit Values'!$A:$BW,2,FALSE)),'Preliminary SO66'!AG41,VLOOKUP($CZ42,'Audit Values'!$A$2:$BW$385,70,FALSE)) -> 0 | AH42: 0 | AI42: =IF(ISNA(VLOOKUP($CZ42,'Audit Values'!$A:$BU,2,FALSE)),'Preliminary SO66'!AQ41,VLOOKUP($CZ42,'Audit Values'!$A:$BU,65,FALSE)) -> 0 | AJ42: =AI42*'Weighting Factors'!$Q$10 -> 0 | AK42: =IF(ISNA(VLOOKUP($CZ42,'Audit Values'!$A:$BU,2,FALSE)),'Preliminary SO66'!AR41,VLOOKUP($CZ42,'Audit Values'!$A:$BU,66,FALSE)) -> 128 | AM42: 189562 | AN42: 203771 | AO42: =MAX(AN42, AM42)/'Weighting Factors'!$Q$5 -> 44.6 | AP42: =CN42/'Weighting Factors'!$Q$5 -> 0 | AQ42: 0 | AR42: =CS42/'Weighting Factors'!$Q$5 -> 0 | AS42: 237075 | AT42: =AS42/'Weighting Factors'!$Q$5 -> 51.9 | AU42: =IF(ISNA(VLOOKUP($CZ42,'Audit Values'!$A:$BU,2,FALSE)),'Preliminary SO66'!X41,VLOOKUP($CZ42,'Audit Values'!$A$2:$BU$385,47,FALSE)) -> 0 | AV42: 566.6 | AW42: 514.7 | AX42: =IF(ISNA(VLOOKUP($CZ42,'Audit Values'!$A$2:$BU$385,2,FALSE)),'Preliminary SO66'!AA41,VLOOKUP($CZ42,'Audit Values'!$A$2:$BU$385,41,FALSE)) -> 0 | AY42: =IF(ISNA(VLOOKUP($CZ42,'Audit Values'!$A$2:$BU$385,2,FALSE)),'Preliminary SO66'!AB41,VLOOKUP($CZ42,'Audit Values'!$A$2:$BU$385,42,FALSE)) -> 0 | AZ42: 0 | BA42: =SUM(AX42*'Weighting Factors'!$T$10)+('2021 Legal Max'!AY42*'Weighting Factors'!$T$11)+('2021 Legal Max'!AZ42*'Weighting Factors'!$T$12) -> 0 | BB42: 0 | BC42: =IF(ISNA(VLOOKUP($CZ42,'Audit Values'!$A$2:$BU$385,2,FALSE)),"",IF(AND('Weighting Factors'!H42>0,VLOOKUP($CZ42,'Audit Values'!$A$2:$BU$385,51,FALSE)<'Weighting Factors'!H42),'Weighting Factors'!H42,VLOOKUP($CZ42,'Audit Values'!$A$2:$BU$385,50,FALSE))) -> 16 | BD42: =IF(ISNA(VLOOKUP($CZ42,'Audit Values'!$A$2:$BV$385,2,FALSE)),"",VLOOKUP($CZ42,'Audit Values'!$A$2:$BV$385,51,FALSE)) -> A | BE42: =IF('Weighting Factors'!H42="","",IF('Weighting Factors'!J42="Pending","PX","R")) ->  | BF42: =SUM((S42+T42+Y42+AA42+AE42+AH42+AJ42++AO42+AP42+AQ42+AU42+AR42)*'Weighting Factors'!$Q$5)+'2021 Legal Max'!BA42+'2021 Legal Max'!BB42 -> 2351664 | BG42: =SUM((AV42+AR42)*'Weighting Factors'!$Q$5)+BA42+'2021 Legal Max'!BB42 -> 2588795 | BH42: =IF('Weighting Factors'!H42>0,'Weighting Factors'!H42,'Preliminary SO66'!AV41) -> 2616209 | BI42: 2588795 | BJ42: ='Weighting Factors'!G42 -> 0 | BK42: ='Weighting Factors'!F42 -> -13265 | BL42: ='Weighting Factors'!E42 -> 0 | BM42: -13265 | BN42: 2575530 | BO42: =SUM((S42+T42+Y42+AA42+AE42+AH42+AJ42+AO42+AP42+AQ42+AR42)*'Weighting Factors'!Q$12)+(MAX(AS42,'Weighting Factors'!B42)) -> 2692390 | BP42: 0.3 | BQ42: 807717 | BR42: 824720 | BS42: 807717 | BT42: 0.3 | BU42: 0 | BV42: TRUE | BW42: 1757.21 | BX42: 0.531899 | BY42: 150 | BZ42: FALSE | CA42: 0 | CB42: 0 | CC42: 0 | CD42: 0 | CE42: 807.5 | CF42: 0.159 | CG42: =IF(CF42<0.06,1,IF(CF42>=18.29,52,MATCH(CF42-0.001,'Weighting Factors'!$Y$5:$Y$156)+1)) -> 11 | CH42: =VLOOKUP(CG42, 'Weighting Factors'!$W$5:$Z$56,4) -> 1350 | CI42: =('Weighting Factors'!$Q$5/'Weighting Factors'!$Q$14) -> 1.097 | CJ42: 172800 | CK42: =CJ42*'Weighting Factors'!$S$7 -> 172800 | CL42: 189562 | CM42: =AM42/'Weighting Factors'!$Q$5 -> 41.5 | CN42: 0 | CO42: 0 | CP42: 0 | CQ42: 0 | CR42: =SUM((AV42*'Weighting Factors'!$Q$5)+'2021 Legal Max'!BA42)*CQ42 -> 0 | CS42: 0 | CT42: 0.2292 | CU42: 0 | CV42: 0 | CW42: 566.6 | CX42: ='LOB Transfers'!G41 -> 47575 | CY42: ='LOB Transfers'!J41 -> 2100 | CZ42: D0227
A43: 229 | B43: Johnson | C43: Blue Valley | D43: 22315.9 | E43: 0 | F43: 22315.9 | G43: 22329.2 | H43: 0 | I43: 22329.2 | J43: 22347.4 | K43: 0 | L43: 22347.4 | M43: =IF(ISNA(VLOOKUP($CZ43,'Audit Values'!$A:$BW,2,FALSE)),'Preliminary SO66'!C42,VLOOKUP($CZ43,'Audit Values'!$A:$BW,73,FALSE)) -> 21753.2 | N43: =IF(ISNA(VLOOKUP($CZ43,'Audit Values'!$A:$BW,2,FALSE)),'Preliminary SO66'!F42,VLOOKUP($CZ43,'Audit Values'!$A$2:$BW$381,4,FALSE)) -> 0 | O43: 21753.2 | P43: =IF('Military Provision'!J44="YES", MAX('2021 Legal Max'!L43,'2021 Legal Max'!I43,AVERAGE('2021 Legal Max'!F43,'2021 Legal Max'!I43,'2021 Legal Max'!L43)), MAX(L43, I43)) -> 22347.4 | Q43: =IF(ISNA(VLOOKUP($CZ43,'Audit Values'!$A:BU,2,FALSE)),'Preliminary SO66'!AL42,VLOOKUP($CZ43,'Audit Values'!$A$2:$BU316,58,FALSE)) -> 0 | R43: 0 | S43: 22347.4 | T43: 783.1 | U43: =IF(ISNA(VLOOKUP($CZ43,'Audit Values'!$A:$BW,2,FALSE)),'Preliminary SO66'!AM42,VLOOKUP($CZ43,'Audit Values'!$A:$BW,62,FALSE)) -> 515.4 | V43: =(U43/6)*'Weighting Factors'!$Q$7 -> 33.9 | W43: =IF(ISNA(VLOOKUP($CZ43,'Audit Values'!$A:$BW,2,FALSE)),'Preliminary SO66'!AN42,VLOOKUP($CZ43,'Audit Values'!$A:$BW,61,FALSE)) -> 644 | X43: =W43*'Weighting Factors'!$Q$8 -> 119.1 | Y43: 119.1 | Z43: =IF(ISNA(VLOOKUP($CZ43,'Audit Values'!$A:$BW,2,FALSE)),'Preliminary SO66'!AO42,VLOOKUP($CZ43,'Audit Values'!$A:$BW,60,FALSE)) -> 4661.9 | AA43: =Z43/6*'Weighting Factors'!$Q$6 -> 388.5 | AB43: =IF(ISNA(VLOOKUP($CZ43,'Audit Values'!$A:$BU,2,FALSE)),'Preliminary SO66'!AS42,VLOOKUP($CZ43,'Audit Values'!$A:$BU,63,FALSE)) -> 21998 | AC43: 0 | AD43: =IF(ISNA(VLOOKUP($CZ43,'Audit Values'!$A:$BU,2,FALSE)),'Preliminary SO66'!AP42,VLOOKUP($CZ43,'Audit Values'!$A:$BU,64,FALSE)) -> 1026 | AE43: =IF(A43=207, AD43,MAX(AC43,AD43))*'Weighting Factors'!$Q$9 -> 496.6 | AF43: 0 | AG43: =IF(ISNA(VLOOKUP($CZ43,'Audit Values'!$A:$BW,2,FALSE)),'Preliminary SO66'!AG42,VLOOKUP($CZ43,'Audit Values'!$A$2:$BW$385,70,FALSE)) -> 0 | AH43: 0 | AI43: =IF(ISNA(VLOOKUP($CZ43,'Audit Values'!$A:$BU,2,FALSE)),'Preliminary SO66'!AQ42,VLOOKUP($CZ43,'Audit Values'!$A:$BU,65,FALSE)) -> 79.9 | AJ43: =AI43*'Weighting Factors'!$Q$10 -> 20 | AK43: =IF(ISNA(VLOOKUP($CZ43,'Audit Values'!$A:$BU,2,FALSE)),'Preliminary SO66'!AR42,VLOOKUP($CZ43,'Audit Values'!$A:$BU,66,FALSE)) -> 4997 | AM43: 3014940 | AN43: 2553876 | AO43: =MAX(AN43, AM43)/'Weighting Factors'!$Q$5 -> 659.9 | AP43: =CN43/'Weighting Factors'!$Q$5 -> 671.2 | AQ43: 0 | AR43: =CS43/'Weighting Factors'!$Q$5 -> 1537.6 | AS43: 24005838 | AT43: =AS43/'Weighting Factors'!$Q$5 -> 5254.1 | AU43: =IF(ISNA(VLOOKUP($CZ43,'Audit Values'!$A:$BU,2,FALSE)),'Preliminary SO66'!X42,VLOOKUP($CZ43,'Audit Values'!$A$2:$BU$385,47,FALSE)) -> 0 | AV43: 30739.9 | AW43: 27023.4 | AX43: =IF(ISNA(VLOOKUP($CZ43,'Audit Values'!$A$2:$BU$385,2,FALSE)),'Preliminary SO66'!AA42,VLOOKUP($CZ43,'Audit Values'!$A$2:$BU$385,41,FALSE)) -> 0 | AY43: =IF(ISNA(VLOOKUP($CZ43,'Audit Values'!$A$2:$BU$385,2,FALSE)),'Preliminary SO66'!AB42,VLOOKUP($CZ43,'Audit Values'!$A$2:$BU$385,42,FALSE)) -> 31 | AZ43: 0 | BA43: =SUM(AX43*'Weighting Factors'!$T$10)+('2021 Legal Max'!AY43*'Weighting Factors'!$T$11)+('2021 Legal Max'!AZ43*'Weighting Factors'!$T$12) -> 52700 | BB43: 0 | BC43: =IF(ISNA(VLOOKUP($CZ43,'Audit Values'!$A$2:$BU$385,2,FALSE)),"",IF(AND('Weighting Factors'!H43>0,VLOOKUP($CZ43,'Audit Values'!$A$2:$BU$385,51,FALSE)<'Weighting Factors'!H43),'Weighting Factors'!H43,VLOOKUP($CZ43,'Audit Values'!$A$2:$BU$385,50,FALSE))) -> 11 | BD43: =IF(ISNA(VLOOKUP($CZ43,'Audit Values'!$A$2:$BV$385,2,FALSE)),"",VLOOKUP($CZ43,'Audit Values'!$A$2:$BV$385,51,FALSE)) -> A | BE43: =IF('Weighting Factors'!H43="","",IF('Weighting Factors'!J43="Pending","PX","R")) ->  | BF43: =SUM((S43+T43+Y43+AA43+AE43+AH43+AJ43++AO43+AP43+AQ43+AU43+AR43)*'Weighting Factors'!$Q$5)+'2021 Legal Max'!BA43+'2021 Legal Max'!BB43 -> 123522615 | BG43: =SUM((AV43+AR43)*'Weighting Factors'!$Q$5)+BA43+'2021 Legal Max'!BB43 -> 147528598 | BH43: =IF('Weighting Factors'!H43>0,'Weighting Factors'!H43,'Preliminary SO66'!AV42) -> 149218518 | BI43: 147528598 | BJ43: ='Weighting Factors'!G43 -> 0 | BK43: ='Weighting Factors'!F43 -> -442080 | BL43: ='Weighting Factors'!E43 -> 0 | BM43: -442080 | BN43: 147086518 | BO43: =SUM((S43+T43+Y43+AA43+AE43+AH43+AJ43+AO43+AP43+AQ43+AR43)*'Weighting Factors'!Q$12)+(MAX(AS43,'Weighting Factors'!B43)) -> 148529665 | BP43: 0.33 | BQ43: 49014789 | BR43: 49553620 | BS43: 49014789 | BT43: 0.33 | BU43: 0 | BV43: FALSE | BW43: 0 | BX43: 0 | BY43: 0 | BZ43: FALSE | CA43: 0 | CB43: 0 | CC43: 0 | CD43: 783.1 | CE43: 91 | CF43: 54.912 | CG43: =IF(CF43<0.06,1,IF(CF43>=18.29,52,MATCH(CF43-0.001,'Weighting Factors'!$Y$5:$Y$156)+1)) -> 52 | CH43: =VLOOKUP(CG43, 'Weighting Factors'!$W$5:$Z$56,4) -> 550 | CI43: =('Weighting Factors'!$Q$5/'Weighting Factors'!$Q$14) -> 1.097 | CJ43: 2748350 | CK43: =CJ43*'Weighting Factors'!$S$7 -> 2748350 | CL43: 3014940 | CM43: =AM43/'Weighting Factors'!$Q$5 -> 659.9 | CN43: 3066919 | CO43: 0 | CP43: 7105641 | CQ43: 0.05 | CR43: =SUM((AV43*'Weighting Factors'!$Q$5)+'2021 Legal Max'!BA43)*CQ43 -> 7025165 | CS43: 7025165 | CT43: 0.0466 | CU43: 0 | CV43: 0 | CW43: 32277.5 | CX43: ='LOB Transfers'!G42 -> 754828 | CY43: ='LOB Transfers'!J42 -> 181355 | CZ43: D0229
A44: 230 | B44: Johnson | C44: Spring Hill | D44: 2882.9 | E44: 0 | F44: 2882.9 | G44: 3073.4 | H44: 0 | I44: 3073.4 | J44: 3236 | K44: 0 | L44: 3236 | M44: =IF(ISNA(VLOOKUP($CZ44,'Audit Values'!$A:$BW,2,FALSE)),'Preliminary SO66'!C43,VLOOKUP($CZ44,'Audit Values'!$A:$BW,73,FALSE)) -> 3307.5 | N44: =IF(ISNA(VLOOKUP($CZ44,'Audit Values'!$A:$BW,2,FALSE)),'Preliminary SO66'!F43,VLOOKUP($CZ44,'Audit Values'!$A$2:$BW$381,4,FALSE)) -> 0 | O44: 3307.5 | P44: =IF('Military Provision'!J45="YES", MAX('2021 Legal Max'!L44,'2021 Legal Max'!I44,AVERAGE('2021 Legal Max'!F44,'2021 Legal Max'!I44,'2021 Legal Max'!L44)), MAX(L44, I44)) -> 3236 | Q44: =IF(ISNA(VLOOKUP($CZ44,'Audit Values'!$A:BU,2,FALSE)),'Preliminary SO66'!AL43,VLOOKUP($CZ44,'Audit Values'!$A$2:$BU317,58,FALSE)) -> 7 | R44: 0 | S44: 3243 | T44: 113.6 | U44: =IF(ISNA(VLOOKUP($CZ44,'Audit Values'!$A:$BW,2,FALSE)),'Preliminary SO66'!AM43,VLOOKUP($CZ44,'Audit Values'!$A:$BW,62,FALSE)) -> 38.5 | V44: =(U44/6)*'Weighting Factors'!$Q$7 -> 2.5 | W44: =IF(ISNA(VLOOKUP($CZ44,'Audit Values'!$A:$BW,2,FALSE)),'Preliminary SO66'!AN43,VLOOKUP($CZ44,'Audit Values'!$A:$BW,61,FALSE)) -> 35 | X44: =W44*'Weighting Factors'!$Q$8 -> 6.5 | Y44: 6.5 | Z44: =IF(ISNA(VLOOKUP($CZ44,'Audit Values'!$A:$BW,2,FALSE)),'Preliminary SO66'!AO43,VLOOKUP($CZ44,'Audit Values'!$A:$BW,60,FALSE)) -> 492 | AA44: =Z44/6*'Weighting Factors'!$Q$6 -> 41 | AB44: =IF(ISNA(VLOOKUP($CZ44,'Audit Values'!$A:$BU,2,FALSE)),'Preliminary SO66'!AS43,VLOOKUP($CZ44,'Audit Values'!$A:$BU,63,FALSE)) -> 3340 | AC44: 0 | AD44: =IF(ISNA(VLOOKUP($CZ44,'Audit Values'!$A:$BU,2,FALSE)),'Preliminary SO66'!AP43,VLOOKUP($CZ44,'Audit Values'!$A:$BU,64,FALSE)) -> 370 | AE44: =IF(A44=207, AD44,MAX(AC44,AD44))*'Weighting Factors'!$Q$9 -> 179.1 | AF44: =MAX(CU44,CV44) -> 0 | AG44: =IF(ISNA(VLOOKUP($CZ44,'Audit Values'!$A:$BW,2,FALSE)),'Preliminary SO66'!AG43,VLOOKUP($CZ44,'Audit Values'!$A$2:$BW$385,70,FALSE)) -> 0 | AH44: 0 | AI44: =IF(ISNA(VLOOKUP($CZ44,'Audit Values'!$A:$BU,2,FALSE)),'Preliminary SO66'!AQ43,VLOOKUP($CZ44,'Audit Values'!$A:$BU,65,FALSE)) -> 0 | AJ44: =AI44*'Weighting Factors'!$Q$10 -> 0 | AK44: =IF(ISNA(VLOOKUP($CZ44,'Audit Values'!$A:$BU,2,FALSE)),'Preliminary SO66'!AR43,VLOOKUP($CZ44,'Audit Values'!$A:$BU,66,FALSE)) -> 1282 | AM44: 801622 | AN44: 689123 | AO44: =MAX(AN44, AM44)/'Weighting Factors'!$Q$5 -> 175.4 | AP44: =CN44/'Weighting Factors'!$Q$5 -> 722.3 | AQ44: 0 | AR44: =CS44/'Weighting Factors'!$Q$5 -> 0 | AS44: 3890856 | AT44: =AS44/'Weighting Factors'!$Q$5 -> 851.6 | AU44: =IF(ISNA(VLOOKUP($CZ44,'Audit Values'!$A:$BU,2,FALSE)),'Preliminary SO66'!X43,VLOOKUP($CZ44,'Audit Values'!$A$2:$BU$385,47,FALSE)) -> 0 | AV44: 5332.5 | AW44: 4480.9 | AX44: =IF(ISNA(VLOOKUP($CZ44,'Audit Values'!$A$2:$BU$385,2,FALSE)),'Preliminary SO66'!AA43,VLOOKUP($CZ44,'Audit Values'!$A$2:$BU$385,41,FALSE)) -> 2363 | AY44: =IF(ISNA(VLOOKUP($CZ44,'Audit Values'!$A$2:$BU$385,2,FALSE)),'Preliminary SO66'!AB43,VLOOKUP($CZ44,'Audit Values'!$A$2:$BU$385,42,FALSE)) -> 15.6 | AZ44: 230 | BA44: =SUM(AX44*'Weighting Factors'!$T$10)+('2021 Legal Max'!AY44*'Weighting Factors'!$T$11)+('2021 Legal Max'!AZ44*'Weighting Factors'!$T$12) -> 12004590 | BB44: 0 | BC44: 17 | BD44: =IF(ISNA(VLOOKUP($CZ44,'Audit Values'!$A$2:$BV$385,2,FALSE)),"",VLOOKUP($CZ44,'Audit Values'!$A$2:$BV$385,51,FALSE)) -> A | BE44: =IF('Weighting Factors'!H44="","",IF('Weighting Factors'!J44="Pending","PX","R")) -> R | BF44: =SUM((S44+T44+Y44+AA44+AE44+AH44+AJ44++AO44+AP44+AQ44+AU44+AR44)*'Weighting Factors'!$Q$5)+'2021 Legal Max'!BA44+'2021 Legal Max'!BB44 -> 32477822 | BG44: =SUM((AV44+AR44)*'Weighting Factors'!$Q$5)+BA44+'2021 Legal Max'!BB44 -> 36368783 | BH44: =IF('Weighting Factors'!H44>0,'Weighting Factors'!H44,'Preliminary SO66'!AV43) -> 37057311 | BI44: 36368783 | BJ44: ='Weighting Factors'!G44 -> 0 | BK44: ='Weighting Factors'!F44 -> 0 | BL44: ='Weighting Factors'!E44 -> -26233 | BM44: -26233 | BN44: 36342550 | BO44: =SUM((S44+T44+Y44+AA44+AE44+AH44+AJ44+AO44+AP44+AQ44+AR44)*'Weighting Factors'!Q$12)+(MAX(AS44,'Weighting Factors'!B44)) -> 24538843 | BP44: 0.33 | BQ44: 8097818 | BR44: 8300476 | BS44: 8097818 | BT44: 0.33 | BU44: 0 | BV44: FALSE | BW44: 0 | BX44: 0 | BY44: 0 | BZ44: FALSE | CA44: 0 | CB44: 0 | CC44: 0 | CD44: 113.6 | CE44: 71 | CF44: 18.056 | CG44: =IF(CF44<0.06,1,IF(CF44>=18.29,52,MATCH(CF44-0.001,'Weighting Factors'!$Y$5:$Y$156)+1)) -> 51 | CH44: =VLOOKUP(CG44, 'Weighting Factors'!$W$5:$Z$56,4) -> 570 | CI44: =('Weighting Factors'!$Q$5/'Weighting Factors'!$Q$14) -> 1.097 | CJ44: 730740 | CK44: =CJ44*'Weighting Factors'!$S$7 -> 730740 | CL44: 801622 | CM44: =AM44/'Weighting Factors'!$Q$5 -> 175.4 | CN44: 3300000 | CO44: 0 | CP44: 0 | CQ44: 0.05 | CR44: =SUM((AV44*'Weighting Factors'!$Q$5)+'2021 Legal Max'!BA44)*CQ44 -> 1818439 | CS44: 0 | CT44: 0.1108 | CU44: 0 | CV44: 0 | CW44: 5332.5 | CX44: ='LOB Transfers'!G43 -> 272087 | CY44: ='LOB Transfers'!J43 -> 9717 | CZ44: D0230
A45: 231 | B45: Johnson | C45: Gardner Edgerton | D45: 5888.9 | E45: 0 | F45: 5888.9 | G45: 5882.1 | H45: 0 | I45: 5882.1 | J45: 5955.7 | K45: 0 | L45: 5955.7 | M45: =IF(ISNA(VLOOKUP($CZ45,'Audit Values'!$A:$BW,2,FALSE)),'Preliminary SO66'!C44,VLOOKUP($CZ45,'Audit Values'!$A:$BW,73,FALSE)) -> 5681.6 | N45: =IF(ISNA(VLOOKUP($CZ45,'Audit Values'!$A:$BW,2,FALSE)),'Preliminary SO66'!F44,VLOOKUP($CZ45,'Audit Values'!$A$2:$BW$381,4,FALSE)) -> 0 | O45: 5681.6 | P45: =IF('Military Provision'!J46="YES", MAX('2021 Legal Max'!L45,'2021 Legal Max'!I45,AVERAGE('2021 Legal Max'!F45,'2021 Legal Max'!I45,'2021 Legal Max'!L45)), MAX(L45, I45)) -> 5955.7 | Q45: =IF(ISNA(VLOOKUP($CZ45,'Audit Values'!$A:BU,2,FALSE)),'Preliminary SO66'!AL44,VLOOKUP($CZ45,'Audit Values'!$A$2:$BU318,58,FALSE)) -> 0 | R45: 0 | S45: 5955.7 | T45: 208.7 | U45: =IF(ISNA(VLOOKUP($CZ45,'Audit Values'!$A:$BW,2,FALSE)),'Preliminary SO66'!AM44,VLOOKUP($CZ45,'Audit Values'!$A:$BW,62,FALSE)) -> 321.3 | V45: =(U45/6)*'Weighting Factors'!$Q$7 -> 21.2 | W45: =IF(ISNA(VLOOKUP($CZ45,'Audit Values'!$A:$BW,2,FALSE)),'Preliminary SO66'!AN44,VLOOKUP($CZ45,'Audit Values'!$A:$BW,61,FALSE)) -> 154 | X45: =W45*'Weighting Factors'!$Q$8 -> 28.5 | Y45: 28.5 | Z45: =IF(ISNA(VLOOKUP($CZ45,'Audit Values'!$A:$BW,2,FALSE)),'Preliminary SO66'!AO44,VLOOKUP($CZ45,'Audit Values'!$A:$BW,60,FALSE)) -> 1282.6 | AA45: =Z45/6*'Weighting Factors'!$Q$6 -> 106.9 | AB45: =IF(ISNA(VLOOKUP($CZ45,'Audit Values'!$A:$BU,2,FALSE)),'Preliminary SO66'!AS44,VLOOKUP($CZ45,'Audit Values'!$A:$BU,63,FALSE)) -> 5739 | AC45: 0 | AD45: =IF(ISNA(VLOOKUP($CZ45,'Audit Values'!$A:$BU,2,FALSE)),'Preliminary SO66'!AP44,VLOOKUP($CZ45,'Audit Values'!$A:$BU,64,FALSE)) -> 1162 | AE45: =IF(A45=207, AD45,MAX(AC45,AD45))*'Weighting Factors'!$Q$9 -> 562.4 | AF45: 0 | AG45: =IF(ISNA(VLOOKUP($CZ45,'Audit Values'!$A:$BW,2,FALSE)),'Preliminary SO66'!AG44,VLOOKUP($CZ45,'Audit Values'!$A$2:$BW$385,70,FALSE)) -> 0 | AH45: 0 | AI45: =IF(ISNA(VLOOKUP($CZ45,'Audit Values'!$A:$BU,2,FALSE)),'Preliminary SO66'!AQ44,VLOOKUP($CZ45,'Audit Values'!$A:$BU,65,FALSE)) -> 0 | AJ45: =AI45*'Weighting Factors'!$Q$10 -> 0 | AK45: =IF(ISNA(VLOOKUP($CZ45,'Audit Values'!$A:$BU,2,FALSE)),'Preliminary SO66'!AR44,VLOOKUP($CZ45,'Audit Values'!$A:$BU,66,FALSE)) -> 997 | AM45: 689037 | AN45: 744592 | AO45: =MAX(AN45, AM45)/'Weighting Factors'!$Q$5 -> 163 | AP45: =CN45/'Weighting Factors'!$Q$5 -> 252.8 | AQ45: 0 | AR45: =CS45/'Weighting Factors'!$Q$5 -> 136.6 | AS45: 7286593 | AT45: =AS45/'Weighting Factors'!$Q$5 -> 1594.8 | AU45: =IF(ISNA(VLOOKUP($CZ45,'Audit Values'!$A:$BU,2,FALSE)),'Preliminary SO66'!X44,VLOOKUP($CZ45,'Audit Values'!$A$2:$BU$385,47,FALSE)) -> 0 | AV45: 8872.8 | AW45: 7414.6 | AX45: =IF(ISNA(VLOOKUP($CZ45,'Audit Values'!$A$2:$BU$385,2,FALSE)),'Preliminary SO66'!AA44,VLOOKUP($CZ45,'Audit Values'!$A$2:$BU$385,41,FALSE)) -> 0 | AY45: =IF(ISNA(VLOOKUP($CZ45,'Audit Values'!$A$2:$BU$385,2,FALSE)),'Preliminary SO66'!AB44,VLOOKUP($CZ45,'Audit Values'!$A$2:$BU$385,42,FALSE)) -> 0 | AZ45: 0 | BA45: =SUM(AX45*'Weighting Factors'!$T$10)+('2021 Legal Max'!AY45*'Weighting Factors'!$T$11)+('2021 Legal Max'!AZ45*'Weighting Factors'!$T$12) -> 0 | BB45: 0 | BC45: =IF(ISNA(VLOOKUP($CZ45,'Audit Values'!$A$2:$BU$385,2,FALSE)),"",IF(AND('Weighting Factors'!H45>0,VLOOKUP($CZ45,'Audit Values'!$A$2:$BU$385,51,FALSE)<'Weighting Factors'!H45),'Weighting Factors'!H45,VLOOKUP($CZ45,'Audit Values'!$A$2:$BU$385,50,FALSE))) -> 27 | BD45: =IF(ISNA(VLOOKUP($CZ45,'Audit Values'!$A$2:$BV$385,2,FALSE)),"",VLOOKUP($CZ45,'Audit Values'!$A$2:$BV$385,51,FALSE)) -> A | BE45: =IF('Weighting Factors'!H45="","",IF('Weighting Factors'!J45="Pending","PX","R")) ->  | BF45: =SUM((S45+T45+Y45+AA45+AE45+AH45+AJ45++AO45+AP45+AQ45+AU45+AR45)*'Weighting Factors'!$Q$5)+'2021 Legal Max'!BA45+'2021 Legal Max'!BB45 -> 33877307 | BG45: =SUM((AV45+AR45)*'Weighting Factors'!$Q$5)+BA45+'2021 Legal Max'!BB45 -> 41163949 | BH45: =IF('Weighting Factors'!H45>0,'Weighting Factors'!H45,'Preliminary SO66'!AV44) -> 43225025 | BI45: 41163949 | BJ45: ='Weighting Factors'!G45 -> 0 | BK45: ='Weighting Factors'!F45 -> 0 | BL45: ='Weighting Factors'!E45 -> 0 | BM45: 0 | BN45: 41163949 | BO45: =SUM((S45+T45+Y45+AA45+AE45+AH45+AJ45+AO45+AP45+AQ45+AR45)*'Weighting Factors'!Q$12)+(MAX(AS45,'Weighting Factors'!B45)) -> 41453070 | BP45: 0.33 | BQ45: 13679513 | BR45: 14362580 | BS45: 13679513 | BT45: 0.33 | BU45: 0 | BV45: FALSE | BW45: 0 | BX45: 0 | BY45: 0 | BZ45: FALSE | CA45: 0 | CB45: 0 | CC45: 0 | CD45: 208.7 | CE45: 103 | CF45: 9.68 | CG45: =IF(CF45<0.06,1,IF(CF45>=18.29,52,MATCH(CF45-0.001,'Weighting Factors'!$Y$5:$Y$156)+1)) -> 48 | CH45: =VLOOKUP(CG45, 'Weighting Factors'!$W$5:$Z$56,4) -> 630 | CI45: =('Weighting Factors'!$Q$5/'Weighting Factors'!$Q$14) -> 1.097 | CJ45: 628110 | CK45: =CJ45*'Weighting Factors'!$S$7 -> 628110 | CL45: 689037 | CM45: =AM45/'Weighting Factors'!$Q$5 -> 150.8 | CN45: 1155149 | CO45: 0 | CP45: 655568 | CQ45: 0.0154 | CR45: =SUM((AV45*'Weighting Factors'!$Q$5)+'2021 Legal Max'!BA45)*CQ45 -> 624313 | CS45: 624313 | CT45: 0.2025 | CU45: 0 | CV45: 0 | CW45: 9009.4 | CX45: ='LOB Transfers'!G44 -> 853602 | CY45: ='LOB Transfers'!J44 -> 43774 | CZ45: D0231
A46: 232 | B46: Johnson | C46: De Soto | D46: 7202.5 | E46: 0 | F46: 7202.5 | G46: 7262.7 | H46: 0 | I46: 7262.7 | J46: 7307.1 | K46: 0 | L46: 7307.1 | M46: =IF(ISNA(VLOOKUP($CZ46,'Audit Values'!$A:$BW,2,FALSE)),'Preliminary SO66'!C45,VLOOKUP($CZ46,'Audit Values'!$A:$BW,73,FALSE)) -> 6914.4 | N46: =IF(ISNA(VLOOKUP($CZ46,'Audit Values'!$A:$BW,2,FALSE)),'Preliminary SO66'!F45,VLOOKUP($CZ46,'Audit Values'!$A$2:$BW$381,4,FALSE)) -> 0 | O46: 6914.4 | P46: =IF('Military Provision'!J47="YES", MAX('2021 Legal Max'!L46,'2021 Legal Max'!I46,AVERAGE('2021 Legal Max'!F46,'2021 Legal Max'!I46,'2021 Legal Max'!L46)), MAX(L46, I46)) -> 7307.1 | Q46: =IF(ISNA(VLOOKUP($CZ46,'Audit Values'!$A:BU,2,FALSE)),'Preliminary SO66'!AL45,VLOOKUP($CZ46,'Audit Values'!$A$2:$BU319,58,FALSE)) -> 10 | R46: 0 | S46: 7317.1 | T46: 256.4 | U46: =IF(ISNA(VLOOKUP($CZ46,'Audit Values'!$A:$BW,2,FALSE)),'Preliminary SO66'!AM45,VLOOKUP($CZ46,'Audit Values'!$A:$BW,62,FALSE)) -> 536.9 | V46: =(U46/6)*'Weighting Factors'!$Q$7 -> 35.3 | W46: =IF(ISNA(VLOOKUP($CZ46,'Audit Values'!$A:$BW,2,FALSE)),'Preliminary SO66'!AN45,VLOOKUP($CZ46,'Audit Values'!$A:$BW,61,FALSE)) -> 240 | X46: =W46*'Weighting Factors'!$Q$8 -> 44.4 | Y46: 44.4 | Z46: =IF(ISNA(VLOOKUP($CZ46,'Audit Values'!$A:$BW,2,FALSE)),'Preliminary SO66'!AO45,VLOOKUP($CZ46,'Audit Values'!$A:$BW,60,FALSE)) -> 2015.6 | AA46: =Z46/6*'Weighting Factors'!$Q$6 -> 168 | AB46: =IF(ISNA(VLOOKUP($CZ46,'Audit Values'!$A:$BU,2,FALSE)),'Preliminary SO66'!AS45,VLOOKUP($CZ46,'Audit Values'!$A:$BU,63,FALSE)) -> 7062 | AC46: 0 | AD46: =IF(ISNA(VLOOKUP($CZ46,'Audit Values'!$A:$BU,2,FALSE)),'Preliminary SO66'!AP45,VLOOKUP($CZ46,'Audit Values'!$A:$BU,64,FALSE)) -> 493 | AE46: =IF(A46=207, AD46,MAX(AC46,AD46))*'Weighting Factors'!$Q$9 -> 238.6 | AF46: 0 | AG46: =IF(ISNA(VLOOKUP($CZ46,'Audit Values'!$A:$BW,2,FALSE)),'Preliminary SO66'!AG45,VLOOKUP($CZ46,'Audit Values'!$A$2:$BW$385,70,FALSE)) -> 0 | AH46: 0 | AI46: =IF(ISNA(VLOOKUP($CZ46,'Audit Values'!$A:$BU,2,FALSE)),'Preliminary SO66'!AQ45,VLOOKUP($CZ46,'Audit Values'!$A:$BU,65,FALSE)) -> 0 | AJ46: =AI46*'Weighting Factors'!$Q$10 -> 0 | AK46: =IF(ISNA(VLOOKUP($CZ46,'Audit Values'!$A:$BU,2,FALSE)),'Preliminary SO66'!AR45,VLOOKUP($CZ46,'Audit Values'!$A:$BU,66,FALSE)) -> 1792 | AM46: 1120520 | AN46: 1077790 | AO46: =MAX(AN46, AM46)/'Weighting Factors'!$Q$5 -> 245.2 | AP46: =CN46/'Weighting Factors'!$Q$5 -> 0 | AQ46: 0 | AR46: =CS46/'Weighting Factors'!$Q$5 -> 479.4 | AS46: 5985857 | AT46: =AS46/'Weighting Factors'!$Q$5 -> 1310.1 | AU46: =IF(ISNA(VLOOKUP($CZ46,'Audit Values'!$A:$BU,2,FALSE)),'Preliminary SO66'!X45,VLOOKUP($CZ46,'Audit Values'!$A$2:$BU$385,47,FALSE)) -> 0 | AV46: 9579.8 | AW46: 8749.1 | AX46: =IF(ISNA(VLOOKUP($CZ46,'Audit Values'!$A$2:$BU$385,2,FALSE)),'Preliminary SO66'!AA45,VLOOKUP($CZ46,'Audit Values'!$A$2:$BU$385,41,FALSE)) -> 7 | AY46: =IF(ISNA(VLOOKUP($CZ46,'Audit Values'!$A$2:$BU$385,2,FALSE)),'Preliminary SO66'!AB45,VLOOKUP($CZ46,'Audit Values'!$A$2:$BU$385,42,FALSE)) -> 3.5 | AZ46: 0 | BA46: =SUM(AX46*'Weighting Factors'!$T$10)+('2021 Legal Max'!AY46*'Weighting Factors'!$T$11)+('2021 Legal Max'!AZ46*'Weighting Factors'!$T$12) -> 40950 | BB46: 0 | BC46: =IF(ISNA(VLOOKUP($CZ46,'Audit Values'!$A$2:$BU$385,2,FALSE)),"",IF(AND('Weighting Factors'!H46>0,VLOOKUP($CZ46,'Audit Values'!$A$2:$BU$385,51,FALSE)<'Weighting Factors'!H46),'Weighting Factors'!H46,VLOOKUP($CZ46,'Audit Values'!$A$2:$BU$385,50,FALSE))) -> 28 | BD46: =IF(ISNA(VLOOKUP($CZ46,'Audit Values'!$A$2:$BV$385,2,FALSE)),"",VLOOKUP($CZ46,'Audit Values'!$A$2:$BV$385,51,FALSE)) -> A | BE46: =IF('Weighting Factors'!H46="","",IF('Weighting Factors'!J46="Pending","PX","R")) ->  | BF46: =SUM((S46+T46+Y46+AA46+AE46+AH46+AJ46++AO46+AP46+AQ46+AU46+AR46)*'Weighting Factors'!$Q$5)+'2021 Legal Max'!BA46+'2021 Legal Max'!BB46 -> 40015588 | BG46: =SUM((AV46+AR46)*'Weighting Factors'!$Q$5)+BA46+'2021 Legal Max'!BB46 -> 46001435 | BH46: =IF('Weighting Factors'!H46>0,'Weighting Factors'!H46,'Preliminary SO66'!AV45) -> 47239641 | BI46: 46001435 | BJ46: ='Weighting Factors'!G46 -> 0 | BK46: ='Weighting Factors'!F46 -> 0 | BL46: ='Weighting Factors'!E46 -> 0 | BM46: 0 | BN46: 46001435 | BO46: =SUM((S46+T46+Y46+AA46+AE46+AH46+AJ46+AO46+AP46+AQ46+AR46)*'Weighting Factors'!Q$12)+(MAX(AS46,'Weighting Factors'!B46)) -> 46301710 | BP46: 0.33 | BQ46: 15279564 | BR46: 15681540 | BS46: 15279564 | BT46: 0.33 | BU46: 0 | BV46: FALSE | BW46: 0 | BX46: 0 | BY46: 0 | BZ46: FALSE | CA46: 0 | CB46: 0 | CC46: 0 | CD46: 256.4 | CE46: 100 | CF46: 17.92 | CG46: =IF(CF46<0.06,1,IF(CF46>=18.29,52,MATCH(CF46-0.001,'Weighting Factors'!$Y$5:$Y$156)+1)) -> 51 | CH46: =VLOOKUP(CG46, 'Weighting Factors'!$W$5:$Z$56,4) -> 570 | CI46: =('Weighting Factors'!$Q$5/'Weighting Factors'!$Q$14) -> 1.097 | CJ46: 1021440 | CK46: =CJ46*'Weighting Factors'!$S$7 -> 1021440 | CL46: 1120520 | CM46: =AM46/'Weighting Factors'!$Q$5 -> 245.2 | CN46: 0 | CO46: 0 | CP46: 2244810 | CQ46: 0.05 | CR46: =SUM((AV46*'Weighting Factors'!$Q$5)+'2021 Legal Max'!BA46)*CQ46 -> 2190553 | CS46: 2190553 | CT46: 0.0698 | CU46: 0 | CV46: 0 | CW46: 10059.2 | CX46: ='LOB Transfers'!G45 -> 362126 | CY46: ='LOB Transfers'!J45 -> 67230 | CZ46: D0232
A47: 233 | B47: Johnson | C47: Olathe | D47: 29074.1 | E47: 0 | F47: 29074.1 | G47: 29177.1 | H47: 0 | I47: 29177.1 | J47: 29287.6 | K47: 0 | L47: 29287.6 | M47: =IF(ISNA(VLOOKUP($CZ47,'Audit Values'!$A:$BW,2,FALSE)),'Preliminary SO66'!C46,VLOOKUP($CZ47,'Audit Values'!$A:$BW,73,FALSE)) -> 28385.8 | N47: =IF(ISNA(VLOOKUP($CZ47,'Audit Values'!$A:$BW,2,FALSE)),'Preliminary SO66'!F46,VLOOKUP($CZ47,'Audit Values'!$A$2:$BW$381,4,FALSE)) -> 0 | O47: 28385.8 | P47: =IF('Military Provision'!J48="YES", MAX('2021 Legal Max'!L47,'2021 Legal Max'!I47,AVERAGE('2021 Legal Max'!F47,'2021 Legal Max'!I47,'2021 Legal Max'!L47)), MAX(L47, I47)) -> 29287.6 | Q47: =IF(ISNA(VLOOKUP($CZ47,'Audit Values'!$A:BU,2,FALSE)),'Preliminary SO66'!AL46,VLOOKUP($CZ47,'Audit Values'!$A$2:$BU320,58,FALSE)) -> 42 | R47: 0 | S47: 29329.6 | T47: 1027.7 | U47: =IF(ISNA(VLOOKUP($CZ47,'Audit Values'!$A:$BW,2,FALSE)),'Preliminary SO66'!AM46,VLOOKUP($CZ47,'Audit Values'!$A:$BW,62,FALSE)) -> 2848.3 | V47: =(U47/6)*'Weighting Factors'!$Q$7 -> 187.5 | W47: =IF(ISNA(VLOOKUP($CZ47,'Audit Values'!$A:$BW,2,FALSE)),'Preliminary SO66'!AN46,VLOOKUP($CZ47,'Audit Values'!$A:$BW,61,FALSE)) -> 2653 | X47: =W47*'Weighting Factors'!$Q$8 -> 490.8 | Y47: 490.8 | Z47: =IF(ISNA(VLOOKUP($CZ47,'Audit Values'!$A:$BW,2,FALSE)),'Preliminary SO66'!AO46,VLOOKUP($CZ47,'Audit Values'!$A:$BW,60,FALSE)) -> 7460 | AA47: =Z47/6*'Weighting Factors'!$Q$6 -> 621.7 | AB47: =IF(ISNA(VLOOKUP($CZ47,'Audit Values'!$A:$BU,2,FALSE)),'Preliminary SO66'!AS46,VLOOKUP($CZ47,'Audit Values'!$A:$BU,63,FALSE)) -> 28801 | AC47: 0 | AD47: =IF(ISNA(VLOOKUP($CZ47,'Audit Values'!$A:$BU,2,FALSE)),'Preliminary SO66'!AP46,VLOOKUP($CZ47,'Audit Values'!$A:$BU,64,FALSE)) -> 5434 | AE47: =IF(A47=207, AD47,MAX(AC47,AD47))*'Weighting Factors'!$Q$9 -> 2630.1 | AF47: 0 | AG47: =IF(ISNA(VLOOKUP($CZ47,'Audit Values'!$A:$BW,2,FALSE)),'Preliminary SO66'!AG46,VLOOKUP($CZ47,'Audit Values'!$A$2:$BW$385,70,FALSE)) -> 132.9 | AH47: 132.9 | AI47: =IF(ISNA(VLOOKUP($CZ47,'Audit Values'!$A:$BU,2,FALSE)),'Preliminary SO66'!AQ46,VLOOKUP($CZ47,'Audit Values'!$A:$BU,65,FALSE)) -> 336 | AJ47: =AI47*'Weighting Factors'!$Q$10 -> 84 | AK47: =IF(ISNA(VLOOKUP($CZ47,'Audit Values'!$A:$BU,2,FALSE)),'Preliminary SO66'!AR46,VLOOKUP($CZ47,'Audit Values'!$A:$BU,66,FALSE)) -> 5706 | AM47: 3442715 | AN47: 3241458 | AO47: =MAX(AN47, AM47)/'Weighting Factors'!$Q$5 -> 753.5 | AP47: =CN47/'Weighting Factors'!$Q$5 -> 4377.3 | AQ47: 0 | AR47: =CS47/'Weighting Factors'!$Q$5 -> 2319.7 | AS47: 35620712 | AT47: =AS47/'Weighting Factors'!$Q$5 -> 7796.2 | AU47: =IF(ISNA(VLOOKUP($CZ47,'Audit Values'!$A:$BU,2,FALSE)),'Preliminary SO66'!X46,VLOOKUP($CZ47,'Audit Values'!$A$2:$BU$385,47,FALSE)) -> 0 | AV47: 47243.8 | AW47: 41767.3 | AX47: =IF(ISNA(VLOOKUP($CZ47,'Audit Values'!$A$2:$BU$385,2,FALSE)),'Preliminary SO66'!AA46,VLOOKUP($CZ47,'Audit Values'!$A$2:$BU$385,41,FALSE)) -> 0 | AY47: =IF(ISNA(VLOOKUP($CZ47,'Audit Values'!$A$2:$BU$385,2,FALSE)),'Preliminary SO66'!AB46,VLOOKUP($CZ47,'Audit Values'!$A$2:$BU$385,42,FALSE)) -> 0 | AZ47: 0 | BA47: =SUM(AX47*'Weighting Factors'!$T$10)+('2021 Legal Max'!AY47*'Weighting Factors'!$T$11)+('2021 Legal Max'!AZ47*'Weighting Factors'!$T$12) -> 0 | BB47: 0 | BC47: =IF(ISNA(VLOOKUP($CZ47,'Audit Values'!$A$2:$BU$385,2,FALSE)),"",IF(AND('Weighting Factors'!H47>0,VLOOKUP($CZ47,'Audit Values'!$A$2:$BU$385,51,FALSE)<'Weighting Factors'!H47),'Weighting Factors'!H47,VLOOKUP($CZ47,'Audit Values'!$A$2:$BU$385,50,FALSE))) -> 15 | BD47: =IF(ISNA(VLOOKUP($CZ47,'Audit Values'!$A$2:$BV$385,2,FALSE)),"",VLOOKUP($CZ47,'Audit Values'!$A$2:$BV$385,51,FALSE)) -> A | BE47: =IF('Weighting Factors'!H47="","",IF('Weighting Factors'!J47="Pending","PX","R")) ->  | BF47: =SUM((S47+T47+Y47+AA47+AE47+AH47+AJ47++AO47+AP47+AQ47+AU47+AR47)*'Weighting Factors'!$Q$5)+'2021 Legal Max'!BA47+'2021 Legal Max'!BB47 -> 190834794 | BG47: =SUM((AV47+AR47)*'Weighting Factors'!$Q$5)+BA47+'2021 Legal Max'!BB47 -> 226455632 | BH47: =IF('Weighting Factors'!H47>0,'Weighting Factors'!H47,'Preliminary SO66'!AV46) -> 228934771 | BI47: 226455632 | BJ47: ='Weighting Factors'!G47 -> 0 | BK47: ='Weighting Factors'!F47 -> 0 | BL47: ='Weighting Factors'!E47 -> 0 | BM47: 0 | BN47: 226455632 | BO47: =SUM((S47+T47+Y47+AA47+AE47+AH47+AJ47+AO47+AP47+AQ47+AR47)*'Weighting Factors'!Q$12)+(MAX(AS47,'Weighting Factors'!B47)) -> 228084430 | BP47: 0.33 | BQ47: 75267862 | BR47: 76094935 | BS47: 75267862 | BT47: 0.33 | BU47: 0 | BV47: FALSE | BW47: 0 | BX47: 0 | BY47: 0 | BZ47: FALSE | CA47: 0 | CB47: 0 | CC47: 0 | CD47: 1027.7 | CE47: 75.3 | CF47: 75.777 | CG47: =IF(CF47<0.06,1,IF(CF47>=18.29,52,MATCH(CF47-0.001,'Weighting Factors'!$Y$5:$Y$156)+1)) -> 52 | CH47: =VLOOKUP(CG47, 'Weighting Factors'!$W$5:$Z$56,4) -> 550 | CI47: =('Weighting Factors'!$Q$5/'Weighting Factors'!$Q$14) -> 1.097 | CJ47: 3138300 | CK47: =CJ47*'Weighting Factors'!$S$7 -> 3138300 | CL47: 3442715 | CM47: =AM47/'Weighting Factors'!$Q$5 -> 753.5 | CN47: 20000000 | CO47: 0 | CP47: 10714602 | CQ47: 0.0491 | CR47: =SUM((AV47*'Weighting Factors'!$Q$5)+'2021 Legal Max'!BA47)*CQ47 -> 10598575 | CS47: 10598575 | CT47: 0.1887 | CU47: 0 | CV47: 0 | CW47: 49563.5 | CX47: ='LOB Transfers'!G46 -> 3996723 | CY47: ='LOB Transfers'!J46 -> 745152 | CZ47: D0233
A48: 234 | B48: Bourbon | C48: Fort Scott | D48: 1844 | E48: 0 | F48: 1844 | G48: 1863 | H48: 0 | I48: 1863 | J48: 1823.1 | K48: 0 | L48: 1823.1 | M48: =IF(ISNA(VLOOKUP($CZ48,'Audit Values'!$A:$BW,2,FALSE)),'Preliminary SO66'!C47,VLOOKUP($CZ48,'Audit Values'!$A:$BW,73,FALSE)) -> 1726.1 | N48: =IF(ISNA(VLOOKUP($CZ48,'Audit Values'!$A:$BW,2,FALSE)),'Preliminary SO66'!F47,VLOOKUP($CZ48,'Audit Values'!$A$2:$BW$381,4,FALSE)) -> 0 | O48: 1726.1 | P48: =IF('Military Provision'!J49="YES", MAX('2021 Legal Max'!L48,'2021 Legal Max'!I48,AVERAGE('2021 Legal Max'!F48,'2021 Legal Max'!I48,'2021 Legal Max'!L48)), MAX(L48, I48)) -> 1863 | Q48: =IF(ISNA(VLOOKUP($CZ48,'Audit Values'!$A:BU,2,FALSE)),'Preliminary SO66'!AL47,VLOOKUP($CZ48,'Audit Values'!$A$2:$BU321,58,FALSE)) -> 14 | R48: 0 | S48: 1877 | T48: 65.8 | U48: =IF(ISNA(VLOOKUP($CZ48,'Audit Values'!$A:$BW,2,FALSE)),'Preliminary SO66'!AM47,VLOOKUP($CZ48,'Audit Values'!$A:$BW,62,FALSE)) -> 18.3 | V48: =(U48/6)*'Weighting Factors'!$Q$7 -> 1.2 | W48: =IF(ISNA(VLOOKUP($CZ48,'Audit Values'!$A:$BW,2,FALSE)),'Preliminary SO66'!AN47,VLOOKUP($CZ48,'Audit Values'!$A:$BW,61,FALSE)) -> 11 | X48: =W48*'Weighting Factors'!$Q$8 -> 2 | Y48: 2 | Z48: =IF(ISNA(VLOOKUP($CZ48,'Audit Values'!$A:$BW,2,FALSE)),'Preliminary SO66'!AO47,VLOOKUP($CZ48,'Audit Values'!$A:$BW,60,FALSE)) -> 592.7 | AA48: =Z48/6*'Weighting Factors'!$Q$6 -> 49.4 | AB48: =IF(ISNA(VLOOKUP($CZ48,'Audit Values'!$A:$BU,2,FALSE)),'Preliminary SO66'!AS47,VLOOKUP($CZ48,'Audit Values'!$A:$BU,63,FALSE)) -> 1767 | AC48: 0 | AD48: =IF(ISNA(VLOOKUP($CZ48,'Audit Values'!$A:$BU,2,FALSE)),'Preliminary SO66'!AP47,VLOOKUP($CZ48,'Audit Values'!$A:$BU,64,FALSE)) -> 837 | AE48: =IF(A48=207, AD48,MAX(AC48,AD48))*'Weighting Factors'!$Q$9 -> 405.1 | AF48: 72.5 | AG48: =IF(ISNA(VLOOKUP($CZ48,'Audit Values'!$A:$BW,2,FALSE)),'Preliminary SO66'!AG47,VLOOKUP($CZ48,'Audit Values'!$A$2:$BW$385,70,FALSE)) -> 63.5 | AH48: 72.5 | AI48: =IF(ISNA(VLOOKUP($CZ48,'Audit Values'!$A:$BU,2,FALSE)),'Preliminary SO66'!AQ47,VLOOKUP($CZ48,'Audit Values'!$A:$BU,65,FALSE)) -> 0 | AJ48: =AI48*'Weighting Factors'!$Q$10 -> 0 | AK48: =IF(ISNA(VLOOKUP($CZ48,'Audit Values'!$A:$BU,2,FALSE)),'Preliminary SO66'!AR47,VLOOKUP($CZ48,'Audit Values'!$A:$BU,66,FALSE)) -> 522 | AM48: 498192 | AN48: 522331 | AO48: =MAX(AN48, AM48)/'Weighting Factors'!$Q$5 -> 114.3 | AP48: =CN48/'Weighting Factors'!$Q$5 -> 0 | AQ48: 0 | AR48: =CS48/'Weighting Factors'!$Q$5 -> 0 | AS48: 1851041 | AT48: =AS48/'Weighting Factors'!$Q$5 -> 405.1 | AU48: =IF(ISNA(VLOOKUP($CZ48,'Audit Values'!$A:$BU,2,FALSE)),'Preliminary SO66'!X47,VLOOKUP($CZ48,'Audit Values'!$A$2:$BU$385,47,FALSE)) -> 0 | AV48: 2991.2 | AW48: 2586.1 | AX48: =IF(ISNA(VLOOKUP($CZ48,'Audit Values'!$A$2:$BU$385,2,FALSE)),'Preliminary SO66'!AA47,VLOOKUP($CZ48,'Audit Values'!$A$2:$BU$385,41,FALSE)) -> 3 | AY48: =IF(ISNA(VLOOKUP($CZ48,'Audit Values'!$A$2:$BU$385,2,FALSE)),'Preliminary SO66'!AB47,VLOOKUP($CZ48,'Audit Values'!$A$2:$BU$385,42,FALSE)) -> 6.9 | AZ48: 0 | BA48: =SUM(AX48*'Weighting Factors'!$T$10)+('2021 Legal Max'!AY48*'Weighting Factors'!$T$11)+('2021 Legal Max'!AZ48*'Weighting Factors'!$T$12) -> 26730 | BB48: 0 | BC48: =IF(ISNA(VLOOKUP($CZ48,'Audit Values'!$A$2:$BU$385,2,FALSE)),"",IF(AND('Weighting Factors'!H48>0,VLOOKUP($CZ48,'Audit Values'!$A$2:$BU$385,51,FALSE)<'Weighting Factors'!H48),'Weighting Factors'!H48,VLOOKUP($CZ48,'Audit Values'!$A$2:$BU$385,50,FALSE))) -> 12 | BD48: =IF(ISNA(VLOOKUP($CZ48,'Audit Values'!$A$2:$BV$385,2,FALSE)),"",VLOOKUP($CZ48,'Audit Values'!$A$2:$BV$385,51,FALSE)) -> A | BE48: =IF('Weighting Factors'!H48="","",IF('Weighting Factors'!J48="Pending","PX","R")) ->  | BF48: =SUM((S48+T48+Y48+AA48+AE48+AH48+AJ48++AO48+AP48+AQ48+AU48+AR48)*'Weighting Factors'!$Q$5)+'2021 Legal Max'!BA48+'2021 Legal Max'!BB48 -> 11842621 | BG48: =SUM((AV48+AR48)*'Weighting Factors'!$Q$5)+BA48+'2021 Legal Max'!BB48 -> 13693523 | BH48: =IF('Weighting Factors'!H48>0,'Weighting Factors'!H48,'Preliminary SO66'!AV47) -> 13982269 | BI48: 13693523 | BJ48: ='Weighting Factors'!G48 -> 0 | BK48: ='Weighting Factors'!F48 -> 0 | BL48: ='Weighting Factors'!E48 -> 0 | BM48: 0 | BN48: 13693523 | BO48: =SUM((S48+T48+Y48+AA48+AE48+AH48+AJ48+AO48+AP48+AQ48+AR48)*'Weighting Factors'!Q$12)+(MAX(AS48,'Weighting Factors'!B48)) -> 13767790 | BP48: 0.3 | BQ48: 4130337 | BR48: 4218756 | BS48: 4130337 | BT48: 0.3 | BU48: 0 | BV48: FALSE | BW48: 0 | BX48: 0 | BY48: 0 | BZ48: FALSE | CA48: 0 | CB48: 0 | CC48: 0 | CD48: 65.8 | CE48: 300 | CF48: 1.74 | CG48: =IF(CF48<0.06,1,IF(CF48>=18.29,52,MATCH(CF48-0.001,'Weighting Factors'!$Y$5:$Y$156)+1)) -> 36 | CH48: =VLOOKUP(CG48, 'Weighting Factors'!$W$5:$Z$56,4) -> 870 | CI48: =('Weighting Factors'!$Q$5/'Weighting Factors'!$Q$14) -> 1.097 | CJ48: 454140 | CK48: =CJ48*'Weighting Factors'!$S$7 -> 454140 | CL48: 498192 | CM48: =AM48/'Weighting Factors'!$Q$5 -> 109 | CN48: 0 | CO48: 0 | CP48: 0 | CQ48: 0 | CR48: =SUM((AV48*'Weighting Factors'!$Q$5)+'2021 Legal Max'!BA48)*CQ48 -> 0 | CS48: 0 | CT48: 0.4737 | CU48: 0 | CV48: 72.5 | CW48: 2991.2 | CX48: ='LOB Transfers'!G47 -> 562139 | CY48: ='LOB Transfers'!J47 -> 2891 | CZ48: D0234
A49: 235 | B49: Bourbon | C49: Uniontown | D49: 429.5 | E49: 0 | F49: 429.5 | G49: 428.5 | H49: 0 | I49: 428.5 | J49: 429.5 | K49: 0 | L49: 429.5 | M49: =IF(ISNA(VLOOKUP($CZ49,'Audit Values'!$A:$BW,2,FALSE)),'Preliminary SO66'!C48,VLOOKUP($CZ49,'Audit Values'!$A:$BW,73,FALSE)) -> 443.5 | N49: =IF(ISNA(VLOOKUP($CZ49,'Audit Values'!$A:$BW,2,FALSE)),'Preliminary SO66'!F48,VLOOKUP($CZ49,'Audit Values'!$A$2:$BW$381,4,FALSE)) -> 0 | O49: 443.5 | P49: =IF('Military Provision'!J50="YES", MAX('2021 Legal Max'!L49,'2021 Legal Max'!I49,AVERAGE('2021 Legal Max'!F49,'2021 Legal Max'!I49,'2021 Legal Max'!L49)), MAX(L49, I49)) -> 429.5 | Q49: =IF(ISNA(VLOOKUP($CZ49,'Audit Values'!$A:BU,2,FALSE)),'Preliminary SO66'!AL48,VLOOKUP($CZ49,'Audit Values'!$A$2:$BU322,58,FALSE)) -> 4.5 | R49: 0 | S49: 434 | T49: 190.4 | U49: =IF(ISNA(VLOOKUP($CZ49,'Audit Values'!$A:$BW,2,FALSE)),'Preliminary SO66'!AM48,VLOOKUP($CZ49,'Audit Values'!$A:$BW,62,FALSE)) -> 0 | V49: =(U49/6)*'Weighting Factors'!$Q$7 -> 0 | W49: =IF(ISNA(VLOOKUP($CZ49,'Audit Values'!$A:$BW,2,FALSE)),'Preliminary SO66'!AN48,VLOOKUP($CZ49,'Audit Values'!$A:$BW,61,FALSE)) -> 0 | X49: =W49*'Weighting Factors'!$Q$8 -> 0 | Y49: 0 | Z49: =IF(ISNA(VLOOKUP($CZ49,'Audit Values'!$A:$BW,2,FALSE)),'Preliminary SO66'!AO48,VLOOKUP($CZ49,'Audit Values'!$A:$BW,60,FALSE)) -> 83.1 | AA49: =Z49/6*'Weighting Factors'!$Q$6 -> 6.9 | AB49: =IF(ISNA(VLOOKUP($CZ49,'Audit Values'!$A:$BU,2,FALSE)),'Preliminary SO66'!AS48,VLOOKUP($CZ49,'Audit Values'!$A:$BU,63,FALSE)) -> 456 | AC49: 0 | AD49: =IF(ISNA(VLOOKUP($CZ49,'Audit Values'!$A:$BU,2,FALSE)),'Preliminary SO66'!AP48,VLOOKUP($CZ49,'Audit Values'!$A:$BU,64,FALSE)) -> 194 | AE49: =IF(A49=207, AD49,MAX(AC49,AD49))*'Weighting Factors'!$Q$9 -> 93.9 | AF49: 10.2 | AG49: =IF(ISNA(VLOOKUP($CZ49,'Audit Values'!$A:$BW,2,FALSE)),'Preliminary SO66'!AG48,VLOOKUP($CZ49,'Audit Values'!$A$2:$BW$385,70,FALSE)) -> 10.4 | AH49: 10.4 | AI49: =IF(ISNA(VLOOKUP($CZ49,'Audit Values'!$A:$BU,2,FALSE)),'Preliminary SO66'!AQ48,VLOOKUP($CZ49,'Audit Values'!$A:$BU,65,FALSE)) -> 0 | AJ49: =AI49*'Weighting Factors'!$Q$10 -> 0 | AK49: =IF(ISNA(VLOOKUP($CZ49,'Audit Values'!$A:$BU,2,FALSE)),'Preliminary SO66'!AR48,VLOOKUP($CZ49,'Audit Values'!$A:$BU,66,FALSE)) -> 262 | AM49: 284540 | AN49: 316249 | AO49: =MAX(AN49, AM49)/'Weighting Factors'!$Q$5 -> 69.2 | AP49: =CN49/'Weighting Factors'!$Q$5 -> 0 | AQ49: 0 | AR49: =CS49/'Weighting Factors'!$Q$5 -> 0 | AS49: 451798 | AT49: =AS49/'Weighting Factors'!$Q$5 -> 98.9 | AU49: =IF(ISNA(VLOOKUP($CZ49,'Audit Values'!$A:$BU,2,FALSE)),'Preliminary SO66'!X48,VLOOKUP($CZ49,'Audit Values'!$A$2:$BU$385,47,FALSE)) -> 0 | AV49: 903.7 | AW49: 804.8 | AX49: =IF(ISNA(VLOOKUP($CZ49,'Audit Values'!$A:$BU,2,FALSE)),'Preliminary SO66'!AA48,VLOOKUP($CZ49,'Audit Values'!$A:$BU,41,FALSE)) -> 0 | AY49: =IF(ISNA(VLOOKUP($CZ49,'Audit Values'!$A$2:$BU$385,2,FALSE)),'Preliminary SO66'!AB48,VLOOKUP($CZ49,'Audit Values'!$A$2:$BU$385,42,FALSE)) -> 0 | AZ49: 0 | BA49: =SUM(AX49*'Weighting Factors'!$T$10)+('2021 Legal Max'!AY49*'Weighting Factors'!$T$11)+('2021 Legal Max'!AZ49*'Weighting Factors'!$T$12) -> 0 | BB49: 0 | BC49: 25 | BD49: =IF(ISNA(VLOOKUP($CZ49,'Audit Values'!$A$2:$BV$385,2,FALSE)),"",VLOOKUP($CZ49,'Audit Values'!$A$2:$BV$385,51,FALSE)) -> A | BE49: =IF('Weighting Factors'!H49="","",IF('Weighting Factors'!J49="Pending","PX","R")) -> R | BF49: =SUM((S49+T49+Y49+AA49+AE49+AH49+AJ49++AO49+AP49+AQ49+AU49+AR49)*'Weighting Factors'!$Q$5)+'2021 Legal Max'!BA49+'2021 Legal Max'!BB49 -> 3677131 | BG49: =SUM((AV49+AR49)*'Weighting Factors'!$Q$5)+BA49+'2021 Legal Max'!BB49 -> 4129005 | BH49: =IF('Weighting Factors'!H49>0,'Weighting Factors'!H49,'Preliminary SO66'!AV48) -> 4171497 | BI49: 4129005 | BJ49: ='Weighting Factors'!G49 -> 0 | BK49: ='Weighting Factors'!F49 -> -82866 | BL49: ='Weighting Factors'!E49 -> 0 | BM49: -82866 | BN49: 4046139 | BO49: =SUM((S49+T49+Y49+AA49+AE49+AH49+AJ49+AO49+AP49+AQ49+AR49)*'Weighting Factors'!Q$12)+(MAX(AS49,'Weighting Factors'!B49)) -> 4160316 | BP49: 0.3 | BQ49: 1248095 | BR49: 1221226 | BS49: 1221226 | BT49: 0.2935 | BU49: 0 | BV49: FALSE | BW49: 0 | BX49: 0 | BY49: 0 | BZ49: TRUE | CA49: 165.825 | CB49: 0.43866 | CC49: 190.4 | CD49: 0 | CE49: 309 | CF49: 0.848 | CG49: =IF(CF49<0.06,1,IF(CF49>=18.29,52,MATCH(CF49-0.001,'Weighting Factors'!$Y$5:$Y$156)+1)) -> 30 | CH49: =VLOOKUP(CG49, 'Weighting Factors'!$W$5:$Z$56,4) -> 990 | CI49: =('Weighting Factors'!$Q$5/'Weighting Factors'!$Q$14) -> 1.097 | CJ49: 259380 | CK49: =CJ49*'Weighting Factors'!$S$7 -> 259380 | CL49: 284540 | CM49: =AM49/'Weighting Factors'!$Q$5 -> 62.3 | CN49: 0 | CO49: 0 | CP49: 0 | CQ49: 0 | CR49: =SUM((AV49*'Weighting Factors'!$Q$5)+'2021 Legal Max'!BA49)*CQ49 -> 0 | CS49: 0 | CT49: 0.4254 | CU49: 0 | CV49: 10.2 | CW49: 903.7 | CX49: ='LOB Transfers'!G48 -> 127496 | CY49: ='LOB Transfers'!J48 -> 0 | CZ49: D0235
A50: 237 | B50: Smith | C50: Smith Center | D50: 396 | E50: 0 | F50: 396 | G50: 423.3 | H50: 0 | I50: 423.3 | J50: 399 | K50: 0 | L50: 399 | M50: =IF(ISNA(VLOOKUP($CZ50,'Audit Values'!$A:$BW,2,FALSE)),'Preliminary SO66'!C49,VLOOKUP($CZ50,'Audit Values'!$A:$BW,73,FALSE)) -> 394.9 | N50: =IF(ISNA(VLOOKUP($CZ50,'Audit Values'!$A:$BW,2,FALSE)),'Preliminary SO66'!F49,VLOOKUP($CZ50,'Audit Values'!$A$2:$BW$381,4,FALSE)) -> 0 | O50: 394.9 | P50: =IF('Military Provision'!J51="YES", MAX('2021 Legal Max'!L50,'2021 Legal Max'!I50,AVERAGE('2021 Legal Max'!F50,'2021 Legal Max'!I50,'2021 Legal Max'!L50)), MAX(L50, I50)) -> 423.3 | Q50: =IF(ISNA(VLOOKUP($CZ50,'Audit Values'!$A:BU,2,FALSE)),'Preliminary SO66'!AL49,VLOOKUP($CZ50,'Audit Values'!$A$2:$BU323,58,FALSE)) -> 2.5 | R50: 0 | S50: 425.8 | T50: 188 | U50: =IF(ISNA(VLOOKUP($CZ50,'Audit Values'!$A:$BW,2,FALSE)),'Preliminary SO66'!AM49,VLOOKUP($CZ50,'Audit Values'!$A:$BW,62,FALSE)) -> 3.7 | V50: =(U50/6)*'Weighting Factors'!$Q$7 -> 0.2 | W50: =IF(ISNA(VLOOKUP($CZ50,'Audit Values'!$A:$BW,2,FALSE)),'Preliminary SO66'!AN49,VLOOKUP($CZ50,'Audit Values'!$A:$BW,61,FALSE)) -> 3 | X50: =W50*'Weighting Factors'!$Q$8 -> 0.6 | Y50: 0.6 | Z50: =IF(ISNA(VLOOKUP($CZ50,'Audit Values'!$A:$BW,2,FALSE)),'Preliminary SO66'!AO49,VLOOKUP($CZ50,'Audit Values'!$A:$BW,60,FALSE)) -> 135.9 | AA50: =Z50/6*'Weighting Factors'!$Q$6 -> 11.3 | AB50: =IF(ISNA(VLOOKUP($CZ50,'Audit Values'!$A:$BU,2,FALSE)),'Preliminary SO66'!AS49,VLOOKUP($CZ50,'Audit Values'!$A:$BU,63,FALSE)) -> 405 | AC50: 0 | AD50: =IF(ISNA(VLOOKUP($CZ50,'Audit Values'!$A:$BU,2,FALSE)),'Preliminary SO66'!AP49,VLOOKUP($CZ50,'Audit Values'!$A:$BU,64,FALSE)) -> 127 | AE50: =IF(A50=207, AD50,MAX(AC50,AD50))*'Weighting Factors'!$Q$9 -> 61.5 | AF50: 0 | AG50: =IF(ISNA(VLOOKUP($CZ50,'Audit Values'!$A:$BW,2,FALSE)),'Preliminary SO66'!AG49,VLOOKUP($CZ50,'Audit Values'!$A$2:$BW$385,70,FALSE)) -> 0 | AH50: 0 | AI50: =IF(ISNA(VLOOKUP($CZ50,'Audit Values'!$A:$BU,2,FALSE)),'Preliminary SO66'!AQ49,VLOOKUP($CZ50,'Audit Values'!$A:$BU,65,FALSE)) -> 0 | AJ50: =AI50*'Weighting Factors'!$Q$10 -> 0 | AK50: =IF(ISNA(VLOOKUP($CZ50,'Audit Values'!$A:$BU,2,FALSE)),'Preliminary SO66'!AR49,VLOOKUP($CZ50,'Audit Values'!$A:$BU,66,FALSE)) -> 129 | AM50: 179722 | AN50: 192215 | AO50: =MAX(AN50, AM50)/'Weighting Factors'!$Q$5 -> 42.1 | AP50: =CN50/'Weighting Factors'!$Q$5 -> 0 | AQ50: 0 | AR50: =CS50/'Weighting Factors'!$Q$5 -> 0 | AS50: 538248 | AT50: =AS50/'Weighting Factors'!$Q$5 -> 117.8 | AU50: =IF(ISNA(VLOOKUP($CZ50,'Audit Values'!$A:$BU,2,FALSE)),'Preliminary SO66'!X49,VLOOKUP($CZ50,'Audit Values'!$A$2:$BU$385,47,FALSE)) -> 0 | AV50: 847.1 | AW50: 729.3 | AX50: =IF(ISNA(VLOOKUP($CZ50,'Audit Values'!$A$2:$BU$385,2,FALSE)),'Preliminary SO66'!AA49,VLOOKUP($CZ50,'Audit Values'!$A$2:$BU$385,41,FALSE)) -> 0 | AY50: =IF(ISNA(VLOOKUP($CZ50,'Audit Values'!$A$2:$BU$385,2,FALSE)),'Preliminary SO66'!AB49,VLOOKUP($CZ50,'Audit Values'!$A$2:$BU$385,42,FALSE)) -> 0 | AZ50: 0 | BA50: =SUM(AX50*'Weighting Factors'!$T$10)+('2021 Legal Max'!AY50*'Weighting Factors'!$T$11)+('2021 Legal Max'!AZ50*'Weighting Factors'!$T$12) -> 0 | BB50: 0 | BC50: =IF(ISNA(VLOOKUP($CZ50,'Audit Values'!$A$2:$BU$385,2,FALSE)),"",IF(AND('Weighting Factors'!H50>0,VLOOKUP($CZ50,'Audit Values'!$A$2:$BU$385,51,FALSE)<'Weighting Factors'!H50),'Weighting Factors'!H50,VLOOKUP($CZ50,'Audit Values'!$A$2:$BU$385,50,FALSE))) -> 16 | BD50: =IF(ISNA(VLOOKUP($CZ50,'Audit Values'!$A$2:$BV$385,2,FALSE)),"",VLOOKUP($CZ50,'Audit Values'!$A$2:$BV$385,51,FALSE)) -> A | BE50: =IF('Weighting Factors'!H50="","",IF('Weighting Factors'!J50="Pending","PX","R")) ->  | BF50: =SUM((S50+T50+Y50+AA50+AE50+AH50+AJ50++AO50+AP50+AQ50+AU50+AR50)*'Weighting Factors'!$Q$5)+'2021 Legal Max'!BA50+'2021 Legal Max'!BB50 -> 3332172 | BG50: =SUM((AV50+AR50)*'Weighting Factors'!$Q$5)+BA50+'2021 Legal Max'!BB50 -> 3870400 | BH50: =IF('Weighting Factors'!H50>0,'Weighting Factors'!H50,'Preliminary SO66'!AV49) -> 3953556 | BI50: 3870400 | BJ50: ='Weighting Factors'!G50 -> 0 | BK50: ='Weighting Factors'!F50 -> 0 | BL50: ='Weighting Factors'!E50 -> 0 | BM50: 0 | BN50: 3870400 | BO50: =SUM((S50+T50+Y50+AA50+AE50+AH50+AJ50+AO50+AP50+AQ50+AR50)*'Weighting Factors'!Q$12)+(MAX(AS50,'Weighting Factors'!B50)) -> 3946649 | BP50: 0.33 | BQ50: 1302394 | BR50: 1314100 | BS50: 1302394 | BT50: 0.33 | BU50: 0 | BV50: FALSE | BW50: 0 | BX50: 0 | BY50: 0 | BZ50: TRUE | CA50: 155.6775 | CB50: 0.441446 | CC50: 188 | CD50: 0 | CE50: 599 | CF50: 0.215 | CG50: =IF(CF50<0.06,1,IF(CF50>=18.29,52,MATCH(CF50-0.001,'Weighting Factors'!$Y$5:$Y$156)+1)) -> 16 | CH50: =VLOOKUP(CG50, 'Weighting Factors'!$W$5:$Z$56,4) -> 1270 | CI50: =('Weighting Factors'!$Q$5/'Weighting Factors'!$Q$14) -> 1.097 | CJ50: 163830 | CK50: =CJ50*'Weighting Factors'!$S$7 -> 163830 | CL50: 179722 | CM50: =AM50/'Weighting Factors'!$Q$5 -> 39.3 | CN50: 0 | CO50: 0 | CP50: 0 | CQ50: 0 | CR50: =SUM((AV50*'Weighting Factors'!$Q$5)+'2021 Legal Max'!BA50)*CQ50 -> 0 | CS50: 0 | CT50: 0.3136 | CU50: 0 | CV50: 0 | CW50: 847.1 | CX50: ='LOB Transfers'!G49 -> 94814 | CY50: ='LOB Transfers'!J49 -> 912 | CZ50: D0237
A51: 239 | B51: Ottawa | C51: North Ottawa County | D51: 606 | E51: 0 | F51: 606 | G51: 594.8 | H51: 0 | I51: 594.8 | J51: 618.6 | K51: 0 | L51: 618.6 | M51: =IF(ISNA(VLOOKUP($CZ51,'Audit Values'!$A:$BW,2,FALSE)),'Preliminary SO66'!C50,VLOOKUP($CZ51,'Audit Values'!$A:$BW,73,FALSE)) -> 595.4 | N51: =IF(ISNA(VLOOKUP($CZ51,'Audit Values'!$A:$BW,2,FALSE)),'Preliminary SO66'!F50,VLOOKUP($CZ51,'Audit Values'!$A$2:$BW$381,4,FALSE)) -> 0 | O51: 595.4 | P51: =IF('Military Provision'!J52="YES", MAX('2021 Legal Max'!L51,'2021 Legal Max'!I51,AVERAGE('2021 Legal Max'!F51,'2021 Legal Max'!I51,'2021 Legal Max'!L51)), MAX(L51, I51)) -> 618.6 | Q51: =IF(ISNA(VLOOKUP($CZ51,'Audit Values'!$A:BU,2,FALSE)),'Preliminary SO66'!AL50,VLOOKUP($CZ51,'Audit Values'!$A$2:$BU324,58,FALSE)) -> 0 | R51: 0 | S51: 618.6 | T51: 232.6 | U51: =IF(ISNA(VLOOKUP($CZ51,'Audit Values'!$A:$BW,2,FALSE)),'Preliminary SO66'!AM50,VLOOKUP($CZ51,'Audit Values'!$A:$BW,62,FALSE)) -> 0 | V51: =(U51/6)*'Weighting Factors'!$Q$7 -> 0 | W51: =IF(ISNA(VLOOKUP($CZ51,'Audit Values'!$A:$BW,2,FALSE)),'Preliminary SO66'!AN50,VLOOKUP($CZ51,'Audit Values'!$A:$BW,61,FALSE)) -> 0 | X51: =W51*'Weighting Factors'!$Q$8 -> 0 | Y51: 0 | Z51: =IF(ISNA(VLOOKUP($CZ51,'Audit Values'!$A:$BW,2,FALSE)),'Preliminary SO66'!AO50,VLOOKUP($CZ51,'Audit Values'!$A:$BW,60,FALSE)) -> 111.8 | AA51: =Z51/6*'Weighting Factors'!$Q$6 -> 9.3 | AB51: =IF(ISNA(VLOOKUP($CZ51,'Audit Values'!$A:$BU,2,FALSE)),'Preliminary SO66'!AS50,VLOOKUP($CZ51,'Audit Values'!$A:$BU,63,FALSE)) -> 602 | AC51: 0 | AD51: =IF(ISNA(VLOOKUP($CZ51,'Audit Values'!$A:$BU,2,FALSE)),'Preliminary SO66'!AP50,VLOOKUP($CZ51,'Audit Values'!$A:$BU,64,FALSE)) -> 172 | AE51: =IF(A51=207, AD51,MAX(AC51,AD51))*'Weighting Factors'!$Q$9 -> 83.2 | AF51: 0 | AG51: =IF(ISNA(VLOOKUP($CZ51,'Audit Values'!$A:$BW,2,FALSE)),'Preliminary SO66'!AG50,VLOOKUP($CZ51,'Audit Values'!$A$2:$BW$385,70,FALSE)) -> 0 | AH51: 0 | AI51: =IF(ISNA(VLOOKUP($CZ51,'Audit Values'!$A:$BU,2,FALSE)),'Preliminary SO66'!AQ50,VLOOKUP($CZ51,'Audit Values'!$A:$BU,65,FALSE)) -> 0 | AJ51: =AI51*'Weighting Factors'!$Q$10 -> 0 | AK51: =IF(ISNA(VLOOKUP($CZ51,'Audit Values'!$A:$BU,2,FALSE)),'Preliminary SO66'!AR50,VLOOKUP($CZ51,'Audit Values'!$A:$BU,66,FALSE)) -> 165 | AM51: 204536 | AN51: 234202 | AO51: =MAX(AN51, AM51)/'Weighting Factors'!$Q$5 -> 51.3 | AP51: =CN51/'Weighting Factors'!$Q$5 -> 0 | AQ51: 0 | AR51: =CS51/'Weighting Factors'!$Q$5 -> 0 | AS51: 754288 | AT51: =AS51/'Weighting Factors'!$Q$5 -> 165.1 | AU51: =IF(ISNA(VLOOKUP($CZ51,'Audit Values'!$A:$BU,2,FALSE)),'Preliminary SO66'!X50,VLOOKUP($CZ51,'Audit Values'!$A$2:$BU$385,47,FALSE)) -> 0 | AV51: 1160.1 | AW51: 995 | AX51: =IF(ISNA(VLOOKUP($CZ51,'Audit Values'!$A$2:$BU$385,2,FALSE)),'Preliminary SO66'!AA50,VLOOKUP($CZ51,'Audit Values'!$A$2:$BU$385,41,FALSE)) -> 0 | AY51: =IF(ISNA(VLOOKUP($CZ51,'Audit Values'!$A$2:$BU$385,2,FALSE)),'Preliminary SO66'!AB50,VLOOKUP($CZ51,'Audit Values'!$A$2:$BU$385,42,FALSE)) -> 0 | AZ51: 0 | BA51: =SUM(AX51*'Weighting Factors'!$T$10)+('2021 Legal Max'!AY51*'Weighting Factors'!$T$11)+('2021 Legal Max'!AZ51*'Weighting Factors'!$T$12) -> 0 | BB51: 0 | BC51: =IF(ISNA(VLOOKUP($CZ51,'Audit Values'!$A$2:$BU$385,2,FALSE)),"",IF(AND('Weighting Factors'!H51>0,VLOOKUP($CZ51,'Audit Values'!$A$2:$BU$385,51,FALSE)<'Weighting Factors'!H51),'Weighting Factors'!H51,VLOOKUP($CZ51,'Audit Values'!$A$2:$BU$385,50,FALSE))) -> 24 | BD51: =IF(ISNA(VLOOKUP($CZ51,'Audit Values'!$A$2:$BV$385,2,FALSE)),"",VLOOKUP($CZ51,'Audit Values'!$A$2:$BV$385,51,FALSE)) -> A | BE51: =IF('Weighting Factors'!H51="","",IF('Weighting Factors'!J51="Pending","PX","R")) ->  | BF51: =SUM((S51+T51+Y51+AA51+AE51+AH51+AJ51++AO51+AP51+AQ51+AU51+AR51)*'Weighting Factors'!$Q$5)+'2021 Legal Max'!BA51+'2021 Legal Max'!BB51 -> 4546155 | BG51: =SUM((AV51+AR51)*'Weighting Factors'!$Q$5)+BA51+'2021 Legal Max'!BB51 -> 5300497 | BH51: =IF('Weighting Factors'!H51>0,'Weighting Factors'!H51,'Preliminary SO66'!AV50) -> 5347101 | BI51: 5300497 | BJ51: ='Weighting Factors'!G51 -> 0 | BK51: ='Weighting Factors'!F51 -> 0 | BL51: ='Weighting Factors'!E51 -> 0 | BM51: 0 | BN51: 5300497 | BO51: =SUM((S51+T51+Y51+AA51+AE51+AH51+AJ51+AO51+AP51+AQ51+AR51)*'Weighting Factors'!Q$12)+(MAX(AS51,'Weighting Factors'!B51)) -> 5339248 | BP51: 0.33 | BQ51: 1761952 | BR51: 1777288 | BS51: 1761952 | BT51: 0.33 | BU51: 0 | BV51: FALSE | BW51: 0 | BX51: 0 | BY51: 0 | BZ51: TRUE | CA51: 394.2675 | CB51: 0.375942 | CC51: 232.6 | CD51: 0 | CE51: 418.5 | CF51: 0.394 | CG51: =IF(CF51<0.06,1,IF(CF51>=18.29,52,MATCH(CF51-0.001,'Weighting Factors'!$Y$5:$Y$156)+1)) -> 23 | CH51: =VLOOKUP(CG51, 'Weighting Factors'!$W$5:$Z$56,4) -> 1130 | CI51: =('Weighting Factors'!$Q$5/'Weighting Factors'!$Q$14) -> 1.097 | CJ51: 186450 | CK51: =CJ51*'Weighting Factors'!$S$7 -> 186450 | CL51: 204536 | CM51: =AM51/'Weighting Factors'!$Q$5 -> 44.8 | CN51: 0 | CO51: 0 | CP51: 0 | CQ51: 0 | CR51: =SUM((AV51*'Weighting Factors'!$Q$5)+'2021 Legal Max'!BA51)*CQ51 -> 0 | CS51: 0 | CT51: 0.2857 | CU51: 0 | CV51: 0 | CW51: 1160.1 | CX51: ='LOB Transfers'!G50 -> 126332 | CY51: ='LOB Transfers'!J50 -> 0 | CZ51: D0239
A52: 240 | B52: Ottawa | C52: Twin Valley | D52: 582.6 | E52: 0 | F52: 582.6 | G52: 562 | H52: 0 | I52: 562 | J52: 524.5 | K52: 0 | L52: 524.5 | M52: =IF(ISNA(VLOOKUP($CZ52,'Audit Values'!$A:$BW,2,FALSE)),'Preliminary SO66'!C51,VLOOKUP($CZ52,'Audit Values'!$A:$BW,73,FALSE)) -> 536 | N52: =IF(ISNA(VLOOKUP($CZ52,'Audit Values'!$A:$BW,2,FALSE)),'Preliminary SO66'!F51,VLOOKUP($CZ52,'Audit Values'!$A$2:$BW$381,4,FALSE)) -> 0 | O52: 536 | P52: =IF('Military Provision'!J53="YES", MAX('2021 Legal Max'!L52,'2021 Legal Max'!I52,AVERAGE('2021 Legal Max'!F52,'2021 Legal Max'!I52,'2021 Legal Max'!L52)), MAX(L52, I52)) -> 562 | Q52: =IF(ISNA(VLOOKUP($CZ52,'Audit Values'!$A:BU,2,FALSE)),'Preliminary SO66'!AL51,VLOOKUP($CZ52,'Audit Values'!$A$2:$BU325,58,FALSE)) -> 12.5 | R52: 0 | S52: 574.5 | T52: 224.6 | U52: =IF(ISNA(VLOOKUP($CZ52,'Audit Values'!$A:$BW,2,FALSE)),'Preliminary SO66'!AM51,VLOOKUP($CZ52,'Audit Values'!$A:$BW,62,FALSE)) -> 0 | V52: =(U52/6)*'Weighting Factors'!$Q$7 -> 0 | W52: =IF(ISNA(VLOOKUP($CZ52,'Audit Values'!$A:$BW,2,FALSE)),'Preliminary SO66'!AN51,VLOOKUP($CZ52,'Audit Values'!$A:$BW,61,FALSE)) -> 0 | X52: =W52*'Weighting Factors'!$Q$8 -> 0 | Y52: 0 | Z52: =IF(ISNA(VLOOKUP($CZ52,'Audit Values'!$A:$BW,2,FALSE)),'Preliminary SO66'!AO51,VLOOKUP($CZ52,'Audit Values'!$A:$BW,60,FALSE)) -> 181.9 | AA52: =Z52/6*'Weighting Factors'!$Q$6 -> 15.2 | AB52: =IF(ISNA(VLOOKUP($CZ52,'Audit Values'!$A:$BU,2,FALSE)),'Preliminary SO66'!AS51,VLOOKUP($CZ52,'Audit Values'!$A:$BU,63,FALSE)) -> 561 | AC52: 0 | AD52: =IF(ISNA(VLOOKUP($CZ52,'Audit Values'!$A:$BU,2,FALSE)),'Preliminary SO66'!AP51,VLOOKUP($CZ52,'Audit Values'!$A:$BU,64,FALSE)) -> 209 | AE52: =IF(A52=207, AD52,MAX(AC52,AD52))*'Weighting Factors'!$Q$9 -> 101.2 | AF52: 3.3 | AG52: =IF(ISNA(VLOOKUP($CZ52,'Audit Values'!$A:$BW,2,FALSE)),'Preliminary SO66'!AG51,VLOOKUP($CZ52,'Audit Values'!$A$2:$BW$385,70,FALSE)) -> 8.3 | AH52: 8.3 | AI52: =IF(ISNA(VLOOKUP($CZ52,'Audit Values'!$A:$BU,2,FALSE)),'Preliminary SO66'!AQ51,VLOOKUP($CZ52,'Audit Values'!$A:$BU,65,FALSE)) -> 0 | AJ52: =AI52*'Weighting Factors'!$Q$10 -> 0 | AK52: =IF(ISNA(VLOOKUP($CZ52,'Audit Values'!$A:$BU,2,FALSE)),'Preliminary SO66'!AR51,VLOOKUP($CZ52,'Audit Values'!$A:$BU,66,FALSE)) -> 158 | AM52: 181992 | AN52: 209549 | AO52: =MAX(AN52, AM52)/'Weighting Factors'!$Q$5 -> 45.9 | AP52: =CN52/'Weighting Factors'!$Q$5 -> 0 | AQ52: 0 | AR52: =CS52/'Weighting Factors'!$Q$5 -> 0 | AS52: 576198 | AT52: =AS52/'Weighting Factors'!$Q$5 -> 126.1 | AU52: =IF(ISNA(VLOOKUP($CZ52,'Audit Values'!$A:$BU,2,FALSE)),'Preliminary SO66'!X51,VLOOKUP($CZ52,'Audit Values'!$A$2:$BU$385,47,FALSE)) -> 0 | AV52: 1095.8 | AW52: 969.7 | AX52: =IF(ISNA(VLOOKUP($CZ52,'Audit Values'!$A$2:$BU$385,2,FALSE)),'Preliminary SO66'!AA51,VLOOKUP($CZ52,'Audit Values'!$A$2:$BU$385,41,FALSE)) -> 0 | AY52: =IF(ISNA(VLOOKUP($CZ52,'Audit Values'!$A$2:$BU$385,2,FALSE)),'Preliminary SO66'!AB51,VLOOKUP($CZ52,'Audit Values'!$A$2:$BU$385,42,FALSE)) -> 0 | AZ52: 0 | BA52: =SUM(AX52*'Weighting Factors'!$T$10)+('2021 Legal Max'!AY52*'Weighting Factors'!$T$11)+('2021 Legal Max'!AZ52*'Weighting Factors'!$T$12) -> 0 | BB52: 0 | BC52: =IF(ISNA(VLOOKUP($CZ52,'Audit Values'!$A$2:$BU$385,2,FALSE)),"",IF(AND('Weighting Factors'!H52>0,VLOOKUP($CZ52,'Audit Values'!$A$2:$BU$385,51,FALSE)<'Weighting Factors'!H52),'Weighting Factors'!H52,VLOOKUP($CZ52,'Audit Values'!$A$2:$BU$385,50,FALSE))) -> 20 | BD52: =IF(ISNA(VLOOKUP($CZ52,'Audit Values'!$A$2:$BV$385,2,FALSE)),"",VLOOKUP($CZ52,'Audit Values'!$A$2:$BV$385,51,FALSE)) -> A | BE52: =IF('Weighting Factors'!H52="","",IF('Weighting Factors'!J52="Pending","PX","R")) ->  | BF52: =SUM((S52+T52+Y52+AA52+AE52+AH52+AJ52++AO52+AP52+AQ52+AU52+AR52)*'Weighting Factors'!$Q$5)+'2021 Legal Max'!BA52+'2021 Legal Max'!BB52 -> 4430559 | BG52: =SUM((AV52+AR52)*'Weighting Factors'!$Q$5)+BA52+'2021 Legal Max'!BB52 -> 5006710 | BH52: =IF('Weighting Factors'!H52>0,'Weighting Factors'!H52,'Preliminary SO66'!AV51) -> 5068849 | BI52: 5006710 | BJ52: ='Weighting Factors'!G52 -> 0 | BK52: ='Weighting Factors'!F52 -> 0 | BL52: ='Weighting Factors'!E52 -> 0 | BM52: 0 | BN52: 5006710 | BO52: =SUM((S52+T52+Y52+AA52+AE52+AH52+AJ52+AO52+AP52+AQ52+AR52)*'Weighting Factors'!Q$12)+(MAX(AS52,'Weighting Factors'!B52)) -> 5062462 | BP52: 0.33 | BQ52: 1670612 | BR52: 1685282 | BS52: 1670612 | BT52: 0.33 | BU52: 0 | BV52: FALSE | BW52: 0 | BX52: 0 | BY52: 0 | BZ52: TRUE | CA52: 339.6938 | CB52: 0.390925 | CC52: 224.6 | CD52: 0 | CE52: 269.3 | CF52: 0.587 | CG52: =IF(CF52<0.06,1,IF(CF52>=18.29,52,MATCH(CF52-0.001,'Weighting Factors'!$Y$5:$Y$156)+1)) -> 27 | CH52: =VLOOKUP(CG52, 'Weighting Factors'!$W$5:$Z$56,4) -> 1050 | CI52: =('Weighting Factors'!$Q$5/'Weighting Factors'!$Q$14) -> 1.097 | CJ52: 165900 | CK52: =CJ52*'Weighting Factors'!$S$7 -> 165900 | CL52: 181992 | CM52: =AM52/'Weighting Factors'!$Q$5 -> 39.8 | CN52: 0 | CO52: 0 | CP52: 0 | CQ52: 0 | CR52: =SUM((AV52*'Weighting Factors'!$Q$5)+'2021 Legal Max'!BA52)*CQ52 -> 0 | CS52: 0 | CT52: 0.3725 | CU52: 0 | CV52: 3.3 | CW52: 1095.8 | CX52: ='LOB Transfers'!G51 -> 156035 | CY52: ='LOB Transfers'!J51 -> 0 | CZ52: D0240
A53: 241 | B53: Wallace | C53: Wallace County Schools | D53: 199.5 | E53: 0 | F53: 199.5 | G53: 198 | H53: 0 | I53: 198 | J53: 198 | K53: 0 | L53: 198 | M53: =IF(ISNA(VLOOKUP($CZ53,'Audit Values'!$A:$BW,2,FALSE)),'Preliminary SO66'!C52,VLOOKUP($CZ53,'Audit Values'!$A:$BW,73,FALSE)) -> 208.5 | N53: =IF(ISNA(VLOOKUP($CZ53,'Audit Values'!$A:$BW,2,FALSE)),'Preliminary SO66'!F52,VLOOKUP($CZ53,'Audit Values'!$A$2:$BW$381,4,FALSE)) -> 0 | O53: 208.5 | P53: =IF('Military Provision'!J54="YES", MAX('2021 Legal Max'!L53,'2021 Legal Max'!I53,AVERAGE('2021 Legal Max'!F53,'2021 Legal Max'!I53,'2021 Legal Max'!L53)), MAX(L53, I53)) -> 198 | Q53: =IF(ISNA(VLOOKUP($CZ53,'Audit Values'!$A:BU,2,FALSE)),'Preliminary SO66'!AL52,VLOOKUP($CZ53,'Audit Values'!$A$2:$BU326,58,FALSE)) -> 0 | R53: 0 | S53: 198 | T53: 149.4 | U53: =IF(ISNA(VLOOKUP($CZ53,'Audit Values'!$A:$BW,2,FALSE)),'Preliminary SO66'!AM52,VLOOKUP($CZ53,'Audit Values'!$A:$BW,62,FALSE)) -> 0 | V53: =(U53/6)*'Weighting Factors'!$Q$7 -> 0 | W53: =IF(ISNA(VLOOKUP($CZ53,'Audit Values'!$A:$BW,2,FALSE)),'Preliminary SO66'!AN52,VLOOKUP($CZ53,'Audit Values'!$A:$BW,61,FALSE)) -> 4 | X53: =W53*'Weighting Factors'!$Q$8 -> 0.7 | Y53: 0.7 | Z53: =IF(ISNA(VLOOKUP($CZ53,'Audit Values'!$A:$BW,2,FALSE)),'Preliminary SO66'!AO52,VLOOKUP($CZ53,'Audit Values'!$A:$BW,60,FALSE)) -> 0 | AA53: =Z53/6*'Weighting Factors'!$Q$6 -> 0 | AB53: =IF(ISNA(VLOOKUP($CZ53,'Audit Values'!$A:$BU,2,FALSE)),'Preliminary SO66'!AS52,VLOOKUP($CZ53,'Audit Values'!$A:$BU,63,FALSE)) -> 209 | AC53: 0 | AD53: =IF(ISNA(VLOOKUP($CZ53,'Audit Values'!$A:$BU,2,FALSE)),'Preliminary SO66'!AP52,VLOOKUP($CZ53,'Audit Values'!$A:$BU,64,FALSE)) -> 51 | AE53: =IF(A53=207, AD53,MAX(AC53,AD53))*'Weighting Factors'!$Q$9 -> 24.7 | AF53: 0 | AG53: =IF(ISNA(VLOOKUP($CZ53,'Audit Values'!$A:$BW,2,FALSE)),'Preliminary SO66'!AG52,VLOOKUP($CZ53,'Audit Values'!$A$2:$BW$385,70,FALSE)) -> 0 | AH53: 0 | AI53: =IF(ISNA(VLOOKUP($CZ53,'Audit Values'!$A:$BU,2,FALSE)),'Preliminary SO66'!AQ52,VLOOKUP($CZ53,'Audit Values'!$A:$BU,65,FALSE)) -> 0 | AJ53: =AI53*'Weighting Factors'!$Q$10 -> 0 | AK53: =IF(ISNA(VLOOKUP($CZ53,'Audit Values'!$A:$BU,2,FALSE)),'Preliminary SO66'!AR52,VLOOKUP($CZ53,'Audit Values'!$A:$BU,66,FALSE)) -> 60 | AM53: 98730 | AN53: 107471 | AO53: =MAX(AN53, AM53)/'Weighting Factors'!$Q$5 -> 23.5 | AP53: =CN53/'Weighting Factors'!$Q$5 -> 0 | AQ53: 0 | AR53: =CS53/'Weighting Factors'!$Q$5 -> 0 | AS53: 144430 | AT53: =AS53/'Weighting Factors'!$Q$5 -> 31.6 | AU53: =IF(ISNA(VLOOKUP($CZ53,'Audit Values'!$A:$BU,2,FALSE)),'Preliminary SO66'!X52,VLOOKUP($CZ53,'Audit Values'!$A$2:$BU$385,47,FALSE)) -> 0 | AV53: 427.9 | AW53: 396.3 | AX53: =IF(ISNA(VLOOKUP($CZ53,'Audit Values'!$A$2:$BU$385,2,FALSE)),'Preliminary SO66'!AA52,VLOOKUP($CZ53,'Audit Values'!$A$2:$BU$385,41,FALSE)) -> 0 | AY53: =IF(ISNA(VLOOKUP($CZ53,'Audit Values'!$A$2:$BU$385,2,FALSE)),'Preliminary SO66'!AB52,VLOOKUP($CZ53,'Audit Values'!$A$2:$BU$385,42,FALSE)) -> 0 | AZ53: 0 | BA53: =SUM(AX53*'Weighting Factors'!$T$10)+('2021 Legal Max'!AY53*'Weighting Factors'!$T$11)+('2021 Legal Max'!AZ53*'Weighting Factors'!$T$12) -> 0 | BB53: 0 | BC53: =IF(ISNA(VLOOKUP($CZ53,'Audit Values'!$A$2:$BU$385,2,FALSE)),"",IF(AND('Weighting Factors'!H53>0,VLOOKUP($CZ53,'Audit Values'!$A$2:$BU$385,51,FALSE)<'Weighting Factors'!H53),'Weighting Factors'!H53,VLOOKUP($CZ53,'Audit Values'!$A$2:$BU$385,50,FALSE))) -> 4 | BD53: =IF(ISNA(VLOOKUP($CZ53,'Audit Values'!$A$2:$BV$385,2,FALSE)),"",VLOOKUP($CZ53,'Audit Values'!$A$2:$BV$385,51,FALSE)) -> A | BE53: =IF('Weighting Factors'!H53="","",IF('Weighting Factors'!J53="Pending","PX","R")) ->  | BF53: =SUM((S53+T53+Y53+AA53+AE53+AH53+AJ53++AO53+AP53+AQ53+AU53+AR53)*'Weighting Factors'!$Q$5)+'2021 Legal Max'!BA53+'2021 Legal Max'!BB53 -> 1810695 | BG53: =SUM((AV53+AR53)*'Weighting Factors'!$Q$5)+BA53+'2021 Legal Max'!BB53 -> 1955075 | BH53: =IF('Weighting Factors'!H53>0,'Weighting Factors'!H53,'Preliminary SO66'!AV52) -> 2018584 | BI53: 1955075 | BJ53: ='Weighting Factors'!G53 -> 0 | BK53: ='Weighting Factors'!F53 -> -14256 | BL53: ='Weighting Factors'!E53 -> 0 | BM53: -14256 | BN53: 1940819 | BO53: =SUM((S53+T53+Y53+AA53+AE53+AH53+AJ53+AO53+AP53+AQ53+AR53)*'Weighting Factors'!Q$12)+(MAX(AS53,'Weighting Factors'!B53)) -> 1982924 | BP53: 0.3 | BQ53: 594877 | BR53: 610255 | BS53: 594877 | BT53: 0.3 | BU53: 0 | BV53: TRUE | BW53: 946.19 | BX53: 0.75456 | BY53: 149.4 | BZ53: FALSE | CA53: 0 | CB53: 0 | CC53: 0 | CD53: 0 | CE53: 681.5 | CF53: 0.088 | CG53: =IF(CF53<0.06,1,IF(CF53>=18.29,52,MATCH(CF53-0.001,'Weighting Factors'!$Y$5:$Y$156)+1)) -> 4 | CH53: =VLOOKUP(CG53, 'Weighting Factors'!$W$5:$Z$56,4) -> 1500 | CI53: =('Weighting Factors'!$Q$5/'Weighting Factors'!$Q$14) -> 1.097 | CJ53: 90000 | CK53: =CJ53*'Weighting Factors'!$S$7 -> 90000 | CL53: 98730 | CM53: =AM53/'Weighting Factors'!$Q$5 -> 21.6 | CN53: 0 | CO53: 0 | CP53: 0 | CQ53: 0 | CR53: =SUM((AV53*'Weighting Factors'!$Q$5)+'2021 Legal Max'!BA53)*CQ53 -> 0 | CS53: 0 | CT53: 0.244 | CU53: 0 | CV53: 0 | CW53: 427.9 | CX53: ='LOB Transfers'!G52 -> 34324 | CY53: ='LOB Transfers'!J52 -> 952 | CZ53: D0241
A54: 242 | B54: Wallace | C54: Weskan | D54: 103.5 | E54: 0 | F54: 103.5 | G54: 99.5 | H54: 0 | I54: 99.5 | J54: 103.5 | K54: 0 | L54: 103.5 | M54: =IF(ISNA(VLOOKUP($CZ54,'Audit Values'!$A:$BW,2,FALSE)),'Preliminary SO66'!C53,VLOOKUP($CZ54,'Audit Values'!$A:$BW,73,FALSE)) -> 102.5 | N54: =IF(ISNA(VLOOKUP($CZ54,'Audit Values'!$A:$BW,2,FALSE)),'Preliminary SO66'!F53,VLOOKUP($CZ54,'Audit Values'!$A$2:$BW$381,4,FALSE)) -> 0 | O54: 102.5 | P54: =IF('Military Provision'!J55="YES", MAX('2021 Legal Max'!L54,'2021 Legal Max'!I54,AVERAGE('2021 Legal Max'!F54,'2021 Legal Max'!I54,'2021 Legal Max'!L54)), MAX(L54, I54)) -> 103.5 | Q54: =IF(ISNA(VLOOKUP($CZ54,'Audit Values'!$A:BU,2,FALSE)),'Preliminary SO66'!AL53,VLOOKUP($CZ54,'Audit Values'!$A$2:$BU327,58,FALSE)) -> 0 | R54: 0 | S54: 103.5 | T54: 104 | U54: =IF(ISNA(VLOOKUP($CZ54,'Audit Values'!$A:$BW,2,FALSE)),'Preliminary SO66'!AM53,VLOOKUP($CZ54,'Audit Values'!$A:$BW,62,FALSE)) -> 7.8 | V54: =(U54/6)*'Weighting Factors'!$Q$7 -> 0.5 | W54: =IF(ISNA(VLOOKUP($CZ54,'Audit Values'!$A:$BW,2,FALSE)),'Preliminary SO66'!AN53,VLOOKUP($CZ54,'Audit Values'!$A:$BW,61,FALSE)) -> 5 | X54: =W54*'Weighting Factors'!$Q$8 -> 0.9 | Y54: 0.9 | Z54: =IF(ISNA(VLOOKUP($CZ54,'Audit Values'!$A:$BW,2,FALSE)),'Preliminary SO66'!AO53,VLOOKUP($CZ54,'Audit Values'!$A:$BW,60,FALSE)) -> 14 | AA54: =Z54/6*'Weighting Factors'!$Q$6 -> 1.2 | AB54: =IF(ISNA(VLOOKUP($CZ54,'Audit Values'!$A:$BU,2,FALSE)),'Preliminary SO66'!AS53,VLOOKUP($CZ54,'Audit Values'!$A:$BU,63,FALSE)) -> 104 | AC54: 0 | AD54: =IF(ISNA(VLOOKUP($CZ54,'Audit Values'!$A:$BU,2,FALSE)),'Preliminary SO66'!AP53,VLOOKUP($CZ54,'Audit Values'!$A:$BU,64,FALSE)) -> 24 | AE54: =IF(A54=207, AD54,MAX(AC54,AD54))*'Weighting Factors'!$Q$9 -> 11.6 | AF54: 0 | AG54: =IF(ISNA(VLOOKUP($CZ54,'Audit Values'!$A:$BW,2,FALSE)),'Preliminary SO66'!AG53,VLOOKUP($CZ54,'Audit Values'!$A$2:$BW$385,70,FALSE)) -> 0 | AH54: 0 | AI54: =IF(ISNA(VLOOKUP($CZ54,'Audit Values'!$A:$BU,2,FALSE)),'Preliminary SO66'!AQ53,VLOOKUP($CZ54,'Audit Values'!$A:$BU,65,FALSE)) -> 0 | AJ54: =AI54*'Weighting Factors'!$Q$10 -> 0 | AK54: =IF(ISNA(VLOOKUP($CZ54,'Audit Values'!$A:$BU,2,FALSE)),'Preliminary SO66'!AR53,VLOOKUP($CZ54,'Audit Values'!$A:$BU,66,FALSE)) -> 28 | AM54: 43924 | AN54: 53158 | AO54: =MAX(AN54, AM54)/'Weighting Factors'!$Q$5 -> 11.6 | AP54: =CN54/'Weighting Factors'!$Q$5 -> 0 | AQ54: 0 | AR54: =CS54/'Weighting Factors'!$Q$5 -> 0 | AS54: 107536 | AT54: =AS54/'Weighting Factors'!$Q$5 -> 23.5 | AU54: =IF(ISNA(VLOOKUP($CZ54,'Audit Values'!$A:$BU,2,FALSE)),'Preliminary SO66'!X53,VLOOKUP($CZ54,'Audit Values'!$A$2:$BU$385,47,FALSE)) -> 0 | AV54: 256.3 | AW54: 232.8 | AX54: =IF(ISNA(VLOOKUP($CZ54,'Audit Values'!$A$2:$BU$385,2,FALSE)),'Preliminary SO66'!AA53,VLOOKUP($CZ54,'Audit Values'!$A$2:$BU$385,41,FALSE)) -> 0 | AY54: =IF(ISNA(VLOOKUP($CZ54,'Audit Values'!$A$2:$BU$385,2,FALSE)),'Preliminary SO66'!AB53,VLOOKUP($CZ54,'Audit Values'!$A$2:$BU$385,42,FALSE)) -> 0 | AZ54: 0 | BA54: =SUM(AX54*'Weighting Factors'!$T$10)+('2021 Legal Max'!AY54*'Weighting Factors'!$T$11)+('2021 Legal Max'!AZ54*'Weighting Factors'!$T$12) -> 0 | BB54: 0 | BC54: =IF(ISNA(VLOOKUP($CZ54,'Audit Values'!$A$2:$BU$385,2,FALSE)),"",IF(AND('Weighting Factors'!H54>0,VLOOKUP($CZ54,'Audit Values'!$A$2:$BU$385,51,FALSE)<'Weighting Factors'!H54),'Weighting Factors'!H54,VLOOKUP($CZ54,'Audit Values'!$A$2:$BU$385,50,FALSE))) -> 2 | BD54: =IF(ISNA(VLOOKUP($CZ54,'Audit Values'!$A$2:$BV$385,2,FALSE)),"",VLOOKUP($CZ54,'Audit Values'!$A$2:$BV$385,51,FALSE)) -> A | BE54: =IF('Weighting Factors'!H54="","",IF('Weighting Factors'!J54="Pending","PX","R")) ->  | BF54: =SUM((S54+T54+Y54+AA54+AE54+AH54+AJ54++AO54+AP54+AQ54+AU54+AR54)*'Weighting Factors'!$Q$5)+'2021 Legal Max'!BA54+'2021 Legal Max'!BB54 -> 1063663 | BG54: =SUM((AV54+AR54)*'Weighting Factors'!$Q$5)+BA54+'2021 Legal Max'!BB54 -> 1171035 | BH54: =IF('Weighting Factors'!H54>0,'Weighting Factors'!H54,'Preliminary SO66'!AV53) -> 1201647 | BI54: 1171035 | BJ54: ='Weighting Factors'!G54 -> 0 | BK54: ='Weighting Factors'!F54 -> -8559 | BL54: ='Weighting Factors'!E54 -> 0 | BM54: -8559 | BN54: 1162476 | BO54: =SUM((S54+T54+Y54+AA54+AE54+AH54+AJ54+AO54+AP54+AQ54+AR54)*'Weighting Factors'!Q$12)+(MAX(AS54,'Weighting Factors'!B54)) -> 1180278 | BP54: 0.33 | BQ54: 389492 | BR54: 399577 | BS54: 389492 | BT54: 0.33 | BU54: 0 | BV54: TRUE | BW54: 33.793 | BX54: 1.005054 | BY54: 104 | BZ54: FALSE | CA54: 0 | CB54: 0 | CC54: 0 | CD54: 0 | CE54: 243 | CF54: 0.115 | CG54: =IF(CF54<0.06,1,IF(CF54>=18.29,52,MATCH(CF54-0.001,'Weighting Factors'!$Y$5:$Y$156)+1)) -> 7 | CH54: =VLOOKUP(CG54, 'Weighting Factors'!$W$5:$Z$56,4) -> 1430 | CI54: =('Weighting Factors'!$Q$5/'Weighting Factors'!$Q$14) -> 1.097 | CJ54: 40040 | CK54: =CJ54*'Weighting Factors'!$S$7 -> 40040 | CL54: 43924 | CM54: =AM54/'Weighting Factors'!$Q$5 -> 9.6 | CN54: 0 | CO54: 0 | CP54: 0 | CQ54: 0 | CR54: =SUM((AV54*'Weighting Factors'!$Q$5)+'2021 Legal Max'!BA54)*CQ54 -> 0 | CS54: 0 | CT54: 0.2308 | CU54: 0 | CV54: 0 | CW54: 256.3 | CX54: ='LOB Transfers'!G53 -> 17644 | CY54: ='LOB Transfers'!J53 -> 1363 | CZ54: D0242
A55: 243 | B55: Coffey | C55: Lebo-Waverly | D55: 415.5 | E55: 0 | F55: 415.5 | G55: 423 | H55: 0 | I55: 423 | J55: 444.2 | K55: 0 | L55: 444.2 | M55: =IF(ISNA(VLOOKUP($CZ55,'Audit Values'!$A:$BW,2,FALSE)),'Preliminary SO66'!C54,VLOOKUP($CZ55,'Audit Values'!$A:$BW,73,FALSE)) -> 451 | N55: =IF(ISNA(VLOOKUP($CZ55,'Audit Values'!$A:$BW,2,FALSE)),'Preliminary SO66'!F54,VLOOKUP($CZ55,'Audit Values'!$A$2:$BW$381,4,FALSE)) -> 0 | O55: 451 | P55: =IF('Military Provision'!J56="YES", MAX('2021 Legal Max'!L55,'2021 Legal Max'!I55,AVERAGE('2021 Legal Max'!F55,'2021 Legal Max'!I55,'2021 Legal Max'!L55)), MAX(L55, I55)) -> 444.2 | Q55: =IF(ISNA(VLOOKUP($CZ55,'Audit Values'!$A:BU,2,FALSE)),'Preliminary SO66'!AL54,VLOOKUP($CZ55,'Audit Values'!$A$2:$BU328,58,FALSE)) -> 0 | R55: 0 | S55: 444.2 | T55: 193.3 | U55: =IF(ISNA(VLOOKUP($CZ55,'Audit Values'!$A:$BW,2,FALSE)),'Preliminary SO66'!AM54,VLOOKUP($CZ55,'Audit Values'!$A:$BW,62,FALSE)) -> 0 | V55: =(U55/6)*'Weighting Factors'!$Q$7 -> 0 | W55: =IF(ISNA(VLOOKUP($CZ55,'Audit Values'!$A:$BW,2,FALSE)),'Preliminary SO66'!AN54,VLOOKUP($CZ55,'Audit Values'!$A:$BW,61,FALSE)) -> 0 | X55: =W55*'Weighting Factors'!$Q$8 -> 0 | Y55: 0 | Z55: =IF(ISNA(VLOOKUP($CZ55,'Audit Values'!$A:$BW,2,FALSE)),'Preliminary SO66'!AO54,VLOOKUP($CZ55,'Audit Values'!$A:$BW,60,FALSE)) -> 110.6 | AA55: =Z55/6*'Weighting Factors'!$Q$6 -> 9.2 | AB55: =IF(ISNA(VLOOKUP($CZ55,'Audit Values'!$A:$BU,2,FALSE)),'Preliminary SO66'!AS54,VLOOKUP($CZ55,'Audit Values'!$A:$BU,63,FALSE)) -> 456 | AC55: 0 | AD55: =IF(ISNA(VLOOKUP($CZ55,'Audit Values'!$A:$BU,2,FALSE)),'Preliminary SO66'!AP54,VLOOKUP($CZ55,'Audit Values'!$A:$BU,64,FALSE)) -> 135 | AE55: =IF(A55=207, AD55,MAX(AC55,AD55))*'Weighting Factors'!$Q$9 -> 65.3 | AF55: 0 | AG55: =IF(ISNA(VLOOKUP($CZ55,'Audit Values'!$A:$BW,2,FALSE)),'Preliminary SO66'!AG54,VLOOKUP($CZ55,'Audit Values'!$A$2:$BW$385,70,FALSE)) -> 1.1 | AH55: 1.1 | AI55: =IF(ISNA(VLOOKUP($CZ55,'Audit Values'!$A:$BU,2,FALSE)),'Preliminary SO66'!AQ54,VLOOKUP($CZ55,'Audit Values'!$A:$BU,65,FALSE)) -> 0 | AJ55: =AI55*'Weighting Factors'!$Q$10 -> 0 | AK55: =IF(ISNA(VLOOKUP($CZ55,'Audit Values'!$A:$BU,2,FALSE)),'Preliminary SO66'!AR54,VLOOKUP($CZ55,'Audit Values'!$A:$BU,66,FALSE)) -> 89.5 | AM55: 112909 | AN55: 146376 | AO55: =MAX(AN55, AM55)/'Weighting Factors'!$Q$5 -> 32 | AP55: =CN55/'Weighting Factors'!$Q$5 -> 0 | AQ55: 0 | AR55: =CS55/'Weighting Factors'!$Q$5 -> 0 | AS55: 674384 | AT55: =AS55/'Weighting Factors'!$Q$5 -> 147.6 | AU55: =IF(ISNA(VLOOKUP($CZ55,'Audit Values'!$A:$BU,2,FALSE)),'Preliminary SO66'!X54,VLOOKUP($CZ55,'Audit Values'!$A$2:$BU$385,47,FALSE)) -> 0 | AV55: 892.7 | AW55: 745.1 | AX55: =IF(ISNA(VLOOKUP($CZ55,'Audit Values'!$A$2:$BU$385,2,FALSE)),'Preliminary SO66'!AA54,VLOOKUP($CZ55,'Audit Values'!$A$2:$BU$385,41,FALSE)) -> 0 | AY55: =IF(ISNA(VLOOKUP($CZ55,'Audit Values'!$A$2:$BU$385,2,FALSE)),'Preliminary SO66'!AB54,VLOOKUP($CZ55,'Audit Values'!$A$2:$BU$385,42,FALSE)) -> 0 | AZ55: 0 | BA55: =SUM(AX55*'Weighting Factors'!$T$10)+('2021 Legal Max'!AY55*'Weighting Factors'!$T$11)+('2021 Legal Max'!AZ55*'Weighting Factors'!$T$12) -> 0 | BB55: 0 | BC55: =IF(ISNA(VLOOKUP($CZ55,'Audit Values'!$A$2:$BU$385,2,FALSE)),"",IF(AND('Weighting Factors'!H55>0,VLOOKUP($CZ55,'Audit Values'!$A$2:$BU$385,51,FALSE)<'Weighting Factors'!H55),'Weighting Factors'!H55,VLOOKUP($CZ55,'Audit Values'!$A$2:$BU$385,50,FALSE))) -> 10 | BD55: =IF(ISNA(VLOOKUP($CZ55,'Audit Values'!$A$2:$BV$385,2,FALSE)),"",VLOOKUP($CZ55,'Audit Values'!$A$2:$BV$385,51,FALSE)) -> A | BE55: =IF('Weighting Factors'!H55="","",IF('Weighting Factors'!J55="Pending","PX","R")) ->  | BF55: =SUM((S55+T55+Y55+AA55+AE55+AH55+AJ55++AO55+AP55+AQ55+AU55+AR55)*'Weighting Factors'!$Q$5)+'2021 Legal Max'!BA55+'2021 Legal Max'!BB55 -> 3404362 | BG55: =SUM((AV55+AR55)*'Weighting Factors'!$Q$5)+BA55+'2021 Legal Max'!BB55 -> 4078746 | BH55: =IF('Weighting Factors'!H55>0,'Weighting Factors'!H55,'Preliminary SO66'!AV54) -> 4287550 | BI55: 4078746 | BJ55: ='Weighting Factors'!G55 -> 0 | BK55: ='Weighting Factors'!F55 -> 0 | BL55: ='Weighting Factors'!E55 -> 0 | BM55: 0 | BN55: 4078746 | BO55: =SUM((S55+T55+Y55+AA55+AE55+AH55+AJ55+AO55+AP55+AQ55+AR55)*'Weighting Factors'!Q$12)+(MAX(AS55,'Weighting Factors'!B55)) -> 4107805 | BP55: 0.3 | BQ55: 1232342 | BR55: 1295174 | BS55: 1232342 | BT55: 0.3 | BU55: 0 | BV55: FALSE | BW55: 0 | BX55: 0 | BY55: 0 | BZ55: TRUE | CA55: 178.4475 | CB55: 0.435195 | CC55: 193.3 | CD55: 0 | CE55: 248 | CF55: 0.361 | CG55: =IF(CF55<0.06,1,IF(CF55>=18.29,52,MATCH(CF55-0.001,'Weighting Factors'!$Y$5:$Y$156)+1)) -> 22 | CH55: =VLOOKUP(CG55, 'Weighting Factors'!$W$5:$Z$56,4) -> 1150 | CI55: =('Weighting Factors'!$Q$5/'Weighting Factors'!$Q$14) -> 1.097 | CJ55: 102925 | CK55: =CJ55*'Weighting Factors'!$S$7 -> 102925 | CL55: 112909 | CM55: =AM55/'Weighting Factors'!$Q$5 -> 24.7 | CN55: 0 | CO55: 0 | CP55: 0 | CQ55: 0 | CR55: =SUM((AV55*'Weighting Factors'!$Q$5)+'2021 Legal Max'!BA55)*CQ55 -> 0 | CS55: 0 | CT55: 0.2961 | CU55: 0 | CV55: 0 | CW55: 892.7 | CX55: ='LOB Transfers'!G54 -> 90084 | CY55: ='LOB Transfers'!J54 -> 0 | CZ55: D0243
A56: 244 | B56: Coffey | C56: Burlington | D56: 846 | E56: 0 | F56: 846 | G56: 815 | H56: 0 | I56: 815 | J56: 799 | K56: 0 | L56: 799 | M56: =IF(ISNA(VLOOKUP($CZ56,'Audit Values'!$A:$BW,2,FALSE)),'Preliminary SO66'!C55,VLOOKUP($CZ56,'Audit Values'!$A:$BW,73,FALSE)) -> 772.5 | N56: =IF(ISNA(VLOOKUP($CZ56,'Audit Values'!$A:$BW,2,FALSE)),'Preliminary SO66'!F55,VLOOKUP($CZ56,'Audit Values'!$A$2:$BW$381,4,FALSE)) -> 0 | O56: 772.5 | P56: =IF('Military Provision'!J57="YES", MAX('2021 Legal Max'!L56,'2021 Legal Max'!I56,AVERAGE('2021 Legal Max'!F56,'2021 Legal Max'!I56,'2021 Legal Max'!L56)), MAX(L56, I56)) -> 820 | Q56: =IF(ISNA(VLOOKUP($CZ56,'Audit Values'!$A:BU,2,FALSE)),'Preliminary SO66'!AL55,VLOOKUP($CZ56,'Audit Values'!$A$2:$BU329,58,FALSE)) -> 5 | R56: 0 | S56: 825 | T56: 252.3 | U56: =IF(ISNA(VLOOKUP($CZ56,'Audit Values'!$A:$BW,2,FALSE)),'Preliminary SO66'!AM55,VLOOKUP($CZ56,'Audit Values'!$A:$BW,62,FALSE)) -> 2.2 | V56: =(U56/6)*'Weighting Factors'!$Q$7 -> 0.1 | W56: =IF(ISNA(VLOOKUP($CZ56,'Audit Values'!$A:$BW,2,FALSE)),'Preliminary SO66'!AN55,VLOOKUP($CZ56,'Audit Values'!$A:$BW,61,FALSE)) -> 10 | X56: =W56*'Weighting Factors'!$Q$8 -> 1.9 | Y56: 1.9 | Z56: =IF(ISNA(VLOOKUP($CZ56,'Audit Values'!$A:$BW,2,FALSE)),'Preliminary SO66'!AO55,VLOOKUP($CZ56,'Audit Values'!$A:$BW,60,FALSE)) -> 262.1 | AA56: =Z56/6*'Weighting Factors'!$Q$6 -> 21.8 | AB56: =IF(ISNA(VLOOKUP($CZ56,'Audit Values'!$A:$BU,2,FALSE)),'Preliminary SO66'!AS55,VLOOKUP($CZ56,'Audit Values'!$A:$BU,63,FALSE)) -> 793 | AC56: 0 | AD56: =IF(ISNA(VLOOKUP($CZ56,'Audit Values'!$A:$BU,2,FALSE)),'Preliminary SO66'!AP55,VLOOKUP($CZ56,'Audit Values'!$A:$BU,64,FALSE)) -> 240 | AE56: =IF(A56=207, AD56,MAX(AC56,AD56))*'Weighting Factors'!$Q$9 -> 116.2 | AF56: 0 | AG56: =IF(ISNA(VLOOKUP($CZ56,'Audit Values'!$A:$BW,2,FALSE)),'Preliminary SO66'!AG55,VLOOKUP($CZ56,'Audit Values'!$A$2:$BW$385,70,FALSE)) -> 0 | AH56: 0 | AI56: =IF(ISNA(VLOOKUP($CZ56,'Audit Values'!$A:$BU,2,FALSE)),'Preliminary SO66'!AQ55,VLOOKUP($CZ56,'Audit Values'!$A:$BU,65,FALSE)) -> 0 | AJ56: =AI56*'Weighting Factors'!$Q$10 -> 0 | AK56: =IF(ISNA(VLOOKUP($CZ56,'Audit Values'!$A:$BU,2,FALSE)),'Preliminary SO66'!AR55,VLOOKUP($CZ56,'Audit Values'!$A:$BU,66,FALSE)) -> 229 | AM56: 223580 | AN56: 224186 | AO56: =MAX(AN56, AM56)/'Weighting Factors'!$Q$5 -> 49.1 | AP56: =CN56/'Weighting Factors'!$Q$5 -> 0 | AQ56: 0 | AR56: =CS56/'Weighting Factors'!$Q$5 -> 0 | AS56: 1360091 | AT56: =AS56/'Weighting Factors'!$Q$5 -> 297.7 | AU56: =IF(ISNA(VLOOKUP($CZ56,'Audit Values'!$A:$BU,2,FALSE)),'Preliminary SO66'!X55,VLOOKUP($CZ56,'Audit Values'!$A$2:$BU$385,47,FALSE)) -> 0 | AV56: 1564 | AW56: 1266.3 | AX56: =IF(ISNA(VLOOKUP($CZ56,'Audit Values'!$A$2:$BU$385,2,FALSE)),'Preliminary SO66'!AA55,VLOOKUP($CZ56,'Audit Values'!$A$2:$BU$385,41,FALSE)) -> 0 | AY56: =IF(ISNA(VLOOKUP($CZ56,'Audit Values'!$A$2:$BU$385,2,FALSE)),'Preliminary SO66'!AB55,VLOOKUP($CZ56,'Audit Values'!$A$2:$BU$385,42,FALSE)) -> 0 | AZ56: 0 | BA56: =SUM(AX56*'Weighting Factors'!$T$10)+('2021 Legal Max'!AY56*'Weighting Factors'!$T$11)+('2021 Legal Max'!AZ56*'Weighting Factors'!$T$12) -> 0 | BB56: 0 | BC56: =IF(ISNA(VLOOKUP($CZ56,'Audit Values'!$A$2:$BU$385,2,FALSE)),"",IF(AND('Weighting Factors'!H56>0,VLOOKUP($CZ56,'Audit Values'!$A$2:$BU$385,51,FALSE)<'Weighting Factors'!H56),'Weighting Factors'!H56,VLOOKUP($CZ56,'Audit Values'!$A$2:$BU$385,50,FALSE))) -> 27 | BD56: =IF(ISNA(VLOOKUP($CZ56,'Audit Values'!$A$2:$BV$385,2,FALSE)),"",VLOOKUP($CZ56,'Audit Values'!$A$2:$BV$385,51,FALSE)) -> A | BE56: =IF('Weighting Factors'!H56="","",IF('Weighting Factors'!J56="Pending","PX","R")) ->  | BF56: =SUM((S56+T56+Y56+AA56+AE56+AH56+AJ56++AO56+AP56+AQ56+AU56+AR56)*'Weighting Factors'!$Q$5)+'2021 Legal Max'!BA56+'2021 Legal Max'!BB56 -> 5785725 | BG56: =SUM((AV56+AR56)*'Weighting Factors'!$Q$5)+BA56+'2021 Legal Max'!BB56 -> 7145916 | BH56: =IF('Weighting Factors'!H56>0,'Weighting Factors'!H56,'Preliminary SO66'!AV55) -> 7477625 | BI56: 7145916 | BJ56: ='Weighting Factors'!G56 -> 0 | BK56: ='Weighting Factors'!F56 -> 0 | BL56: ='Weighting Factors'!E56 -> 0 | BM56: 0 | BN56: 7145916 | BO56: =SUM((S56+T56+Y56+AA56+AE56+AH56+AJ56+AO56+AP56+AQ56+AR56)*'Weighting Factors'!Q$12)+(MAX(AS56,'Weighting Factors'!B56)) -> 7195201 | BP56: 0.3 | BQ56: 2158560 | BR56: 2258425 | BS56: 2158560 | BT56: 0.3 | BU56: 0 | BV56: FALSE | BW56: 0 | BX56: 0 | BY56: 0 | BZ56: TRUE | CA56: 649.6875 | CB56: 0.305818 | CC56: 252.3 | CD56: 0 | CE56: 147 | CF56: 1.558 | CG56: =IF(CF56<0.06,1,IF(CF56>=18.29,52,MATCH(CF56-0.001,'Weighting Factors'!$Y$5:$Y$156)+1)) -> 35 | CH56: =VLOOKUP(CG56, 'Weighting Factors'!$W$5:$Z$56,4) -> 890 | CI56: =('Weighting Factors'!$Q$5/'Weighting Factors'!$Q$14) -> 1.097 | CJ56: 203810 | CK56: =CJ56*'Weighting Factors'!$S$7 -> 203810 | CL56: 223580 | CM56: =AM56/'Weighting Factors'!$Q$5 -> 48.9 | CN56: 0 | CO56: 0 | CP56: 0 | CQ56: 0 | CR56: =SUM((AV56*'Weighting Factors'!$Q$5)+'2021 Legal Max'!BA56)*CQ56 -> 0 | CS56: 0 | CT56: 0.3026 | CU56: 0 | CV56: 0 | CW56: 1564 | CX56: ='LOB Transfers'!G55 -> 160813 | CY56: ='LOB Transfers'!J55 -> 2590 | CZ56: D0244
A57: 245 | B57: Coffey | C57: LeRoy-Gridley | D57: 192 | E57: 0 | F57: 192 | G57: 202 | H57: 0 | I57: 202 | J57: 182 | K57: 0 | L57: 182 | M57: =IF(ISNA(VLOOKUP($CZ57,'Audit Values'!$A:$BW,2,FALSE)),'Preliminary SO66'!C56,VLOOKUP($CZ57,'Audit Values'!$A:$BW,73,FALSE)) -> 164 | N57: =IF(ISNA(VLOOKUP($CZ57,'Audit Values'!$A:$BW,2,FALSE)),'Preliminary SO66'!F56,VLOOKUP($CZ57,'Audit Values'!$A$2:$BW$381,4,FALSE)) -> 0 | O57: 164 | P57: =IF('Military Provision'!J58="YES", MAX('2021 Legal Max'!L57,'2021 Legal Max'!I57,AVERAGE('2021 Legal Max'!F57,'2021 Legal Max'!I57,'2021 Legal Max'!L57)), MAX(L57, I57)) -> 202 | Q57: =IF(ISNA(VLOOKUP($CZ57,'Audit Values'!$A:BU,2,FALSE)),'Preliminary SO66'!AL56,VLOOKUP($CZ57,'Audit Values'!$A$2:$BU330,58,FALSE)) -> 5.5 | R57: 0 | S57: 207.5 | T57: 151.3 | U57: =IF(ISNA(VLOOKUP($CZ57,'Audit Values'!$A:$BW,2,FALSE)),'Preliminary SO66'!AM56,VLOOKUP($CZ57,'Audit Values'!$A:$BW,62,FALSE)) -> 0 | V57: =(U57/6)*'Weighting Factors'!$Q$7 -> 0 | W57: =IF(ISNA(VLOOKUP($CZ57,'Audit Values'!$A:$BW,2,FALSE)),'Preliminary SO66'!AN56,VLOOKUP($CZ57,'Audit Values'!$A:$BW,61,FALSE)) -> 0 | X57: =W57*'Weighting Factors'!$Q$8 -> 0 | Y57: 0 | Z57: =IF(ISNA(VLOOKUP($CZ57,'Audit Values'!$A:$BW,2,FALSE)),'Preliminary SO66'!AO56,VLOOKUP($CZ57,'Audit Values'!$A:$BW,60,FALSE)) -> 74.1 | AA57: =Z57/6*'Weighting Factors'!$Q$6 -> 6.2 | AB57: =IF(ISNA(VLOOKUP($CZ57,'Audit Values'!$A:$BU,2,FALSE)),'Preliminary SO66'!AS56,VLOOKUP($CZ57,'Audit Values'!$A:$BU,63,FALSE)) -> 176 | AC57: 0 | AD57: =IF(ISNA(VLOOKUP($CZ57,'Audit Values'!$A:$BU,2,FALSE)),'Preliminary SO66'!AP56,VLOOKUP($CZ57,'Audit Values'!$A:$BU,64,FALSE)) -> 72 | AE57: =IF(A57=207, AD57,MAX(AC57,AD57))*'Weighting Factors'!$Q$9 -> 34.8 | AF57: 3 | AG57: =IF(ISNA(VLOOKUP($CZ57,'Audit Values'!$A:$BW,2,FALSE)),'Preliminary SO66'!AG56,VLOOKUP($CZ57,'Audit Values'!$A$2:$BW$385,70,FALSE)) -> 3.6 | AH57: 3.6 | AI57: =IF(ISNA(VLOOKUP($CZ57,'Audit Values'!$A:$BU,2,FALSE)),'Preliminary SO66'!AQ56,VLOOKUP($CZ57,'Audit Values'!$A:$BU,65,FALSE)) -> 0 | AJ57: =AI57*'Weighting Factors'!$Q$10 -> 0 | AK57: =IF(ISNA(VLOOKUP($CZ57,'Audit Values'!$A:$BU,2,FALSE)),'Preliminary SO66'!AR56,VLOOKUP($CZ57,'Audit Values'!$A:$BU,66,FALSE)) -> 97 | AM57: 118114 | AN57: 132509 | AO57: =MAX(AN57, AM57)/'Weighting Factors'!$Q$5 -> 29 | AP57: =CN57/'Weighting Factors'!$Q$5 -> 0 | AQ57: 0 | AR57: =CS57/'Weighting Factors'!$Q$5 -> 0 | AS57: 243647 | AT57: =AS57/'Weighting Factors'!$Q$5 -> 53.3 | AU57: =IF(ISNA(VLOOKUP($CZ57,'Audit Values'!$A:$BU,2,FALSE)),'Preliminary SO66'!X56,VLOOKUP($CZ57,'Audit Values'!$A$2:$BU$385,47,FALSE)) -> 0 | AV57: 485.7 | AW57: 432.4 | AX57: =IF(ISNA(VLOOKUP($CZ57,'Audit Values'!$A$2:$BU$385,2,FALSE)),'Preliminary SO66'!AA56,VLOOKUP($CZ57,'Audit Values'!$A$2:$BU$385,41,FALSE)) -> 0 | AY57: =IF(ISNA(VLOOKUP($CZ57,'Audit Values'!$A$2:$BU$385,2,FALSE)),'Preliminary SO66'!AB56,VLOOKUP($CZ57,'Audit Values'!$A$2:$BU$385,42,FALSE)) -> 0 | AZ57: 0 | BA57: =SUM(AX57*'Weighting Factors'!$T$10)+('2021 Legal Max'!AY57*'Weighting Factors'!$T$11)+('2021 Legal Max'!AZ57*'Weighting Factors'!$T$12) -> 0 | BB57: 0 | BC57: =IF(ISNA(VLOOKUP($CZ57,'Audit Values'!$A$2:$BU$385,2,FALSE)),"",IF(AND('Weighting Factors'!H57>0,VLOOKUP($CZ57,'Audit Values'!$A$2:$BU$385,51,FALSE)<'Weighting Factors'!H57),'Weighting Factors'!H57,VLOOKUP($CZ57,'Audit Values'!$A$2:$BU$385,50,FALSE))) -> 13 | BD57: =IF(ISNA(VLOOKUP($CZ57,'Audit Values'!$A$2:$BV$385,2,FALSE)),"",VLOOKUP($CZ57,'Audit Values'!$A$2:$BV$385,51,FALSE)) -> A | BE57: =IF('Weighting Factors'!H57="","",IF('Weighting Factors'!J57="Pending","PX","R")) ->  | BF57: =SUM((S57+T57+Y57+AA57+AE57+AH57+AJ57++AO57+AP57+AQ57+AU57+AR57)*'Weighting Factors'!$Q$5)+'2021 Legal Max'!BA57+'2021 Legal Max'!BB57 -> 1975636 | BG57: =SUM((AV57+AR57)*'Weighting Factors'!$Q$5)+BA57+'2021 Legal Max'!BB57 -> 2219163 | BH57: =IF('Weighting Factors'!H57>0,'Weighting Factors'!H57,'Preliminary SO66'!AV56) -> 2301862 | BI57: 2219163 | BJ57: ='Weighting Factors'!G57 -> 0 | BK57: ='Weighting Factors'!F57 -> 0 | BL57: ='Weighting Factors'!E57 -> 0 | BM57: 0 | BN57: 2219163 | BO57: =SUM((S57+T57+Y57+AA57+AE57+AH57+AJ57+AO57+AP57+AQ57+AR57)*'Weighting Factors'!Q$12)+(MAX(AS57,'Weighting Factors'!B57)) -> 2293050 | BP57: 0.3 | BQ57: 687915 | BR57: 713351 | BS57: 687915 | BT57: 0.3 | BU57: 0 | BV57: TRUE | BW57: 1037.913 | BX57: 0.729378 | BY57: 151.3 | BZ57: FALSE | CA57: 0 | CB57: 0 | CC57: 0 | CD57: 0 | CE57: 207 | CF57: 0.469 | CG57: =IF(CF57<0.06,1,IF(CF57>=18.29,52,MATCH(CF57-0.001,'Weighting Factors'!$Y$5:$Y$156)+1)) -> 24 | CH57: =VLOOKUP(CG57, 'Weighting Factors'!$W$5:$Z$56,4) -> 1110 | CI57: =('Weighting Factors'!$Q$5/'Weighting Factors'!$Q$14) -> 1.097 | CJ57: 107670 | CK57: =CJ57*'Weighting Factors'!$S$7 -> 107670 | CL57: 118114 | CM57: =AM57/'Weighting Factors'!$Q$5 -> 25.9 | CN57: 0 | CO57: 0 | CP57: 0 | CQ57: 0 | CR57: =SUM((AV57*'Weighting Factors'!$Q$5)+'2021 Legal Max'!BA57)*CQ57 -> 0 | CS57: 0 | CT57: 0.4091 | CU57: 0 | CV57: 3 | CW57: 485.7 | CX57: ='LOB Transfers'!G56 -> 49874 | CY57: ='LOB Transfers'!J56 -> 0 | CZ57: D0245
A58: 246 | B58: Crawford | C58: Northeast | D58: 444.6 | E58: 0 | F58: 444.6 | G58: 438.5 | H58: 0 | I58: 438.5 | J58: 449 | K58: 0 | L58: 449 | M58: =IF(ISNA(VLOOKUP($CZ58,'Audit Values'!$A:$BW,2,FALSE)),'Preliminary SO66'!C57,VLOOKUP($CZ58,'Audit Values'!$A:$BW,73,FALSE)) -> 424 | N58: =IF(ISNA(VLOOKUP($CZ58,'Audit Values'!$A:$BW,2,FALSE)),'Preliminary SO66'!F57,VLOOKUP($CZ58,'Audit Values'!$A$2:$BW$381,4,FALSE)) -> 0 | O58: 424 | P58: =IF('Military Provision'!J59="YES", MAX('2021 Legal Max'!L58,'2021 Legal Max'!I58,AVERAGE('2021 Legal Max'!F58,'2021 Legal Max'!I58,'2021 Legal Max'!L58)), MAX(L58, I58)) -> 449 | Q58: =IF(ISNA(VLOOKUP($CZ58,'Audit Values'!$A:BU,2,FALSE)),'Preliminary SO66'!AL57,VLOOKUP($CZ58,'Audit Values'!$A$2:$BU331,58,FALSE)) -> 4.5 | R58: 0 | S58: 453.5 | T58: 195.9 | U58: =IF(ISNA(VLOOKUP($CZ58,'Audit Values'!$A:$BW,2,FALSE)),'Preliminary SO66'!AM57,VLOOKUP($CZ58,'Audit Values'!$A:$BW,62,FALSE)) -> 0 | V58: =(U58/6)*'Weighting Factors'!$Q$7 -> 0 | W58: =IF(ISNA(VLOOKUP($CZ58,'Audit Values'!$A:$BW,2,FALSE)),'Preliminary SO66'!AN57,VLOOKUP($CZ58,'Audit Values'!$A:$BW,61,FALSE)) -> 2 | X58: =W58*'Weighting Factors'!$Q$8 -> 0.4 | Y58: 0.4 | Z58: =IF(ISNA(VLOOKUP($CZ58,'Audit Values'!$A:$BW,2,FALSE)),'Preliminary SO66'!AO57,VLOOKUP($CZ58,'Audit Values'!$A:$BW,60,FALSE)) -> 101.6 | AA58: =Z58/6*'Weighting Factors'!$Q$6 -> 8.5 | AB58: =IF(ISNA(VLOOKUP($CZ58,'Audit Values'!$A:$BU,2,FALSE)),'Preliminary SO66'!AS57,VLOOKUP($CZ58,'Audit Values'!$A:$BU,63,FALSE)) -> 439 | AC58: 0 | AD58: =IF(ISNA(VLOOKUP($CZ58,'Audit Values'!$A:$BU,2,FALSE)),'Preliminary SO66'!AP57,VLOOKUP($CZ58,'Audit Values'!$A:$BU,64,FALSE)) -> 255 | AE58: =IF(A58=207, AD58,MAX(AC58,AD58))*'Weighting Factors'!$Q$9 -> 123.4 | AF58: 26.8 | AG58: =IF(ISNA(VLOOKUP($CZ58,'Audit Values'!$A:$BW,2,FALSE)),'Preliminary SO66'!AG57,VLOOKUP($CZ58,'Audit Values'!$A$2:$BW$385,70,FALSE)) -> 26.8 | AH58: 26.8 | AI58: =IF(ISNA(VLOOKUP($CZ58,'Audit Values'!$A:$BU,2,FALSE)),'Preliminary SO66'!AQ57,VLOOKUP($CZ58,'Audit Values'!$A:$BU,65,FALSE)) -> 0 | AJ58: =AI58*'Weighting Factors'!$Q$10 -> 0 | AK58: =IF(ISNA(VLOOKUP($CZ58,'Audit Values'!$A:$BU,2,FALSE)),'Preliminary SO66'!AR57,VLOOKUP($CZ58,'Audit Values'!$A:$BU,66,FALSE)) -> 145.5 | AM58: 145248 | AN58: 176422 | AO58: =MAX(AN58, AM58)/'Weighting Factors'!$Q$5 -> 38.6 | AP58: =CN58/'Weighting Factors'!$Q$5 -> 0 | AQ58: 0 | AR58: =CS58/'Weighting Factors'!$Q$5 -> 0 | AS58: 545300 | AT58: =AS58/'Weighting Factors'!$Q$5 -> 119.3 | AU58: =IF(ISNA(VLOOKUP($CZ58,'Audit Values'!$A:$BU,2,FALSE)),'Preliminary SO66'!X57,VLOOKUP($CZ58,'Audit Values'!$A$2:$BU$385,47,FALSE)) -> 0 | AV58: 966.4 | AW58: 847.1 | AX58: =IF(ISNA(VLOOKUP($CZ58,'Audit Values'!$A:$BU,2,FALSE)),'Preliminary SO66'!AA57,VLOOKUP($CZ58,'Audit Values'!$A:$BU,41,FALSE)) -> 3 | AY58: =IF(ISNA(VLOOKUP($CZ58,'Audit Values'!$A$2:$BU$385,2,FALSE)),'Preliminary SO66'!AB57,VLOOKUP($CZ58,'Audit Values'!$A$2:$BU$385,42,FALSE)) -> 4.3 | AZ58: 0 | BA58: =SUM(AX58*'Weighting Factors'!$T$10)+('2021 Legal Max'!AY58*'Weighting Factors'!$T$11)+('2021 Legal Max'!AZ58*'Weighting Factors'!$T$12) -> 22310 | BB58: 0 | BC58: =IF(ISNA(VLOOKUP($CZ58,'Audit Values'!$A$2:$BU$385,2,FALSE)),"",IF(AND('Weighting Factors'!H58>0,VLOOKUP($CZ58,'Audit Values'!$A$2:$BU$385,51,FALSE)<'Weighting Factors'!H58),'Weighting Factors'!H58,VLOOKUP($CZ58,'Audit Values'!$A$2:$BU$385,50,FALSE))) -> 8 | BD58: =IF(ISNA(VLOOKUP($CZ58,'Audit Values'!$A$2:$BV$385,2,FALSE)),"",VLOOKUP($CZ58,'Audit Values'!$A$2:$BV$385,51,FALSE)) -> A | BE58: =IF('Weighting Factors'!H58="","",IF('Weighting Factors'!J58="Pending","PX","R")) ->  | BF58: =SUM((S58+T58+Y58+AA58+AE58+AH58+AJ58++AO58+AP58+AQ58+AU58+AR58)*'Weighting Factors'!$Q$5)+'2021 Legal Max'!BA58+'2021 Legal Max'!BB58 -> 3892710 | BG58: =SUM((AV58+AR58)*'Weighting Factors'!$Q$5)+BA58+'2021 Legal Max'!BB58 -> 4437792 | BH58: =IF('Weighting Factors'!H58>0,'Weighting Factors'!H58,'Preliminary SO66'!AV57) -> 4558284 | BI58: 4437792 | BJ58: ='Weighting Factors'!G58 -> 0 | BK58: ='Weighting Factors'!F58 -> 0 | BL58: ='Weighting Factors'!E58 -> 0 | BM58: 0 | BN58: 4437792 | BO58: =SUM((S58+T58+Y58+AA58+AE58+AH58+AJ58+AO58+AP58+AQ58+AR58)*'Weighting Factors'!Q$12)+(MAX(AS58,'Weighting Factors'!B58)) -> 4448737 | BP58: 0.3 | BQ58: 1334621 | BR58: 1365566 | BS58: 1334621 | BT58: 0.3 | BU58: 0 | BV58: FALSE | BW58: 0 | BX58: 0 | BY58: 0 | BZ58: TRUE | CA58: 189.9563 | CB58: 0.432035 | CC58: 195.9 | CD58: 0 | CE58: 106 | CF58: 1.373 | CG58: =IF(CF58<0.06,1,IF(CF58>=18.29,52,MATCH(CF58-0.001,'Weighting Factors'!$Y$5:$Y$156)+1)) -> 34 | CH58: =VLOOKUP(CG58, 'Weighting Factors'!$W$5:$Z$56,4) -> 910 | CI58: =('Weighting Factors'!$Q$5/'Weighting Factors'!$Q$14) -> 1.097 | CJ58: 132405 | CK58: =CJ58*'Weighting Factors'!$S$7 -> 132405 | CL58: 145248 | CM58: =AM58/'Weighting Factors'!$Q$5 -> 31.8 | CN58: 0 | CO58: 0 | CP58: 0 | CQ58: 0 | CR58: =SUM((AV58*'Weighting Factors'!$Q$5)+'2021 Legal Max'!BA58)*CQ58 -> 0 | CS58: 0 | CT58: 0.5809 | CU58: 26.8 | CV58: 0 | CW58: 966.4 | CX58: ='LOB Transfers'!G57 -> 171232 | CY58: ='LOB Transfers'!J57 -> 534 | CZ58: D0246
A59: 247 | B59: Crawford | C59: Cherokee | D59: 484 | E59: 0 | F59: 484 | G59: 469.1 | H59: 0 | I59: 469.1 | J59: 467.1 | K59: 0 | L59: 467.1 | M59: =IF(ISNA(VLOOKUP($CZ59,'Audit Values'!$A:$BW,2,FALSE)),'Preliminary SO66'!C58,VLOOKUP($CZ59,'Audit Values'!$A:$BW,73,FALSE)) -> 442.7 | N59: =IF(ISNA(VLOOKUP($CZ59,'Audit Values'!$A:$BW,2,FALSE)),'Preliminary SO66'!F58,VLOOKUP($CZ59,'Audit Values'!$A$2:$BW$381,4,FALSE)) -> 0 | O59: 442.7 | P59: =IF('Military Provision'!J60="YES", MAX('2021 Legal Max'!L59,'2021 Legal Max'!I59,AVERAGE('2021 Legal Max'!F59,'2021 Legal Max'!I59,'2021 Legal Max'!L59)), MAX(L59, I59)) -> 469.1 | Q59: =IF(ISNA(VLOOKUP($CZ59,'Audit Values'!$A:BU,2,FALSE)),'Preliminary SO66'!AL58,VLOOKUP($CZ59,'Audit Values'!$A$2:$BU332,58,FALSE)) -> 4 | R59: 0 | S59: 473.1 | T59: 201.2 | U59: =IF(ISNA(VLOOKUP($CZ59,'Audit Values'!$A:$BW,2,FALSE)),'Preliminary SO66'!AM58,VLOOKUP($CZ59,'Audit Values'!$A:$BW,62,FALSE)) -> 0 | V59: =(U59/6)*'Weighting Factors'!$Q$7 -> 0 | W59: =IF(ISNA(VLOOKUP($CZ59,'Audit Values'!$A:$BW,2,FALSE)),'Preliminary SO66'!AN58,VLOOKUP($CZ59,'Audit Values'!$A:$BW,61,FALSE)) -> 0 | X59: =W59*'Weighting Factors'!$Q$8 -> 0 | Y59: 0 | Z59: =IF(ISNA(VLOOKUP($CZ59,'Audit Values'!$A:$BW,2,FALSE)),'Preliminary SO66'!AO58,VLOOKUP($CZ59,'Audit Values'!$A:$BW,60,FALSE)) -> 266.3 | AA59: =Z59/6*'Weighting Factors'!$Q$6 -> 22.2 | AB59: =IF(ISNA(VLOOKUP($CZ59,'Audit Values'!$A:$BU,2,FALSE)),'Preliminary SO66'!AS58,VLOOKUP($CZ59,'Audit Values'!$A:$BU,63,FALSE)) -> 455 | AC59: 0 | AD59: =IF(ISNA(VLOOKUP($CZ59,'Audit Values'!$A:$BU,2,FALSE)),'Preliminary SO66'!AP58,VLOOKUP($CZ59,'Audit Values'!$A:$BU,64,FALSE)) -> 230 | AE59: =IF(A59=207, AD59,MAX(AC59,AD59))*'Weighting Factors'!$Q$9 -> 111.3 | AF59: 24.2 | AG59: =IF(ISNA(VLOOKUP($CZ59,'Audit Values'!$A:$BW,2,FALSE)),'Preliminary SO66'!AG58,VLOOKUP($CZ59,'Audit Values'!$A$2:$BW$385,70,FALSE)) -> 21.4 | AH59: 24.2 | AI59: =IF(ISNA(VLOOKUP($CZ59,'Audit Values'!$A:$BU,2,FALSE)),'Preliminary SO66'!AQ58,VLOOKUP($CZ59,'Audit Values'!$A:$BU,65,FALSE)) -> 0 | AJ59: =AI59*'Weighting Factors'!$Q$10 -> 0 | AK59: =IF(ISNA(VLOOKUP($CZ59,'Audit Values'!$A:$BU,2,FALSE)),'Preliminary SO66'!AR58,VLOOKUP($CZ59,'Audit Values'!$A:$BU,66,FALSE)) -> 244 | AM59: 264991 | AN59: 367866 | AO59: =MAX(AN59, AM59)/'Weighting Factors'!$Q$5 -> 80.5 | AP59: =CN59/'Weighting Factors'!$Q$5 -> 0 | AQ59: 0 | AR59: =CS59/'Weighting Factors'!$Q$5 -> 0 | AS59: 499599 | AT59: =AS59/'Weighting Factors'!$Q$5 -> 109.3 | AU59: =IF(ISNA(VLOOKUP($CZ59,'Audit Values'!$A:$BU,2,FALSE)),'Preliminary SO66'!X58,VLOOKUP($CZ59,'Audit Values'!$A$2:$BU$385,47,FALSE)) -> 0 | AV59: 1021.8 | AW59: 912.5 | AX59: =IF(ISNA(VLOOKUP($CZ59,'Audit Values'!$A$2:$BU$385,2,FALSE)),'Preliminary SO66'!AA58,VLOOKUP($CZ59,'Audit Values'!$A$2:$BU$385,41,FALSE)) -> 0 | AY59: =IF(ISNA(VLOOKUP($CZ59,'Audit Values'!$A$2:$BU$385,2,FALSE)),'Preliminary SO66'!AB58,VLOOKUP($CZ59,'Audit Values'!$A$2:$BU$385,42,FALSE)) -> 0 | AZ59: 0 | BA59: =SUM(AX59*'Weighting Factors'!$T$10)+('2021 Legal Max'!AY59*'Weighting Factors'!$T$11)+('2021 Legal Max'!AZ59*'Weighting Factors'!$T$12) -> 0 | BB59: 0 | BC59: =IF(ISNA(VLOOKUP($CZ59,'Audit Values'!$A$2:$BU$385,2,FALSE)),"",IF(AND('Weighting Factors'!H59>0,VLOOKUP($CZ59,'Audit Values'!$A$2:$BU$385,51,FALSE)<'Weighting Factors'!H59),'Weighting Factors'!H59,VLOOKUP($CZ59,'Audit Values'!$A$2:$BU$385,50,FALSE))) -> 27 | BD59: =IF(ISNA(VLOOKUP($CZ59,'Audit Values'!$A$2:$BV$385,2,FALSE)),"",VLOOKUP($CZ59,'Audit Values'!$A$2:$BV$385,51,FALSE)) -> A | BE59: =IF('Weighting Factors'!H59="","",IF('Weighting Factors'!J59="Pending","PX","R")) ->  | BF59: =SUM((S59+T59+Y59+AA59+AE59+AH59+AJ59++AO59+AP59+AQ59+AU59+AR59)*'Weighting Factors'!$Q$5)+'2021 Legal Max'!BA59+'2021 Legal Max'!BB59 -> 4169213 | BG59: =SUM((AV59+AR59)*'Weighting Factors'!$Q$5)+BA59+'2021 Legal Max'!BB59 -> 4668604 | BH59: =IF('Weighting Factors'!H59>0,'Weighting Factors'!H59,'Preliminary SO66'!AV58) -> 4814683 | BI59: 4668604 | BJ59: ='Weighting Factors'!G59 -> 0 | BK59: ='Weighting Factors'!F59 -> 0 | BL59: ='Weighting Factors'!E59 -> 0 | BM59: 0 | BN59: 4668604 | BO59: =SUM((S59+T59+Y59+AA59+AE59+AH59+AJ59+AO59+AP59+AQ59+AR59)*'Weighting Factors'!Q$12)+(MAX(AS59,'Weighting Factors'!B59)) -> 4861440 | BP59: 0.3 | BQ59: 1458432 | BR59: 1477647 | BS59: 1458432 | BT59: 0.3 | BU59: 0 | BV59: FALSE | BW59: 0 | BX59: 0 | BY59: 0 | BZ59: TRUE | CA59: 214.2113 | CB59: 0.425376 | CC59: 201.2 | CD59: 0 | CE59: 300 | CF59: 0.813 | CG59: =IF(CF59<0.06,1,IF(CF59>=18.29,52,MATCH(CF59-0.001,'Weighting Factors'!$Y$5:$Y$156)+1)) -> 30 | CH59: =VLOOKUP(CG59, 'Weighting Factors'!$W$5:$Z$56,4) -> 990 | CI59: =('Weighting Factors'!$Q$5/'Weighting Factors'!$Q$14) -> 1.097 | CJ59: 241560 | CK59: =CJ59*'Weighting Factors'!$S$7 -> 241560 | CL59: 264991 | CM59: =AM59/'Weighting Factors'!$Q$5 -> 58 | CN59: 0 | CO59: 0 | CP59: 0 | CQ59: 0 | CR59: =SUM((AV59*'Weighting Factors'!$Q$5)+'2021 Legal Max'!BA59)*CQ59 -> 0 | CS59: 0 | CT59: 0.5055 | CU59: 24.2 | CV59: 0 | CW59: 1021.8 | CX59: ='LOB Transfers'!G58 -> 159552 | CY59: ='LOB Transfers'!J58 -> 0 | CZ59: D0247
A60: 248 | B60: Crawford | C60: Girard | D60: 1003 | E60: 0 | F60: 1003 | G60: 1005 | H60: 0 | I60: 1005 | J60: 991.5 | K60: 0 | L60: 991.5 | M60: =IF(ISNA(VLOOKUP($CZ60,'Audit Values'!$A:$BW,2,FALSE)),'Preliminary SO66'!C59,VLOOKUP($CZ60,'Audit Values'!$A:$BW,73,FALSE)) -> 963 | N60: =IF(ISNA(VLOOKUP($CZ60,'Audit Values'!$A:$BW,2,FALSE)),'Preliminary SO66'!F59,VLOOKUP($CZ60,'Audit Values'!$A$2:$BW$381,4,FALSE)) -> 0 | O60: 963 | P60: =IF('Military Provision'!J61="YES", MAX('2021 Legal Max'!L60,'2021 Legal Max'!I60,AVERAGE('2021 Legal Max'!F60,'2021 Legal Max'!I60,'2021 Legal Max'!L60)), MAX(L60, I60)) -> 1005 | Q60: =IF(ISNA(VLOOKUP($CZ60,'Audit Values'!$A:BU,2,FALSE)),'Preliminary SO66'!AL59,VLOOKUP($CZ60,'Audit Values'!$A$2:$BU333,58,FALSE)) -> 12.5 | R60: 0 | S60: 1017.5 | T60: 244.6 | U60: =IF(ISNA(VLOOKUP($CZ60,'Audit Values'!$A:$BW,2,FALSE)),'Preliminary SO66'!AM59,VLOOKUP($CZ60,'Audit Values'!$A:$BW,62,FALSE)) -> 11.5 | V60: =(U60/6)*'Weighting Factors'!$Q$7 -> 0.8 | W60: =IF(ISNA(VLOOKUP($CZ60,'Audit Values'!$A:$BW,2,FALSE)),'Preliminary SO66'!AN59,VLOOKUP($CZ60,'Audit Values'!$A:$BW,61,FALSE)) -> 16 | X60: =W60*'Weighting Factors'!$Q$8 -> 3 | Y60: 3 | Z60: =IF(ISNA(VLOOKUP($CZ60,'Audit Values'!$A:$BW,2,FALSE)),'Preliminary SO66'!AO59,VLOOKUP($CZ60,'Audit Values'!$A:$BW,60,FALSE)) -> 330.3 | AA60: =Z60/6*'Weighting Factors'!$Q$6 -> 27.5 | AB60: =IF(ISNA(VLOOKUP($CZ60,'Audit Values'!$A:$BU,2,FALSE)),'Preliminary SO66'!AS59,VLOOKUP($CZ60,'Audit Values'!$A:$BU,63,FALSE)) -> 996 | AC60: 0 | AD60: =IF(ISNA(VLOOKUP($CZ60,'Audit Values'!$A:$BU,2,FALSE)),'Preliminary SO66'!AP59,VLOOKUP($CZ60,'Audit Values'!$A:$BU,64,FALSE)) -> 330 | AE60: =IF(A60=207, AD60,MAX(AC60,AD60))*'Weighting Factors'!$Q$9 -> 159.7 | AF60: 0 | AG60: =IF(ISNA(VLOOKUP($CZ60,'Audit Values'!$A:$BW,2,FALSE)),'Preliminary SO66'!AG59,VLOOKUP($CZ60,'Audit Values'!$A$2:$BW$385,70,FALSE)) -> 1.7 | AH60: 1.7 | AI60: =IF(ISNA(VLOOKUP($CZ60,'Audit Values'!$A:$BU,2,FALSE)),'Preliminary SO66'!AQ59,VLOOKUP($CZ60,'Audit Values'!$A:$BU,65,FALSE)) -> 0 | AJ60: =AI60*'Weighting Factors'!$Q$10 -> 0 | AK60: =IF(ISNA(VLOOKUP($CZ60,'Audit Values'!$A:$BU,2,FALSE)),'Preliminary SO66'!AR59,VLOOKUP($CZ60,'Audit Values'!$A:$BU,66,FALSE)) -> 278 | AM60: 289718 | AN60: 348221 | AO60: =MAX(AN60, AM60)/'Weighting Factors'!$Q$5 -> 76.2 | AP60: =CN60/'Weighting Factors'!$Q$5 -> 0 | AQ60: 0 | AR60: =CS60/'Weighting Factors'!$Q$5 -> 0 | AS60: 1049781 | AT60: =AS60/'Weighting Factors'!$Q$5 -> 229.8 | AU60: =IF(ISNA(VLOOKUP($CZ60,'Audit Values'!$A:$BU,2,FALSE)),'Preliminary SO66'!X59,VLOOKUP($CZ60,'Audit Values'!$A$2:$BU$385,47,FALSE)) -> 0 | AV60: 1760 | AW60: 1530.2 | AX60: =IF(ISNA(VLOOKUP($CZ60,'Audit Values'!$A$2:$BU$385,2,FALSE)),'Preliminary SO66'!AA59,VLOOKUP($CZ60,'Audit Values'!$A$2:$BU$385,41,FALSE)) -> 0 | AY60: =IF(ISNA(VLOOKUP($CZ60,'Audit Values'!$A$2:$BU$385,2,FALSE)),'Preliminary SO66'!AB59,VLOOKUP($CZ60,'Audit Values'!$A$2:$BU$385,42,FALSE)) -> 0.8 | AZ60: 0 | BA60: =SUM(AX60*'Weighting Factors'!$T$10)+('2021 Legal Max'!AY60*'Weighting Factors'!$T$11)+('2021 Legal Max'!AZ60*'Weighting Factors'!$T$12) -> 1360 | BB60: 0 | BC60: =IF(ISNA(VLOOKUP($CZ60,'Audit Values'!$A$2:$BU$385,2,FALSE)),"",IF(AND('Weighting Factors'!H60>0,VLOOKUP($CZ60,'Audit Values'!$A$2:$BU$385,51,FALSE)<'Weighting Factors'!H60),'Weighting Factors'!H60,VLOOKUP($CZ60,'Audit Values'!$A$2:$BU$385,50,FALSE))) -> 8 | BD60: =IF(ISNA(VLOOKUP($CZ60,'Audit Values'!$A$2:$BV$385,2,FALSE)),"",VLOOKUP($CZ60,'Audit Values'!$A$2:$BV$385,51,FALSE)) -> A | BE60: =IF('Weighting Factors'!H60="","",IF('Weighting Factors'!J60="Pending","PX","R")) ->  | BF60: =SUM((S60+T60+Y60+AA60+AE60+AH60+AJ60++AO60+AP60+AQ60+AU60+AR60)*'Weighting Factors'!$Q$5)+'2021 Legal Max'!BA60+'2021 Legal Max'!BB60 -> 6992844 | BG60: =SUM((AV60+AR60)*'Weighting Factors'!$Q$5)+BA60+'2021 Legal Max'!BB60 -> 8042800 | BH60: =IF('Weighting Factors'!H60>0,'Weighting Factors'!H60,'Preliminary SO66'!AV59) -> 8194450 | BI60: 8042800 | BJ60: ='Weighting Factors'!G60 -> 0 | BK60: ='Weighting Factors'!F60 -> 0 | BL60: ='Weighting Factors'!E60 -> 0 | BM60: 0 | BN60: 8042800 | BO60: =SUM((S60+T60+Y60+AA60+AE60+AH60+AJ60+AO60+AP60+AQ60+AR60)*'Weighting Factors'!Q$12)+(MAX(AS60,'Weighting Factors'!B60)) -> 8100943 | BP60: 0.3 | BQ60: 2430283 | BR60: 2473392 | BS60: 2430283 | BT60: 0.3 | BU60: 0 | BV60: FALSE | BW60: 0 | BX60: 0 | BY60: 0 | BZ60: TRUE | CA60: 887.9063 | CB60: 0.240417 | CC60: 244.6 | CD60: 0 | CE60: 263 | CF60: 1.057 | CG60: =IF(CF60<0.06,1,IF(CF60>=18.29,52,MATCH(CF60-0.001,'Weighting Factors'!$Y$5:$Y$156)+1)) -> 32 | CH60: =VLOOKUP(CG60, 'Weighting Factors'!$W$5:$Z$56,4) -> 950 | CI60: =('Weighting Factors'!$Q$5/'Weighting Factors'!$Q$14) -> 1.097 | CJ60: 264100 | CK60: =CJ60*'Weighting Factors'!$S$7 -> 264100 | CL60: 289718 | CM60: =AM60/'Weighting Factors'!$Q$5 -> 63.4 | CN60: 0 | CO60: 0 | CP60: 0 | CQ60: 0 | CR60: =SUM((AV60*'Weighting Factors'!$Q$5)+'2021 Legal Max'!BA60)*CQ60 -> 0 | CS60: 0 | CT60: 0.3313 | CU60: 0 | CV60: 0 | CW60: 1760 | CX60: ='LOB Transfers'!G59 -> 222128 | CY60: ='LOB Transfers'!J59 -> 4131 | CZ60: D0248
A61: 249 | B61: Crawford | C61: Frontenac Public Schools | D61: 954 | E61: 0 | F61: 954 | G61: 912 | H61: 0 | I61: 912 | J61: 943.5 | K61: 0 | L61: 943.5 | M61: =IF(ISNA(VLOOKUP($CZ61,'Audit Values'!$A:$BW,2,FALSE)),'Preliminary SO66'!C60,VLOOKUP($CZ61,'Audit Values'!$A:$BW,73,FALSE)) -> 930.5 | N61: =IF(ISNA(VLOOKUP($CZ61,'Audit Values'!$A:$BW,2,FALSE)),'Preliminary SO66'!F60,VLOOKUP($CZ61,'Audit Values'!$A$2:$BW$381,4,FALSE)) -> 0 | O61: 930.5 | P61: =IF('Military Provision'!J62="YES", MAX('2021 Legal Max'!L61,'2021 Legal Max'!I61,AVERAGE('2021 Legal Max'!F61,'2021 Legal Max'!I61,'2021 Legal Max'!L61)), MAX(L61, I61)) -> 943.5 | Q61: =IF(ISNA(VLOOKUP($CZ61,'Audit Values'!$A:BU,2,FALSE)),'Preliminary SO66'!AL60,VLOOKUP($CZ61,'Audit Values'!$A$2:$BU334,58,FALSE)) -> 3.5 | R61: 0 | S61: 947 | T61: 250.4 | U61: =IF(ISNA(VLOOKUP($CZ61,'Audit Values'!$A:$BW,2,FALSE)),'Preliminary SO66'!AM60,VLOOKUP($CZ61,'Audit Values'!$A:$BW,62,FALSE)) -> 52.3 | V61: =(U61/6)*'Weighting Factors'!$Q$7 -> 3.4 | W61: =IF(ISNA(VLOOKUP($CZ61,'Audit Values'!$A:$BW,2,FALSE)),'Preliminary SO66'!AN60,VLOOKUP($CZ61,'Audit Values'!$A:$BW,61,FALSE)) -> 28 | X61: =W61*'Weighting Factors'!$Q$8 -> 5.2 | Y61: 5.2 | Z61: =IF(ISNA(VLOOKUP($CZ61,'Audit Values'!$A:$BW,2,FALSE)),'Preliminary SO66'!AO60,VLOOKUP($CZ61,'Audit Values'!$A:$BW,60,FALSE)) -> 237.4 | AA61: =Z61/6*'Weighting Factors'!$Q$6 -> 19.8 | AB61: =IF(ISNA(VLOOKUP($CZ61,'Audit Values'!$A:$BU,2,FALSE)),'Preliminary SO66'!AS60,VLOOKUP($CZ61,'Audit Values'!$A:$BU,63,FALSE)) -> 941 | AC61: 0 | AD61: =IF(ISNA(VLOOKUP($CZ61,'Audit Values'!$A:$BU,2,FALSE)),'Preliminary SO66'!AP60,VLOOKUP($CZ61,'Audit Values'!$A:$BU,64,FALSE)) -> 266 | AE61: =IF(A61=207, AD61,MAX(AC61,AD61))*'Weighting Factors'!$Q$9 -> 128.7 | AF61: 0 | AG61: =IF(ISNA(VLOOKUP($CZ61,'Audit Values'!$A:$BW,2,FALSE)),'Preliminary SO66'!AG60,VLOOKUP($CZ61,'Audit Values'!$A$2:$BW$385,70,FALSE)) -> 0 | AH61: 0 | AI61: =IF(ISNA(VLOOKUP($CZ61,'Audit Values'!$A:$BU,2,FALSE)),'Preliminary SO66'!AQ60,VLOOKUP($CZ61,'Audit Values'!$A:$BU,65,FALSE)) -> 0 | AJ61: =AI61*'Weighting Factors'!$Q$10 -> 0 | AK61: =IF(ISNA(VLOOKUP($CZ61,'Audit Values'!$A:$BU,2,FALSE)),'Preliminary SO66'!AR60,VLOOKUP($CZ61,'Audit Values'!$A:$BU,66,FALSE)) -> 88 | AM61: 72402 | AN61: 71262 | AO61: =MAX(AN61, AM61)/'Weighting Factors'!$Q$5 -> 15.8 | AP61: =CN61/'Weighting Factors'!$Q$5 -> 0 | AQ61: 0 | AR61: =CS61/'Weighting Factors'!$Q$5 -> 0 | AS61: 980936 | AT61: =AS61/'Weighting Factors'!$Q$5 -> 214.7 | AU61: =IF(ISNA(VLOOKUP($CZ61,'Audit Values'!$A:$BU,2,FALSE)),'Preliminary SO66'!X60,VLOOKUP($CZ61,'Audit Values'!$A$2:$BU$385,47,FALSE)) -> 0 | AV61: 1581.6 | AW61: 1366.9 | AX61: =IF(ISNA(VLOOKUP($CZ61,'Audit Values'!$A$2:$BU$385,2,FALSE)),'Preliminary SO66'!AA60,VLOOKUP($CZ61,'Audit Values'!$A$2:$BU$385,41,FALSE)) -> 2 | AY61: =IF(ISNA(VLOOKUP($CZ61,'Audit Values'!$A$2:$BU$385,2,FALSE)),'Preliminary SO66'!AB60,VLOOKUP($CZ61,'Audit Values'!$A$2:$BU$385,42,FALSE)) -> 0 | AZ61: 0 | BA61: =SUM(AX61*'Weighting Factors'!$T$10)+('2021 Legal Max'!AY61*'Weighting Factors'!$T$11)+('2021 Legal Max'!AZ61*'Weighting Factors'!$T$12) -> 10000 | BB61: 0 | BC61: =IF(ISNA(VLOOKUP($CZ61,'Audit Values'!$A$2:$BU$385,2,FALSE)),"",IF(AND('Weighting Factors'!H61>0,VLOOKUP($CZ61,'Audit Values'!$A$2:$BU$385,51,FALSE)<'Weighting Factors'!H61),'Weighting Factors'!H61,VLOOKUP($CZ61,'Audit Values'!$A$2:$BU$385,50,FALSE))) -> 5 | BD61: =IF(ISNA(VLOOKUP($CZ61,'Audit Values'!$A$2:$BV$385,2,FALSE)),"",VLOOKUP($CZ61,'Audit Values'!$A$2:$BV$385,51,FALSE)) -> A | BE61: =IF('Weighting Factors'!H61="","",IF('Weighting Factors'!J61="Pending","PX","R")) ->  | BF61: =SUM((S61+T61+Y61+AA61+AE61+AH61+AJ61++AO61+AP61+AQ61+AU61+AR61)*'Weighting Factors'!$Q$5)+'2021 Legal Max'!BA61+'2021 Legal Max'!BB61 -> 6255366 | BG61: =SUM((AV61+AR61)*'Weighting Factors'!$Q$5)+BA61+'2021 Legal Max'!BB61 -> 7236330 | BH61: =IF('Weighting Factors'!H61>0,'Weighting Factors'!H61,'Preliminary SO66'!AV60) -> 7485440 | BI61: 7236330 | BJ61: ='Weighting Factors'!G61 -> 0 | BK61: ='Weighting Factors'!F61 -> 0 | BL61: ='Weighting Factors'!E61 -> 0 | BM61: 0 | BN61: 7236330 | BO61: =SUM((S61+T61+Y61+AA61+AE61+AH61+AJ61+AO61+AP61+AQ61+AR61)*'Weighting Factors'!Q$12)+(MAX(AS61,'Weighting Factors'!B61)) -> 7279611 | BP61: 0.3 | BQ61: 2183883 | BR61: 2256860 | BS61: 2183883 | BT61: 0.3 | BU61: 0 | BV61: FALSE | BW61: 0 | BX61: 0 | BY61: 0 | BZ61: TRUE | CA61: 800.6625 | CB61: 0.264369 | CC61: 250.4 | CD61: 0 | CE61: 22 | CF61: 4 | CG61: =IF(CF61<0.06,1,IF(CF61>=18.29,52,MATCH(CF61-0.001,'Weighting Factors'!$Y$5:$Y$156)+1)) -> 42 | CH61: =VLOOKUP(CG61, 'Weighting Factors'!$W$5:$Z$56,4) -> 750 | CI61: =('Weighting Factors'!$Q$5/'Weighting Factors'!$Q$14) -> 1.097 | CJ61: 66000 | CK61: =CJ61*'Weighting Factors'!$S$7 -> 66000 | CL61: 72402 | CM61: =AM61/'Weighting Factors'!$Q$5 -> 15.8 | CN61: 0 | CO61: 0 | CP61: 0 | CQ61: 0 | CR61: =SUM((AV61*'Weighting Factors'!$Q$5)+'2021 Legal Max'!BA61)*CQ61 -> 0 | CS61: 0 | CT61: 0.2827 | CU61: 0 | CV61: 0 | CW61: 1581.6 | CX61: ='LOB Transfers'!G60 -> 178205 | CY61: ='LOB Transfers'!J60 -> 7207 | CZ61: D0249
